Workbook

Sheet 2016_ (hidden)
Q2: 9072 | R2: 365 | S2: =Q2*R2 -> 3311280
A4: 번호 | B4: 행사명 | C4: 광주지역 참가업체 수 | D4: 참가자수 | E4: 주최/주관 | F4: 구분 (지역/타지역) | G4: 담당자 | H4: 연락처 | I4: 개최장소 | J4: 홀 구분 | M4: 개최월 | N4: 주 (일~토) | O4: 행사기간 | P4: 임대면적 (1일, m²) | Q4: 임대기간(일) (설치, 철거기간 포함) | R4: 임대기간 | S4: 사용면적 (임대기간X임대면적) | T4: 연간 사용면적 누계 (m²) | U4: 전체 가동률(%) (이벤트 포함) | V4: 구분 (전시회/이벤트) | W4: 할인율 | X4: 임대료 계산 | AD4: 실질수입 | AE4: 1차납부 | AG4: 2차납부 | AI4: 3차납부 | AK4: 4차납부 | AM4: 5차납부 | AO4: 6차납부 | AQ4: 과오납 | AR4: 미수금 | AS4: 입금상태 | AT4: 담당자 | AU4: 연락처 | AV4: 핸드폰 | AW4: 팩스 | AX4: 이메일
J5: 1 | K5: 2 | L5: 3 | X5: 임대료 | Y5: 예치금 | Z5: 임대료+예치금 | AA5: 장비사용료 | AB5: 과오납 | AC5: 예상수입 | AE5: 납부일 | AF5: 금액 | AG5: 납부일 | AH5: 금액 | AI5: 납부일 | AJ5: 금액 | AK5: 납부일 | AL5: 금액 | AM5: 납부일 | AN5: 금액 | AO5: 납부일 | AP5: 금액
A6: 1 | B6: 리틀캣 & 3D오감만족체험전 | E6: 에이치엠디(주) | F6: 지역 | G6: 이경록 | H6: 010-6609-8721 | I6: 전시장 | J6: 1 | O6: 20151218~20160221 | P6: 3024 | Q6: 0101~0224 | R6: 55 | S6: =P6*R6 -> 166320 | U6: =S6/3311280 -> 0.0502283105 | V6: 이벤트
A7: 2 | B7: 로보카폴리 플레이파크 시즌4 | E7: 로이비쥬얼, (주)키즈엔터테인먼트, 라엘엔터테인먼트 | F7: 타지역 | I7: 전시장 | K7: 1 | O7: 20151219~20160221 | P7: 3024 | Q7: 0101-0224 | R7: 55 | S7: =P7*R7 -> 166320 | U7: =S7/3311280 -> 0.0502283105 | V7: 이벤트
A8: 3 | B8: 제23회 KBC웨딩박람회 | E8: KBC플러스 | F8: 지역 | G8: 강경구팀장 | H8: 010-8613-7409 | I8: 전시장 | L8: 1 | M8: 1월 | O8: 0128~0131 | P8: 3024 | Q8: 0126~0201 | R8: 7 | S8: =P8*R8 -> 21168 | U8: =S8/3311280 -> 0.006392694064 | V8: 전시회 | W8: 0.4 | X8: 18860680 | Y8: 3013010 | Z8: =X8+Y8 -> 21873690 | AA8: 0 | AB8: 3273880 | AC8: =Z8 -> 21873690 | AD8: 21873690 | AE8: 2016-01-22 | AF8: 25147570 | AQ8: =AB8 -> 3273880 | AR8: =AD8-(AF8+AH8+AJ8+AL8-AQ8) -> 0 | AS8: 완납 | AT8: 이재희 대리 | AU8: 062-650-3048 | AV8: 010-4138-5619 | AW8: 062-710-3359 | AX8: kbc0130@naver.com
A9: 4 | B9: 장윤정 콘서트 | E9: 아시아문화기획,제주멍키 | F9: 지역 | G9: 강태우감독 | H9: 010-2351-8600 | I9: 다목적홀 | J9: 1 | K9: 1 | M9: 2월 | O9: 213 | P9: 2955 | Q9: 0212~0213 | R9: 2 | S9: =P9*R9 -> 5910 | U9: 0.001784808292 | V9: 이벤트 | X9: 12325890 | Y9: 3081470 | Z9: 15407360 | AA9: 0 | AB9: 1797490 | AC9: =Z9+AA9-AB9 -> 13609870 | AD9: 13609870 | AE9: 2016-02-11 | AF9: 5602680 | AG9: 2016-02-12 | AH9: 9804680 | AQ9: 1797490 | AR9: =AD9-(AF9+AH9+AJ9+AL9-AQ9) -> 0 | AS9: 완납 | AT9: 박지훈팀장(실 담당) 강태우 감독(기획사) | AV9: 010-7469-5952 010-2351-8600 | AX9: jimypark@gmail.com
A10: 5 | B10: 발렌타인데이 콘서트(윤민수&휘성) | E10: 인산컴퍼니 | F10: 지역 | G10: 김현진실장 | H10: 010-5779-3721 | I10: 다목적홀 | J10: 1 | K10: 1 | M10: 2월 | O10: 214 | P10: 2955 | Q10: 214 | R10: 1 | S10: =P10*R10 -> 2955 | U10: =S10/3311280 -> 0.0008924041458 | V10: 이벤트 | X10: 7703680 | Y10: 1540730 | Z10: =X10+Y10 -> 9244410 | AC10: 9244415 | AD10: 9244415 | AE10: 2016-01-08 | AF10: 3501675 | AG10: 2016-02-12 | AH10: 5742740 | AQ10: =AB10 -> 0 | AR10: =AD10-(AF10+AH10+AJ10+AL10-AQ10) -> 0 | AS10: 완납 | AT10: 김현진실장 | AV10: 010-5779-3721 | AX10: it5880@daum.net
A11: 6 | B11: 제17회 KBC맘앤베이비페어 | E11: KBC플러스 | F11: 지역 | G11: 강경구팀장 | H11: 010-8613-7409 | I11: 전시장 | L11: 1 | M11: 2월 | O11: 0218~0221 | P11: 3024 | Q11: 0216~0222 | R11: 7 | S11: =P11*R11 -> 21168 | U11: =S11/3311280 -> 0.006392694064 | V11: 전시회 | W11: 0.4 | X11: 18860680 | Y11: 6286890 | Z11: =X11+Y11 -> 25147570 | AB11: 3974780 | AC11: =Z11-AB11 -> 21172790 | AD11: 21172790 | AE11: 2016-02-05 | AF11: 25147570 | AQ11: =AB11 -> 3974780 | AR11: =AD11-(AF11+AH11+AJ11+AL11-AQ11) -> 0 | AS11: 완납 | AT11: 이재희 대리 | AU11: 062-650-3048 | AV11: 010-4138-5619 | AW11: 062-710-3359 | AX11: kbc0130@naver.com
A12: 7 | B12: Buzz 콘서트 | E12: 장터미디어 | F12: 지역 | G12: 신상옥팀장 | H12: 010-3642-2771 | I12: 다목적홀 | J12: 1 | K12: 1 | M12: 2월 | O12: 220 | P12: 2955 | Q12: 0219~0220 | R12: 2 | S12: 5910 | U12: 0.001784808292 | V12: 이벤트 | X12: 10015560 | Y12: 1449880 | Z12: 11465440 | AA12: 1430000 | AC12: =Z12+AA12-AB12 -> 12895440 | AD12: 12895440 | AE12: 2016-02-15 | AF12: 9244410 | AG12: 2016-02-24 | AH12: 3651030 | AQ12: 0 | AR12: 0 | AS12: 완납 | AT12: 신상옥이사 | AU12: 062-417-6060 | AV12: 010-3642-2771 | AW12: 062-417-6066 | AX12: sso2771@hanmail.net
A13: 8 | B13: 굿뉴스코페스티벌 | E13: (사)국제청소년연합 | F13: 지역 | G13: 서영란부장 | H13: 010-2615-5035 | I13: 다목적홀 | J13: 1 | K13: 1 | M13: 2월 | O13: 224 | P13: 2955 | Q13: 224 | R13: 1 | S13: 2955 | U13: 0.0008924041458 | V13: 이벤트 | X13: 9023680 | Y13: 3853870 | Z13: 12877550 | AA13: 2783000 | AC13: =Z13+AA13-AB13 -> 15660550 | AD13: 15660550 | AE13: 2016-01-26 | AF13: 4476670 | AG13: 2016-02-17 | AH13: 6912740 | AI13: 2016-02-26 | AJ13: 4271140 | AQ13: 0 | AR13: 0 | AS13: 완납 | AT13: 정근창 목사 서영란 국장 | AU13: 062-655-7200 | AV13: 010-3787-3775 010-2615-5035 | AW13: 062-655-7203 | AX13: iyfjeonnam@korea.com
A14: 9 | B14: 광주MBC 웨딩박람회 | E14: 광주문화방송 | F14: 지역 | G14: 류권형차장 | H14: 010-3633-1608 | I14: 전시장 | L14: 1 | M14: 2월 | O14: 0225~0228 | P14: 3024 | Q14: 0223~0228 | R14: 6 | S14: 18144 | U14: 0.005479452055 | V14: 전시회 | W14: 0.4 | X14: 16166300 | Y14: 5732290 | Z14: 21898590 | AC14: =Z14-AB14 -> 21898590 | AD14: 21898590 | AE14: 2016-03-08 | AF14: 21898590 | AQ14: 0 | AR14: 0 | AS14: 완납 | AT14: 류권형 차장 | AU14: 062-360-2624 | AV14: 010-3633-1608 | AW14: 062-360-2476 | AX14: dimple9010@naver.com
A15: 10 | B15: 임창정 콘서트 | E15: 장터미디어 | F15: 지역 | G15: 신상옥팀장 | H15: 010-3642-2771 | I15: 다목적홀 | J15: 1 | K15: 1 | M15: 2월 | O15: 227 | P15: 2955 | Q15: 0225~027 | R15: 2 | S15: 5910 | U15: 0.001784808292 | V15: 이벤트 | X15: 12325890 | Y15: 3081474 | Z15: 15407360 | AB15: 1015480 | AC15: 14391880 | AD15: 14391880 | AE15: 2016-02-15 | AF15: 15407360 | AQ15: 1015480 | AR15: =AD15-(AF15+AH15+AJ15+AL15-AQ15) -> 0 | AS15: 완납 | AT15: 신상옥이사 | AU15: 062-417-6060 | AV15: 010-3642-2771 | AW15: 062-417-6066 | AX15: sso2771@hanmail.net
A16: 11 | B16: 2016 GS 봄맞이 한마당 | E16: (주)지에스리테일 | F16: 타지역 | G16: 문성필대리 | H16: 010-4940-6762 | I16: 전시장 | J16: 1 | K16: 1 | M16: 3월 | O16: 301 | P16: 6048 | Q16: 0228~0301 | R16: 3 | S16: 18144 | U16: 0.005479452055 | V16: 전시회 | Z16: 0 | AC16: 0 | AD16: 0 | AQ16: 0 | AR16: 0 | AS16: 선납 | AT16: 문성필 과장 | AU16: 02-2006-2665 | AV16: 010-4940-6762 | AW16: 02-2006-2938 | AX16: msp6762@gsretail.com
A17: 12 | B17: 광주 힐스테이트 입주자박람회 | E17: 더블유창 | F17: 지역 | I17: 전시장 | J17: 1 | M17: 3월 | O17: 0304~0306 | P17: 3024 | Q17: 0303~0306 | R17: 4 | S17: 12096 | U17: 0.003652968037 | V17: 전시회 | X17: 17962560 | Y17: 5830480 | Z17: 23793040 | AC17: 23793040 | AD17: 23793040 | AE17: 2016-01-20 | AF17: 8164800 | AG17: 2016-02-29 | AH17: 13390270 | AI17: 2016-03-09 | AJ17: 2237970 | AQ17: 0 | AR17: 0 | AS17: 완납 | AT17: 유준우팀장 | AU17: 062-714-3555 | AV17: 010-9463-7465 | AW17: 062-714-3559 | AX17: eckotop@naver.com
A18: 13 | B18: 2016이은미콘서트 | E18: 미르엔터테인먼트 | F18: 타지역 | I18: 다목적홀 | J18: 1 | K18: 1 | M18: 3월 | O18: 0312 | P18: 2955 | Q18: 0311~0312 | R18: 2 | S18: 5910 | U18: 0.001784808292 | V18: 이벤트 | X18: 12325890 | Y18: 3081470 | Z18: =X18+Y18 -> 15407360 | AC18: 15407360 | AD18: 15407360 | AE18: 2016-03-09 | AF18: 15407360 | AQ18: 0 | AR18: 0 | AS18: 완납
A19: 14 | B19: SWEET 2016 | E19: 광주광역시,김대중컨벤션센터 | F19: 지역 | G19: 김욱과장 | I19: 전시장 | J19: 1 | K19: 1 | L19: 1 | M19: 3월 | O19: 0316~0318 | P19: 9072 | Q19: 0312~0319 | R19: 8 | S19: 72576 | U19: 0.02191780822 | V19: 전시회 | X19: 0 | Y19: 0 | Z19: 0 | AC19: 0 | AD19: 0 | AQ19: 0 | AR19: 0 | AS19: 완납
B20: 에너지효율관리 국제워크샵 | E20: 에너지벨리기술원,김대중컨벤션센터 | F20: 지역 | I20: 전시장 | J20: 1 | M20: 3월 | O20: 0316~0317 | Q20: 0316~0317
B21: 한국ESS산업진흥회 해외진출 세미나 | E21: 한국ESS산업진흥회 | F21: 지역 | I21: 전시장 | J21: 1 | M21: 3월 | O21: 0316 | Q21: 0316
A22: 15 | B22: 광주입주박람회 유상옵션 행사 | E22: ㈜청운디엔씨 | F22: 타지역 | I22: 다목적홀 | J22: 1 | K22: 1 | M22: 3월 | O22: 0319~0320 | P22: 2955 | Q22: 0318~0320 | R22: 3 | S22: 8865 | U22: 0.002677212437 | V22: 전시회 | X22: 20029570 | Y22: 4622210 | Z22: 24651780 | AB22: 621740 | AC22: =Z22-AB22 -> 24030040 | AD22: 24030040 | AE22: 2016-03-17 | AF22: 24651780 | AQ22: 621740 | AR22: 0 | AS22: 완납
A23: 16 | B23: 광주MBC베이비페어 | E23: 광주문화방송 | F23: 지역 | G23: 류권형차장 | H23: 010-3633-1608 | I23: 전시장 | K23: 1 | L23: 1 | M23: 3월 | O23: 0324~0327 | P23: 6048 | Q23: 0324~0327 | R23: 6 | S23: =P23*R23 -> 36288 | U23: =S23/3311280 -> 0.01095890411 | V23: 전시회 | W23: 0.2 | X23: 43110140 | Y23: 6849040 | Z23: =X23+Y23 -> 49959180 | AC23: =Z23-AB23 -> 49959180 | AD23: 49959180 | AE23: 2016-04-06 | AF23: 49959180 | AQ23: =AB23 -> 0 | AR23: =AD23-(AF23+AH23+AJ23+AL23-AQ23) -> 0 | AS23: 완납
A24: 17 | B24: 광주입주자박람회 | E24: 풀하우스전람 | F24: 타지역 | I24: 전시장 | J24: 1 | M24: 3월 | O24: 0326~0327 | P24: 3024 | Q24: 0325~0327 | R24: 3 | S24: 9072 | U24: 0.002739726027 | V24: 전시회 | X24: 13471920 | Y24: 2694380 | Z24: 16166300 | AB24: 744160 | AC24: =Z24-AB24 -> 15422140 | AD24: 15091002 | AE24: 2016-02-18 | AF24: 2000000 | AG24: 2016-03-15 | AH24: =3813030 -> 3813030 | AI24: 2016-03-15 | AJ24: 2926200 | AK24: 2016-03-21 | AL24: 3023740 | AM24: 2016-03-23 | AN24: 2931900 | AO24: 2016-03-30 | AP24: 1140292 | AQ24: 744160 | AR24: =AD24-(AF24+AH24+AJ24+AL24+AN24+AP24-AQ24) -> 0 | AS24: 완납
A25: 18 | B25: 2016 위너콘서트 | E25: 공연마루 | F25: 지역 | G25: 김경진 | H25: 010-3616-8984 | I25: 다목적홀 | J25: 1 | K25: 1 | M25: 3월 | O25: 0326 | P25: 2955 | Q25: 0324~0326 | R25: 3 | S25: 8865 | U25: 0.002677212437 | V25: 이벤트 | X25: 16948100 | Y25: 7640310 | Z25: =X25+Y25 -> 24588410 | AC25: =Z25-AB25 -> 24588410 | AD25: 24588410 | AE25: 2016-03-02 | AF25: 5602680 | AG25: 2016-03-22 | AH25: 15967630 | AI25: 2016-04-08 | AJ25: 3018100 | AQ25: 0 | AS25: 완납
A26: 19 | B26: 2016 CHDTEX(대한치과기공사협회 학술대회) | E26: 대한치과기공사협회 광주광역시 치과기공사회 | F26: 지역 | G26: 염은미국장 | H26: 010-4662-7386 | I26: 전시장 | J26: 1 | M26: 4월 | O26: 0409 | P26: 3024 | Q26: 0408~0409 | R26: 2 | S26: 6048 | U26: 0.001826484018 | V26: 전시회 | X26: 8981280 | Y26: 1796250 | Z26: 10777530 | AC26: =Z26-AB26 -> 10777530 | AD26: 10429640 | AE26: 2016-04-19 | AF26: 10429640 | AQ26: 0 | AR26: 0 | AS26: 완납
A27: 20 | B27: 2016 찾아가는 경기관광박람회 | E27: 경기관광공사 | F27: 타지역 | G27: 전광호 | H27: 010-6374-7171 | I27: 전시장 | K27: 1 | L27: 1 | M27: 4월 | O27: 0415~0417 | P27: 6048 | Q27: 0413~0418 | R27: 6 | S27: 36288 | U27: 0.01095890411 | V27: 전시회 | X27: 53887680 | Y27: 589050 | Z27: =X27+Y27 -> 54476730 | AA27: 3853300 | AB27: 6335180 | AC27: =Z27+AA27-AB27 -> 51994850 | AD27: 54476730 | AE27: 2016-02-23 | AF27: 24494400 | AG27: 2016-03-31 | AH27: 36317510 | AQ27: 6335180 | AR27: =AD27-(AF27+AH27+AJ27+AL27-AQ27) -> 0 | AS27: 완납
B28: 양평문호리리버마켓 in 광주 | E28: 경기관광공사 | F28: 타지역 | I28: 전시장 | K28: 1 | M28: 4월 | O28: 0415~0417 | Q28: 0413~0418 | V28: 전시회
A29: 21 | B29: 경기레저여행상품전 | E29: 경기관광공사,파주시,포천시,연천군,가평군,양평 | F29: 타지역 | I29: 전시장 | L29: 1 | M29: 4월 | O29: 0415~0417 | Q29: 0413~0418 | V29: 전시회
B30: 경기관광박람회 어쿠스틱 공연, 팝페라공연 | E30: 경기관광공사 | F30: 타지역 | I30: 전시장 | L30: 1 | M30: 4월 | O30: 0415~0417 | Q30: 0413~0418 | V30: 이벤트
A31: 22 | B31: 2016 현대기아자동차 협력사 채용박람회 | E31: ㈜커리어넷 | F31: 타지역 | G31: 천성태과장 | H31: 010-9820-0400 | I31: 전시장 | J31: 1 | M31: 4월 | O31: 421 | P31: 3024 | Q31: 0420~0421 | R31: 2 | S31: 6048 | U31: 0.001826484018 | V31: 전시회 | X31: 8981280 | Y31: 1796250 | Z31: 10777530 | AB31: 775890 | AC31: =Z31-AB31 -> 10001640 | AD31: 10001640 | AE31: 2016-04-18 | AF31: 10777530 | AQ31: 775890 | AR31: 0 | AS31: 완납
A32: 23 | B32: 대한비뇨기과학회 학술대회 및 기자재전시회 | E32: 대한비뇨기과학회 | F32: 타지역 | G32: 박경애 | H32: 010-8993-5500 | I32: 전시장 | L32: 1 | M32: 4월 | O32: 0422~0423 | P32: 3024 | Q32: 0421~0423 | R32: 3 | S32: 9072 | U32: 0.002739726027 | V32: 전시회 | X32: 13471920 | Y32: 1103800 | Z32: 14575720 | AC32: =Z32-AB32 -> 14575720 | AD32: 14575720 | AE32: 2016-04-19 | AF32: 6123600 | AG32: 2016-04-29 | AH32: 8452120 | AQ32: 0 | AR32: 0 | AS32: 완납
A33: 24 | B33: 평양진달래예술단' 특별공연 및 재테크 설명회 | E33: ㈜조은라이프 | F33: 타지역 | G33: 정은교과장 | H33: 010-6427-1764 | I33: 다목적홀 | J33: 1 | M33: 4월 | O33: 424 | P33: 1478 | Q33: 0424 | R33: 1 | S33: 1478 | U33: 0.0004463530719 | V33: 이벤트 | X33: 3853140 | Y33: 804020 | Z33: 4657160 | AA33: 825000 | AC33: =Z33+AA33-AB33 -> 5482160 | AD33: 5482160 | AE33: 2016-04-07 | AF33: 2016430 | AG33: 2016-04-19 | AH33: 2061430 | AI33: 2016-04-19 | AJ33: 1182900 | AK33: 2016-04-27 | AL33: 221400 | AQ33: 0 | AR33: 0 | AS33: 완납
A34: 25 | B34: 2016 노사화합한마당 체육대회 | E34: 김대중컨벤션센터 | F34: 지역 | G34: 김경모 | I34: 전시장 | L34: 1 | M34: 4월 | O34: 427 | P34: 3024 | Q34: 0427 | R34: 1 | S34: 3024 | U34: 0.0009132420091 | V34: 이벤트 | AS34: 완납
A35: 26 | B35: 2016 심수봉 콘서트 | E35: ㈜아이지컴퍼니 | F35: 지역 | G35: 이창수팀장 | H35: 010-4654-9052 | I35: 다목적홀 | J35: 1 | M35: 5월 | O35: 501 | P35: 1478 | Q35: 0430~0501 | R35: 2 | S35: 2956 | U35: 0.0008927061438 | V35: 이벤트 | X35: 6165020 | Y35: 497710 | Z35: =X35+Y35 -> 6662730 | AA35: 1287000 | AC35: =Z35+AA35-AB35 -> 7949730 | AD35: 7949730 | AE35: 2016-04-28 | AF35: 7706270 | AG35: 2016-05-31 | AH35: 243460 | AQ35: 0 | AR35: 0 | AS35: 완납
A36: 27 | B36: 2016 평화음악제 | E36: 광주평화방송 | F36: 지역 | G36: 박신영 | H36: 010-6381-9631 | I36: 다목적홀 | M36: 5월 | O36: 502 | P36: 2955 | Q36: 0502 | R36: 1 | S36: =P36*R36 -> 2955 | U36: =S36/3311280 -> 0.0008924041458 | V36: 이벤트 | X36: 11146680 | Y36: 1540730 | Z36: =X36+Y36 -> 12687410 | AA36: 3443000 | AB36: 651460 | AC36: =Z36-AB36 -> 12035950 | AD36: 12035950 | AE36: 2016-04-22 | AF36: 12687410 | AQ36: =AB36 -> 651460 | AR36: =AD36-(AF36+AH36+AJ36+AL36-AQ36) -> 0 | AS36: 완납
A37: 28 | B37: 2016 빛고을안전체험한마당 | E37: 광주광역시 소방안전본부 | F37: 지역 | G37: 박래현 | H37: 011-606-5747 | I37: 전시장 | K37: 1 | M37: 5월 | O37: 0503~0505 | P37: 6048 | Q37: 0501~0505 | R37: 5 | S37: 30240 | U37: 0.009132420091 | V37: 전시회 | X37: 33230730 | Y37: 6286890 | Z37: 39517620 | AC37: =Z37-AB37 -> 39517620 | AD37: 39517620 | AE37: 2016-03-29 | AF37: 39517620 | AQ37: 0 | AR37: 0 | AS37: 완납
A38: 29 | B38: 2016광주창업프랜차이즈박람회 | E38: (사)광주전납벤처기업협회 | F38: 지역 | G38: 박철휘 | I38: 전시장 | K38: 1 | M38: 5월 | O38: 0513~0515 | P38: 3024 | Q38: 0512~0515 | R38: 4 | S38: 12096 | U38: 0.003652968037 | V38: 전시회 | X38: 17962560 | Y38: 2207610 | Z38: 20170170 | AC38: =Z38-AB38 -> 20170170 | AD38: 20170170 | AE38: 2016-05-11 | AF38: 20000000 | AG38: 2016-05-17 | AH38: 170170 | AQ38: 0 | AR38: 0 | AS38: 완납
A39: 30 | B39: 2016더 골프쇼 in 광주 | E39: ㈜이엑스스포테인먼트 | F39: 타지역 | G39: 류민규대리 | H39: 010-3278-8332 | I39: 전시장 | L39: 1 | M39: 5월 | O39: 0512~0515 | P39: 3024 | Q39: 0511~0515 | R39: 5 | S39: 15120 | U39: 0.004566210046 | V39: 전시회 | X39: 22453200 | Y39: 1381410 | Z39: 23834610 | AB39: 3109230 | AC39: =Z39 -> 23834610 | AD39: 23834610 | AE39: 2016-05-04 | AF39: 26943840 | AQ39: 3109230 | AR39: 0 | AS39: 완납
A40: 31 | B40: 2016 키자비(어린이직업체험박람회) | E40: 에이치엠디(주) | F40: 지역 | G40: 이경록 | I40: 전시장 | K40: 1 | M40: 5월 | O40: 0518~0522 | P40: 6048 | Q40: 0517~0522 | R40: 6 | S40: 36288 | U40: 0.01095890411 | V40: 전시회 | X40: 53887680 | Y40: 9699080 | Z40: 63586760 | AC40: =Z40-AB40 -> 63586760 | AD40: 63067510 | AE40: 2016-05-12 | AF40: 22145960 | AG40: 2016-06-23 | AH40: 40921550 | AQ40: 0 | AR40: 0 | AS40: 완납
B41: 2016 어린이교육박람회 | E41: 에이치엠디(주) | L41: 1 | M41: 5월 | O41: 0518~0522 | Q41: 0517~0522 | V41: 전시회
A42: 32 | B42: 제18회 KBC맘앤베이비페어 | E42: (주)KBC플러스 | F42: 지역 | G42: 강경구팀장 | H42: 010-8613-7409 | I42: 전시장 | J42: 1 | K42: 1 | M42: 5월 | O42: 0526~0529 | P42: 6048 | Q42: 0424~0529 | R42: 6 | S42: 36288 | U42: 0.01095890411 | V42: 전시회 | X42: 43110140 | Y42: 12673980 | Z42: 55784120 | AC42: =Z42-AB42 -> 55784120 | AD42: 55784120 | AE42: 2016-05-17 | AF42: 53887670 | AG42: 2016-06-03 | AH42: 1896450 | AQ42: 0 | AR42: 0 | AS42: 완납
A43: 33 | B43: 2016광주권일자리박람회 | E43: 국제커리어센터 | F43: 지역 | G43: 남택문센터장 | H43: 010-3637-6843 | I43: 전시장 | L43: 1 | M43: 5월 | O43: 526 | P43: 3024 | Q43: 0524~0526 | R43: 3 | S43: 9072 | U43: 0.002739726027 | V43: 전시회 | X43: 13471920 | Y43: 2924170 | Z43: 16396090 | AC43: =Z43-AB43 -> 16396090 | AD43: 16396090 | AE43: 2016-04-28 | AF43: 6123600 | AG43: 2016-05-16 | AH43: 10042700 | AI43: 2016-06-02 | AJ43: 229790 | AQ43: 0 | AR43: 0 | AS43: 완납
B44: JOB 골든벨 퀴즈대회 | E44: 국제커리어센터 | F44: 지역 | I44: 전시장 | L44: 1 | M44: 5월 | O44: 526 | Q44: 0524~0526 | V44: 이벤트
A45: 34 | B45: 제1회 국제척추통증학술대회 | E45: 대한통증학회,피플엑스 | F45: 타지역 | G45: 구은희과장 | H45: 010-7625-1214 | I45: 다목적홀 | J45: 1 | M45: 5월 | O45: 0528~0529 | P45: 2955 | Q45: 0527~0529 | R45: 3 | S45: 8865 | U45: 0.002677212437 | V45: 전시회 | X45: 19503000 | Y45: 4594240 | Z45: 24097240 | AC45: =Z45-AB45 -> 24097240 | AD45: 24097240 | AE45: 2016-05-25 | AF45: 8865000 | AG45: 2016-06-30 | AH45: 15232240 | AQ45: 0 | AR45: 0 | AS45: 완납
B46: 국제척추통증학술대회 기자재 전시회 | E46: 대한통증학회 | F46: 타지역 | I46: 다목적홀 | K46: 1 | M46: 5월 | O46: 0528~0529 | Q46: 0527~0529 | V46: 전시회
A47: 35 | B47: 태진아와 함께하는 힐링콘서트 | E47: 금강매니지먼트 | F47: 타지역 | G47: 박윤희 | H47: 010-7321-0169 | I47: 다목적홀 | J47: 1 | M47: 6월 | O47: 605 | P47: 1478 | Q47: 0605 | R47: 1 | S47: 1478 | U47: 0.0004463530719 | V47: 이벤트 | X47: 3853140 | Y47: 1049460 | Z47: 4902600 | AA47: 1826000 | AC47: =Z47+AA47-AB47 -> 6728600 | AD47: 6728600 | AE47: 2016-05-03 | AF47: 4623760 | AG47: 2016-06-14 | AH47: 2104840 | AQ47: 0 | AR47: 0 | AS47: 완납
A48: 36 | B48: 알리&김연지 콘서트 | E48: KBC플러스 | F48: 지역 | G48: 강경구팀장 | H48: 010-8613-7409 | I48: 다목적홀 | J48: 1 | K48: 1 | M48: 6월 | O48: 612 | P48: 2955 | Q48: 0611~0612 | R48: 2 | S48: 5910 | U48: 0.001784808292 | V48: 이벤트 | Z48: 0 | AC48: =Z48-AB48 -> 0 | AD48: 9600000 | AQ48: 0 | AR48: 9600000 | AS48: 미납
A49: 37 | B49: 2016국제뿌리산업전시회 | E49: 광주광역시, 한국생산기술연구원,김대중컨벤션센터 | F49: 지역 | G49: 박민아대리 | I49: 전시장 | J49: 1 | M49: 6월 | O49: 0615~0618 | P49: 3024 | Q49: 0611~0619 | R49: 9 | S49: 27216 | U49: 0.008219178082 | V49: 전시회 | X49: 0 | Y49: 0 | Z49: 0 | AC49: 0 | AD49: 0
A50: 38 | B50: 2016생활속의뿌리기술전시회 | E50: 광주광역시, 한국생산기술연구원,김대중컨벤션센터 | F50: 지역 | I50: 다목적홀 | J50: 1 | M50: 6월 | O50: 0615~0618 | P50: 1478 | Q50: 0611~0619 | R50: 9 | S50: 13302 | U50: 0.004017177647 | V50: 전시회 | X50: 0 | Y50: 0 | Z50: 0 | AC50: =Z50-AB50 -> 0 | AD50: 0 | AQ50: 0 | AR50: 0
A51: 39 | B51: 2016뿌리산업채용박람회 | E51: 광주광역시, 한국생산기술연구원,김대중컨벤션센터 | F51: 지역 | I51: 다목적홀 | K51: 1 | M51: 6월 | O51: 0615~0618 | P51: 1478 | Q51: 0611~0619 | R51: 9 | S51: 13302 | U51: 0.004017177647 | V51: 전시회 | X51: 0 | Y51: 0 | Z51: 0 | AC51: 0 | AD51: 0
A52: 40 | B52: 제7회광주국제금형기계산업전(GIMMA 2016) | E52: 광주광역시,한국금형산업진흥회 | F52: 타지역 | G52: 박현일차장 | H52: 010-7209-1977 | I52: 전시장 | K52: 1 | M52: 6월 | O52: 0615~0618 | P52: 6048 | Q52: 0612~0619 | R52: 8 | S52: 48384 | U52: 0.01461187215 | V52: 전시회 | X52: 71850240 | Y52: 4671610 | Z52: 76521850 | AB52: 8998830 | AC52: 76521850 | AD52: 76521850 | AE52: 2016-06-03 | AF52: 85520680 | AQ52: 8998830 | AR52: 0 | AS52: 완납
B53: 2016광주국제자동화기기전 | E53: 한산마케팅연구원 | F53: 타지역 | I53: 전시장 | L53: 1 | M53: 6월 | O53: 0615~0618 | Q53: 0612~0619 | V53: 전시회
A54: 41 | B54: 제24회 KBC웨딩박람회 | E54: KBC플러스 | F54: 지역 | G54: 강경구팀장 | H54: 010-8613-7409 | I54: 전시장 | J54: 1 | M54: 6월 | O54: 0623~0626 | P54: 3024 | Q54: 0621~0626 | R54: 6 | S54: 18144 | U54: 0.005479452055 | V54: 전시회
A55: 42 | B55: 2016매경창업&프랜차이즈쇼 | E55: 매일경제,MBN,(주)엑스포럼 | F55: 타지역 | G55: 김미리팀장 | H55: 010-8772-6007 | I55: 전시장 | K55: 1 | M55: 6월 | O55: 0623~0626 | P55: 3024 | Q55: 0621~0626 | R55: 6 | S55: 18144 | U55: 0.005479452055 | V55: 전시회
A56: 43 | B56: 스위트코리아 2016 | E56: ㈜엑스포럼 | F56: 타지역 | I56: 전시장 | L56: 1 | M56: 6월 | O56: 0623~0626 | P56: 3024 | Q56: 0621~0626 | R56: 6 | S56: 18144 | U56: 0.005479452055 | V56: 전시회
B57: 2016전국녹차음료창작대회 | E57: 전남과학대학교, ㈜엑스포럼, ABA KOREA | F57: 지역 | I57: 다목적홀 | L57: 1 | M57: 6월 | O57: 0701~0701 | Q57: 0630~0701 | V57: 이벤트
A58: 44 | B58: 더 스테이지 빅플레져 6월 공연 | E58: (주)SBS플러스 | F58: 타지역 | G58: 노윤지 | H58: 010-3160-5639 | I58: 다목적홀 | J58: 1 | K58: 1 | M58: 6월 | O58: 624 | P58: 2955 | Q58: 0623~0624 | R58: 2 | S58: 5910 | U58: 0.001784808292 | V58: 이벤트
A59: 45 | B59: 국카스텐 전국투어 콘서트 | E59: ㈜인터파크, ㈜오드아이앤씨,Y2이엔티 | F59: 지역 | G59: 이창수팀장 | H59: 010-4654-9052 | I59: 다목적홀 | J59: 1 | K59: 1 | M59: 6월 | O59: 625 | P59: 2955 | Q59: 0625 | R59: 1 | S59: 2955 | U59: 0.0008924041458 | V59: 이벤트
A60: 46 | B60: 그라시아스합창단 특별 공연 | E60: 그라시아스합창단,(사)국제청소년연합 | F60: 지역 | G60: 서영란부장 | H60: 010-2615-5035 | I60: 다목적홀 | J60: 1 | K60: 1 | M60: 6월 | O60: 0627 | P60: 2955 | Q60: 0627 | R60: 1 | S60: 2955 | V60: 이벤트 | X60: 7703680 | Y60: 3651470 | Z60: 11355150 | AA60: 1859000 | AC60: =Z60+AA60-AB60 -> 13214150 | AD60: 13214150 | AE60: 2016-06-02 | AF60: 3501675 | AG60: 2016-06-23 | AH60: 5742735 | AI60: 2016-06-29 | AJ60: 3969740 | AQ60: 0 | AR60: 0 | AS60: 완납
A61: 47 | B61: 사회적기업의날 기념식 | E61: 고용노동부,광주광역시,한국사회적기업진흥원 | F61: 지역 | G61: 라형심실장 | H61: 010-3207-1347 | I61: 다목적홀 | J61: 1 | M61: 7월 | O61: 0701~0701 | P61: 1478 | Q61: 0630~0701 | R61: 2 | S61: 2956 | V61: 이벤트 | Z61: 0 | AC61: =Z61-AB61 -> 0 | AQ61: 0 | AR61: 0
A62: 48 | B62: 2016사회적경제박람회 | E62: 고용노동부,광주광역시,마이스원 | F62: 지역 | G62: 라형심실장 | H62: 010-3207-1347 | I62: 전시장 | K62: 1 | L62: 1 | M62: 7월 | O62: 0701~0703 | P62: 6048 | Q62: 0629~0703 | R62: 5 | S62: 30240 | U62: =S62/3311280 -> 0.009132420091 | V62: 전시회 | Z62: 0 | AC62: =Z62-AB62 -> 0 | AE62: 2016-06-30 | AF62: 21291550 | AR62: -21291550
A63: 49 | B63: 사회적경제박람회 문화페스티벌 | E63: 고용노동부,광주광역시,마이스원 | F63: 지역 | G63: 라형심실장 | H63: 010-3207-1347 | I63: 다목적홀 | J63: 1 | M63: 7월 | O63: 0702 | P63: 1478 | Q63: 0630~0701 | R63: 1 | S63: 1478 | V63: 이벤트
A64: 50 | B64: 2016광주펫쇼 | E64: 한국동물병원협회 광주지회, 한국펫소매협회 | F64: 지역 | G64: 이창수팀장 | H64: 010-4654-9052 | I64: 전시장 | J64: 1 | M64: 7월 | O64: 0701~0703 | P64: 3024 | Q64: 0629~0703 | R64: 5 | S64: 15120 | U64: 0.004566210046 | V64: 전시회
B65: 2016반려동물용품산업박람회 | E65: 펫저널, Y2이엔티, 페어스커뮤니케이션즈 | F65: 지역 | G65: 이창수팀장 | H65: 010-4654-9052 | I65: 전시장 | J65: 1 | M65: 7월 | O65: 0701~0703 | Q65: 0629~0703 | V65: 전시회
A66: 51 | B66: 2016국제그린카전시회 | E66: 광주광역시, 김대중컨벤션센터, 광주그린카진흥원, KOTRA | F66: 지역 | G66: 채태원과장 | I66: 전시장 | L66: 1 | M66: 7월 | O66: 0707~0709 | P66: 3024 | Q66: 0704~0710 | R66: 7 | S66: 21168 | U66: 0.006392694064 | V66: 전시회
A67: 52 | B67: GTT(국제수송기계부품산업전) | E67: 산업통상자원부, KOTRA | F67: 타지역 | I67: 전시장 | K67: 1 | M67: 7월 | O67: 0707~0709 | P67: 3024 | Q67: 0704~0711 | R67: 8 | S67: 24192 | U67: 0.007305936073 | V67: 전시회
A68: 53 | B68: 2016광주국제로봇산업전 | E68: 광주광역시, 김대중컨벤션센터 | F68: 지역 | I68: 전시장 | J68: 1 | M68: 7월 | O68: 0707~0709 | P68: 3024 | Q68: 0704~0711 | R68: 8 | S68: 24192 | U68: 0.007305936073 | V68: 전시회
B69: 빛고을로봇페스티벌 | E69: 에스마이스연구원 주식회사 | F69: 지역 | I69: 전시장 | J69: 1
A70: 54 | B70: 국제수송기계부품산업전 수출상담장 | E70: 산업통상자원부, KOTRA | I70: 다목적홀 | J70: 1 | K70: 1 | M70: 7월 | O70: 0707~0709 | P70: 2955 | Q70: 0704~0711 | V70: 전시회
B71: 2016 캐릭터체험전 두잉 번개맨이 떴다 | E71: KCTV광주방송,공연마루 | F71: 지역 | G71: 황희철 | H71: 010-9992-2300 | I71: 전시장 | J71: 1 | M71: 7월 | P71: 3024 | Q71: 43일 | R71: 7 | S71: 21168 | U71: =S71/3311280 -> 0.006392694064 | V71: 전시회
B72: 여름장기이벤트 | I72: 전시장 | L72: 1 | M72: 7월 | P72: 3024 | Q72: 32일 | S72: 0 | U72: =S72/3311280 -> 0
B73: 광주MBC웨딩페어 | I73: 전시장 | K73: 1 | M73: 7월 | O73: 0715~0717 | P73: 3024 | Q73: 0713~0717 | R73: 5 | S73: 15120 | U73: =S73/3311280 -> 0.004566210046
B74: 휘성&자이언티 콘서트 | I74: 다목적홀 | J74: 1 | K74: 1 | M74: 7월 | S74: 0
B75: 2017광주대학입시박람회 | I75: 전시장 | K75: 1 | M75: 7월 | O75: 0723~0724 | P75: 3024 | Q75: 0721~0724 | R75: 4 | S75: 12096 | U75: =S75/3311280 -> 0.003652968037
B76: 2017광주대학입시박람회(다목적홀) | I76: 다목적홀 | J76: 1 | K76: 1 | M76: 7월 | S76: 0
B77: 2016익스트림콘서트 | I77: 다목적홀 | J77: 1 | K77: 1 | M77: 7월 | S77: 0
B78: 일리네어레코즈 여름투어콘서트 | I78: 다목적홀 | J78: 1 | M78: 8월 | S78: 0
B79: 광주전남 프랜차이즈 창업박람회 2016 | E79: ㈜제일좋은전람 | I79: 전시장 | K79: 1 | M79: 8월 | O79: 0819~0821 | P79: 3024 | Q79: 0817~0821 | R79: 5 | S79: =P79*R79 -> 15120 | U79: =S79/3311280 -> 0.004566210046 | X79: 22453200 | Y79: 4490640 | Z79: =X79+Y79 -> 26943840 | AC79: =Z79-AB79 -> 26943840 | AE79: 2016-01-29 | AF79: 10206000 | AR79: =AD79-AF79-AH79-AJ79-AL79 -> -10206000 | AS79: 미납
B80: 2016광주홈리빙페어 | I80: 전시장 | J80: 1 | M80: 8월 | O80: 0825~0828 | P80: 3024 | Q80: 0823~0828 | R80: 6 | S80: =P80*R80 -> 18144 | U80: =S80/3311280 -> 0.005479452055
B81: 광주 MBC베이비페어 | I81: 전시장 | K81: 1 | L81: 1 | M81: 8월 | O81: 0825~0828 | P81: 6048 | Q81: 0823~0828 | R81: 6 | S81: =P81*R81 -> 36288 | U81: =S81/3311280 -> 0.01095890411
B82: 쇼미더머니 콘서트 | I82: 다목적홀 | J82: 1 | K82: 1 | M82: 8월 | S82: 0
B83: 빛고을핸드메이드페어 | I83: 전시장 | K83: 1 | L83: 1 | M83: 9월 | O83: 0901~0904 | P83: 6048 | Q83: 0830~0904 | R83: 6 | S83: 36288 | U83: =S83/3311280 -> 0.01095890411
B84: 제34회 전국청소년과학탐구대회 | I84: 전시장 | J84: 1 | M84: 9월 | P84: 3024 | R84: 2 | S84: 6048 | U84: 0.001826484018
B85: 호남권 일자리박람회 | I85: 전시장 | J85: 1 | M85: 9월 | O85: 0907 | P85: 3024 | Q85: 0905~0907 | R85: 3 | S85: 9072 | U85: 0.002739726027
B86: 2016국제기후환경전 | I86: 전시장 | K86: 1 | L86: 1 | M86: 9월 | O86: 0907~0910 | P86: 6048 | Q86: 0905~0911 | R86: 7 | S86: 42336 | U86: 0.01278538813
B87: 2016대한민국전문대학엑스포 | I87: 전시장 | J87: 1 | M87: 9월 | O87: 0909~0910 | P87: 3024 | Q87: 0908~0910 | R87: 3 | S87: 9072 | U87: 0.002739726027
B88: 2016광주 ACE Fair | I88: 전시장 | J88: 1 | K88: 1 | L88: 1 | M88: 9월 | O88: 0922~0925 | P88: 9072 | Q88: 0917~0926 | R88: 10 | S88: 90720 | U88: 0.02739726027
B89: 2016광주 ACE Fair(다목적홀) | I89: 다목적홀 | J89: 1 | K89: 1 | M89: 9월 | S89: 0
B90: 광주옥외광고대상전 | I90: 다목적홀 | J90: 1 | K90: 1 | M90: 9월 | S90: 0
B91: 대한상공회의소 상품박람회 | I91: 전시장 | L91: 1 | M91: 9월 | P91: 3024 | Q91: 0929~1003 | R91: 5 | S91: 15120 | U91: =S91/3311280 -> 0.004566210046
B92: 국제실버박람회(다목적홀) | I92: 다목적홀 | J92: 1 | K92: 1 | M92: 10월 | S92: 0
B93: 국제실버박람회(전시장1,2홀) | I93: 전시장 | J93: 1 | K93: 1 | M93: 10월 | P93: 6048 | Q93: 1003~1010 | R93: 8 | S93: 48384 | U93: =S93/3311280 -> 0.01461187215
B94: 국제실버박람회(전시장3홀) | I94: 전시장 | L94: 1 | M94: 10월 | P94: 3024 | Q94: 1007~1011 | R94: 5 | S94: 15120 | U94: =S94/3311280 -> 0.004566210046
B95: 광주권일자리박람회 | I95: 전시장 | L95: 1 | M95: 10월 | P95: 3024 | Q95: 1004~1006 | R95: 3 | S95: 9072 | U95: =S95/3311280 -> 0.002739726027
B96: KB평생사랑콘서트 | I96: 다목적홀 | J96: 1 | K96: 1 | M96: 10월 | S96: 0
B97: 2016광주골프쇼 | I97: 전시장 | K97: 1 | M97: 10월 | P97: 3024 | Q97: 1012~1016 | R97: 5 | S97: 15120 | U97: =S97/3311280 -> 0.004566210046
B98: 한국생물공학회 학술대회 | I98: 전시장 | L98: 1 | M98: 10월 | P98: 3024 | Q98: 1012~1014 | R98: 3 | S98: 9072 | U98: =S98/3311280 -> 0.002739726027
B99: 2016국제광산업전시회 | I99: 전시장 | J99: 1 | M99: 9월 | O99: 0928~0930 | P99: 3024 | Q99: 1018~1021 | R99: 5 | S99: =P99*R99 -> 15120 | U99: =S99/3311280 -> 0.004566210046
B100: 제10회 광주국제차문화전시회 | I100: 전시장 | K100: 1 | L100: 1 | M100: 10월 | P100: 6048 | R100: 8 | S100: 48384 | U100: =S100/3311280 -> 0.01461187215
B101: 2016한국물리학회 추계학술대회 | I101: 다목적홀 | J101: 1 | K101: 1 | M101: 10월 | Q101: 1017~1024 | S101: 0
B102: 희망사다리박람회 | I102: 전시장 | J102: 1 | M102: 10월 | P102: 3024 | Q102: 1026~1028 | R102: 3 | S102: 9072 | U102: =S102/3311280 -> 0.002739726027
B103: KBC맘앤베이비페어 | I103: 전시장 | K103: 1 | L103: 1 | M103: 10월 | P103: 6048 | Q103: 1025~100 | R103: 6 | S103: 36288 | U103: =S103/3311280 -> 0.01095890411
B104: 빛가람국제전력신기술전(다목적홀) | I104: 다목적홀 | J104: 1 | K104: 1 | M104: 11월 | S104: 0
B105: 빛가람국제전력신기술전(전시장) | I105: 전시장 | J105: 1 | K105: 1 | L105: 1 | M105: 11월 | P105: 9072 | Q105: 1031~1105 | R105: 6 | S105: 54432 | U105: =S105/3311280 -> 0.01643835616
B106: 금융박람회 | I106: 전시장 | J106: 1 | M106: 11월 | P106: 3024 | Q106: 1106~1109 | R106: 4 | S106: 12096 | U106: =S106/3311280 -> 0.003652968037
B107: 라이프스타일&DIY Show | I107: 전시장 | K107: 1 | L107: 1 | M107: 11월 | P107: 6048 | Q107: 1106~1113 | R107: 8 | S107: 48384 | U107: =S107/3311280 -> 0.01461187215
B108: 2016광주국제식품전 | I108: 전시장 | J108: 1 | K108: 1 | L108: 1 | M108: 11월 | P108: 9072 | Q108: 1114~1121 | R108: 8 | S108: 72576 | U108: =S108/3311280 -> 0.02191780822
B109: 2016광주국제식품전(다목적홀) | I109: 다목적홀 | J109: 1 | K109: 1 | M109: 11월 | S109: 0
B110: KBC스포츠레저박람회 | I110: 전시장 | J110: 1 | M110: 11월 | P110: 3024 | Q110: 1122~1127 | R110: 7 | S110: 21168 | U110: =S110/3311280 -> 0.006392694064
B111: KBC 건축박람회 | I111: 전시장 | K111: 1 | L111: 1 | M111: 11월 | P111: 6048 | Q111: 1122~1127 | R111: 7 | S111: 42336 | U111: 0.01278538813
B112: 2016핸드메이드선물박람회 | I112: 전시장 | J112: 1 | M112: 12월 | P112: 3024 | Q112: 1207~1211 | R112: 5 | S112: 15120 | U112: 0.004566210046
B113: 광주 MBC베이비페어 | I113: 전시장 | K113: 1 | L113: 1 | M113: 12월 | P113: 6048 | Q113: 1206~1211 | R113: 6 | S113: 36288 | U113: 0.01095890411
B114: 2016광주펫쇼&반려동물용품산업박람회 | I114: 전시장 | L114: 1 | M114: 12월 | P114: 3024 | Q114: 1214~1218 | R114: 5 | S114: 15120 | U114: 0.004566210046
B115: 겨울장기이벤트 | I115: 전시장 | J115: 1 | M115: 12월 | P115: 3024 | R115: 20 | S115: 60480 | U115: 0.01826484018
B116: 겨울장기이벤트 | I116: 전시장 | J116: 1 | M116: 12월 | P116: 3024 | R116: 20 | S116: 60480 | U116: 0.01826484018
S122: =P122*R122 -> 0 | Z122: =X122+Y122 -> 0 | AC122: =Z122-AB122 -> 0 | AR122: =AD122-AF122-AH122-AJ122-AL122 -> 0
S123: =P123*R123 -> 0 | Z123: =X123+Y123 -> 0 | AC123: 0 | AR123: 0
S124: =P124*R124 -> 0 | Z124: =X124+Y124 -> 0 | AC124: 0 | AR124: 0
S125: =P125*R125 -> 0 | Z125: =X125+Y125 -> 0 | AC125: 0 | AR125: 0
AC126: 0 | AR126: 0
AC127: 0 | AR127: 0
AC128: 0 | AR128: 0
AC129: 0 | AR129: 0
AC130: 0 | AR130: 0
B132: 위약금
B133: 김정민 콘서트 | AD133: 1571720

Sheet 2016년 (hidden)
E2: 9072 | AP2: 365 | AQ2: =AP2 -> 365
A4: 연번 | B4: 구분 | C4: 행사명 | D4: 주최/주관 | E4: 임대기간(일) (설치, 철거기간 포함) | F4: 행사기간 | G4: 견적서,신청서 | I4: 사업자 등록증 | J4: 계약서 | K4: 계약날짜 | O4: 이용 안내서 | Q4: 재해 대책 신고 | T4: 행사관련자료 | V4: 홈페이지 | Y4: 정산 | AE4: 비고 | AF4: 광주지역 참가업체 수 | AG4: 참가자수 | AH4: 구분 (지역/타지역) | AI4: 개최장소 | AJ4: 홀 구분 | AM4: 개최월 | AN4: 주 (일~토) | AO4: 임대면적 (1일, m²) | AP4: 임대기간 | AQ4: 사용면적 (임대기간X임대면적) | AR4: 연간 사용면적 누계 (m²) | AS4: 전체 가동률(%) (이벤트 포함) | AT4: 구분 (전시회/이벤트) | AU4: 할인율 | AV4: 임대료 계산 | BC4: 예상수입 (임대료 + 예치금) | BD4: 수입 | BE4: 실제수입 (카드수수료 제외) | BG4: 1차납부 | BI4: 2차납부 | BK4: 3차납부 | BM4: 4차납부 | BO4: 5차납부 | BQ4: 6차납부 | BS4: 미수금 (과오납) | BT4: 입금상태 | BU4: 담당자 | BV4: 연락처 | BW4: 핸드폰 | BX4: 팩스 | BY4: 이메일
G5: 발신 | H5: 수신 | K5: 예약금 | L5: 확인 | M5: 잔금 | N5: 확인 | O5: 발신 | P5: 수신 | Q5: 대상 | R5: 확인전화 2주전 | S5: 확인 | T5: 행사개요 | U5: vip명단 | V5: 고객정보 | W5: 행사개요 | X5: 포스터 | Y5: 서류 | Z5: 통장사본 | AA5: 출금 | AB5: 수정세금계산서 | AC5: 조정결의 | AD5: 완료 | AJ5: 1 | AK5: 2 | AL5: 3 | AV5: 임대료 | AW5: 예치금 | AX5: 위약금 | AY5: 시간외사용료 | AZ5: 장비사용료 | BA5: 전기사용료 | BB5: 냉난방사용료 | BE5: 카드 | BG5: 납부일 | BH5: 금액 | BI5: 납부일 | BJ5: 금액 | BK5: 납부일 | BL5: 금액 | BM5: 납부일 | BN5: 금액 | BO5: 납부일 | BP5: 금액 | BQ5: 납부일 | BR5: 금액
A6: 1 | B6: 1 | C6: 리틀캣 | D6: 에이치엠디(주) | E6: 0101~0224 | F6: 01.01~02.21 | G6: O | H6: O | I6: O | J6: O | AH6: 지역 | AI6: 전시장 | AJ6: 1 | AM6: 1월 | AO6: 1512 | AP6: 55 | AQ6: =AO6*AP6 -> 83160 | AS6: =AQ6/3311280 -> 0.02511415525 | AT6: 이벤트 | AU6: 장기이벤트 | BU6: 고서윤 | BV6: 062-366-3242 | BW6: - | BX6: 062-366-3247 | BY6: -
A7: 2 | C7: 3D오감만족체험전 | D7: 에이치엠디(주) | E7: 0101~0224 | F7: 01.01~02.21 | G7: O | H7: O | I7: O | J7: O | AH7: 지역 | AI7: 전시장 | AJ7: 1 | AM7: 1월 | AO7: 1512 | AP7: 55 | AQ7: =AO7*AP7 -> 83160 | AS7: =AQ7/3311280 -> 0.02511415525 | AT7: 이벤트 | AU7: 장기이벤트 | BU7: 고서윤 | BV7: 062-366-3242 | BW7: - | BX7: 062-366-3247 | BY7: -
A8: 3 | B8: 2 | C8: 로보카폴리 플레이파크 시즌4 | D8: 로이비쥬얼, (주)키즈엔터테인먼트, 라엘엔터테인먼트 | E8: 0101-0224 | F8: 01.01~02.21 | G8: O | H8: O | I8: O | J8: O | AH8: 타지역 | AI8: 전시장 | AK8: 1 | AM8: 1월 | AO8: 3024 | AP8: 55 | AQ8: 166320 | AS8: =AQ8/3311280 -> 0.0502283105 | AT8: 이벤트 | AU8: 장기이벤트 | BU8: 임성은 | BV8: 1600-6793 | BW8: - | BX8: 063-901-6793 | BY8: -
A9: 4 | B9: 3 | C9: 제23회 KBC웨딩박람회 | D9: KBC플러스 | E9: 0126~0201 | F9: 01.28~01.31 | G9: O | H9: O | I9: O | J9: O | K9: 0115 | L9: 0122 | M9: 0119 | N9: 0122 | O9: O | P9: O | Q9: X | R9: X | S9: X | T9: X | U9: X | V9: X | W9: X | X9: X | Y9: O | Z9: O | AA9: O | AB9: O | AC9: O | AD9: O | AH9: 지역 | AI9: 전시장 | AL9: 1 | AM9: 1월 | AO9: 3024 | AP9: 7 | AQ9: 21168 | AS9: =AQ9/3311280 -> 0.006392694064 | AT9: 전시회 | AU9: 0.4 | AV9: 18860680 | AW9: 6286896 | AX9: 0 | AY9: 538870 | AZ9: 0 | BA9: 744420 | BB9: 1729720 | BC9: =AV9+AW9 -> 25147576 | BD9: 21873690 | BE9: 0 | BF9: 21873690 | BG9: 2016-01-22 | BH9: 25147570 | BS9: -3273880 | BT9: 완납 | BU9: 이재희 | BV9: 062-650-3048 | BW9: 010-4138-5619 | BX9: 062-710-3359 | BY9: kbc0130@naver.com
A10: 5 | B10: 4 | C10: 장윤정 콘서트 | D10: 아시아문화기획,제주멍키 | E10: 0212~0213 | F10: 02.13 | G10: O | H10: O | I10: O | J10: O | K10: 0129 | L10: 0211 | M10: 0205 | N10: 0212 | O10: O | P10: O | Q10: X | R10: X | S10: X | T10: X | U10: X | V10: X | W10: X | X10: X | Y10: O | Z10: O | AA10: O | AB10: O | AC10: O | AD10: O | AH10: 지역 | AI10: 다목적홀 | AJ10: 1 | AK10: 1 | AM10: 2월 | AO10: 2955 | AP10: 2 | AQ10: 5910 | AS10: 0.001784808292 | AT10: 이벤트 | AU10: 0 | AV10: 12325890 | AW10: 3081470 | AX10: 0 | AY10: 770360 | AZ10: 0 | BA10: 91060 | BB10: 422560 | BC10: =AV10+AW10 -> 15407360 | BD10: 13609870 | BE10: 0 | BF10: 13609870 | BG10: 2016-02-11 | BH10: 5602680 | BI10: 2016-02-12 | BJ10: 9804680 | BS10: -1797490 | BT10: 완납 | BU10: 박지훈 | BV10: - | BW10: 010-7469-5952 010-2351-8600 | BX10: - | BY10: jimypark@gmail.com
A11: 6 | B11: 5 | C11: 발렌타인데이 콘서트(윤민수&휘성) | D11: 인산컴퍼니 | E11: 0214 | F11: 02.14 | G11: O | H11: O | I11: O | J11: O | K11: 0108 | L11: 0108 | M11: 0208 | N11: 0212 | O11: O | P11: O | Q11: X | R11: X | S11: X | T11: X | U11: X | V11: X | W11: X | X11: X | Y11: X | Z11: X | AA11: X | AB11: X | AC11: X | AD11: X | AH11: 지역 | AI11: 다목적홀 | AJ11: 1 | AK11: 1 | AM11: 2월 | AO11: 2955 | AP11: 1 | AQ11: 2955 | AS11: =AQ11/3311280 -> 0.0008924041458 | AT11: 이벤트 | AU11: 0 | AV11: 7703680 | AW11: 1540730 | AX11: 0 | AY11: 1540730 | AZ11: 0 | BA11: 0 | BB11: 0 | BC11: =AV11+AW11 -> 9244410 | BD11: 9244415 | BE11: 0 | BF11: 9244415 | BG11: 2016-01-08 | BH11: 3501675 | BI11: 2016-02-12 | BJ11: 5742740 | BS11: =BD11-BH11-BJ11-BL11-BN11-BP11 -> 0 | BT11: 완납 | BU11: 김현진 | BV11: - | BW11: 010-5779-3721 | BX11: - | BY11: it5880@daum.net
A12: 7 | B12: 6 | C12: 제17회 KBC맘앤베이비페어 | D12: KBC플러스 | E12: 0216~0222 | F12: 02.18~02.21 | G12: O | H12: O | I12: O | J12: O | K12: 0122 | L12: 0205 | M12: 0208 | N12: 0205 | O12: O | P12: O | Q12: X | R12: X | S12: X | T12: X | U12: X | V12: X | W12: X | X12: X | Y12: O | Z12: O | AA12: O | AB12: O | AC12: O | AD12: O | AH12: 지역 | AI12: 전시장 | AL12: 1 | AM12: 2월 | AO12: 3024 | AP12: 7 | AQ12: =AO12*AP12 -> 21168 | AS12: =AQ12/3311280 -> 0.006392694064 | AT12: 전시회 | AU12: 0.4 | AV12: 18860680 | AW12: 6286890 | AX12: 0 | AY12: 0 | AZ12: 0 | BA12: 582390 | BB12: 1729720 | BC12: =AV12+AW12 -> 25147570 | BD12: 21172790 | BE12: 0 | BF12: 21172790 | BG12: 2016-02-05 | BH12: 25147570 | BS12: -3974780 | BT12: 완납 | BU12: 이재희 | BV12: 062-650-3048 | BW12: 010-4138-5619 | BX12: 062-710-3359 | BY12: kbc0130@naver.com
A13: 8 | B13: 7 | C13: Buzz 콘서트 | D13: 장터미디어 | E13: 0219~0220 | F13: 02.20 | G13: O | H13: O | I13: O | J13: O | K13: 0205 | L13: 0224 | M13: 0213 | N13: 0224 | O13: O | P13: O | Q13: X | R13: X | S13: X | T13: X | U13: X | V13: X | W13: X | X13: X | Y13: X | Z13: X | AA13: X | AB13: X | AC13: X | AD13: O | AH13: 지역 | AI13: 다목적홀 | AJ13: 1 | AK13: 1 | AM13: 2월 | AO13: 2955 | AP13: 2 | AQ13: 5910 | AS13: 0.001784808292 | AT13: 이벤트 | AU13: 0 | AV13: 10015560 | AW13: 3081470 | AX13: 0 | AY13: 770360 | AZ13: 1430000 | BA13: 256960 | BB13: 422560 | BC13: =AV13+AW13 -> 13097030 | BD13: 12895440 | BE13: 0 | BF13: 12895440 | BG13: 2016-02-15 | BH13: 9244410 | BI13: 2016-02-24 | BJ13: 3651030 | BS13: 0 | BT13: 완납 | BU13: 신상옥 | BV13: 062-417-6060 | BW13: 010-3642-2771 | BX13: 062-417-6066 | BY13: sso2771@hanmail.net
A14: 9 | B14: 8 | C14: 굿뉴스코페스티벌 | D14: (사)국제청소년연합 | E14: 0224 | F14: 02.24 | H14: X | I14: O | J14: O | K14: 0129 | L14: 0126 | M14: 0217 | N14: 0226 | O14: O | P14: O | Q14: X | R14: X | S14: X | T14: X | U14: X | V14: X | W14: X | X14: X | Y14: X | Z14: X | AA14: X | AB14: X | AC14: X | AD14: O | AH14: 지역 | AI14: 다목적홀 | AJ14: 1 | AK14: 1 | AM14: 2월 | AO14: 2955 | AP14: 1 | AQ14: 2955 | AS14: 0.0008924041458 | AT14: 이벤트 | AU14: 0 | AV14: 9023680 | AW14: 1540730 | AX14: 0 | AY14: 3081470 | AZ14: 2783000 | BA14: 108380 | BB14: 664020 | BC14: 10564410 | BD14: 15660550 | BE14: 0 | BF14: 15660550 | BG14: 2016-01-26 | BH14: 4476670 | BI14: 2016-02-17 | BJ14: 6912740 | BK14: 2016-02-26 | BL14: 4271140 | BS14: 0 | BT14: 완납 | BU14: 정근창 목사 서영란 국장 | BV14: 062-655-7200 | BW14: 010-3787-3775 010-2615-5035 | BX14: 062-655-7203 | BY14: iyfjeonnam@korea.com
A15: 10 | B15: 9 | C15: 광주MBC 웨딩박람회 | D15: 광주문화방송 | E15: 0223~0228 | F15: 02.25~02.28 | G15: O | H15: O | I15: O | J15: O | K15: 0216 | L15: 0303 | M15: 0216 | N15: 0303 | O15: O | P15: O | Q15: X | R15: X | S15: X | T15: X | U15: X | V15: X | W15: X | X15: X | Y15: X | Z15: X | AA15: X | AB15: X | AC15: X | AD15: O | AH15: 지역 | AI15: 전시장 | AL15: 1 | AM15: 2월 | AO15: 3024 | AP15: 6 | AQ15: 18144 | AS15: 0.005479452055 | AT15: 전시회 | AU15: 0.4 | AV15: 16166300 | AW15: 5388768 | AX15: 0 | AY15: 2694380 | AZ15: 0 | BA15: 813990 | BB15: 2223920 | BC15: 21555068 | BD15: 21898590 | BE15: 0 | BF15: 21898590 | BG15: 2016-03-08 | BH15: 21898590 | BS15: 0 | BT15: 완납 | BU15: 류권형 | BV15: 062-360-2624 | BW15: 010-3633-1608 | BX15: 062-360-2476 | BY15: dimple9010@naver.com
A16: 11 | B16: 10 | C16: 임창정 콘서트 | D16: 장터미디어 | E16: 0225~0227 | F16: 02.27 | G16: O | H16: O | I16: O | J16: O | K16: 0212 | L16: 0215 | M16: 0219 | N16: 0215 | O16: O | P16: O | Q16: X | R16: X | S16: X | T16: X | U16: X | V16: X | W16: X | X16: X | Y16: O | Z16: O | AA16: O | AB16: O | AC16: O | AD16: O | AH16: 지역 | AI16: 다목적홀 | AJ16: 1 | AK16: 1 | AM16: 2월 | AO16: 2955 | AP16: 2 | AQ16: 5910 | AS16: 0.001784808292 | AT16: 이벤트 | AU16: 0 | AV16: 12325890 | AW16: 3081470 | AX16: 0 | AY16: 1540730 | AZ16: 0 | BA16: 102700 | BB16: 422560 | BC16: =AV16+AW16 -> 15407360 | BD16: 14391880 | BE16: 0 | BF16: 14391880 | BG16: 2016-02-15 | BH16: 15407360 | BS16: -1015480 | BT16: 완납 | BU16: 신상옥 | BV16: 062-417-6060 | BW16: 010-3642-2771 | BX16: 062-417-6066 | BY16: sso2771@hanmail.net
A17: 12 | B17: 11 | C17: 2016 GS 봄맞이 한마당(2015년 수입건) | D17: (주)지에스리테일 | E17: 0228~0301 | F17: 03.01 | G17: O | H17: O | I17: O | J17: X | K17: X | L17: 1229 | M17: X | N17: 1229 | O17: O | P17: O | Q17: X | R17: X | S17: X | T17: X | U17: X | V17: X | W17: X | X17: X | Y17: X | Z17: X | AA17: X | AB17: X | AC17: X | AD17: X | AH17: 타지역 | AI17: 전시장 | AJ17: 1 | AK17: 1 | AM17: 3월 | AO17: 6048 | AP17: 3 | AQ17: 18144 | AS17: 0.005479452055 | AT17: 전시회 | AU17: 0 | AV17: 0 | AW17: 0 | AX17: 0 | AY17: =AV17+AW17 -> 0 | AZ17: 0 | BA17: 0 | BB17: 0 | BC17: 0 | BD17: 0 | BE17: =AY17+AZ17 -> 0 | BF17: 0 | BS17: 0 | BT17: 선납 | BU17: 문성필 | BV17: 02-2006-2665 | BW17: 010-4940-6762 | BX17: 02-2006-2938 | BY17: msp6762@gsretail.com
A18: 13 | B18: 12 | C18: 광주 힐스테이트 입주자박람회 | D18: 더블유창 | E18: 0303~0306 | F18: 03.04~03.06 | G18: O | H18: O | I18: O | J18: O | K18: 0205 | L18: 0120 | M18: 0225 | N18: 0229 | O18: O | P18: O | Q18: X | R18: X | S18: X | T18: X | U18: X | V18: X | W18: X | X18: X | Y18: X | Z18: X | AA18: X | AB18: X | AC18: X | AD18: O | AH18: 지역 | AI18: 전시장 | AJ18: 1 | AM18: 3월 | AO18: 3024 | AP18: 4 | AQ18: 12096 | AS18: 0.003652968037 | AT18: 전시회 | AU18: 0 | AV18: 17962560 | AW18: 3592510 | AX18: 0 | AY18: 4490640 | AZ18: 0 | BA18: 242130 | BB18: 1097710 | BC18: =AV18+AW18 -> 21555070 | BD18: 23793040 | BE18: 0 | BF18: 23793040 | BG18: 2016-01-20 | BH18: 8164800 | BI18: 2016-02-29 | BJ18: 13390270 | BK18: 2016-03-09 | BL18: 2237970 | BS18: =BD18-BH18-BJ18-BL18-BN18-BP18 -> 0 | BT18: 완납 | BU18: 유준우 | BV18: 062-714-3555 | BW18: 010-9463-7465 | BX18: 062-714-3559 | BY18: eckotop@naver.com
A19: 14 | B19: 13 | C19: 2016이은미콘서트 | D19: 미르엔터테인먼트 | E19: 0311~0312 | F19: 03.12 | G19: O | H19: O | I19: O | J19: O | K19: 0201 | L19: 0309 | M19: 0304 | N19: 0309 | O19: O | P19: O | Q19: X | R19: X | S19: X | T19: X | U19: X | V19: X | W19: X | X19: X | Y19: X | Z19: X | AA19: X | AB19: X | AC19: X | AD19: O | AH19: 타지역 | AI19: 다목적홀 | AJ19: 1 | AK19: 1 | AM19: 3월 | AO19: 2955 | AP19: 2 | AQ19: 5910 | AS19: 0.001784808292 | AT19: 이벤트 | AU19: 0 | AV19: 12325890 | AW19: 3081470 | AX19: 0 | AY19: 3081470 | AZ19: 0 | BA19: 0 | BB19: 0 | BC19: 15407360 | BD19: 15407360 | BE19: 0 | BF19: 15407360 | BG19: 2016-03-09 | BH19: 15407360 | BS19: 0 | BT19: 완납 | BU19: 전은신 | BV19: 053-472-8913 | BW19: 010-9503-3716 | BX19: 053-471-8913 | BY19: -
A20: 15 | B20: 14 | C20: [주관행사] SWEET 2016 | D20: 광주광역시,김대중컨벤션센터 | E20: 0308~0322 | F20: 03.16~03.18 | G20: X | H20: X | I20: X | J20: O | K20: X | L20: X | M20: X | N20: X | O20: O | P20: X | Q20: X | R20: X | S20: X | T20: X | U20: X | V20: X | W20: X | X20: X | Y20: X | Z20: X | AA20: X | AB20: X | AC20: X | AD20: O | AH20: 지역 | AI20: 전시장 | AJ20: 1 | AK20: 1 | AL20: 1 | AM20: 3월 | AO20: 3024 | AP20: 15 | AQ20: =AO20*AP20 -> 45360 | AS20: 0.01369863014 | AT20: 전시회 | AU20: 0 | AV20: 0 | AW20: 0 | AX20: 0 | AY20: =AV20+AW20 -> 0 | AZ20: 0 | BA20: 0 | BB20: 0 | BC20: 0 | BD20: 0 | BE20: =AY20+AZ20 -> 0 | BF20: 0 | BS20: 0 | BT20: 완납 | BU20: 김욱 | BV20: 062-611-2215 | BW20: 010-2906-0640 | BX20: 062-611-2239 | BY20: -
A21: 16 | C21: [주관행사] 에너지효율관리 국제워크샵 | D21: 에너지벨리기술원,김대중컨벤션센터 | E21: 0308~0321 | F21: 03.16~03.18 | G21: X | H21: X | I21: X | J21: O | K21: X | L21: X | M21: X | N21: X | O21: O | P21: X | Q21: X | R21: X | S21: X | T21: X | U21: X | V21: X | W21: X | X21: X | Y21: X | Z21: X | AA21: X | AB21: X | AC21: X | AD21: O | AH21: 지역 | AI21: 전시장 | AJ21: 1 | AK21: 1 | AL21: 1 | AM21: 3월 | AO21: 3024 | AP21: 14 | AQ21: 42336 | AS21: 0.01278538813 | AT21: 전시회 | AU21: 0 | AV21: 0 | AW21: 0 | AX21: 0 | AY21: =AV21+AW21 -> 0 | AZ21: 0 | BA21: 0 | BB21: 0 | BC21: 0 | BD21: 0 | BE21: =AY21+AZ21 -> 0 | BF21: 0 | BS21: 0 | BT21: 완납 | BU21: 김욱 | BV21: 062-611-2215 | BW21: 010-2906-0640 | BX21: 062-611-2239 | BY21: -
A22: 17 | C22: [주관행사]한국ESS산업진흥회 해외진출 세미나 | D22: 한국ESS산업진흥회 | E22: 0308~0321 | F22: 03.16~03.18 | G22: X | H22: X | I22: X | J22: O | K22: X | L22: X | M22: X | N22: X | O22: O | P22: X | Q22: X | R22: X | S22: X | T22: X | U22: X | V22: X | W22: X | X22: X | Y22: X | Z22: X | AA22: X | AB22: X | AC22: X | AD22: O | AH22: 지역 | AI22: 전시장 | AJ22: 1 | AK22: 1 | AL22: 1 | AM22: 3월 | AO22: 3024 | AP22: 14 | AQ22: 42336 | AS22: 0.01278538813 | AT22: 전시회 | AU22: 0 | AV22: 0 | AW22: 0 | AX22: 0 | AY22: =AV22+AW22 -> 0 | AZ22: 0 | BA22: 0 | BB22: 0 | BC22: 0 | BD22: 0 | BE22: =AY22+AZ22 -> 0 | BF22: 0 | BS22: 0 | BT22: 완납 | BU22: 김욱 | BV22: 062-611-2215 | BW22: 010-2906-0640 | BX22: 062-611-2239 | BY22: -
A23: 18 | B23: 15 | C23: 광주입주박람회 유상옵션 행사 | D23: ㈜청운디엔씨 | E23: 0318~0320 | F23: 03.19~03.20 | G23: O | H23: O | I23: O | J23: O | K23: 0219 | L23: 0317 | M23: 0311 | N23: 0317 | O23: O | P23: X | Q23: X | R23: X | S23: X | T23: X | U23: X | V23: X | W23: X | X23: X | Y23: X | Z23: X | AA23: X | AB23: X | AC23: X | AD23: O | AH23: 타지역 | AI23: 다목적홀 | AJ23: 1 | AK23: 1 | AM23: 3월 | AO23: 2955 | AP23: 3 | AQ23: =AO23*AP23 -> 8865 | AS23: 0.002677212437 | AT23: 전시회 | AU23: 0 | AV23: 20029580 | AW23: 4622211 | AX23: 0 | AY23: 3081470 | AZ23: 0 | BA23: 203880 | BB23: 715110 | BC23: 24651791 | BD23: 24030040 | BE23: 0 | BF23: 24030040 | BG23: 2016-03-17 | BH23: 24651780 | BS23: -621740 | BT23: 완납 | BU23: 이정민 실장 | BV23: 1566-1807 | BW23: 010-6474-0473 | BX23: 0504-174-0473 | BY23: nine1874@naver.com
A24: 19 | B24: 16 | C24: 광주MBC베이비페어 | D24: 광주문화방송 | E24: 0322~0327 | F24: 03.24~03.27 | G24: O | H24: O | I24: O | J24: O | K24: 0315 | L24: 0330 | M24: 0315 | N24: 0330 | O24: O | P24: X | Q24: X | R24: X | S24: X | T24: X | U24: X | V24: X | W24: X | X24: X | Y24: X | Z24: X | AA24: X | AB24: X | AC24: X | AD24: O | AH24: 지역 | AI24: 전시장 | AK24: 1 | AL24: 1 | AM24: 3월 | AO24: 6048 | AP24: 6 | AQ24: 36288 | AS24: =AQ24/3311280 -> 0.01095890411 | AT24: 전시회 | AU24: 0.2 | AV24: 43110140 | AW24: 11777530 | AX24: 0 | AY24: 2874000 | AZ24: 0 | BA24: 1047810 | BB24: 2927230 | BC24: 54887670 | BD24: 49959180 | BE24: 0 | BF24: 49959180 | BG24: 2016-04-06 | BH24: 49959180 | BS24: =BD24-BH24-BJ24-BL24-BN24-BP24 -> 0 | BT24: 완납 | BU24: 류권형 차장 | BV24: 062-360-2624 | BW24: 010-3633-1608 | BX24: 062-360-2476 | BY24: dimple9010@naver.com
A25: 20 | B25: 17 | C25: 광주입주자박람회 | D25: 풀하우스전람 | E25: 0325~0327 | F25: 03.26~03.27 | G25: O | H25: O | I25: O | J25: O | K25: 0219 | L25: 분납 | M25: 0318 | N25: 분납 | O25: O | P25: X | Q25: X | R25: X | S25: X | T25: X | U25: X | V25: X | W25: X | X25: X | Y25: X | Z25: X | AA25: X | AB25: X | AC25: X | AD25: O | AH25: 타지역 | AI25: 전시장 | AJ25: 1 | AM25: 3월 | AO25: 3024 | AP25: 3 | AQ25: 9072 | AS25: 0.002739726027 | AT25: 전시회 | AU25: 0 | AV25: 13471920 | AW25: 2694380 | AX25: 0 | AY25: 898120 | AZ25: 0 | BA25: 320300 | BB25: 731800 | BC25: =AV25+AW25 -> 16166300 | BD25: 15422140 | BE25: 5 | BF25: 15091002 | BG25: 2016-02-18 | BH25: 2000000 | BI25: 2016-03-15 | BJ25: 3900000 | BK25: 2016-03-15 | BL25: 3000000 | BM25: 2016-03-21 | BN25: 3100000 | BO25: 2016-03-23 | BP25: 3000000 | BQ25: 2016-03-30 | BR25: 1166300 | BS25: -744160 | BT25: 완납 | BU25: 유병욱 본부장 | BV25: 031-790-1409 | BW25: 010-9134-3912 | BX25: 031-790-1445 | BY25: fullex@naver.com
A26: 21 | B26: 18 | C26: 2016 위너콘서트 | D26: 공연마루 | E26: 0324~0326 | F26: 03.26 | G26: O | H26: O | I26: O | J26: O | K26: 0316 | L26: 0302 | M26: 0317 | N26: 0322 | O26: O | P26: X | Q26: X | R26: X | S26: X | T26: X | U26: X | V26: X | W26: X | X26: X | Y26: X | Z26: X | AA26: X | AB26: X | AC26: X | AD26: O | AH26: 지역 | AI26: 다목적홀 | AJ26: 1 | AK26: 1 | AM26: 3월 | AO26: 2955 | AP26: 3 | AQ26: 8865 | AS26: 0.002677212437 | AT26: 이벤트 | AU26: 0 | AV26: 16948100 | AW26: 4622210 | AX26: 0 | AY26: 4622210 | AZ26: 2288000 | BA26: 372550 | BB26: 357550 | BC26: 21570310 | BD26: 24588410 | BE26: 0 | BF26: 24588410 | BG26: 2016-03-02 | BH26: 5602680 | BI26: 2016-03-22 | BJ26: 15967630 | BK26: 2016-04-08 | BL26: 3018100 | BS26: 0 | BT26: 완납 | BU26: 김서우 사원 | BV26: 1566-1369 | BW26: 010-3820-8575 | BX26: - | BY26: ticketmatu@hanmail.net
A27: 22 | B27: 19 | C27: 2016 CHDTEX(대한치과기공사협회 학술대회) | D27: 대한치과기공사협회 광주광역시 치과기공사회 | E27: 0408~0409 | F27: 04.09 | G27: O | H27: O | I27: O | J27: O | K27: 0408 | L27: 0419 | M27: 0408 | N27: 0419 | O27: O | P27: X | Q27: X | R27: X | S27: X | T27: X | U27: X | V27: X | W27: X | X27: X | Y27: X | Z27: X | AA27: X | AB27: X | AC27: X | AD27: O | AH27: 지역 | AI27: 전시장 | AJ27: 1 | AM27: 4월 | AO27: 3024 | AP27: 2 | AQ27: 6048 | AS27: 0.001826484018 | AT27: 전시회 | AU27: 0 | AV27: 8981280 | AW27: 1796250 | AX27: 0 | AY27: 1347190 | AZ27: 0 | BA27: 101170 | BB27: 0 | BC27: 10777530 | BD27: 10429640 | BE27: 0 | BF27: 10429640 | BG27: 2016-04-19 | BH27: 10429640 | BS27: 0 | BT27: 완납 | BU27: 염은미 사무국장 | BV27: - | BW27: 010-4662-7386 | BX27: - | BY27: -
A28: 23 | B28: 20 | C28: 2016 찾아가는 경기관광박람회 | D28: 경기관광공사 | E28: 0413~0418 | F28: 04.15~04.17 | G28: O | H28: O | I28: O | J28: O | K28: 0229 | L28: 0223 | M28: 0406 | N28: 0418 | O28: O | P28: X | Q28: X | R28: X | S28: X | T28: X | U28: X | V28: X | W28: X | X28: X | Y28: X | Z28: X | AA28: X | AB28: X | AC28: X | AD28: O | AH28: 타지역 | AI28: 전시장 | AK28: 1 | AM28: 4월 | AO28: 1512 | AP28: 6 | AQ28: 9072 | AS28: 0.002739726027 | AT28: 전시회 | AU28: 0 | AV28: 53887680 | AW28: 10777530 | AX28: 0 | AY28: 0 | AZ28: 0 | BA28: 589050 | BB28: 0 | BC28: 64665210 | BD28: 54476730 | BE28: 0 | BF28: 54476730 | BG28: 2016-02-23 | BH28: 24494400 | BI28: 2016-03-31 | BJ28: 36317510 | BS28: -6335180 | BT28: 완납 | BU28: 전광호 대리 | BV28: 031-259-4776 | BW28: 010-6374-7171 | BX28: 031-259-4738 | BY28: kh7171@gto.or.kr
A29: 24 | C29: 양평문호리리버마켓 in 광주 | D29: 경기관광공사 | E29: 0413~0418 | F29: 04.15~04.17 | G29: O | H29: O | I29: O | J29: O | K29: X | L29: X | M29: X | N29: X | O29: O | P29: X | Q29: X | R29: X | S29: X | T29: X | U29: X | V29: X | W29: X | X29: X | Y29: X | Z29: X | AA29: X | AB29: X | AC29: X | AD29: O | AH29: 타지역 | AI29: 전시장 | AK29: 1 | AM29: 4월 | AO29: 1512 | AP29: 6 | AQ29: 9072 | AS29: 0.002739726027 | AT29: 전시회 | AU29: 0 | AV29: 0 | AW29: 0 | AX29: 0 | AY29: =AV29+AW29 -> 0 | AZ29: 0 | BA29: 0 | BB29: 0 | BC29: 0 | BD29: =BB29+BC29 -> 0 | BE29: 0 | BF29: =BC29+BD29 -> 0 | BS29: =BD29-BH29-BJ29-BL29-BN29-BP29-BR29 -> 0 | BT29: 완납 | BU29: 전광호 대리 | BV29: 031-259-4776 | BW29: 010-6374-7171 | BX29: 031-259-4738 | BY29: kh7171@gto.or.kr
A30: 25 | C30: 경기레저여행상품전 | D30: 경기관광공사,파주시,포천시,연천군,가평군,양평 | E30: 0413~0418 | F30: 04.15~04.17 | G30: O | H30: O | I30: O | J30: O | K30: X | L30: X | M30: X | N30: X | O30: O | P30: X | Q30: X | R30: X | S30: X | T30: X | U30: X | V30: X | W30: X | X30: X | Y30: X | Z30: X | AA30: X | AB30: X | AC30: X | AD30: O | AH30: 타지역 | AI30: 전시장 | AL30: 1 | AM30: 4월 | AO30: 1512 | AP30: 6 | AQ30: 9072 | AS30: 0.002739726027 | AT30: 전시회 | AU30: 0 | AV30: 0 | AW30: 0 | AX30: 0 | AY30: 0 | AZ30: 0 | BA30: 0 | BB30: 0 | BC30: 0 | BD30: =BB30+BC30 -> 0 | BE30: 0 | BF30: =BC30+BD30 -> 0 | BS30: 0 | BT30: 완납 | BU30: 전광호 대리 | BV30: 031-259-4776 | BW30: 010-6374-7171 | BX30: 031-259-4738 | BY30: kh7171@gto.or.kr
A31: 26 | C31: 경기관광박람회 어쿠스틱 공연, 팝페라공연 | D31: 경기관광공사 | E31: 0413~0418 | F31: 04.15~04.17 | G31: O | H31: O | I31: O | J31: O | K31: X | L31: X | M31: X | N31: X | O31: O | P31: X | Q31: X | R31: X | S31: X | T31: X | U31: X | V31: X | W31: X | X31: X | Y31: X | Z31: X | AA31: X | AB31: X | AC31: X | AD31: O | AH31: 타지역 | AI31: 전시장 | AL31: 1 | AM31: 4월 | AO31: 1512 | AP31: 6 | AQ31: 9072 | AS31: 0.002739726027 | AT31: 이벤트 | AU31: 0 | AV31: 0 | AW31: 0 | AX31: 0 | AY31: 0 | AZ31: 0 | BA31: 0 | BB31: 0 | BC31: 0 | BD31: =BB31+BC31 -> 0 | BE31: 0 | BF31: =BC31+BD31 -> 0 | BS31: 0 | BT31: 완납 | BU31: 전광호 대리 | BV31: 031-259-4776 | BW31: 010-6374-7171 | BX31: 031-259-4738 | BY31: kh7171@gto.or.kr
A32: 27 | B32: 22 | C32: 2016 현대기아자동차 협력사 채용박람회 | D32: ㈜커리어넷 | E32: 0420~0421 | F32: 04.21 | G32: O | H32: O | I32: O | J32: O | K32: 0401 | L32: 0418 | M32: 0413 | N32: 0418 | O32: O | P32: X | Q32: X | R32: X | S32: X | T32: X | U32: X | V32: X | W32: X | X32: X | Y32: X | Z32: X | AA32: X | AB32: X | AC32: X | AD32: O | AH32: 타지역 | AI32: 전시장 | AJ32: 1 | AM32: 4월 | AO32: 3024 | AP32: 2 | AQ32: =AO32*AP32 -> 6048 | AS32: 0.001826484018 | AT32: 전시회 | AU32: 0 | AV32: 8981280 | AW32: 1796250 | AX32: 0 | AY32: 898120 | AZ32: 0 | BA32: 122240 | BB32: 0 | BC32: 10777530 | BD32: 10001640 | BE32: 0 | BF32: 10001640 | BG32: 2016-04-18 | BH32: 10777530 | BS32: -775890 | BT32: 완납 | BU32: 천성태 과장 | BV32: 02-2006-6191 | BW32: 010-9820-0400 | BX32: 02-2006-9594 | BY32: chunst@career.co.kr
A33: 28 | B33: 23 | C33: 대한비뇨기과학회 학술대회 및 기자재전시회 | D33: 대한비뇨기과학회 | E33: 0421~0423 | F33: 04.22~04.23 | G33: O | H33: O | I33: O | J33: O | K33: 0414 | L33: 0419 | M33: 0414 | N33: 0429 | O33: O | P33: X | Q33: X | R33: X | S33: X | T33: X | U33: X | V33: X | W33: X | X33: X | Y33: X | Z33: X | AA33: X | AB33: X | AC33: X | AD33: O | AH33: 타지역 | AI33: 전시장 | AL33: 1 | AM33: 4월 | AO33: 3024 | AP33: 3 | AQ33: 9072 | AS33: 0.002739726027 | AT33: 전시회 | AU33: 0 | AV33: 13471920 | AW33: 2694380 | AX33: 0 | AY33: 898120 | AZ33: 0 | BA33: 205680 | BB33: 0 | BC33: 16166300 | BD33: 14575720 | BE33: 0 | BF33: 14575720 | BG33: 2016-04-19 | BH33: 6123600 | BI33: 2016-04-29 | BJ33: 8452120 | BS33: 0 | BT33: 완납 | BU33: 박경애 부장 | BV33: 02-794-8190 | BW33: - | BX33: - | BY33: -
A34: 29 | B34: 24 | C34: 평양진달래예술단' 특별공연 및 재테크 설명회 | D34: ㈜조은라이프 | E34: 0424 | F34: 04.24 | G34: O | H34: O | I34: O | J34: O | K34: 0408 | L34: 분납 | M34: 0417 | N34: 분납 | O34: O | P34: X | Q34: X | R34: X | S34: X | T34: X | U34: X | V34: X | W34: X | X34: X | Y34: X | Z34: X | AA34: X | AB34: X | AC34: X | AD34: O | AH34: 타지역 | AI34: 다목적홀 | AJ34: 1 | AM34: 4월 | AO34: 1478 | AP34: 1 | AQ34: 1478 | AS34: 0.0004463530719 | AT34: 이벤트 | AU34: 0 | AV34: 3853140 | AW34: 770620 | AX34: 0 | AY34: 770620 | AZ34: 825000 | BA34: 33400 | BB34: 0 | BC34: 4623760 | BD34: 5482160 | BE34: 0 | BF34: 5482160 | BG34: 2016-04-07 | BH34: 2016430 | BI34: 2016-04-19 | BJ34: 2061430 | BK34: 2016-04-19 | BL34: 1182900 | BM34: 2016-04-27 | BN34: 221400 | BS34: 0 | BT34: 완납 | BU34: 정은교 과장 | BV34: 02-2655-0199 | BW34: 010-6427-1764 | BX34: 02-2655-0151 | BY34: sun8848@hanmail.net
A35: 30 | B35: 25 | C35: [주관행사] 2016 노사화합한마당 체육대회 | D35: 김대중컨벤션센터 | E35: 0427 | F35: 04.27 | G35: O | H35: O | I35: O | J35: O | K35: X | L35: X | M35: X | N35: X | O35: O | P35: X | Q35: X | R35: X | S35: X | T35: X | U35: X | V35: X | W35: X | X35: X | Y35: X | Z35: X | AA35: X | AB35: X | AC35: X | AD35: O | AH35: 지역 | AI35: 전시장 | AL35: 1 | AM35: 4월 | AO35: 3024 | AP35: 1 | AQ35: 3024 | AS35: 0.0009132420091 | AT35: 이벤트 | AU35: 0 | AV35: 0 | AW35: 0 | AX35: 0 | AY35: =AV35+AW35 -> 0 | AZ35: =AW35+AY35 -> 0 | BA35: =AY35+AZ35 -> 0 | BB35: =AZ35+BA35 -> 0 | BC35: 0 | BD35: =BB35+BC35 -> 0 | BE35: 0 | BF35: =BC35+BD35 -> 0 | BS35: 0 | BT35: 완납 | BU35: 김경모 차장 | BV35: - | BW35: 010-5526-5429 | BX35: - | BY35: -
A36: 31 | B36: 26 | C36: 2016 심수봉 콘서트 | D36: ㈜아이지컴퍼니 | E36: 0430~0501 | F36: 05.01 | G36: O | H36: O | I36: O | J36: O | K36: 0422 | L36: 0428 | M36: 0423 | N36: 0428 | O36: O | P36: X | Q36: X | R36: X | S36: X | T36: X | U36: X | V36: X | W36: X | X36: X | Y36: X | Z36: X | AA36: X | AB36: X | AC36: X | AD36: O | AH36: 지역 | AI36: 다목적홀 | AJ36: 1 | AM36: 5월 | AO36: 1478 | AP36: 2 | AQ36: 2956 | AS36: 0.0008927061438 | AT36: 이벤트 | AU36: 0 | AV36: 6165020 | AW36: 1541250 | AX36: 0 | AY36: 385310 | AZ36: 1287000 | BA36: 112400 | BB36: 0 | BC36: 7706270 | BD36: 7949730 | BE36: 0 | BF36: 7949730 | BG36: 2016-04-28 | BH36: 7706270 | BI36: 2016-05-31 | BJ36: 243460 | BS36: 0 | BT36: 완납 | BU36: 김종환 실장 | BV36: 062-719-4077 | BW36: 010-3190-4290 | BX36: 062-719-4088 | BY36: gamelg@nate.com
A37: 32 | B37: 27 | C37: 2016 평화음악제 | D37: 광주평화방송 | E37: 0502 | F37: 05.02 | G37: O | H37: O | I37: O | J37: O | K37: 0422 | L37: 0422 | M37: 0425 | N37: 0422 | O37: O | P37: X | Q37: X | R37: X | S37: X | T37: X | U37: X | V37: X | W37: X | X37: X | Y37: X | Z37: X | AA37: X | AB37: X | AC37: X | AD37: O | AH37: 지역 | AI37: 다목적홀 | AJ37: 1 | AK37: 1 | AM37: 5월 | AO37: 2955 | AP37: 1 | AQ37: 2955 | AS37: =AQ37/3311280 -> 0.0008924041458 | AT37: 이벤트 | AU37: 0 | AV37: 7703680 | AW37: 1450730 | AX37: 0 | AY37: 770360 | AZ37: 3443000 | BA37: 118910 | BB37: 0 | BC37: 9154410 | BD37: 12035950 | BE37: 0 | BF37: 12035950 | BG37: 2016-04-22 | BH37: 12687410 | BS37: -651460 | BT37: 완납 | BU37: 오치형 총괄국장 | BV37: 062-231-7700 | BW37: 010-3635-8568 | BX37: 062-226-7726 | BY37: ohfranco@hanmail.net
A38: 33 | B38: 28 | C38: 2016 빛고을안전체험한마당 | D38: 광주광역시 소방안전본부 | E38: 0501~0502 | F38: 05.03~05.05 | G38: O | H38: O | I38: O | J38: O | K38: 0331 | L38: 0322 | M38: 0424 | N38: 0322 | O38: O | P38: X | Q38: X | R38: X | S38: X | T38: X | U38: X | V38: X | W38: X | X38: X | Y38: X | Z38: X | AA38: X | AB38: X | AC38: X | AD38: O | AH38: 지역 | AI38: 전시장 | AJ38: 1 | AK38: 1 | AM38: 5월 | AO38: 6048 | AP38: 5 | AQ38: 30240 | AS38: 0.009132420091 | AT38: 전시회 | AU38: 0 | AV38: 33230730 | AW38: 6286890 | AX38: 0 | AY38: 6296890 | AZ38: 0 | BA38: 0 | BB38: 0 | BC38: 39517620 | BD38: 39517620 | BE38: 0 | BF38: 39517620 | BG38: 2016-03-29 | BH38: 39517620 | BS38: 0 | BT38: 완납 | BU38: 박래현 반장 | BV38: 062-613-8123 | BW38: 011-606-5747 | BX38: 062-613-8119 | BY38: 0119@korea.kr
A39: 34 | B39: 29 | C39: 2016광주창업프랜차이즈박람회 | D39: (사)광주전납벤처기업협회 | E39: 0512~0515 | F39: 05.13~05.15 | G39: O | H39: O | I39: O | J39: O | K39: 0429 | L39: 0511 | M39: 0504 | N39: 0511 | O39: O | P39: X | Q39: X | R39: X | S39: X | T39: X | U39: X | V39: X | W39: X | X39: X | Y39: X | Z39: X | AA39: X | AB39: X | AC39: X | AD39: O | AH39: 지역 | AI39: 전시장 | AK39: 1 | AM39: 5월 | AO39: 3024 | AP39: 4 | AQ39: 12096 | AS39: 0.003652968037 | AT39: 전시회 | AU39: 0 | AV39: 17962560 | AW39: 3592510 | AX39: 0 | AY39: 1796250 | AZ39: 0 | BA39: 411360 | BB39: 0 | BC39: 21555070 | BD39: 20170170 | BE39: 0 | BF39: 20170170 | BG39: 2016-05-11 | BH39: 20000000 | BI39: 2016-05-17 | BJ39: 170170 | BS39: 0 | BT39: 완납 | BU39: 박철희 사장 | BV39: 062-236-0080 | BW39: 010-7191-6322 | BX39: 062-236-0087 | BY39: -
A40: 35 | B40: 30 | C40: 2016더 골프쇼 in 광주 | D40: ㈜이엑스스포테인먼트 | E40: 0511~0515 | F40: 05.12~05.15 | G40: O | H40: O | I40: O | J40: O | K40: 0129 | L40: 0504 | M40: 0504 | N40: 0504 | O40: O | P40: X | Q40: X | R40: X | S40: X | T40: X | U40: X | V40: X | W40: X | X40: X | Y40: X | Z40: X | AA40: X | AB40: X | AC40: X | AD40: O | AH40: 타지역 | AI40: 전시장 | AL40: 1 | AM40: 5월 | AO40: 3024 | AP40: 5 | AQ40: 15120 | AS40: 0.004566210046 | AT40: 전시회 | AU40: 0 | AV40: 22453200 | AW40: 4490640 | AX40: 0 | AY40: 898120 | AZ40: 0 | BA40: 483290 | BB40: 0 | BC40: 26943840 | BD40: 23834610 | BE40: 0 | BF40: 23834610 | BG40: 2016-05-04 | BH40: 26943840 | BS40: -3109230 | BT40: 완납 | BU40: 류민규대리 | BV40: 02-356-4309 | BW40: 010-3278-8332 | BX40: 0505-356-4309 | BY40: ex_golfshow@naver.com
A41: 36 | B41: 31 | C41: 2016 키자비(어린이직업체험박람회) | D41: 에이치엠디(주) | E41: 0517~0522 | F41: 05.18~05.22 | G41: O | H41: O | I41: O | J41: O | K41: 0229 | L41: 0512 | M41: 0510 | N41: 0623 | O41: O | P41: X | Q41: X | R41: X | S41: X | T41: X | U41: X | V41: X | W41: X | X41: X | Y41: X | Z41: X | AA41: X | AB41: X | AC41: X | AD41: O | AH41: 지역 | AI41: 전시장 | AK41: 1 | AM41: 5월 | AO41: 3024 | AP41: 6 | AQ41: 18144 | AS41: 0.005479452055 | AT41: 전시회 | AU41: 0 | AV41: 53887680 | AW41: 10777530 | AX41: 0 | AY41: 8981280 | AZ41: 0 | BA41: 717800 | BB41: 0 | BC41: =AV41+AW41 -> 64665210 | BD41: 63586760 | BE41: 5 | BF41: 63067510 | BG41: 2016-05-12 | BH41: 22665210 | BI41: 2016-06-23 | BJ41: 40921550 | BS41: 0 | BT41: 완납 | BU41: 이경록 대표 | BV41: 062-366-3242 | BW41: 010-6609-8721 | BX41: 062-366-3247 | BY41: gdkm0104@naver.com
A42: 37 | C42: 2016 어린이교육박람회 | D42: 에이치엠디(주) | E42: 0517~0522 | F42: 05.18~05.22 | G42: O | H42: O | I42: O | J42: O | K42: X | L42: X | M42: X | N42: X | O42: O | P42: X | Q42: X | R42: X | S42: X | T42: X | U42: X | V42: X | W42: X | X42: X | Y42: X | Z42: X | AA42: X | AB42: X | AC42: X | AD42: O | AH42: 지역 | AI42: 전시장 | AL42: 1 | AM42: 5월 | AO42: 3024 | AP42: 6 | AQ42: 18144 | AS42: 0.005479452055 | AT42: 전시회 | AU42: 0 | AV42: 0 | AW42: 0 | AX42: 0 | AY42: =AV42+AW42 -> 0 | AZ42: =AW42+AY42 -> 0 | BA42: =AY42+AZ42 -> 0 | BB42: =AZ42+BA42 -> 0 | BC42: =AV42+AW42 -> 0 | BD42: =BB42+BC42 -> 0 | BE42: 0 | BF42: =BC42+BD42 -> 0 | BS42: 0 | BT42: 완납 | BU42: 이경록 대표 | BV42: 062-366-3242 | BW42: 010-6609-8721 | BX42: 062-366-3247 | BY42: gdkm0104@naver.com
A43: 38 | B43: 32 | C43: 제18회 KBC맘앤베이비페어 | D43: (주)KBC플러스 | E43: 0424~0529 | F43: 05.26~05.29 | G43: O | H43: O | I43: O | J43: O | K43: 0415 | L43: 0517 | M43: 0517 | N43: 0517 | O43: O | P43: X | Q43: X | R43: X | S43: X | T43: X | U43: X | V43: X | W43: X | X43: X | Y43: X | Z43: X | AA43: X | AB43: X | AC43: X | AD43: O | AH43: 지역 | AI43: 전시장 | AJ43: 1 | AK43: 1 | AM43: 5월 | AO43: 6048 | AP43: 6 | AQ43: =AO43*AP43 -> 36288 | AS43: 0.01095890411 | AT43: 전시회 | AU43: 0.2 | AV43: 43110140 | AW43: 11777530 | AX43: 0 | AY43: 7903520 | AZ43: 0 | BA43: 911840 | BB43: 3858620 | BC43: 54887670 | BD43: 55784120 | BE43: 0 | BF43: 55784120 | BG43: 2016-05-17 | BH43: 53887670 | BI43: 2016-06-03 | BJ43: 1896450 | BS43: 0 | BT43: 완납 | BU43: 엄윤서과장 | BV43: 062-650-3048 | BW43: 010-6669-0003 | BX43: 062-710-3359 | BY43: kbc0003@naver.com
A44: 39 | B44: 33 | C44: 2016광주권일자리박람회 | D44: 국제커리어센터 | E44: 0524~0526 | F44: 05.26 | G44: O | H44: O | I44: O | J44: O | K44: 0502 | L44: 0428 | M44: 0517 | N44: 0516 | O44: O | P44: X | Q44: X | R44: X | S44: X | T44: X | U44: X | V44: X | W44: X | X44: X | Y44: X | Z44: X | AA44: X | AB44: X | AC44: X | AD44: O | AH44: 지역 | AI44: 전시장 | AL44: 1 | AM44: 5월 | AO44: 1512 | AP44: 3 | AQ44: =AO44*AP44 -> 4536 | AS44: 0.001369863014 | AT44: 전시회 | AU44: 0 | AV44: 13471920 | AW44: 2694380 | AX44: 0 | AY44: 2245320 | AZ44: 0 | BA44: 196530 | BB44: 482320 | BC44: 16166300 | BD44: 16396090 | BE44: 0 | BF44: 16396090 | BG44: 2016-04-28 | BH44: 6123600 | BI44: 2016-05-16 | BJ44: 10042700 | BK44: 2016-06-02 | BL44: 229790 | BS44: 0 | BT44: 완납 | BU44: 남택문 센터장 | BV44: 062-223-6114 | BW44: 010-3637-6843 | BX44: 062-223-6114 | BY44: hamsami@hanmail.net
A45: 40 | C45: JOB 골든벨 퀴즈대회 | D45: 국제커리어센터 | E45: 0524~0526 | F45: 05.26 | G45: O | H45: O | I45: O | J45: O | K45: X | L45: X | M45: X | N45: X | O45: O | P45: X | Q45: X | R45: X | S45: X | T45: X | U45: X | V45: X | W45: X | X45: X | Y45: X | Z45: X | AA45: X | AB45: X | AC45: X | AD45: O | AH45: 지역 | AI45: 전시장 | AL45: 1 | AM45: 5월 | AO45: 1512 | AP45: 3 | AQ45: =AO45*AP45 -> 4536 | AS45: 0.001369863014 | AT45: 이벤트 | AU45: 0 | AV45: 0 | AW45: 0 | AX45: 0 | AY45: =AV45+AW45 -> 0 | AZ45: =AW45+AY45 -> 0 | BA45: =AY45+AZ45 -> 0 | BB45: =AZ45+BA45 -> 0 | BC45: 0 | BD45: =BB45+BC45 -> 0 | BE45: 0 | BF45: =BC45+BD45 -> 0 | BS45: 0 | BT45: 완납 | BU45: 남택문 센터장 | BV45: 062-223-6114 | BW45: 010-3637-6843 | BX45: 062-223-6114 | BY45: hamsami@hanmail.net
A46: 41 | B46: 34 | C46: 제1회 국제척추통증학술대회 | D46: 대한통증학회,피플엑스 | E46: 0527~0529 | F46: 05.28~05.29 | G46: O | H46: O | I46: O | J46: O | K46: 0516 | L46: 0519 | M46: 0520 | N46: 0630 | O46: O | P46: X | Q46: X | R46: X | S46: X | T46: X | U46: X | V46: X | W46: X | X46: X | Y46: X | Z46: X | AA46: X | AB46: X | AC46: X | AD46: O | AH46: 타지역 | AI46: 다목적홀 | AJ46: 1 | AM46: 5월 | AO46: 1478 | AP46: 3 | AQ46: =AO46*AP46 -> 4434 | AS46: 0.001339059216 | AT46: 전시회 | AU46: 0 | AV46: 19503000 | AW46: 3900600 | AX46: 0 | AY46: 3250500 | AZ46: 0 | BA46: 401100 | BB46: 942640 | BC46: 23403600 | BD46: 24097240 | BE46: 0 | BF46: 24097240 | BG46: 2016-05-25 | BH46: 8865000 | BI46: 2016-06-30 | BJ46: 15232240 | BS46: 0 | BT46: 완납 | BU46: 이슬아 대리 | BV46: 02-557-8422 | BW46: 010-2087-8531 | BX46: - | BY46: icsp2016@spinemeeting.org
A47: 42 | C47: 국제척추통증학술대회 기자재 전시회 | D47: 대한통증학회 | E47: 0527~0529 | F47: 05.28~05.29 | G47: O | H47: O | I47: O | J47: O | K47: X | L47: X | M47: X | N47: X | O47: O | P47: X | Q47: X | R47: X | S47: X | T47: X | U47: X | V47: X | W47: X | X47: X | Y47: X | Z47: X | AA47: X | AB47: X | AC47: X | AD47: O | AH47: 타지역 | AI47: 다목적홀 | AK47: 1 | AM47: 5월 | AO47: 1477 | AP47: 3 | AQ47: =AO47*AP47 -> 4431 | AS47: 0.001338153222 | AT47: 전시회 | AU47: 0 | AV47: 0 | AW47: 0 | AX47: 0 | AY47: =AV47+AW47 -> 0 | AZ47: =AW47+AY47 -> 0 | BA47: =AY47+AZ47 -> 0 | BB47: =AZ47+BA47 -> 0 | BC47: =AV47+AW47 -> 0 | BD47: =BB47+BC47 -> 0 | BE47: 0 | BF47: =BC47+BD47 -> 0 | BS47: 0 | BT47: 완납 | BU47: 이슬아 대리 | BV47: 02-557-8422 | BW47: 010-2087-8531 | BX47: - | BY47: icsp2016@spinemeeting.org
A48: 43 | B48: 35 | C48: 태진아와 함께하는 힐링콘서트 | D48: 금강매니지먼트 | E48: 0605 | F48: 06.05 | G48: O | H48: O | I48: O | J48: O | K48: 0503 | L48: 0503 | M48: 0610 | N48: 0503 | O48: O | P48: X | Q48: X | R48: X | S48: X | T48: X | U48: X | V48: X | W48: X | X48: X | Y48: X | Z48: X | AA48: X | AB48: X | AC48: X | AD48: O | AH48: 타지역 | AI48: 다목적홀 | AJ48: 1 | AM48: 6월 | AO48: 1478 | AP48: 1 | AQ48: =AO48*AP48 -> 1478 | AS48: 0.0004463530719 | AT48: 이벤트 | AU48: 0 | AV48: 3853140 | AW48: 770620 | AX48: 0 | AY48: 770620 | AZ48: 1826000 | BA48: 43100 | BB48: 235740 | BC48: 4623760 | BD48: 6728600 | BE48: 0 | BF48: 6728600 | BG48: 2016-05-03 | BH48: 4623760 | BI48: 2016-06-14 | BJ48: 2104840 | BS48: 0 | BT48: 완납 | BU48: 박윤희 | BV48: - | BW48: 010-7321-0169 | BX48: - | BY48: yunhee1959@naver.com
A49: 44 | B49: 36 | C49: 알리&김연지 콘서트 | D49: 김대중컨벤션센터/KBC플러스 | E49: 0611~0612 | F49: 06.12 | G49: O | H49: O | I49: O | J49: O | K49: X | L49: X | M49: X | N49: X | O49: O | P49: X | Q49: X | R49: X | S49: X | T49: X | U49: X | V49: X | W49: X | X49: X | Y49: X | Z49: X | AA49: X | AB49: X | AC49: X | AD49: O | AH49: 지역 | AI49: 다목적홀 | AJ49: 1 | AK49: 1 | AM49: 6월 | AO49: 2955 | AP49: 2 | AQ49: 5910 | AS49: 0.001784808292 | AT49: 이벤트 | AU49: 0 | AV49: 9863000 | AW49: 0 | AX49: 0 | AY49: 0 | AZ49: 0 | BA49: 0 | BB49: 0 | BC49: 9863000 | BD49: 9863000 | BE49: 0 | BF49: 9863000 | BS49: 0 | BT49: 완납 | BU49: 엄윤서과장 | BV49: 062-650-3048 | BW49: 010-6669-0003 | BX49: 062-710-3359 | BY49: kbc0003@naver.com
A50: 45 | B50: 37 | C50: [주관행사] 2016국제뿌리산업전시회 | D50: 광주광역시, 한국생산기술연구원,김대중컨벤션센터 | E50: 0610~0620 | F50: 06.15~06.18 | G50: O | H50: O | I50: O | J50: O | K50: X | L50: X | M50: X | N50: X | O50: O | P50: X | Q50: X | R50: X | S50: X | T50: X | U50: X | V50: X | W50: X | X50: X | Y50: X | Z50: X | AA50: X | AB50: X | AC50: X | AD50: O | AH50: 지역 | AI50: 전시장 | AJ50: 1 | AM50: 6월 | AO50: 3024 | AP50: 11 | AQ50: 33264 | AS50: =AQ50/3311280 -> 0.0100456621 | AT50: 전시회 | AU50: 0 | AV50: 0 | AW50: 0 | AX50: 0 | AY50: =AV50+AW50 -> 0 | AZ50: =AW50+AY50 -> 0 | BA50: =AY50+AZ50 -> 0 | BB50: 0 | BC50: =AV50+AW50 -> 0 | BD50: =BB50+BC50 -> 0 | BE50: 0 | BF50: =BC50+BD50 -> 0 | BS50: 0 | BT50: 완납 | BU50: 박민아 과장 | BV50: 062-611-2216 | BW50: 010-2616-0670 | BX50: 062-611-2239 | BY50: -
A51: 46 | B51: 38 | C51: [주관행사] 2016생활속의뿌리기술전시회 | D51: 광주광역시, 한국생산기술연구원,김대중컨벤션센터 | E51: 0611~0619 | F51: 06.15~06.18 | G51: O | H51: O | I51: O | J51: O | K51: X | L51: X | M51: X | N51: X | O51: O | P51: X | Q51: X | R51: X | S51: X | T51: X | U51: X | V51: X | W51: X | X51: X | Y51: X | Z51: X | AA51: X | AB51: X | AC51: X | AD51: O | AH51: 지역 | AI51: 다목적홀 | AJ51: 1 | AM51: 6월 | AO51: 1478 | AP51: 7 | AQ51: 10346 | AS51: 0.003124471503 | AT51: 전시회 | AU51: 0 | AV51: 0 | AW51: 0 | AX51: 0 | AY51: =AV51+AW51 -> 0 | AZ51: =AW51+AY51 -> 0 | BA51: 0 | BB51: 0 | BC51: =AV51+AW51 -> 0 | BD51: =BB51+BC51 -> 0 | BE51: 0 | BF51: =BC51+BD51 -> 0 | BS51: 0 | BT51: 완납 | BU51: 박민아 과장 | BV51: 062-611-2216 | BW51: 010-2616-0670 | BX51: 062-611-2239 | BY51: -
A52: 47 | B52: 39 | C52: [주관행사] 2016뿌리산업채용박람회 | D52: 광주광역시, 한국생산기술연구원,김대중컨벤션센터 | E52: 0611~0619 | F52: 06.15~06.18 | G52: O | H52: O | I52: O | J52: O | K52: X | L52: X | M52: X | N52: X | O52: O | P52: X | Q52: X | R52: X | S52: X | T52: X | U52: X | V52: X | W52: X | X52: X | Y52: X | Z52: X | AA52: X | AB52: X | AC52: X | AD52: O | AH52: 지역 | AI52: 다목적홀 | AK52: 1 | AM52: 6월 | AO52: 1478 | AP52: 7 | AQ52: 10346 | AS52: 0.003124471503 | AT52: 전시회 | AU52: 0 | AV52: 0 | AW52: 0 | AX52: 0 | AY52: =AV52+AW52 -> 0 | AZ52: =AW52+AY52 -> 0 | BA52: 0 | BB52: 0 | BC52: =AV52+AW52 -> 0 | BD52: =BB52+BC52 -> 0 | BE52: 0 | BF52: =BC52+BD52 -> 0 | BS52: 0 | BT52: 완납 | BU52: 박민아 과장 | BV52: 062-611-2216 | BW52: 010-2616-0670 | BX52: 062-611-2239 | BY52: -
A53: 48 | B53: 40 | C53: 제7회광주국제금형기계산업전(GIMMA 2016) | D53: 광주광역시,한국금형산업진흥회 | E53: 0612~0619 | F53: 06.15~06.18 | G53: O | H53: O | I53: O | J53: O | K53: 0129 | L53: 0603 | M53: 0605 | N53: 0603 | O53: O | P53: X | Q53: X | R53: X | S53: X | T53: X | U53: X | V53: X | W53: X | X53: X | Y53: X | Z53: X | AA53: X | AB53: X | AC53: X | AD53: O | AH53: 타지역 | AI53: 전시장 | AK53: 1 | AM53: 6월 | AO53: 3024 | AP53: 8 | AQ53: 24192 | AS53: 0.007305936073 | AT53: 전시회 | AU53: 0 | AV53: 71850240 | AW53: 14370040 | AX53: 0 | AY53: 0 | AZ53: 0 | BA53: 1364230 | BB53: 3307380 | BC53: 86220280 | BD53: 76521850 | BE53: 0 | BF53: 76521850 | BG53: 2016-06-03 | BH53: 85520680 | BS53: -8998830 | BT53: 완납 | BU53: 박현일 차장 | BV53: 02-588-2526 | BW53: 010-7209-1977 | BX53: 02-588-2599 | BY53: hipark@kimikorea.com
A54: 49 | C54: 2016광주국제자동화기기전 | D54: 한산마케팅연구원 | E54: 0612~0619 | F54: 06.15~06.18 | G54: O | H54: O | I54: O | J54: O | K54: X | L54: X | M54: X | N54: X | O54: O | P54: X | Q54: X | R54: X | S54: X | T54: X | U54: X | V54: X | W54: X | X54: X | Y54: X | Z54: X | AA54: X | AB54: X | AC54: X | AD54: O | AH54: 타지역 | AI54: 전시장 | AL54: 1 | AM54: 6월 | AO54: 3024 | AP54: 8 | AQ54: 24192 | AS54: 0.007305936073 | AT54: 전시회 | AU54: 0 | AV54: 0 | AW54: 0 | AX54: 0 | AY54: =AV54+AW54 -> 0 | AZ54: =AW54+AY54 -> 0 | BA54: =AY54+AZ54 -> 0 | BB54: =AZ54+BA54 -> 0 | BC54: 0 | BD54: =BB54+BC54 -> 0 | BE54: 0 | BF54: =BC54+BD54 -> 0 | BS54: 0 | BT54: 완납 | BU54: 박현일 차장 | BV54: 02-588-2526 | BW54: 010-7209-1977 | BX54: 02-588-2599 | BY54: hipark@kimikorea.com
A55: 50 | B55: 41 | C55: 제24회 KBC웨딩박람회 | D55: KBC플러스 | E55: 0621~0626 | F55: 06.23~06.26 | G55: O | H55: O | I55: O | J55: O | K55: 0613 | L55: 0610 | M55: 0614 | N55: 0610 | O55: O | P55: X | Q55: X | R55: X | S55: X | T55: X | U55: X | V55: X | W55: X | X55: X | Y55: X | Z55: X | AA55: X | AB55: X | AC55: X | AD55: O | AH55: 지역 | AI55: 전시장 | AJ55: 1 | AM55: 6월 | AO55: 3024 | AP55: 6 | AQ55: =AO55*AP55 -> 18144 | AS55: 0.005479452055 | AT55: 전시회 | AU55: 0.15 | AV55: 22902260 | AW55: 5388760 | AX55: 0 | AY55: 2671930 | AZ55: 0 | BA55: 683020 | BB55: 1929310 | BC55: 28291020 | BD55: 28186520 | BE55: 0 | BF55: 28186520 | BG55: 2016-06-10 | BH55: 28291020 | BS55: -104500 | BT55: 완납 | BU55: 엄윤서과장 | BV55: 062-650-3048 | BW55: 010-6669-0003 | BX55: 062-710-3359 | BY55: kbc0003@naver.com
A56: 51 | B56: 42 | C56: 2016매경창업박람회 | D56: 매일경제,MBN,(주)엑스포럼 | E56: 0621~0626 | F56: 06.23~06.26 | G56: O | H56: O | I56: O | J56: O | K56: 0205 | L56: 0328 | M56: 0614 | N56: 0614 | O56: O | P56: X | Q56: X | R56: X | S56: X | T56: X | U56: X | V56: X | W56: X | X56: X | Y56: X | Z56: X | AA56: X | AB56: X | AC56: X | AD56: O | AH56: 타지역 | AI56: 전시장 | AK56: 1 | AM56: 6월 | AO56: 2000 | AP56: 6 | AQ56: =AO56*AP56 -> 12000 | AS56: 0.003623976227 | AT56: 전시회 | AU56: 0 | AV56: 26943840 | AW56: 5388760 | AX56: 0 | AY56: 2694380 | AZ56: 0 | BA56: 1313090 | BB56: 3858620 | BC56: 32332600 | BD56: 49506570 | BE56: 0 | BF56: 49506570 | BG56: 2016-03-28 | BH56: 12247200 | BI56: 2016-06-14 | BJ56: 40170800 | BS56: -2911430 | BT56: 완납 | BU56: 김미리 과장 | BV56: 02-6000-6693 | BW56: 010-8772-6007 | BX56: 02-2151-3326 | BY56: info@startupexpo.co.kr
A57: 52 | C57: 2016프랜차이즈쇼 | D57: 매일경제,MBN,(주)엑스포럼 | E57: 0621~0626 | F57: 06.23~06.26 | G57: O | H57: O | I57: O | J57: O | K57: 0205 | L57: 0328 | M57: 0614 | N57: 0614 | O57: O | P57: X | Q57: X | R57: X | S57: X | T57: X | U57: X | V57: X | W57: X | X57: X | Y57: X | Z57: X | AA57: X | AB57: X | AC57: X | AD57: O | AH57: 타지역 | AI57: 전시장 | AK57: 1 | AM57: 6월 | AO57: 1024 | AP57: 6 | AQ57: =AO57*AP57 -> 6144 | AS57: =AQ57/3311280 -> 0.001855475828 | AT57: 전시회 | AU57: 0 | BS57: 0 | BT57: 완납 | BU57: 김미리 과장 | BV57: 02-6000-6693 | BW57: 010-8772-6007 | BX57: 02-2151-3326 | BY57: info@startupexpo.co.kr
A58: 53 | B58: 43 | C58: 스위트코리아 2016 | D58: ㈜엑스포럼 | E58: 0621~0626 | F58: 06.23~06.26 | G58: O | H58: O | I58: O | J58: O | K58: 0205 | L58: 0328 | M58: 0614 | N58: 0614 | O58: O | P58: X | Q58: X | R58: X | S58: X | T58: X | U58: X | V58: X | W58: X | X58: X | Y58: X | Z58: X | AA58: X | AB58: X | AC58: X | AD58: O | AH58: 타지역 | AI58: 전시장 | AL58: 1 | AM58: 6월 | AO58: 2724 | AP58: 6 | AQ58: =AO58*AP58 -> 16344 | AS58: 0.004935855621 | AT58: 전시회 | AU58: 0 | AV58: 26940840 | AW58: 5388760 | AX58: 0 | AY58: 0 | AZ58: 0 | BA58: 0 | BB58: 0 | BC58: 32329600 | BD58: 12247200 | BE58: 0 | BF58: 12247200 | BG58: 2016-03-28 | BH58: 12247200 | BS58: 0 | BT58: 완납 | BU58: 김미리 과장 | BV58: 02-6000-6693 | BW58: 010-8772-6007 | BX58: 02-2151-3326 | BY58: info@startupexpo.co.kr
A59: 54 | C59: 2016전국녹차음료창작대회 | D59: 전남과학대학교, ㈜엑스포럼, ABA KOREA | E59: 0630~0701 | F59: 07.01 | G59: O | H59: O | I59: O | J59: O | K59: X | L59: X | M59: X | N59: X | O59: O | P59: X | Q59: X | R59: X | S59: X | T59: X | U59: X | V59: X | W59: X | X59: X | Y59: X | Z59: X | AA59: X | AB59: X | AC59: X | AD59: O | AH59: 지역 | AI59: 전시장 | AL59: 1 | AM59: 6월 | AO59: 300 | AP59: 6 | AQ59: =AO59*AP59 -> 1800 | AS59: 0.000543596434 | AT59: 이벤트 | AU59: 0 | AV59: 0 | AW59: 0 | AX59: 0 | AY59: =AV59+AW59 -> 0 | AZ59: =AW59+AY59 -> 0 | BA59: =AY59+AZ59 -> 0 | BB59: =AZ59+BA59 -> 0 | BC59: =AV59+AW59 -> 0 | BD59: =BB59+BC59 -> 0 | BE59: 0 | BF59: =BC59+BD59 -> 0 | BS59: 0 | BT59: 완납 | BU59: 김미리 과장 | BV59: 02-6000-6693 | BW59: 010-8772-6007 | BX59: 02-2151-3326 | BY59: info@startupexpo.co.kr
A60: 55 | B60: 44 | C60: 더 스테이지 빅플레져 6월 공연 | D60: (주)SBS플러스 | E60: 0623~0624 | F60: 06.24 | G60: O | H60: O | I60: O | J60: O | K60: 0420 | L60: 0426 | M60: 0617 | N60: 0627 | O60: O | P60: X | Q60: X | R60: X | S60: X | T60: X | U60: X | V60: X | W60: X | X60: X | Y60: X | Z60: X | AA60: X | AB60: X | AC60: X | AD60: O | AH60: 타지역 | AI60: 다목적홀 | AJ60: 1 | AK60: 1 | AM60: 6월 | AO60: 2955 | AP60: 2 | AQ60: =AO60*AP60 -> 5910 | AS60: 0.001784808292 | AT60: 이벤트 | AU60: 0 | AV60: 12325890 | AW60: 1450730 | AX60: 0 | AY60: 0 | AZ60: 3157000 | BA60: 169920 | BB60: 471320 | BC60: 13776620 | BD60: 16124130 | BE60: 0 | BF60: 16124130 | BG60: 2016-04-26 | BH60: 4476670 | BI60: 2016-07-29 | BJ60: 11647460 | BS60: 0 | BT60: 완납 | BU60: 노윤지 차장 | BV60: 02-6938-1763 | BW60: 010-3160-5639 | BX60: - | BY60: noh.yoonji@sbs.co.kr
A61: 56 | B61: 45 | C61: 국카스텐 전국투어 콘서트 | D61: ㈜인터파크, ㈜오드아이앤씨,Y2이엔티 | E61: 0625 | F61: 06.25 | G61: O | H61: O | I61: O | J61: O | K61: 0530 | L61: 0614 | M61: 0618 | N61: 0614 | O61: O | P61: X | Q61: X | R61: X | S61: X | T61: X | U61: X | V61: X | W61: X | X61: X | Y61: X | Z61: X | AA61: X | AB61: X | AC61: X | AD61: O | AH61: 지역 | AI61: 다목적홀 | AJ61: 1 | AK61: 1 | AM61: 6월 | AO61: 2955 | AP61: 1 | AQ61: 2955 | AS61: 0.0008924041458 | AT61: 이벤트 | AU61: 0 | AV61: 7703680 | AW61: 1540730 | AX61: 0 | AY61: 3081470 | AZ61: 2717000 | BA61: 177260 | BB61: 471320 | BC61: 9244410 | BD61: 14150730 | BE61: 0 | BF61: 14150730 | BG61: 2016-06-14 | BH61: 9244410 | BI61: 2016-07-04 | BJ61: 4906320 | BS61: 0 | BT61: 완납 | BU61: 이재희 과장 | BV61: 1566-6728 | BW61: 010-4138-5619 | BX61: - | BY61: y2ent-2@naver.com
A62: 57 | B62: 46 | C62: 그라시아스합창단 특별 공연 | D62: 그라시아스합창단,(사)국제청소년연합 | E62: 0627 | F62: 06.27 | G62: O | H62: O | I62: O | J62: O | K62: 0525 | L62: 0602 | M62: 0620 | N62: 0623 | O62: O | P62: X | Q62: X | R62: X | S62: X | T62: X | U62: X | V62: X | W62: X | X62: X | Y62: X | Z62: X | AA62: X | AB62: X | AC62: X | AD62: O | AH62: 지역 | AI62: 다목적홀 | AJ62: 1 | AK62: 1 | AM62: 6월 | AO62: 2955 | AP62: 1 | AQ62: 2955 | AS62: 0.0008924041458 | AT62: 이벤트 | AU62: 0 | AV62: 7703680 | AW62: 1540730 | AX62: 0 | AY62: 3081470 | AZ62: 1859000 | BA62: 98680 | BB62: 471320 | BC62: 9244410 | BD62: 13214150 | BE62: 0 | BF62: 13214150 | BG62: 2016-06-02 | BH62: 3501675 | BI62: 2016-06-23 | BJ62: 5742735 | BK62: 2016-06-29 | BL62: 3969740 | BS62: 0 | BT62: 완납 | BU62: 서영란 | BV62: 1899-2199 | BW62: 010-2615-5035 | BX62: - | BY62: nohjs5@hanmail.net
A63: 58 | B63: 47 | C63: 2016사회적경제박람회 | D63: 고용노동부,광주광역시,마이스원 | E63: 0629~0703 | F63: 07.01~07.03 | G63: O | H63: O | I63: O | J63: O | K63: 0617 | L63: 0630 | M63: 0622 | N63: 0909 | O63: O | P63: X | Q63: X | R63: X | S63: X | T63: X | U63: X | V63: X | W63: X | X63: X | Y63: O | Z63: O | AA63: O | AB63: O | AC63: O | AD63: O | AH63: 지역 | AI63: 전시장 | AK63: 1 | AL63: 1 | AM63: 7월 | AO63: 6048 | AP63: 5 | AQ63: 30240 | AS63: =AQ63/3311280 -> 0.009132420091 | AT63: 전시회 | AU63: 0.3 | AV63: 46841410 | AW63: 11293160 | AX63: 0 | AY63: 5388760 | AZ63: 1430000 | BA63: 977380 | BB63: 3392920 | BC63: 58134570 | BD63: 58030470 | BE63: 0 | BF63: 58030470 | BG63: 2016-06-30 | BH63: 21291550 | BI63: 2016-09-09 | BJ63: 36738920 | BS63: 0 | BT63: 완납 | BU63: 라형심 | BV63: 062-382-2084 | BW63: 010-3207-1347 | BX63: - | BY63: julyra@miceone.co.kr
A64: 59 | C64: 사회적기업의날 기념식 | D64: 고용노동부,광주광역시,한국사회적기업진흥원 | E64: 0630~0702 | F64: 07.01~07.02 | G64: O | H64: O | I64: O | J64: O | K64: 0617 | L64: 0630 | M64: 0622 | N64: 0909 | O64: O | P64: X | Q64: X | R64: X | S64: X | T64: X | U64: X | V64: X | W64: X | X64: X | Y64: O | Z64: O | AA64: O | AB64: O | AC64: O | AD64: O | AH64: 지역 | AI64: 다목적홀 | AJ64: 1 | AM64: 7월 | AO64: 478 | AP64: 3 | AQ64: 1434 | AS64: =AQ64/3311280 -> 0.0004330651591 | AT64: 이벤트 | AU64: 0 | AV64: 0 | AW64: 0 | AX64: 0 | AY64: =AV64+AW64 -> 0 | AZ64: =AW64+AY64 -> 0 | BA64: =AY64+AZ64 -> 0 | BB64: =AZ64+BA64 -> 0 | BC64: 0 | BD64: =BB64+BC64 -> 0 | BE64: 0 | BF64: =BC64+BD64 -> 0 | BS64: =BD64-BH64-BJ64-BL64-BN64-BP64-BR64 -> 0 | BT64: 완납 | BU64: 라형심 | BV64: 062-382-2084 | BW64: 010-3207-1347 | BX64: - | BY64: julyra@miceone.co.kr
A65: 60 | C65: 사회적경제박람회 문화페스티벌 | D65: 고용노동부,광주광역시,마이스원 | E65: 0630~0702 | F65: 07.01~07.02 | G65: O | H65: O | I65: O | J65: O | K65: 0617 | L65: 0630 | M65: 0622 | N65: 0909 | O65: O | P65: X | Q65: X | R65: X | S65: X | T65: X | U65: X | V65: X | W65: X | X65: X | Y65: O | Z65: O | AA65: O | AB65: O | AC65: O | AD65: O | AH65: 지역 | AI65: 다목적홀 | AJ65: 1 | AM65: 7월 | AO65: 1000 | AP65: 3 | AQ65: 3000 | AS65: =AQ65/3311280 -> 0.0009059940567 | AT65: 이벤트 | AU65: 0 | AV65: 0 | AW65: 0 | AX65: 0 | AY65: =AV65+AW65 -> 0 | AZ65: =AW65+AY65 -> 0 | BA65: =AY65+AZ65 -> 0 | BB65: =AZ65+BA65 -> 0 | BC65: 0 | BD65: =BB65+BC65 -> 0 | BE65: 0 | BF65: =BC65+BD65 -> 0 | BS65: 0 | BT65: 완납 | BU65: 라형심 | BV65: 062-382-2084 | BW65: 010-3207-1347 | BX65: - | BY65: julyra@miceone.co.kr
A66: 61 | B66: 48 | C66: 2016광주펫쇼 | D66: 한국동물병원협회 광주지회, 한국펫소매협회 | E66: 0629~0703 | F66: 07.01~07.03 | G66: O | H66: O | I66: O | J66: O | K66: 0601 | L66: 0620 | M66: 0622 | N66: 0620 | O66: O | P66: X | Q66: X | R66: X | S66: X | T66: X | U66: X | V66: X | W66: X | X66: X | Y66: X | Z66: X | AA66: X | AB66: X | AC66: X | AD66: O | AH66: 지역 | AI66: 전시장 | AJ66: 1 | AM66: 7월 | AO66: 1512 | AP66: 5 | AQ66: 7560 | AS66: =AQ66/3311280 -> 0.002283105023 | AT66: 전시회 | AU66: 0.3 | AV66: 18411620 | AW66: 4490640 | AX66: 0 | AY66: 1347190 | AZ66: 0 | BA66: 660740 | BB66: 1696460 | BC66: 22902260 | BD66: 22116010 | BE66: 0 | BF66: 22116010 | BG66: 2016-06-20 | BH66: 22902260 | BS66: -786250 | BT66: 완납 | BU66: 이재희 과장 | BV66: 1566-6728 | BW66: 010-4138-5619 | BX66: - | BY66: y2ent-2@naver.com
A67: 62 | C67: 2016반려동물용품산업박람회 | D67: 펫저널, Y2이엔티, 페어스커뮤니케이션즈 | E67: 0629~0703 | F67: 07.01~07.03 | G67: O | H67: O | I67: O | J67: O | K67: X | L67: X | M67: X | N67: X | O67: O | P67: X | Q67: X | R67: X | S67: X | T67: X | U67: X | V67: X | W67: X | X67: X | Y67: X | Z67: X | AA67: X | AB67: X | AC67: X | AD67: O | AH67: 지역 | AI67: 전시장 | AJ67: 1 | AM67: 7월 | AO67: 1512 | AP67: 5 | AQ67: 7560 | AS67: 0.002283105023 | AT67: 전시회 | AU67: 0.3 | AV67: 0 | AW67: 0 | AX67: 0 | AY67: =AV67+AW67 -> 0 | AZ67: =AW67+AY67 -> 0 | BA67: =AY67+AZ67 -> 0 | BB67: 0 | BC67: 0 | BD67: =BB67+BC67 -> 0 | BE67: 0 | BF67: =BC67+BD67 -> 0 | BS67: 0 | BT67: 완납 | BU67: 이재희 과장 | BV67: 1566-6728 | BW67: 010-4138-5619 | BX67: - | BY67: y2ent-2@naver.com
A68: 63 | B68: 49 | C68: [주관행사] 2016국제그린카전시회 | D68: 광주광역시, 김대중컨벤션센터, 광주그린카진흥원, KOTRA | E68: 0704~0715 | F68: 07.07~07.09 | G68: X | H68: X | I68: X | J68: O | K68: X | L68: X | M68: X | N68: X | O68: O | P68: X | Q68: X | R68: X | S68: X | T68: X | U68: X | V68: X | W68: X | X68: X | Y68: X | Z68: X | AA68: X | AB68: X | AC68: X | AD68: O | AH68: 지역 | AI68: 전시장 | AL68: 1 | AM68: 7월 | AO68: 3024 | AP68: 7 | AQ68: =AO68*AP68 -> 21168 | AS68: 0.006392694064 | AT68: 전시회 | AU68: 0 | AV68: 0 | AW68: 0 | AX68: 0 | AY68: 0 | AZ68: 0 | BA68: 0 | BB68: 0 | BC68: =AV68+AW68 -> 0 | BD68: 0 | BE68: 0 | BF68: 0 | BS68: 0 | BT68: 완납 | BU68: 채태원 과장 | BV68: 062-611-2211 | BW68: 010-8004-2680 | BX68: 062-611-2239 | BY68: -
A69: 64 | C69: [주관행사] GTT(국제수송기계부품산업전) | D69: 산업통상자원부, KOTRA | E69: 0704~0712 | F69: 07.07~07.09 | G69: X | H69: X | I69: X | J69: O | K69: X | L69: X | M69: X | N69: X | O69: O | P69: X | Q69: X | R69: X | S69: X | T69: X | U69: X | V69: X | W69: X | X69: X | Y69: X | Z69: X | AA69: X | AB69: X | AC69: X | AD69: O | AH69: 지역 | AI69: 전시장 | AK69: 1 | AM69: 7월 | AO69: 3024 | AP69: 8 | AQ69: 24192 | AS69: 0.007305936073 | AT69: 전시회 | AU69: 0 | AV69: 0 | AW69: 0 | AX69: 0 | AY69: 0 | AZ69: 0 | BA69: 0 | BB69: 0 | BC69: =AV69+AW69 -> 0 | BD69: 0 | BE69: 0 | BF69: 0 | BS69: 0 | BT69: 완납 | BU69: 채태원 과장 | BV69: 062-611-2211 | BW69: 010-8004-2680 | BX69: 062-611-2239
A70: 65 | C70: [주관행사] 2016광주국제로봇산업전 | D70: 광주광역시, 김대중컨벤션센터 | E70: 0704~0710 | F70: 07.07~07.09 | G70: X | H70: X | I70: X | J70: O | K70: X | L70: X | M70: X | N70: X | O70: O | P70: X | Q70: X | R70: X | S70: X | T70: X | U70: X | V70: X | W70: X | X70: X | Y70: X | Z70: X | AA70: X | AB70: X | AC70: X | AD70: O | AH70: 지역 | AI70: 전시장 | AJ70: 1 | AM70: 7월 | AO70: 1512 | AP70: 12 | AQ70: 18144 | AS70: 0.005479452055 | AT70: 전시회 | AU70: 0 | AV70: 0 | AW70: 0 | AX70: 0 | AY70: 0 | AZ70: 0 | BA70: 0 | BB70: 0 | BC70: =AV70+AW70 -> 0 | BD70: 0 | BE70: 0 | BF70: 0 | BS70: 0 | BT70: 완납 | BU70: 채태원 과장 | BV70: 062-611-2211 | BW70: 010-8004-2680 | BX70: 062-611-2239
A71: 66 | C71: [주관행사] 빛고을로봇페스티벌 | D71: 에스마이스연구원 주식회사 | E71: 0704~0710 | F71: 07.07~07.09 | G71: X | H71: X | I71: X | J71: O | K71: X | L71: X | M71: X | N71: X | O71: O | P71: X | Q71: X | R71: X | S71: X | T71: X | U71: X | V71: X | W71: X | X71: X | Y71: X | Z71: X | AA71: X | AB71: X | AC71: X | AD71: O | AH71: 지역 | AI71: 전시장 | AJ71: 1 | AM71: 7월 | AO71: 1512 | AP71: 12 | AQ71: 18144 | AS71: 0.005479452055 | AT71: 전시회 | AU71: 0 | AV71: 0 | AW71: 0 | AX71: 0 | AY71: 0 | AZ71: 0 | BA71: 0 | BB71: 0 | BC71: =AV71+AW71 -> 0 | BD71: 0 | BE71: 0 | BF71: 0 | BS71: 0 | BT71: 완납 | BU71: 채태원 과장 | BV71: 062-611-2211 | BW71: 010-8004-2680 | BX71: 062-611-2239
A72: 67 | C72: [주관행사] 국제수송기계부품산업전 수출상담장 | D72: 산업통상자원부, KOTRA | E72: 0704~0710 | F72: 07.07~07.09 | G72: X | H72: X | I72: X | J72: O | K72: X | L72: X | M72: X | N72: X | O72: O | P72: X | Q72: X | R72: X | S72: X | T72: X | U72: X | V72: X | W72: X | X72: X | Y72: X | Z72: X | AA72: X | AB72: X | AC72: X | AD72: O | AH72: 지역 | AI72: 다목적홀 | AJ72: 1 | AK72: 1 | AM72: 7월 | AO72: 2955 | AP72: 7 | AQ72: =AO72*AP72 -> 20685 | AS72: 0.006246829021 | AT72: 전시회 | AU72: 0 | AV72: 0 | AW72: 0 | AX72: 0 | AY72: 0 | AZ72: 0 | BA72: 0 | BB72: 0 | BC72: =AV72+AW72 -> 0 | BD72: 0 | BE72: 0 | BF72: 0 | BS72: 0 | BT72: 완납 | BU72: 채태원 과장 | BV72: 062-611-2211 | BW72: 010-8004-2680 | BX72: 062-611-2239
A73: 68 | B73: 50 | C73: 2016 캐릭터체험전 두잉 번개맨이 떴다 | D73: KCTV광주방송,공연마루 | E73: 0711~0822 | F73: 07.14~08.21 | G73: O | H73: O | I73: O | J73: O | K73: 0710 | L73: 0707 | M73: 0710 | N73: 0707 | O73: O | P73: X | Q73: X | R73: X | S73: X | T73: X | U73: X | V73: X | W73: X | X73: X | Y73: X | Z73: X | AA73: X | AB73: X | AC73: X | AD73: O | AE73: - | AF73: - | AG73: - | AH73: 지역 | AI73: 전시장 | AJ73: 1 | AM73: 7월 | AO73: 3024 | AP73: 43 | AQ73: 130032 | AS73: =AQ73/3311280 -> 0.03926940639 | AT73: 이벤트 | AU73: 장기이벤트 | AV73: 52976000 | AW73: 0 | AX73: 0 | AY73: 0 | AZ73: 0 | BA73: 0 | BB73: 0 | BC73: 52976000 | BD73: 52976000 | BE73: 0 | BF73: 52976000 | BG73: 2016-07-07 | BH73: 52976000 | BS73: 0 | BT73: 완납 | BU73: 국왕훈 차장 | BV73: - | BW73: 010-8604-7771 | BX73: - | BY73: -
A74: 69 | B74: 51 | C74: 동물탐험대2 | D74: 에이치엠디(주) | E74: 0720~0822 | F74: 07.23~08.21 | G74: O | H74: O | I74: O | J74: O | K74: 0721 | L74: 0718 | M74: 0721 | N74: 0720 | O74: O | P74: X | Q74: X | R74: X | S74: X | T74: X | U74: X | V74: X | W74: X | X74: X | Y74: X | Z74: X | AA74: X | AB74: X | AC74: X | AD74: O | AE74: - | AF74: - | AG74: - | AH74: 지역 | AI74: 전시장 | AL74: 1 | AM74: 7월 | AO74: 1512 | AP74: 33 | AQ74: =AO74*AP74 -> 49896 | AS74: 0.01506849315 | AT74: 이벤트 | AU74: 장기이벤트 | AV74: 25520000 | AW74: 0 | AX74: 0 | AY74: 0 | AZ74: 0 | BA74: 0 | BB74: 0 | BC74: 25520000 | BD74: 25520000 | BE74: 1 | BF74: 25383800 | BG74: 2016-07-18 | BH74: 6000000 | BI74: 2016-07-20 | BJ74: 19520000 | BS74: 0 | BT74: 완납 | BU74: 이경록 대표 | BV74: 062-366-3242 | BW74: 010-6609-8721 | BX74: 062-366-3247 | BY74: gdkm0104@naver.com
A75: 70 | C75: 버블쇼&실내놀이터 | D75: 에이치엠디(주) | E75: 0720~0822 | F75: 07.23~08.21 | G75: O | H75: O | I75: O | J75: O | K75: 0721 | L75: 0718 | M75: 0721 | N75: 0720 | O75: O | P75: X | Q75: X | R75: X | S75: X | T75: X | U75: X | V75: X | W75: X | X75: X | Y75: X | Z75: X | AA75: X | AB75: X | AC75: X | AD75: O | AE75: - | AF75: - | AG75: - | AH75: 지역 | AI75: 전시장 | AL75: 1 | AM75: 7월 | AO75: 1512 | AP75: 33 | AQ75: =AO75*AP75 -> 49896 | AS75: 0.01506849315 | AT75: 이벤트 | AU75: 장기이벤트 | BS75: 0 | BT75: 완납 | BU75: 이경록 대표 | BV75: 062-366-3242 | BW75: 010-6609-8721 | BX75: 062-366-3247 | BY75: gdkm0104@naver.com
A76: 71 | B76: 52 | C76: 광주MBC웨딩페어 | D76: 광주문화방송 | E76: 0713~0717 | F76: 07.15~07.17 | G76: O | H76: O | I76: O | J76: O | K76: 0610 | L76: 0617 | M76: 0510 | N76: 0719 | O76: O | P76: X | Q76: X | R76: X | S76: X | T76: X | U76: X | V76: X | W76: X | X76: X | Y76: X | Z76: X | AA76: X | AB76: X | AC76: X | AD76: O | AE76: 계약서상 잔금날짜 오류 | AH76: 지역 | AI76: 전시장 | AK76: 1 | AM76: 7월 | AO76: 3024 | AP76: 5 | AQ76: 15120 | AS76: 0.004566210046 | AT76: 전시회 | AU76: 0.4 | AV76: 13471920 | AW76: 4490640 | AX76: 0 | AY76: 1347190 | AZ76: 0 | BA76: 907040 | BB76: 2342730 | BC76: 17962560 | BD76: 18068880 | BE76: 0 | BF76: 18068880 | BG76: 2016-06-24 | BH76: 7000000 | BI76: 2016-07-29 | BJ76: 11068880 | BS76: 0 | BT76: 완납 | BU76: 류권형 차장 | BV76: 062-360-2624 | BW76: 010-3633-1608 | BX76: 062-360-2476 | BY76: dimple9010@naver.com
A77: 72 | B77: 53 | C77: 휘성&자이언티 콘서트 | D77: 인산컴퍼니,주컴퍼니 | E77: 0716~0717 | F77: 07.17 | G77: O | H77: O | I77: O | J77: O | K77: 0429 | L77: 분납 | M77: 0527 | N77: 분납 | O77: O | P77: X | Q77: X | R77: X | S77: X | T77: X | U77: X | V77: X | W77: X | X77: X | Y77: O | Z77: O | AA77: O | AB77: O | AC77: O | AD77: O | AH77: 지역 | AI77: 다목적홀 | AJ77: 1 | AK77: 1 | AM77: 7월 | AO77: 2955 | AP77: 2 | AQ77: 5910 | AS77: 0.001784808292 | AT77: 이벤트 | AU77: 0 | AV77: 20029580 | AW77: 4622210 | AX77: 0 | AY77: 1540730 | AZ77: 2860000 | BA77: 337850 | BB77: 552580 | BC77: =AV77+AW77 -> 24651790 | BD77: 25320740 | BE77: 5 | BF77: 24900200 | BG77: 2016-06-28 | BH77: 4500000 | BI77: 2016-06-27 | BJ77: 500000 | BK77: 2016-07-28 | BL77: 8000000 | BM77: 2016-08-03 | BN77: 2000000 | BO77: 2016-09-08 | BP77: 8000000 | BQ77: 2016-11-01 | BR77: 2320740 | BS77: 0 | BT77: 완납 | BU77: 김현진실장 | BV77: - | BW77: 010-5779-3721 | BX77: - | BY77: it5880@daum.net
A78: 73 | B78: 54 | C78: [주관행사]2017광주대학입시박람회 - 1:1 수시대입상담 | D78: 김대중컨벤션센터 | E78: 0718~0728 | F78: 07.23~07.24 | G78: O | H78: O | I78: O | J78: O | K78: X | L78: X | M78: X | N78: X | O78: O | P78: X | Q78: X | R78: X | S78: X | T78: X | U78: X | V78: X | W78: X | X78: X | Y78: X | Z78: X | AA78: X | AB78: X | AC78: X | AD78: O | AH78: 지역 | AI78: 전시장 | AK78: 1 | AM78: 7월 | AO78: 1512 | AP78: 11 | AQ78: 16632 | AS78: 0.00502283105 | AT78: 전시회 | AU78: 0 | AV78: 0 | AW78: 0 | AX78: 0 | AY78: =AV78+AW78 -> 0 | AZ78: =AW78+AY78 -> 0 | BA78: =AY78+AZ78 -> 0 | BB78: 0 | BC78: 0 | BD78: 0 | BE78: 0 | BS78: 0 | BT78: 완납 | BU78: 차상윤 대리 | BV78: 062-611-2219 | BW78: 010-5457-0991 | BX78: 062-611-2239 | BY78: -
A79: 74 | C79: [주관행사]2017광주대학입시박람회 - 대학 전공 상담관, 멘토링 | D79: 김대중컨벤션센터 | E79: 0718~0728 | F79: 07.23~07.24 | G79: O | H79: O | I79: O | J79: O | K79: X | L79: X | M79: X | N79: X | O79: O | P79: X | Q79: X | R79: X | S79: X | T79: X | U79: X | V79: X | W79: X | X79: X | Y79: X | Z79: X | AA79: X | AB79: X | AC79: X | AD79: O | AH79: 지역 | AI79: 전시장 | AK79: 1 | AM79: 7월 | AO79: 1512 | AP79: 11 | AQ79: =AO79*AP79 -> 16632 | AS79: 0.00502283105 | AT79: 전시회 | AU79: 0 | AV79: 0 | AW79: 0 | AX79: 0 | AY79: =AV79+AW79 -> 0 | AZ79: =AW79+AY79 -> 0 | BA79: 0 | BB79: 0 | BC79: =AV79+AW79 -> 0 | BD79: 0 | BE79: 0 | BS79: =BD79-BH79-BJ79-BL79-BN79-BP79-BR79 -> 0 | BT79: 완납 | BU79: 차상윤 대리 | BV79: 062-611-2219 | BW79: 010-5457-0991 | BX79: 062-611-2239 | BY79: -
A80: 75 | C80: [주관행사]2017광주대학입시박람회(다목적홀) | D80: 김대중컨벤션센터 | E80: 0719~0726 | F80: 07.23~07.24 | G80: O | H80: O | I80: O | J80: O | K80: X | L80: X | M80: X | N80: X | O80: O | P80: X | Q80: X | R80: X | S80: X | T80: X | U80: X | V80: X | W80: X | X80: X | Y80: X | Z80: X | AA80: X | AB80: X | AC80: X | AD80: O | AH80: 지역 | AI80: 다목적홀 | AJ80: 1 | AK80: 1 | AM80: 7월 | AO80: 2955 | AP80: 2 | AQ80: 5910 | AT80: 이벤트 | AU80: 0 | AV80: 0 | AW80: 0 | AX80: 0 | AY80: =AV80+AW80 -> 0 | AZ80: =AW80+AY80 -> 0 | BA80: 0 | BB80: 0 | BC80: 0 | BD80: 0 | BE80: 0 | BS80: 0 | BT80: 완납 | BU80: 차상윤 대리 | BV80: 062-611-2219 | BW80: 010-5457-0991 | BX80: 062-611-2239 | BY80: -
A81: 76 | B81: 95 | C81: 더불어민주당 광주시당 개편대회 | D81: 더불어민주당 | E81: 0813 | F81: 08.13 | G81: O | H81: O | I81: O | J81: O | K81: 0804 | L81: 0818 | M81: 0805 | N81: 0818 | O81: O | P81: X | Q81: X | R81: X | S81: X | T81: X | U81: X | V81: O | W81: O | X81: O | Y81: X | Z81: X | AA81: X | AB81: X | AC81: X | AD81: O | AE81: - | AF81: - | AG81: - | AH81: 타지역 | AI81: 야외전시장 | AM81: 8월 | AO81: 1322 | AP81: 1 | AQ81: 1322 | AS81: =AQ81/3311280 -> 0.000399241381 | AT81: 이벤트 | AU81: 0 | AV81: 319920 | AW81: 63980 | AX81: 0 | AY81: 0 | AZ81: 0 | BA81: 63980 | BB81: 0 | BC81: 383900 | BD81: 383900 | BE81: 0 | BF81: 383900 | BG81: 2016-08-18 | BH81: 383900 | BS81: =BD81-BH81-BJ81-BL81-BN81-BP81-BR81 -> 0 | BT81: 완납 | BU81: 최종하 총무국장 | BV81: 062-385-8400 | BW81: 010-5257-8866 | BX81: - | BY81: isign1010@hanmail.net
A82: 77 | B82: 55 | C82: 광주전남 프랜차이즈 창업박람회 2016 | D82: ㈜제일좋은전람 | E82: 0817~0821 | F82: 08.19~08.21 | G82: O | H82: O | I82: O | J82: O | K82: 0129 | L82: 0129 | M82: 0810 | N82: 0810 | O82: O | P82: 0810 | Q82: X | R82: X | S82: X | T82: X | U82: X | V82: O | W82: O | X82: O | Y82: O | Z82: O | AA82: 0831 | AB82: O | AC82: O | AD82: O | AE82: - | AF82: - | AG82: - | AH82: 타지역 | AI82: 전시장 | AK82: 1 | AM82: 8월 | AO82: 3024 | AP82: 5 | AQ82: =AO82*AP82 -> 15120 | AS82: =AQ82/3311280 -> 0.004566210046 | AT82: 이벤트 | AU82: 0.3 | AV82: 15717240 | AW82: 4490640 | AX82: 0 | AY82: 628680 | AZ82: 0 | BA82: 740460 | BB82: 1896040 | BC82: 20207880 | BD82: 18982420 | BE82: 0 | BF82: 18982420 | BG82: 2016-01-29 | BH82: 10206000 | BI82: 2016-08-10 | BJ82: 10001880 | BS82: -1225460 | BT82: 완납 | BU82: 강경민 부장 | BV82: 02-856-1402 | BW82: 010-5515-6718 | BX82: 02-856-1403 | BY82: hby001@empas.com
A83: 78 | B83: 56 | C83: 2016광주홈리빙페어 | D83: ㈜이앤애드 | E83: 0823~0828 | F83: 08.25~08.28 | G83: O | H83: O | I83: O | J83: O | K83: 0422 | L83: 0420 | M83: 0816 | N83: 0803 | O83: O | P83: 0816 | Q83: X | R83: X | S83: X | T83: X | U83: X | V83: O | W83: O | X83: O | Y83: O | Z83: O | AA83: 0905 | AB83: O | AC83: O | AD83: O | AE83: - | AF83: - | AG83: - | AH83: 타지역 | AI83: 전시장 | AJ83: 1 | AM83: 8월 | AO83: 3024 | AP83: 6 | AQ83: 18144 | AS83: 0.005479452055 | AT83: 전시회 | AU83: 0.3 | AV83: 18860680 | AW83: 5388760 | AX83: 0 | AY83: 1571720 | AZ83: 0 | BA83: 860590 | BB83: 2528060 | BC83: 24249440 | BD83: 23821050 | BE83: 0 | BF83: 23821050 | BG83: 2016-04-20 | BH83: 8573040 | BI83: 2016-08-03 | BJ83: 15676400 | BS83: -428390 | BT83: 완납 | BU83: 김민수 대리 | BV83: 042-538-4002 | BW83: 010-4085-2496 | BX83: 042-538-4120 | BY83: enad@enad.kr
A84: 79 | B84: 57 | C84: 광주 MBC베이비페어 | D84: 광주문화방송㈜ | E84: 0823~0828 | F84: 08.25~08.28 | G84: O | H84: O | I84: O | J84: O | K84: 0909 | L84: 0812 | M84: 0909 | N84: 0816 | O84: O | P84: 0816 | Q84: X | R84: X | S84: X | T84: X | U84: X | V84: O | W84: O | X84: O | Y84: O | Z84: O | AA84: X | AB84: O | AC84: O | AD84: O | AE84: - | AF84: - | AG84: - | AH84: 지역 | AI84: 전시장 | AK84: 1 | AL84: 1 | AM84: 8월 | AO84: 6048 | AP84: 6 | AQ84: 36288 | AS84: 0.01095890411 | AT84: 전시회 | AU84: 0.4 | AV84: 34727610 | AW84: 11575870 | AX84: 0 | AY84: 2893960 | AZ84: 0 | BA84: 1752230 | BB84: 5056120 | BC84: 46303480 | BD84: 44429920 | BE84: 0 | BF84: 44429920 | BG84: 2016-09-09 | BH84: 44429920 | BS84: =BD84-BH84-BJ84-BL84-BN84-BP84-BR84 -> 0 | BT84: 완납 | BU84: 류권형차장 | BV84: 062-360-2624 | BW84: 010-3633-1608 | BX84: 062-360-3476 | BY84: dimple9010@naver.com
A85: 80 | B85: 58 | C85: 쇼미더머니 콘서트 | D85: ㈜하늘이앤티 | E85: 0826~0827 | F85: 08.27 | G85: O | H85: O | I85: O | J85: O | K85: 0520 | L85: 0520 | M85: 0819 | N85: 0819 | O85: O | P85: 0819 | Q85: O | R85: 0812 | S85: O | T85: X | U85: X | V85: O | W85: O | X85: O | Y85: O | Z85: X | AA85: X | AB85: O | AC85: O | AD85: O | AE85: - | AF85: - | AG85: - | AH85: 타지역 | AI85: 다목적홀 | AJ85: 1 | AK85: 1 | AM85: 8월 | AO85: 2955 | AP85: 2 | AQ85: 5910 | AS85: 0.001784808292 | AT85: 이벤트 | AU85: 0 | AV85: 12325890 | AW85: 3081470 | AX85: 0 | AY85: 3081470 | AZ85: 0 | BA85: 259020 | BB85: 617590 | BC85: 15407360 | BD85: 16283970 | BE85: 0 | BF85: 16283970 | BG85: 2016-05-20 | BH85: 5602680 | BI85: 2016-08-19 | BJ85: 9804680 | BK85: 2016-09-06 | BL85: 876610 | BS85: 876610.3 | BT85: 완납 | BU85: 조계원PD | BV85: 02-333-9009 | BW85: 010-6624-3410 | BX85: 062-332-3030 | BY85: s3410s@naver.com
A86: 81 | B86: 59 | C86: 에픽하이&이하이&악동뮤지션 JOO COMPANY_광주콘서트(다목적홀 사용 축소로 위약금 있음) | D86: 주컴퍼니 | E86: 0828~0828 | F86: 08.28 | G86: O | H86: O | I86: O | J86: O | K86: 0817 | L86: 0827 | M86: 0821 | N86: 0827 | O86: O | P86: 0821 | Q86: O | R86: 0812 | S86: O | T86: X | U86: X | V86: O | W86: O | X86: O | Y86: O | Z86: O | AA86: O | AB86: O | AC86: O | AD86: O | AE86: 다목적홀 사용 축소 위약금 | AF86: - | AG86: - | AH86: 지역 | AI86: 다목적홀 | AJ86: 1 | AK86: 1 | AM86: 8월 | AO86: 2955 | AP86: 1 | AQ86: 2955 | AS86: 0.0008924041458 | AT86: 이벤트 | AU86: 0 | AV86: 3853140 | AW86: 1540730 | AX86: 0 | AY86: 1259460 | AZ86: 2145000 | BA86: 112760 | BB86: 308900 | BC86: 5393870 | BD86: 7679260 | BE86: 2 | BF86: 7538351 | BG86: 2016-08-27 | BH86: 5000000 | BI86: 2016-11-01 | BJ86: 2679260 | BS86: 0 | BT86: 완납 | BU86: 김현진실장 | BV86: - | BW86: 010-5779-3721 | BX86: - | BY86: it5880@daum.net
A87: 82 | B87: 60 | C87: 빛고을핸드메이드페어 | D87: 광주광역시,광주디자인센터,광주공예협동조합 | E87: 0830~0904 | F87: 09.01~09.04 | G87: O | H87: O | I87: O | J87: O | K87: 0817 | L87: 0816 | M87: 0823 | N87: 0823 | O87: O | P87: 0823 | Q87: X | R87: X | S87: X | T87: X | U87: X | V87: O | W87: O | X87: O | Y87: O | Z87: O | AA87: O | AB87: O | AC87: O | AD87: O | AE87: - | AF87: - | AG87: - | AH87: 지역 | AI87: 전시장 | AK87: 1 | AL87: 1 | AM87: 9월 | AO87: 6048 | AP87: 6 | AQ87: 36288 | AS87: 0.01095890411 | AT87: 전시회 | AU87: 0.3 | AV87: 48498910 | AW87: 10777536 | AX87: 0 | AY87: 4580440 | AZ87: 0 | BA87: 635340 | BB87: 3858620 | BC87: 59276446 | BD87: 57573310 | BE87: 0 | BF87: 57573310 | BG87: 2016-08-16 | BH87: 22044960 | BI87: 2016-08-23 | BJ87: 37231480 | BS87: -1703130 | BT87: 완납 | BU87: 김안나연구원 | BV87: 062-611-5032 | BW87: 010-2717-7005 | BX87: - | BY87: artistanna@gdc.or.kr
A88: 83 | B88: 95 | C88: 심수봉, 김수희, 녹색지대 사랑의 음악회 | D88: MNS자산 | E88: 0903 | F88: 09.03 | G88: O | H88: O | I88: O | J88: O | K88: 0825 | L88: 0825 | M88: 0827 | N88: 0825 | O88: O | P88: 0819 | Q88: X | R88: X | S88: X | T88: X | U88: X | V88: O | W88: O | X88: O | Y88: O | Z88: O | AA88: O | AB88: O | AC88: O | AD88: O | AE88: - | AF88: - | AG88: - | AH88: 타지역 | AI88: 다목적홀 | AJ88: 1 | AM88: 9월 | AO88: 1478 | AP88: 1 | AQ88: 1478 | AS88: 0.0004463530719 | AT88: 이벤트 | AU88: 0 | AV88: 3853140 | AW88: 770620 | AX88: 0 | AY88: 577970 | AZ88: 770000 | BA88: 33400 | BB88: 235740 | BC88: 4623760 | BD88: 5470250 | BE88: 0 | BF88: 5470250 | BG88: 2016-08-25 | BH88: 5503760 | BS88: -33510 | BT88: 완납 | BU88: 장재혁전무 | BV88: - | BW88: 010-7152-2167 | BX88: - | BY88: lucky12777@naver.com
A89: 84 | B89: 61 | C89: [주관행사] 호남권 일자리박람회 | D89: 김대중컨벤션센터 | E89: 0905~0907 | F89: 09.07 | G89: O | H89: O | I89: O | J89: X | K89: X | L89: X | M89: X | N89: X | O89: O | P89: X | Q89: X | R89: X | S89: X | T89: X | U89: X | V89: O | W89: O | X89: O | Y89: X | Z89: X | AA89: X | AB89: X | AC89: X | AD89: X | AE89: - | AF89: - | AG89: - | AH89: 지역 | AI89: 전시장 | AJ89: 1 | AM89: 9월 | AO89: 3024 | AP89: 3 | AQ89: 9072 | AS89: 0.002739726027 | AT89: 전시회 | AU89: 0 | AV89: 0 | AW89: 0 | AX89: 0 | AY89: =AV89+AW89 -> 0 | AZ89: =AW89+AY89 -> 0 | BA89: =AY89+AZ89 -> 0 | BB89: =AZ89+BA89 -> 0 | BC89: 0 | BD89: =AV89+AY89+AZ89+BA89+BB89 -> 0 | BE89: 0 | BS89: 0 | BT89: 완납 | BU89: 이보슬사원 | BV89: 062-611-2214 | BW89: - | BX89: - | BY89: bslee@kdjcenter.or.kr
A90: 85 | B90: 62 | C90: [주관행사] 2016국제기후환경전 | D90: 김대중컨벤션센터 | E90: 0905~0913 | F90: 09.07~09.10 | G90: O | H90: O | I90: O | J90: X | K90: X | L90: X | M90: X | N90: X | O90: O | P90: X | Q90: X | R90: X | S90: X | T90: X | U90: X | V90: O | W90: O | X90: O | Y90: X | Z90: X | AA90: X | AB90: X | AC90: X | AD90: X | AE90: - | AF90: - | AG90: - | AH90: 지역 | AI90: 전시장 | AK90: 1 | AL90: 1 | AM90: 9월 | AO90: 5948 | AP90: 9 | AQ90: 53532 | AS90: 0.01616655795 | AT90: 전시회 | AU90: 0 | AV90: 0 | AW90: 0 | AX90: 0 | AY90: =AV90+AW90 -> 0 | AZ90: =AW90+AY90 -> 0 | BA90: =AY90+AZ90 -> 0 | BB90: =AZ90+BA90 -> 0 | BC90: 0 | BD90: =AV90+AY90+AZ90+BA90+BB90 -> 0 | BE90: 0 | BS90: 0 | BT90: 완납 | BU90: 이보슬사원 | BV90: 062-611-2214 | BW90: - | BX90: - | BY90: bslee@kdjcenter.or.kr
A91: 86 | C91: [주관행사] 2016국제기후환경전 - 기후환경사진전 | D91: 김대중컨벤션센터 | E91: 0905~0913 | F91: 09.07~09.10 | G91: O | H91: O | I91: O | J91: X | K91: X | L91: X | M91: X | N91: X | O91: O | P91: X | Q91: X | R91: X | S91: X | T91: X | U91: X | V91: O | W91: O | X91: O | Y91: X | Z91: X | AA91: X | AB91: X | AC91: X | AD91: X | AE91: - | AF91: - | AG91: - | AH91: 지역 | AI91: 전시장 | AL91: 1 | AM91: 9월 | AO91: 100 | AP91: 9 | AQ91: 900 | AS91: 0.000271798217 | AT91: 전시회 | AU91: 0 | BS91: 0 | BT91: 완납 | BU91: 이보슬사원 | BV91: 062-611-2214 | BW91: - | BX91: - | BY91: bslee@kdjcenter.or.kr
A92: 87 | B92: 63 | C92: 2016대한민국전문대학엑스포 | D92: 한국전문대학교육협의회, 엠비씨아트 | E92: 0908~0910 | F92: 09.09~09.10 | G92: O | H92: O | I92: O | J92: O | K92: 0630 | L92: 0628 | M92: 0831 | N92: 0901 | O92: O | P92: 0901 | Q92: X | R92: X | S92: X | T92: X | U92: X | V92: O | W92: O | X92: O | Y92: O | Z92: O | AA92: O | AB92: O | AC92: O | AD92: O | AE92: 정산 금액 입금 예정 | AF92: - | AG92: - | AH92: 타지역 | AI92: 전시장 | AJ92: 1 | AM92: 9월 | AO92: 3024 | AP92: 3 | AQ92: 9072 | AS92: 0.002739726027 | AT92: 전시회 | AU92: 0 | AV92: 13471920 | AW92: 2694380 | AX92: 0 | AY92: 2245320 | AZ92: 0 | BA92: 230630 | BB92: 964650 | BC92: 16166300 | BD92: 16912520 | BE92: 0 | BF92: 16912520 | BG92: 2016-06-28 | BH92: 6123600 | BI92: 2016-08-24 | BJ92: 10042700 | BK92: 2016-10-31 | BL92: 746220 | BS92: 0 | BT92: 완납 | BU92: 김철중차장 | BV92: 031-936-0042 | BW92: - | BX92: 02-364-1584 | BY92: kcjkcjkcj@hanmail.net
A93: 88 | B93: 65 | C93: [주관행사] 2016광주 ACE Fair | D93: 김대중컨벤션센터 | E93: 0917~0927 | F93: 09.22~09.25 | G93: X | H93: X | I93: X | J93: O | K93: X | L93: X | M93: X | N93: X | O93: O | P93: X | Q93: X | R93: X | S93: X | T93: X | U93: X | V93: O | W93: O | X93: O | Y93: X | Z93: X | AA93: X | AB93: X | AC93: X | AD93: O | AE93: - | AF93: - | AG93: - | AH93: 지역 | AI93: 전시장 | AK93: 1 | AL93: 1 | AM93: 9월 | AO93: 6048 | AP93: 11 | AQ93: 66528 | AS93: 0.0200913242 | AT93: 전시회 | AU93: 0 | AV93: 0 | AW93: 0 | AX93: 0 | AY93: =AV93+AW93 -> 0 | AZ93: =AW93+AY93 -> 0 | BA93: =AY93+AZ93 -> 0 | BB93: =AZ93+BA93 -> 0 | BC93: 0 | BD93: =AV93+AY93+AZ93+BA93+BB93 -> 0 | BE93: 0 | BS93: 0 | BT93: 완납 | BU93: 최세현사원 | BV93: 062-611-2242 | BW93: - | BX93: 062-611-2245 | BY93: -
A94: 89 | C94: [주관행사] 2016광주 ACE Fair - 포토존 & 스탬프 투어 | D94: 김대중컨벤션센터 | E94: 0917~0927 | F94: 09.22~09.25 | G94: X | H94: X | I94: X | J94: O | K94: X | L94: X | M94: X | N94: X | O94: O | P94: X | Q94: X | R94: X | S94: X | T94: X | U94: X | V94: O | W94: O | X94: O | Y94: X | Z94: X | AA94: X | AB94: X | AC94: X | AD94: O | AE94: - | AF94: - | AG94: - | AH94: 지역 | AI94: 전시장 | AJ94: 1 | AM94: 9월 | AO94: 756 | AP94: 11 | AQ94: 8316 | AS94: 0.002511415525 | AT94: 전시회 | AU94: 0 | AV94: 0 | AW94: 0 | AX94: 0 | AY94: =AV94+AW94 -> 0 | AZ94: =AW94+AY94 -> 0 | BA94: =AY94+AZ94 -> 0 | BB94: 0 | BC94: =AV94+AW94 -> 0 | BD94: 0 | BS94: =BD94-BH94-BJ94-BL94-BN94-BP94-BR94 -> 0 | BT94: 완납 | BU94: 최세현사원 | BV94: 062-611-2242 | BW94: - | BX94: 062-611-2245 | BY94: -
A95: 90 | C95: [주관행사] 2016광주 ACE Fair - 게임 & VR 체험관 | D95: 김대중컨벤션센터 | E95: 0917~0927 | F95: 09.22~09.25 | G95: X | H95: X | I95: X | J95: O | K95: X | L95: X | M95: X | N95: X | O95: O | P95: X | Q95: X | R95: X | S95: X | T95: X | U95: X | V95: O | W95: O | X95: O | Y95: X | Z95: X | AA95: X | AB95: X | AC95: X | AD95: O | AE95: - | AF95: - | AG95: - | AH95: 지역 | AI95: 전시장 | AJ95: 1 | AM95: 9월 | AO95: 756 | AP95: 11 | AQ95: 8316 | AS95: 0.002511415525 | AT95: 전시회 | AU95: 0 | AV95: 0 | AW95: 0 | AX95: 0 | AY95: =AV95+AW95 -> 0 | AZ95: =AW95+AY95 -> 0 | BA95: 0 | BB95: 0 | BC95: =AV95+AW95 -> 0 | BD95: 0 | BS95: 0 | BT95: 완납 | BU95: 최세현사원 | BV95: 062-611-2242 | BW95: - | BX95: 062-611-2245 | BY95: -
A96: 91 | C96: [주관행사] 2016광주 ACE Fair - 스타 BJ 스튜디오 | D96: 김대중컨벤션센터 | E96: 0917~0927 | F96: 09.22~09.25 | G96: X | H96: X | I96: X | J96: O | K96: X | L96: X | M96: X | N96: X | O96: O | P96: X | Q96: X | R96: X | S96: X | T96: X | U96: X | V96: O | W96: O | X96: O | Y96: X | Z96: X | AA96: X | AB96: X | AC96: X | AD96: O | AE96: - | AF96: - | AG96: - | AH96: 지역 | AI96: 전시장 | AJ96: 1 | AM96: 9월 | AO96: 756 | AP96: 11 | AQ96: 8316 | AS96: 0.002511415525 | AT96: 전시회 | AU96: 0 | AV96: 0 | AW96: 0 | AX96: 0 | AY96: =AV96+AW96 -> 0 | AZ96: =AW96+AY96 -> 0 | BA96: 0 | BB96: 0 | BC96: =AV96+AW96 -> 0 | BD96: 0 | BS96: 0 | BT96: 완납 | BU96: 최세현사원 | BV96: 062-611-2242 | BW96: - | BX96: 062-611-2245 | BY96: -
A97: 92 | C97: [주관행사] 2016광주 ACE Fair - 방송 콘텐츠 경연대회 | D97: 김대중컨벤션센터 | E97: 0917~0926 | F97: 09.22~09.24 | G97: X | H97: X | I97: X | J97: O | K97: X | L97: X | M97: X | N97: X | O97: O | P97: X | Q97: X | R97: X | S97: X | T97: X | U97: X | V97: O | W97: O | X97: O | Y97: X | Z97: X | AA97: X | AB97: X | AC97: X | AD97: O | AE97: - | AF97: - | AG97: - | AH97: 지역 | AI97: 상설전시장 | AJ97: 1 | AM97: 9월 | AO97: 756 | AP97: 11 | AQ97: 8316 | AS97: 0.002511415525 | AT97: 전시회 | AU97: 0 | AV97: 0 | AW97: 0 | AX97: 0 | AY97: =AV97+AW97 -> 0 | AZ97: =AW97+AY97 -> 0 | BA97: 0 | BB97: 0 | BC97: =AV97+AW97 -> 0 | BD97: 0 | BS97: 0 | BT97: 완납 | BU97: 최세현사원 | BV97: 062-611-2242 | BW97: - | BX97: 062-611-2245 | BY97: -
A98: 93 | C98: [주관행사] 2016광주 ACE Fair(다목적홀 - 전시) | D98: 김대중컨벤션센터 | E98: 0922~0925 | F98: 09.22~09.25 | G98: X | H98: X | I98: X | J98: O | K98: X | L98: X | M98: X | N98: X | O98: O | P98: X | Q98: X | R98: X | S98: X | T98: X | U98: X | V98: O | W98: O | X98: O | Y98: X | Z98: X | AA98: X | AB98: X | AC98: X | AD98: O | AE98: - | AF98: - | AG98: - | AH98: 지역 | AI98: 다목적홀 | AJ98: 1 | AK98: 1 | AM98: 9월 | AO98: 1478 | AP98: 4 | AQ98: 5912 | AS98: 0.001785412288 | AT98: 전시회 | AU98: 0 | AV98: 0 | AW98: 0 | AX98: 0 | AY98: 0 | AZ98: 0 | BA98: 0 | BB98: 0 | BC98: 0 | BD98: 0 | BE98: 0 | BS98: 0 | BT98: 완납 | BU98: 최세현사원 | BV98: 062-611-2242 | BW98: - | BX98: 062-611-2245 | BY98: -
A99: 94 | C99: [주관행사] 2016광주 ACE Fair - 키덜트&보드게임존 | D99: 김대중컨벤션센터 | E99: 0922~0923 | F99: 09.22~09.23 | G99: X | H99: X | I99: X | J99: O | K99: X | L99: X | M99: X | N99: X | O99: O | P99: X | Q99: X | R99: X | S99: X | T99: X | U99: X | V99: O | W99: O | X99: O | Y99: X | Z99: X | AA99: X | AB99: X | AC99: X | AD99: O | AE99: - | AF99: - | AG99: - | AH99: 지역 | AI99: 다목적홀 | AJ99: 1 | AK99: 1 | AM99: 9월 | AO99: 1478 | AP99: 2 | AQ99: =AO99*AP99 -> 2956 | AS99: =AQ99/3311280 -> 0.0008927061438 | AT99: 전시회 | AU99: 0 | AV99: 0 | AW99: 0 | AX99: 0 | AY99: 0 | AZ99: 0 | BA99: 0 | BB99: 0 | BC99: =AV99+AW99 -> 0 | BD99: 0 | BE99: 0 | BS99: 0 | BT99: 완납 | BU99: 최세현사원 | BV99: 062-611-2242 | BW99: - | BX99: 062-611-2245 | BY99: -
A100: 95 | B100: 66 | C100: 제 11회 광주옥외광고대상전 | D100: (사)광주옥외광고협회 | E100: 0928~1001 | F100: 09.29~10.01 | G100: O | H100: O | I100: O | J100: O | K100: 0908 | L100: 0908 | M100: 0908 | N100: 0921 | O100: O | P100: 0923 | Q100: X | R100: X | S100: X | T100: X | U100: X | V100: O | W100: O | X100: O | Y100: O | Z100: O | AA100: O | AB100: O | AC100: O | AD100: O | AE100: 행사중 | AF100: - | AG100: - | AH100: 지역 | AI100: 전시장 | AK100: 1 | AM100: 9월 | AO100: 1600 | AP100: 4 | AQ100: 6400 | AS100: 0.001932787321 | AT100: 전시회 | AU100: 0 | AV100: 11404800 | AW100: 1900800 | AX100: 0 | AY100: 0 | AZ100: 0 | BA100: 332220 | BB100: 1446980 | BC100: 13305600 | BD100: 13184000 | BE100: 2 | BF100: 12989000 | BG100: 2016-09-08 | BH100: 12760000 | BI100: 2016-10-24 | BJ100: 240000 | BK100: 2016-10-25 | BL100: 184000 | BS100: 0 | BT100: 완납 | BU100: 이상전사무처장 | BV100: 062-528-6464 | BW100: 010-3643-6647 | BX100: - | BY100: koaagj6464@hanmail.net
A101: 96 | B101: 67 | C101: 2016 대한민국 우수상품 할인전 | D101: 대한상공회의소 유통물류진흥원(산업연합회지원단 ) | E101: 0929~1003 | F101: 10.01~10.03 | G101: O | H101: O | I101: O | J101: O | K101: 0916 | L101: 0912 | M101: 0922 | N101: 0912 | O101: O | P101: 0923 | Q101: X | R101: X | S101: X | T101: 개막식없음 | U101: vip없음 | V101: O | W101: O | X101: O | Y101: O | Z101: O | AA101: O | AB101: O | AC101: O | AD101: O | AE101: 진행중 | AF101: - | AG101: - | AH101: 타지역 | AI101: 전시장 | AL101: 1 | AM101: 9월 | AO101: 3024 | AP101: 5 | AQ101: 15120 | AS101: 0.004566210046 | AT101: 전시회 | AU101: 0 | AV101: 24116400 | AW101: 4823280 | AX101: 0 | AY101: 3376290 | AZ101: 0 | BA101: 312950 | BB101: 1446980 | BC101: 28939680 | BD101: 29252620 | BE101: 0 | BF101: 29252620 | BG101: 2016-09-12 | BH101: 28939680 | BI101: 2016-11-21 | BJ101: 312940 | BS101: 0 | BT101: 완납 | BU101: 대행사 동인엔컴 정원교 | BV101: - | BW101: 010-4784-9378 | BX101: - | BY101: kmf2016@donginexpo.com
A102: 97 | B102: 68 | C102: 2016 사랑나눔축체 초종교 연합예배 | D102: 세계평화통일가정연합, 한국종교협의회, UPF 평화대사협의회 | E102: 1001~1002 | F102: 10.02 | G102: O | H102: O | I102: O | J102: O | K102: 0911 | L102: 0906 | M102: 0925 | N102: 0925 | O102: O | P102: 0925 | Q102: X | R102: X | S102: X | T102: 요청함 | U102: 요청함 | V102: X | W102: X | X102: X | Y102: O | Z102: O | AA102: O | AB102: O | AC102: O | AD102: O | AE102: 정산 서류보냄 | AF102: - | AG102: - | AH102: 지역 | AI102: 다목적홀 | AJ102: 1 | AK102: 1 | AM102: 10월 | AO102: 2955 | AP102: 2 | AQ102: 5910 | AS102: 0.001784808292 | AT102: 이벤트 | AU102: 0 | AV102: 12325890 | AW102: 3081470 | AX102: 0 | AY102: 0 | AZ102: 2860000 | BA102: 0 | BB102: 0 | BC102: 15407360 | BD102: 16974940 | BE102: 0 | BF102: 16974940 | BG102: 2016-09-06 | BH102: 6902680 | BI102: 2016-09-25 | BJ102: 11364680 | BS102: -1292420 | BT102: 완납 | BU102: 이인호교구장 | BV102: 062-224-4901 | BW102: 010-9958-7579 | BX102: 062-233-2303 | BY102: 8654520@hanmail.net
A103: 98 | B103: 69 | C103: [주관행사] 국제실버박람회(다목적홀) | D103: 김대중컨벤션센터 | E103: 1006~1010 | F103: 10.07~10.10 | G103: X | H103: X | I103: X | J103: O | K103: X | L103: X | M103: X | N103: X | O103: X | P103: X | Q103: X | R103: X | S103: X | T103: X | U103: X | V103: O | W103: O | X103: O | Y103: X | Z103: X | AA103: X | AB103: X | AC103: X | AD103: O | AE103: - | AF103: - | AG103: - | AH103: 지역 | AI103: 다목적홀 | AJ103: 1 | AK103: 1 | AM103: 10월 | AO103: 2955 | AP103: 5 | AQ103: 14775 | AS103: 0.004462020729 | AT103: 전시회 | AU103: 0 | AV103: 0 | AW103: 0 | AX103: 0 | AY103: =AV103+AW103 -> 0 | AZ103: =AW103+AY103 -> 0 | BA103: =AY103+AZ103 -> 0 | BB103: =AZ103+BA103 -> 0 | BC103: 0 | BD103: =AV103+AY103+AZ103+BA103+BB103 -> 0 | BS103: =BD103-BH103-BJ103-BL103-BN103-BP103-BR103 -> 0 | BT103: 완납 | BU103: 권지우대리 | BV103: 062-611-2217 | BW103: - | BX103: -
A104: 99 | B104: 69 | C104: [주관행사] 국제실버박람회(전시장1,2홀) | D104: 김대중컨벤션센터 | E104: 1002~1011 | F104: 10.07~10.10 | G104: X | H104: X | I104: X | J104: O | K104: X | L104: X | M104: X | N104: X | O104: X | P104: X | Q104: X | R104: X | S104: X | T104: X | U104: X | V104: O | W104: O | X104: O | Y104: X | Z104: X | AA104: X | AB104: X | AC104: X | AD104: O | AE104: - | AF104: - | AG104: - | AH104: 지역 | AI104: 전시장 | AJ104: 1 | AK104: 1 | AM104: 10월 | AO104: 6048 | AP104: 10 | AQ104: 60480 | AS104: =AQ104/3311280 -> 0.01826484018 | AT104: 전시회 | AU104: 0 | AV104: 0 | AW104: 0 | AX104: 0 | AY104: =AV104+AW104 -> 0 | AZ104: =AW104+AY104 -> 0 | BA104: =AY104+AZ104 -> 0 | BB104: =AZ104+BA104 -> 0 | BC104: 0 | BD104: =AV104+AY104+AZ104+BA104+BB104 -> 0 | BS104: =BD104-BH104-BJ104-BL104-BN104-BP104-BR104 -> 0 | BT104: 완납 | BU104: 권지우대리 | BV104: 062-611-2217 | BW104: - | BX104: -
A105: 100 | B105: 70 | C105: 광주권일자리박람회 | D105: 광주고용센터 취업지원과, (대행사)사랑방미디어 | E105: 1004~1006 | F105: 10.06 | G105: O | H105: O | I105: O | J105: O | K105: 0905 | L105: 0905 | M105: 0927 | N105: 0928 | O105: O | P105: 0930 | Q105: X | R105: X | S105: X | T105: 요청함 | U105: 요청함 | V105: O | W105: O | X105: O | Y105: O | Z105: O | AA105: O | AB105: O | AC105: O | AD105: O | AE105: - | AF105: - | AG105: - | AH105: 지역 | AI105: 전시장 | AL105: 1 | AM105: 10월 | AO105: 2000 | AP105: 3 | AQ105: =AO105*AP105 -> 6000 | AS105: =AQ105/3311280 -> 0.001811988113 | AT105: 전시회 | AU105: 0 | AV105: 14469840 | AW105: 2893960 | AX105: 0 | AY105: 1929310 | AZ105: 0 | BA105: 146220 | BB105: 482320 | BC105: =AV105+AW105 -> 17363800 | BD105: 17027690 | BE105: 0 | BF105: 17027690 | BG105: 2016-09-05 | BH105: 6577200 | BI105: 2016-09-28 | BJ105: 10786600 | BS105: -336110 | BT105: 완납 | BU105: 이지아(대행사) | BV105: 062-510-4674 | BW105: 010-2648-0300 | BX105: 062-510-4671 | BY105: srbebill@sarangbang.com
A106: 101 | C106: 광주권일자리박람회 - 꿀 팁 인더 잡 | D106: 광주고용센터 취업지원과, (대행사)사랑방미디어 | E106: 1004~1006 | F106: 10.06 | G106: O | H106: O | I106: O | J106: O | K106: 0905 | L106: 0905 | M106: 0927 | N106: 0928 | O106: O | P106: 0930 | Q106: X | R106: X | S106: X | T106: 요청함 | U106: 요청함 | V106: O | W106: O | X106: O | Y106: O | Z106: O | AA106: O | AB106: O | AC106: O | AD106: O | AE106: - | AF106: - | AG106: - | AH106: 지역 | AI106: 전시장 | AL106: 1 | AM106: 10월 | AO106: 1024 | AP106: 3 | AQ106: 3072 | AS106: =AQ106/3311280 -> 0.000927737914 | AT106: 전시회 | AU106: 0 | BS106: -336110 | BT106: 완납 | BU106: 이지아(대행사) | BV106: 062-510-4674 | BW106: 010-2648-0300 | BX106: 062-510-4671 | BY106: srbebill@sarangbang.com
A107: 102 | B107: 71 | C107: 김원중 30주년 기념콘서트 | D107: (주)좋은친구들 | E107: 1011 | F107: 10.11 | G107: O | H107: O | I107: O | J107: O | K107: 0825 | L107: 0824 | M107: 1004 | N107: 1003 | O107: O | P107: 1004 | Q107: O | R107: 0927 | S107: O | T107: X | U107: X | V107: O | W107: O | X107: O | Y107: O | Z107: O | AA107: O | AB107: O | AC107: O | AD107: O | AE107: - | AF107: - | AG107: - | AH107: 지역 | AI107: 다목적홀 | AJ107: 1 | AK107: 1 | AM107: 10월 | AO107: 2955 | AP107: 1 | AQ107: 2955 | AS107: =AQ107/3311280 -> 0.0008924041458 | AT107: 이벤트 | AU107: 0 | AV107: 12325890 | AW107: 3081474 | AX107: 0 | AY107: 770360 | AZ107: 0 | BA107: 245870 | BB107: 0 | BC107: 15407364 | BD107: 13278140 | BE107: 0 | BF107: 13278140 | BG107: 2016-08-24 | BH107: 5602680 | BI107: 2016-10-03 | BJ107: 9804680 | BS107: -2129220 | BT107: 완납 | BU107: 김동찬대표 | BV107: 062-234-0179 | BW107: 010-4548-0000 | BX107: - | BY107: 0179chan@daum.net
A108: 103 | B108: ` | C108: 김원중 30주년 기념콘서트 | D108: (주)좋은친구들 | E108: 1011 | F108: 10.11 | G108: O | H108: O | I108: O | J108: O | K108: 0825 | L108: 0824 | M108: 1004 | N108: 1003 | O108: O | P108: 1004 | Q108: X | R108: X | S108: X | T108: X | U108: X | V108: O | W108: O | X108: O | Y108: O | Z108: O | AA108: O | AB108: O | AC108: O | AD108: O | AE108: - | AF108: - | AG108: - | AH108: 지역 | AI108: 야외전시장 | AM108: 10월 | AO108: 1322 | AP108: 1 | AQ108: 1322 | AS108: =AQ108/3311280 -> 0.000399241381 | AT108: 이벤트 | AU108: 0 | AV108: 319920 | AW108: 63980 | AX108: 0 | AY108: 0 | AZ108: 0 | BA108: 0 | BB108: 0 | BC108: 383900 | BD108: 383900 | BE108: 0 | BF108: 383900 | BG108: 2016-08-24 | BH108: 159960 | BI108: 2016-10-03 | BJ108: 223940 | BS108: =BD108-BH108-BJ108-BL108-BN108-BP108-BR108 -> 0 | BT108: 완납 | BU108: 김동찬대표 | BV108: 062-234-0179 | BW108: 010-4548-0000 | BX108: - | BY108: 0179chan@daum.net
A109: 104 | B109: 72 | C109: KB평생사랑콘서트 | D109: (대행사)비타엘플랜비 | E109: 1012~1013 | F109: 10.13 | G109: O | H109: O | I109: O | J109: O | K109: 0729 | L109: 0729 | M109: 1005 | N109: 1005 | O109: O | P109: 0928 | Q109: O | R109: 0929 | S109: 1005 | T109: 요청함 | U109: 요청함 | V109: O | W109: O | X109: O | Y109: O | Z109: O | AA109: O | AB109: O | AC109: O | AD109: O | AE109: - | AF109: - | AG109: - | AH109: 타지역 | AI109: 다목적홀 | AJ109: 1 | AK109: 1 | AM109: 10월 | AO109: 2955 | AP109: 1 | AQ109: 2955 | AS109: 0.0008924041458 | AT109: 이벤트 | AU109: 0 | AV109: 12325890 | AW109: 3081470 | AX109: 0 | AY109: 1694800 | AZ109: 2577300 | BA109: 238800 | BB109: 0 | BC109: 15407360 | BD109: 16837360 | BE109: 0 | BF109: 16837360 | BG109: 2016-07-29 | BH109: 6252680 | BI109: 2016-10-05 | BJ109: 10584680 | BS109: =BD109-BH109-BJ109-BL109-BN109-BP109-BR109 -> 0 | BT109: 완납 | BU109: 유지현대리 | BV109: 02-571-1753 | BW109: 010-9458-4339 | BX109: 02-571-1755 | BY109: yoo@btlplanb.com
A110: 105 | B110: 73 | C110: 2016광주골프쇼 | D110: ㈜이엑스스포테인먼트 | E110: 1012~1016 | F110: 10.13~10.16 | G110: O | H110: O | I110: O | J110: O | K110: 1005 | L110: 1006 | M110: 1005 | N110: 1006 | O110: O | P110: 1005 | Q110: X | R110: X | S110: X | T110: X | U110: X | V110: O | W110: O | X110: O | Y110: O | Z110: O | AA110: O | AB110: O | AC110: O | AD110: O | AE110: - | AF110: - | AG110: - | AH110: 타지역 | AI110: 전시장 | AK110: 1 | AM110: 10월 | AO110: 3024 | AP110: 5 | AQ110: 15120 | AS110: 0.004566210046 | AT110: 전시회 | AU110: 0 | AV110: 24116400 | AW110: 4823280 | BC110: 28939680 | BD110: 25909880 | BE110: 0 | BF110: 25909880 | BG110: 2016-10-06 | BH110: 26943840 | BI110: 2016-10-10 | BJ110: 1995840 | BS110: -3029800 | BT110: 완납 | BU110: 류민규대리님 | BV110: 02-356-4309 | BW110: 010-3278-8332 | BX110: 0505-356-4309 | BY110: ex_golfshow@naver.com
A111: 106 | B111: 74 | C111: 한국생물공학회 학술대회 | D111: 한국생물공학회 | E111: 1012~1014 | F111: 10.13~10.14 | G111: O | H111: X | I111: O | J111: O | K111: 1005 | L111: 1007 | M111: 1005 | N111: 1007 | O111: O | P111: 0928 | Q111: X | R111: X | S111: X | T111: X | U111: X | V111: X | W111: X | X111: X | Y111: O | Z111: O | AA111: O | AB111: O | AC111: O | AD111: O | AE111: - | AF111: - | AG111: - | AH111: 타지역 | AI111: 전시장 | AL111: 1 | AM111: 10월 | AO111: 1512 | AP111: 3 | AQ111: 4536 | AS111: 0.001369863014 | AT111: 전시회 | AU111: 0 | AV111: 8681900 | AW111: 1446980 | AX111: 0 | AY111: 578790 | AZ111: 0 | BA111: 188630 | BB111: 0 | BC111: 10128880 | BD111: 9449320 | BE111: 2 | BF111: 9431901 | BG111: 2016-10-07 | BH111: 8681900 | BI111: 2016-10-14 | BJ111: 46900 | BK111: 2016-10-18 | BL111: 720520 | BS111: =BD111-BH111-BJ111-BL111-BN111-BP111-BR111 -> 0 | BT111: 완납 | BU111: 고혜원 실장 | BV111: 02-556-2160 | BW111: - | BX111: - | BY111: hwkho@ksbb.or.kr
A112: 107 | B112: 75 | C112: 송창식 박인희 콘서트 | D112: ㈜엠플러스 | E112: 1015 | F112: 10.15 | G112: O | H112: O | I112: O | J112: O | K112: 0719 | L112: 0719 | M112: 1008 | N112: 1007 | O112: O | P112: 0930 | Q112: X | R112: X | S112: X | T112: X | U112: X | V112: O | W112: O | X112: O | Y112: O | Z112: O | AA112: O | AB112: O | AC112: O | AD112: O | AE112: - | AF112: - | AG112: - | AH112: 타지역 | AI112: 다목적홀 | AJ112: 1 | AK112: 1 | AM112: 10월 | AO112: 1478 | AP112: 1 | AQ112: 1478 | AS112: 0.0004463530719 | AT112: 이벤트 | AU112: 0 | AV112: 3853140 | AW112: 770620 | AX112: 2696290 | AY112: 1155940 | AZ112: 0 | BA112: 56130 | BB112: 0 | BC112: 4623760 | BD112: 7761500 | BE112: 0 | BF112: 7761500 | BG112: 2016-07-19 | BH112: 3501675 | BI112: 2016-10-07 | BJ112: 3818365 | BK112: 2016-10-18 | BL112: 441460 | BS112: =BD112-BH112-BJ112-BL112-BN112-BP112-BR112 -> 0 | BT112: 완납 | BU112: 오상하 대표 | BV112: - | BW112: 010-5410-1814 | BX112: - | BY112: bwooone@hanmail.net
A113: 108 | B113: 100 | C113: 청소년 꿈 캐스팅 | D113: 대한예술총연합회 광주지부 | E113: 1014~1015 | F113: 10.15 | G113: O | H113: O | I113: O | J113: O | K113: 1014 | L113: 1014 | M113: 1014 | N113: 1014 | O113: O | P113: 0930 | Q113: X | R113: X | S113: X | T113: X | U113: X | V113: X | W113: X | X113: X | Y113: O | Z113: O | AA113: O | AB113: O | AC113: O | AD113: O | AE113: - | AF113: - | AG113: - | AH113: 지역 | AI113: 야외전시장 | AM113: 10월 | AO113: 1585 | AP113: 2 | AQ113: 3170 | AS113: 0.0009573337199 | AT113: 이벤트 | AU113: 0 | AV113: 749840 | AW113: 149960 | AX113: 0 | AY113: 0 | AZ113: 0 | BA113: 0 | BB113: 0 | BC113: 899800 | BD113: 749840 | BE113: 0 | BF113: 749840 | BG113: 2016-10-14 | BH113: 899800 | BS113: -149960 | BT113: 완납 | BU113: 박성수 | BW113: 010-6636-0300 | BY113: tomaswin@hanmail.net
A114: 109 | B114: 77 | C114: 2016한국물리학회 추계학술대회 | D114: 한국물리학회 | E114: 1018~1021 | F114: 10.19~10.21 | G114: O | H114: O | I114: O | J114: O | K114: 0730 | L114: 0812 | M114: 1011 | N114: 1113 | O114: X | P114: 1004 | Q114: X | R114: X | S114: X | T114: X | U114: X | V114: X | W114: X | X114: X | Y114: O | Z114: O | AA114: O | AB114: O | AC114: O | AD114: O | AE114: - | AF114: - | AG114: - | AH114: 타지역 | AI114: 다목적홀 | AJ114: 1 | AK114: 1 | AM114: 10월 | AO114: 2955 | AP114: 4 | AQ114: 11820 | AS114: 0.003569616583 | AT114: 전시회 | AU114: 0 | AV114: 26004000 | AW114: 5200800 | AX114: 0 | AY114: 3466650 | AZ114: 0 | BA114: 354260 | BB114: 0 | BC114: 31204800 | BD114: 29283710 | BE114: 0 | BF114: 29283710 | BG114: 2016-08-11 | BH114: 11820000 | BI114: 2016-10-13 | BJ114: 19384800 | BS114: -1921090 | BT114: 완납 | BU114: 박수아 국장 | BV114: 02-556-4737 /내선8 | BW114: 010-9036-0248 | BX114: 02-554-1643 | BY114: office@kps.or.kr
A115: 110 | B115: 78 | C115: 2016 광주 광산업 유망 기술▪제품 로드쇼 및 해외 바이어 초청 수출상담회 | D115: 한국광산업진흥회 | E115: 1018~1022 | F115: 10.20~10.21 | G115: O | H115: O | I115: O | J115: O | K115: 0927 | L115: 0927 | M115: 1011 | N115: 1019 | O115: O | P115: 1004 | Q115: X | R115: X | S115: X | T115: O | U115: O | V115: O | W115: O | X115: O | Y115: O | Z115: O | AA115: O | AB115: O | AC115: O | AD115: O | AE115: 행사 확정 예약금 확정 후인 8/29날 전화드려야 함 | AF115: - | AG115: - | AH115: 지역 | AI115: 전시장 | AJ115: 1 | AM115: 10월 | AO115: 3024 | AP115: 5 | AQ115: 15120 | AS115: 0.004566210046 | AT115: 전시회 | AU115: 0.1 | AV115: 24116400 | AW115: 4823280 | AX115: 0 | AY115: 3038660 | AZ115: 0 | BA115: 440880 | BB115: 0 | BC115: 28939680 | BD115: 25184300 | BE115: 4 | BF115: 24786381 | BG115: 2016-09-23 | BH115: 10000000 | BI115: 2016-09-27 | BJ115: 852380 | BK115: 2016-10-12 | BL115: 9000000 | BM115: 2016-10-19 | BN115: 6675660 | BS115: -1343740 | BT115: 완납 | BU115: 조현상사원 | BV115: 062-605-9626 | BW115: 010-9232-3946 | BX115: 062-605-9650 | BY115: srealto@kapid.org
A116: 111 | B116: 79 | C116: [주관행사] 제10회 광주국제차문화전시회 | D116: 김대중컨벤션센터 | E116: 1017~1024 | F116: 10.20~10.23 | G116: X | H116: X | I116: X | J116: O | K116: X | L116: X | M116: X | N116: X | O116: X | P116: X | Q116: X | R116: X | S116: X | T116: X | U116: X | V116: O | W116: O | X116: O | Y116: X | Z116: X | AA116: X | AB116: X | AC116: X | AD116: O | AF116: - | AG116: - | AH116: 지역 | AI116: 전시장 | AK116: 1 | AM116: 10월 | AO116: 3024 | AP116: 8 | AQ116: 24192 | AS116: 0.007305936073 | AT116: 전시회 | AU116: 0 | AV116: 0 | AW116: 0 | AX116: 0 | AY116: =AV116+AW116 -> 0 | AZ116: =AW116+AY116 -> 0 | BA116: =AY116+AZ116 -> 0 | BB116: 0 | BC116: =AV116+AW116 -> 0 | BD116: =AV116+AY116+AZ116+BA116+BB116 -> 0 | BS116: =BD116-BH116-BJ116-BL116-BN116-BP116-BR116 -> 0 | BT116: 완납 | BU116: 최영지과장 | BV116: 062-611-2212 | BW116: -
A117: 112 | C117: [주관행사] 제10회 광주국제차문화전시회 - 보성 녹차 전시회 | D117: 김대중컨벤션센터 | E117: 1015~1024 | F117: 10.20~10.23 | G117: X | H117: X | I117: X | J117: O | K117: X | L117: X | M117: X | N117: X | O117: X | P117: X | Q117: X | R117: X | S117: X | T117: X | U117: X | V117: O | W117: O | X117: O | Y117: X | Z117: X | AA117: X | AB117: X | AC117: X | AD117: O | AF117: - | AG117: - | AH117: 지역 | AI117: 전시장 | AL117: 1 | AM117: 10월 | AO117: 1512 | AP117: 11 | AQ117: =AO117*AP117 -> 16632 | AS117: =AQ117/3311280 -> 0.00502283105 | AT117: 전시회 | AU117: 0 | AV117: 0 | AW117: 0 | AX117: 0 | AY117: =AV117+AW117 -> 0 | AZ117: =AW117+AY117 -> 0 | BA117: 0 | BB117: 0 | BC117: =AV117+AW117 -> 0 | BD117: =AV117+AY117+AZ117+BA117+BB117 -> 0 | BS117: =BD117-BH117-BJ117-BL117-BN117-BP117-BR117 -> 0 | BT117: 완납 | BU117: 최영지과장 | BV117: 062-611-2212 | BW117: -
A118: 113 | C118: [주관행사] 제10회 광주국제차문화전시회 - 전국 차 시음 행사 | D118: 김대중컨벤션센터 | E118: 1015~1024 | F118: 10.20~10.23 | G118: X | H118: X | I118: X | J118: O | K118: X | L118: X | M118: X | N118: X | O118: X | P118: X | Q118: X | R118: X | S118: X | T118: X | U118: X | V118: O | W118: O | X118: O | Y118: X | Z118: X | AA118: X | AB118: X | AC118: X | AD118: O | AF118: - | AG118: - | AH118: 지역 | AI118: 전시장 | AL118: 1 | AM118: 10월 | AO118: 1512 | AP118: 11 | AQ118: =AO118*AP118 -> 16632 | AS118: =AQ118/3311280 -> 0.00502283105 | AT118: 이벤트 | AU118: 0 | AV118: 0 | AW118: 0 | AX118: 0 | AY118: =AV118+AW118 -> 0 | AZ118: =AW118+AY118 -> 0 | BA118: 0 | BB118: 0 | BC118: =AV118+AW118 -> 0 | BD118: =AV118+AY118+AZ118+BA118+BB118 -> 0 | BS118: =BD118-BH118-BJ118-BL118-BN118-BP118-BR118 -> 0 | BT118: 완납 | BU118: 최영지과장 | BV118: 062-611-2212 | BW118: -
A119: 114 | B119: 81 | C119: KBC맘앤베이비페어 | D119: KBC플러스 | E119: 1025~1030 | F119: 10.27~10.30 | G119: O | H119: O | I119: O | J119: O | K119: 0630 | L119: 0630 | M119: 1018 | N119: 1020 | O119: O | P119: 1012 | Q119: X | R119: X | S119: X | T119: X | U119: X | V119: O | W119: O | X119: O | Y119: O | Z119: O | AA119: O | AB119: O | AC119: O | AD119: O | AE119: - | AF119: - | AG119: - | AH119: 지역 | AI119: 전시장 | AK119: 1 | AL119: 1 | AM119: 10월 | AO119: 4536 | AP119: 6 | AQ119: =AO119*AP119 -> 27216 | AS119: 0.008219178082 | AT119: 전시회 | AU119: 0.2 | AV119: 34488110 | AW119: 8083150 | AX119: 7544270 | AY119: 808310 | AZ119: 0 | BA119: 936650 | BB119: 0 | BC119: 43777340 | BD119: 43777340 | BE119: 0 | BF119: 43777340 | BG119: 2016-06-30 | BH119: 19595520 | BI119: 2016-10-20 | BJ119: 34292150 | BS119: -247330 | BT119: 완납 | BU119: 엄윤서과장 | BV119: 062-650-3048 | BW119: 010-6669-0003 | BX119: 062-710-3359 | BY119: kbc0003@naver.com
A120: 115 | B120: 83 | C120: 빛가람국제전력신기술전 - 취업박람회 | D120: 한국전력공사 | E120: 1031~1105 | F120: 11.02~11.04 | G120: O | H120: X | I120: O | J120: O | K120: 1024 | L120: 1221 | M120: 1024 | N120: 1221 | O120: O | P120: 1019 | Q120: X | R120: X | S120: X | T120: X | U120: X | V120: O | W120: O | X120: O | Y120: O | Z120: O | AA120: O | AB120: O | AC120: O | AD120: O | AF120: - | AG120: - | AH120: 타지역 | AI120: 상설전시장 | AM120: 11월 | AO120: 1000 | AP120: 6 | AQ120: 6000 | AS120: 0.001811988113 | AT120: 전시회 | AU120: 0 | AV120: 93289940 | AW120: 16166300 | AX120: 0 | AY120: 29638220 | AZ120: 0 | BA120: 2557320 | BB120: 2993760 | BC120: 109456240 | BD120: 128479240 | BE120: 0 | BF120: 128479240 | BG120: 2016-12-21 | BH120: 128479240 | BS120: =BD120-BH120-BJ120-BL120-BN120-BP120-BR120 -> 0 | BT120: 완납 | BU120: 최봉석 | BV120: 061-345-3753 | BW120: 010-4656-6115 | BX120: 061-345-3777 | BY120: leo.choi@kepco.co.kr
A121: 116 | C121: 빛가람국제전력신기술전(전시) | D121: 한국전력공사 | E121: 1031~1105 | F121: 11.02~11.04 | G121: O | H121: X | I121: O | J121: O | K121: 1024 | L121: 1221 | M121: 1024 | N121: 1221 | O121: O | P121: 1019 | Q121: X | R121: X | S121: X | T121: X | U121: X | V121: O | W121: O | X121: O | Y121: O | Z121: O | AA121: O | AB121: O | AC121: O | AD121: O | AF121: - | AG121: - | AH121: 타지역 | AI121: 전시장 | AJ121: 1 | AK121: 1 | AL121: 1 | AM121: 11월 | AO121: 8072 | AP121: 6 | AQ121: 48432 | AS121: =AQ121/3311280 -> 0.01462636805 | AT121: 전시회 | AU121: 0 | AV121: 0 | BC121: 0 | BD121: =AV121+AY121+AZ121+BA121+BB121 -> 0 | BS121: =BD121-BH121-BJ121-BL121-BN121-BP121-BR121 -> 0 | BT121: 완납 | BU121: 최봉석 | BV121: 061-345-3753 | BW121: 010-4656-6115 | BX121: 061-345-3777 | BY121: leo.choi@kepco.co.kr
A122: 117 | C122: 빛가람국제전력신기술전(전시 - 전기의 역사) | D122: 한국전력공사 | E122: 1031~1105 | F122: 11.02~11.04 | G122: O | H122: X | I122: O | J122: O | K122: 1024 | L122: 1221 | M122: 1024 | N122: 1221 | O122: O | P122: 1019 | Q122: X | R122: X | S122: X | T122: X | U122: X | V122: O | W122: O | X122: O | Y122: O | Z122: O | AA122: O | AB122: O | AC122: O | AD122: O | AF122: - | AG122: - | AH122: 타지역 | AI122: 전시장 | AJ122: 1 | AK122: 1 | AL122: 1 | AM122: 11월 | AO122: 1000 | AP122: 6 | AQ122: =AO122*AP122 -> 6000 | AS122: =AQ122/3311280 -> 0.001811988113 | AT122: 전시회 | AU122: 0 | AV122: 0 | BC122: =AV122+AW122 -> 0 | BD122: =AV122+AY122+AZ122+BA122+BB122 -> 0 | BS122: =BD122-BH122-BJ122-BL122-BN122-BP122-BR122 -> 0 | BT122: 완납 | BU122: 최봉석 | BV122: 061-345-3753 | BW122: 010-4656-6115 | BX122: 061-345-3777 | BY122: leo.choi@kepco.co.kr
A123: 118 | B123: 92 | C123: 불효자는 웁니다 | D123: 와이투이앤티 | E123: 1111~1113 | F123: 11.12~11.13 | G123: O | H123: X | I123: O | J123: O | K123: 1006 | L123: 1006 | M123: 1104 | N123: 1107 | O123: O | P123: 1028 | Q123: X | R123: X | S123: X | T123: X | U123: X | V123: O | W123: O | X123: O | Y123: O | Z123: O | AA123: O | AB123: O | AC123: O | AD123: O | AF123: - | AG123: - | AH123: 지역 | AI123: 다목적홀 | AK123: 1 | AM123: 11월 | AO123: 1478 | AP123: 3 | AQ123: 4434 | AS123: 0.001339059216 | AT123: 이벤트 | AU123: 0 | AV123: 10018170 | AW123: 2311880 | AY123: 770620 | AZ123: 1258400 | BA123: 300760 | BB123: 60960 | BC123: 12330050 | BD123: 12408910 | BE123: 0 | BF123: 12408910 | BG123: 2016-10-06 | BH123: 5009090 | BI123: 2016-11-07 | BJ123: 7320960 | BK123: 2016-11-15 | BL123: 78860 | BS123: -78860 | BT123: 완납 | BU123: 이재희 과장 | BV123: 1566-6728 | BW123: 010-4138-5619 | BX123: - | BY123: y2ent-2@naver.com
A124: 119 | B124: 93 | C124: 김경호 콘서트 | D124: 에이치엠디㈜ | E124: 1112 | F124: 11.12 | G124: O | H124: X | I124: O | J124: O | K124: 0926 | L124: 0926 | M124: 1104 | N124: 1108 | O124: O | P124: 1104 | Q124: O | R124: 1031 | S124: O | T124: X | U124: X | V124: O | W124: O | X124: O | Y124: O | Z124: O | AA124: O | AB124: O | AC124: O | AD124: O | AF124: - | AG124: - | AH124: 지역 | AI124: 전시장 | AJ124: 1 | AM124: 11월 | AO124: 3024 | AP124: 1 | AQ124: 3024 | AS124: 0.0009132420091 | AT124: 이벤트 | AU124: 0 | AV124: 9646560 | AW124: 1929310 | AX124: 0 | AY124: 482320 | AZ124: 0 | BA124: 63550 | BB124: 0 | BC124: 11575870 | BD124: 10192430 | BE124: 3 | BF124: 9929659 | BG124: 2016-09-26 | BH124: 4823280 | BI124: 2016-11-08 | BJ124: 5000000 | BK124: 2016-11-08 | BL124: 1752590 | BS124: -1383440 | BT124: 완납 | BU124: 이경록 대표 | BV124: 062-366-3242 | BW124: 010-6609-8721 | BX124: 062-366-3247 | BY124: eventhan@hanmail.net
A125: 120 | B125: 85 | C125: [주관행사] 라이프스타일&DIY Show | D125: 김대중컨벤션센터 | E125: 1106~1113 | F125: 11.10~11.13 | G125: X | H125: X | I125: X | J125: O | K125: X | L125: X | M125: X | N125: X | O125: X | P125: X | Q125: X | R125: X | S125: X | T125: X | U125: X | V125: X | W125: X | X125: X | Y125: X | Z125: X | AA125: X | AB125: X | AC125: X | AD125: O | AE125: - | AF125: - | AG125: - | AH125: 지역 | AI125: 전시장 | AK125: 1 | AL125: 1 | AM125: 11월 | AO125: 5048 | AP125: 7 | AQ125: =AO125*AP125 -> 35336 | AS125: 0.010671402 | AT125: 전시회 | AU125: 0 | AV125: 0 | AW125: 0 | BC125: 0 | BD125: =AV125+AY125+AZ125+BA125+BB125 -> 0 | BS125: =BD125-BH125-BJ125-BL125-BN125-BP125-BR125 -> 0 | BT125: 완납 | BU125: 차상윤 대리 | BV125: 062-611-2219 | BW125: - | BX125: 062-611-2239 | BY125: -
A126: 121 | C126: [주관행사] 라이프스타일&DIY Show - 퀼트 전시 | D126: 김대중컨벤션센터 | E126: 1106~1113 | F126: 11.10~11.13 | G126: X | H126: X | I126: X | J126: O | K126: X | L126: X | M126: X | N126: X | O126: X | P126: X | Q126: X | R126: X | S126: X | T126: X | U126: X | V126: X | W126: X | X126: X | Y126: X | Z126: X | AA126: X | AB126: X | AC126: X | AD126: O | AE126: - | AF126: - | AG126: - | AH126: 지역 | AI126: 전시장 | AK126: 1 | AL126: 1 | AM126: 11월 | AO126: 500 | AP126: 7 | AQ126: =AO126*AP126 -> 3500 | AS126: =AQ126/3311280 -> 0.001056993066 | AT126: 전시회 | AU126: 0 | AV126: 0 | AW126: 0 | BC126: =AV126+AW126 -> 0 | BD126: 0 | BS126: 0 | BT126: 완납 | BU126: 차상윤 대리 | BV126: 062-611-2219 | BW126: - | BX126: 062-611-2239 | BY126: -
A127: 122 | C127: [주관행사] 라이프스타일&DIY Show - DIY 체험 | D127: 김대중컨벤션센터 | E127: 1106~1113 | F127: 11.10~11.13 | G127: X | H127: X | I127: X | J127: O | K127: X | L127: X | M127: X | N127: X | O127: X | P127: X | Q127: X | R127: X | S127: X | T127: X | U127: X | V127: X | W127: X | X127: X | Y127: X | Z127: X | AA127: X | AB127: X | AC127: X | AD127: O | AE127: - | AF127: - | AG127: - | AH127: 지역 | AI127: 전시장 | AK127: 1 | AL127: 1 | AM127: 11월 | AO127: 500 | AP127: 7 | AQ127: =AO127*AP127 -> 3500 | AS127: =AQ127/3311280 -> 0.001056993066 | AT127: 이벤트 | AU127: 0 | AV127: 0 | AW127: 0 | BC127: =AV127+AW127 -> 0 | BD127: 0 | BS127: 0 | BT127: 완납 | BU127: 차상윤 대리 | BV127: 062-611-2219 | BW127: - | BX127: 062-611-2239 | BY127: -
A128: 123 | B128: 86 | C128: [주관행사] 2016광주국제식품전 - 전시 | D128: 김대중컨벤션센터 | E128: 1114~1121 | F128: 11.17~11.20 | G128: X | H128: X | I128: X | J128: O | K128: X | L128: X | M128: X | N128: X | O128: X | P128: X | Q128: X | R128: X | S128: X | T128: X | U128: X | V128: O | W128: O | X128: O | Y128: X | Z128: X | AA128: X | AB128: X | AC128: X | AD128: O | AE128: - | AF128: - | AG128: - | AH128: 지역 | AI128: 전시장 | AK128: 1 | AL128: 1 | AM128: 11월 | AO128: 6048 | AP128: 8 | AQ128: 48384 | AS128: 0.01461187215 | AT128: 전시회 | AU128: 0 | AV128: 0 | AW128: 0 | BC128: 0 | BD128: 0 | BS128: 0 | BT128: 완납 | BU128: 유슬기 대리 | BV128: 062-611-2213 | BW128: - | BX128: 062-611-2239 | BY128: -
A129: 124 | C129: [주관행사] 2016광주국제식품전 - 향토음식특별전 | D129: 김대중컨벤션센터 | E129: 1113~1124 | F129: 11.17~11.20 | G129: X | H129: X | I129: X | J129: O | K129: X | L129: X | M129: X | N129: X | O129: X | P129: X | Q129: X | R129: X | S129: X | T129: X | U129: X | V129: O | W129: O | X129: O | Y129: X | Z129: X | AA129: X | AB129: X | AC129: X | AD129: O | AE129: - | AF129: - | AG129: - | AH129: 지역 | AI129: 전시장 | AJ129: 1 | AM129: 11월 | AO129: 700 | AP129: 12 | AQ129: =AO129*AP129 -> 8400 | AS129: =AQ129/3311280 -> 0.002536783359 | AT129: 전시회 | AU129: 0 | AV129: 0 | AW129: 0 | BC129: =AV129+AW129 -> 0 | BD129: 0 | BS129: 0 | BT129: 완납 | BU129: 유슬기 대리 | BV129: 062-611-2213 | BW129: - | BX129: 062-611-2239 | BY129: -
A130: 125 | C130: [주관행사] 2016광주국제식품전 - 빵 제과 페스티벌 | D130: 김대중컨벤션센터 | E130: 1113~1124 | F130: 11.17~11.20 | G130: X | H130: X | I130: X | J130: O | K130: X | L130: X | M130: X | N130: X | O130: X | P130: X | Q130: X | R130: X | S130: X | T130: X | U130: X | V130: O | W130: O | X130: O | Y130: X | Z130: X | AA130: X | AB130: X | AC130: X | AD130: O | AE130: - | AF130: - | AG130: - | AH130: 지역 | AI130: 전시장 | AJ130: 1 | AM130: 11월 | AO130: 700 | AP130: 12 | AQ130: =AO130*AP130 -> 8400 | AS130: =AQ130/3311280 -> 0.002536783359 | AT130: 이벤트 | AU130: 0 | AV130: 0 | AW130: 0 | BC130: =AV130+AW130 -> 0 | BD130: 0 | BS130: 0 | BT130: 완납 | BU130: 유슬기 대리 | BV130: 062-611-2213 | BW130: - | BX130: 062-611-2239 | BY130: -
A131: 126 | C131: [주관행사] 2016광주국제식품전 - 조리작품전(세계국수전) | D131: 김대중컨벤션센터 | E131: 1113~1124 | F131: 11.17~11.20 | G131: X | H131: X | I131: X | J131: O | K131: X | L131: X | M131: X | N131: X | O131: X | P131: X | Q131: X | R131: X | S131: X | T131: X | U131: X | V131: O | W131: O | X131: O | Y131: X | Z131: X | AA131: X | AB131: X | AC131: X | AD131: O | AE131: - | AF131: - | AG131: - | AH131: 지역 | AI131: 전시장 | AJ131: 1 | AM131: 11월 | AO131: 700 | AP131: 12 | AQ131: =AO131*AP131 -> 8400 | AS131: =AQ131/3311280 -> 0.002536783359 | AT131: 전시회 | AU131: 0 | AV131: 0 | AW131: 0 | BC131: =AV131+AW131 -> 0 | BD131: 0 | BS131: 0 | BT131: 완납 | BU131: 유슬기 대리 | BV131: 062-611-2213 | BW131: - | BX131: 062-611-2239 | BY131: -
A132: 127 | C132: [주관행사] 2016광주국제식품전 - 청년 상인 ZONE | D132: 김대중컨벤션센터 | E132: 1113~1124 | F132: 11.17~11.20 | G132: X | H132: X | I132: X | J132: O | K132: X | L132: X | M132: X | N132: X | O132: X | P132: X | Q132: X | R132: X | S132: X | T132: X | U132: X | V132: O | W132: O | X132: O | Y132: X | Z132: X | AA132: X | AB132: X | AC132: X | AD132: O | AE132: - | AF132: - | AG132: - | AH132: 지역 | AI132: 전시장 | AJ132: 1 | AM132: 11월 | AO132: 924 | AP132: 12 | AQ132: =AO132*AP132 -> 11088 | AS132: =AQ132/3311280 -> 0.003348554033 | AT132: 전시회 | AU132: 0 | AV132: 0 | AW132: 0 | BC132: =AV132+AW132 -> 0 | BD132: 0 | BS132: 0 | BT132: 완납 | BU132: 유슬기 대리 | BV132: 062-611-2213 | BW132: - | BX132: 062-611-2239 | BY132: -
A133: 128 | C133: [주관행사] 2016광주국제식품전(다목적홀) - 수출 & 구매상담회 | D133: 김대중컨벤션센터 | E133: 1114~1121 | F133: 11.17~11.20 | G133: X | H133: X | I133: X | J133: O | K133: X | L133: X | M133: X | N133: X | O133: X | P133: X | Q133: X | R133: X | S133: X | T133: X | U133: X | V133: O | W133: O | X133: O | Y133: X | Z133: X | AA133: X | AB133: X | AC133: X | AD133: O | AE133: - | AF133: - | AG133: - | AH133: 지역 | AI133: 다목적홀 | AJ133: 1 | AK133: 1 | AM133: 11월 | AO133: 2955 | AP133: 8 | AQ133: 23640 | AS133: =AQ133/3311280 -> 0.007139233167 | AT133: 전시회 | AU133: 0 | AV133: 0 | AW133: 0 | BC133: 0 | BD133: 0 | BS133: 0 | BT133: 완납 | BU133: 유슬기 대리 | BV133: 062-611-2213 | BW133: - | BX133: 062-611-2239 | BY133: -
A134: 129 | B134: 102 | C134: 제6회 빛고을 고객센터 한마음 페스티벌 | D134: 광주광역시 주관 : 광주여대 CS인력양성센터, 광주시 고객센터협의회 | E134: 1124 | F134: 11.24 | G134: O | H134: O | I134: O | J134: O | K134: 1124 | L134: 1124 | M134: 1124 | N134: 1124 | O134: X | P134: X | Q134: X | R134: X | S134: X | T134: X | U134: X | V134: X | W134: X | X134: X | Y134: O | Z134: O | AA134: O | AB134: O | AC134: O | AD134: O | AH134: 지역 | AI134: 다목적홀 | AJ134: 1 | AM134: 11월 | AO134: 1478 | AP134: 2 | AQ134: 2956 | AS134: 0.0008927061438 | AT134: 이벤트 | AU134: 0 | AV134: 1618320 | AW134: 770620 | AX134: 0 | AY134: 462370 | AZ134: 0 | BA134: 84680 | BB134: 162580 | BC134: 2388940 | BD134: 2327950 | BE134: 1 | BF134: 2292116 | BG134: 2016-11-24 | BH134: 2388940 | BS134: -60990 | BT134: 완납 | BU134: 박지형 담당자 | BV134: 062-962-7152 | BW134: 010-6612-1597 | BX134: - | BY134: hyang9425@hanmail.net
A135: 130 | B135: 101 | C135: 재규어 랜드로버 차량 전시 행사 | D135: 런던모터스 | E135: 1124~1127 | F135: 11.24~11.27 | G135: O | H135: O | I135: O | J135: O | K135: 1108 | L135: 1108 | M135: 1117 | N135: 1117 | O135: X | P135: X | Q135: X | R135: X | S135: X | T135: X | U135: X | V135: X | W135: X | X135: X | Y135: O | Z135: O | AA135: O | AB135: O | AC135: O | AD135: O | AF135: - | AG135: - | AH135: 지역 | AI135: 상설전시장 | AM135: 11월 | AO135: 100 | AP135: 4 | AQ135: 400 | AS135: 0.0001207992076 | AT135: 전시회 | AU135: 0 | AV135: 1320000 | AW135: 264000 | AX135: 0 | AY135: 0 | AZ135: 0 | BA135: 0 | BB135: 0 | BC135: 1320000 | BD135: 1320000 | BE135: 0 | BF135: 1320000 | BG135: 2016-11-08 | BH135: 660000 | BI135: 2016-11-17 | BJ135: 924000 | BS135: -264000 | BT135: 완납 | BU135: 서민기 과장 | BV135: 062-971-8899 | BW135: 010-9970-3220 | BX135: 062-971-6699 | BY135: smk@londonmotors.co.kr
A136: 131 | B136: 87 | C136: 2016주현미 콘서트(익스트림콘서트) | D136: ㈜더길 | E136: 1125~1126 | F136: 11.26 | G136: O | H136: O | I136: O | J136: O | K136: 0525 | L136: 0525 | M136: 0819 | N136: 0821 | O136: O | P136: 1118 | Q136: O | R136: 1111 | S136: 1118 | T136: X | U136: X | V136: O | W136: O | X136: O | Y136: O | Z136: O | AA136: O | AB136: O | AC136: O | AD136: O | AE136: - | AF136: - | AG136: - | AH136: 타지역 | AI136: 다목적홀 | AJ136: 1 | AK136: 1 | AM136: 11월 | AO136: 2955 | AP136: 1 | AQ136: 2955 | AS136: 0.0008924041458 | AT136: 이벤트 | AU136: 0 | AV136: 12325890 | AW136: 3081470 | AX136: 0 | AY136: 4237020 | AZ136: 0 | BA136: 238830 | BB136: 325050 | BC136: 17126790 | BD136: 17126790 | BE136: 0 | BF136: 17126790 | BG136: 2016-05-19 | BH136: 3000000 | BI136: 2016-05-25 | BJ136: 2602680 | BK136: 2016-08-18 | BL136: 5000000 | BM136: 2016-08-19 | BN136: 4804680 | BO136: 2016-12-02 | BP136: 1719430 | BS136: =BD136-BH136-BJ136-BL136-BN136-BP136-BR136 -> 0 | BT136: 완납 | BU136: 최금윤팀장 | BV136: 1644-9866 | BW136: 010-8341-7770 | BX136: - | BY136: thegil00@naver.com
A137: 132 | B137: 89 | C137: KBC 건축박람회 | D137: KBC플러스 | E137: 1122~1128 | F137: 11.24~11.27 | G137: O | H137: O | I137: O | J137: O | K137: 0630 | L137: 0630 | M137: 1115 | N137: 1127 | O137: O | P137: 1114 | Q137: X | R137: X | S137: X | T137: X | U137: X | V137: O | W137: O | X137: O | Y137: O | Z137: O | AA137: O | AB137: O | AC137: O | AD137: O | AE137: - | AF137: - | AG137: - | AH137: 지역 | AI137: 전시장 | AK137: 1 | AL137: 1 | AM137: 11월 | AO137: 4536 | AP137: 6 | AQ137: =AO137*AP137 -> 27216 | AS137: 0.008219178082 | AT137: 전시회 | AU137: 0.2 | AV137: 34488110 | AW137: 8083150 | AX137: 0 | AY137: 1077750 | AZ137: 0 | BA137: 1453230 | BB137: 2661120 | BC137: 42571260 | BD137: 39680210 | BE137: 0 | BF137: 39680210 | BG137: 2016-06-30 | BH137: 22861440 | BI137: 2016-12-05 | BJ137: 16818770 | BS137: =BD137-BH137-BJ137-BL137-BN137-BP137-BR137 -> 0 | BT137: 완납 | BU137: 엄윤서과장 | BV137: 062-650-3048 | BW137: 010-6669-0003 | BX137: 062-710-3359 | BY137: kbc0003@naver.com
A138: 133 | B138: 98 | C138: 사랑의 음악회 및 재테크 설명회 | D138: ㈜조은라이프 | E138: 1127 | F138: 11.27 | G138: O | H138: O | I138: O | J138: O | K138: 1103 | L138: 1103 | M138: 1120 | N138: 1121 | O138: O | P138: 1118 | Q138: X | R138: X | S138: X | T138: X | U138: X | V138: O | W138: O | X138: O | Y138: O | Z138: O | AA138: O | AB138: O | AC138: O | AD138: O | AH138: 타지역 | AI138: 다목적홀 | AJ138: 1 | AM138: 11월 | AO138: 1478 | AP138: 1 | AQ138: 1478 | AS138: 0.0004463530719 | AT138: 이벤트 | AU138: 0 | AV138: 3853140 | AW138: 770620 | AX138: 0 | AY138: 770620 | AZ138: 572000 | BA138: 47260 | BB138: 162580 | BC138: 4623760 | BD138: 5405600 | BE138: 0 | BF138: 5405600 | BG138: 2016-11-03 | BH138: 2267570 | BI138: 2016-11-23 | BJ138: 3038190 | BK138: 2016-12-08 | BL138: 99840 | BS138: =BD138-BH138-BJ138-BL138-BN138-BP138-BR138 -> 0 | BT138: 완납 | BU138: 정은교 과장 | BV138: 02-2655-0199 | BW138: 010-6427-1764 | BX138: 02-2655-0151 | BY138: sun8848@hanmail.net
A139: 134 | B139: 105 | C139: 자동차 칭화 포럼 | D139: 호남대학교 | E139: 1201~1202 | F139: 12.01~12.02 | G139: O | H139: O | I139: O | J139: O | K139: 1124 | L139: 1226 | M139: 1124 | N139: 1226 | O139: O | P139: O | Q139: X | R139: X | S139: X | T139: X | U139: X | V139: X | W139: X | X139: X | Y139: O | Z139: O | AA139: O | AB139: O | AC139: O | AD139: O | AH139: 지역 | AI139: 야외전시장 | AM139: 12월 | AO139: 1000 | AP139: 2 | AQ139: 2000 | AS139: 0 | AT139: 전시회 | AU139: 0 | AV139: 484000 | AW139: 0 | AX139: 0 | AY139: 0 | AZ139: 0 | BA139: 0 | BB139: 0 | BC139: 484000 | BD139: 484000 | BE139: 0 | BF139: 484000 | BG139: 2016-12-26 | BH139: 484000 | BS139: 0 | BT139: 완납 | BU139: 윤운용 | BV139: 062-940-3990 | BW139: 010-6460-4602 | BX139: - | BY139: honam-forum@naver.com
A140: 135 | B140: 103 | C140: 조용필콘서트(가예약) - 3전시장 | D140: KCTV광주방송 | E140: 1130~1203 | F140: 12.03 | G140: O | H140: O | I140: O | J140: O | K140: 1123 | L140: 1129 | M140: 1123 | N140: 1129 | O140: O | P140: 1124 | Q140: O | R140: 1118 | S140: O | T140: X | U140: X | V140: O | W140: O | X140: O | Y140: O | Z140: O | AA140: O | AB140: O | AC140: O | AD140: O | AH140: 지역 | AI140: 전시장 | AL140: 1 | AM140: 12월 | AO140: 3024 | AP140: 4 | AQ140: 12096 | AS140: 0.003652968037 | AT140: 이벤트 | AU140: 0.3 | AV140: 18328460 | AW140: 4823280 | AX140: 0 | AY140: 1350510 | AZ140: 0 | BA140: 201880 | BB140: 731800 | BC140: 23151740 | BD140: 20612560 | BE140: 0 | BF140: 20612560 | BG140: 2016-11-29 | BH140: 23151740 | BS140: =BD140-BH140-BJ140-BL140-BN140-BP140-BR140 -> -2539180 | BT140: 완납 | BU140: 신상옥 | BV140: - | BW140: 010-3642-2771 | BX140: - | BY140: sso2771@hanmail.net
C141: 조용필콘서트(가예약) - 2전시장 | D141: KCTV광주방송 | E141: 1130~1203 | F141: 12.03 | AH141: 지역 | AI141: 전시장 | AK141: 1 | AM141: 12월 | AO141: 3024 | AP141: 1 | AQ141: 3024 | AS141: 0.0009132420091 | AU141: 0.3 | AV141: 0 | BT141: 완납 | BU141: 신상옥 | BV141: - | BW141: 010-3642-2771 | BX141: - | BY141: sso2771@hanmail.net
A142: 136 | B142: 99 | C142: 웨딩협회 전시회 | D142: 웨딩협회 | E142: 1205 | F142: 12.05 | G142: O | H142: O | I142: O | J142: O | K142: 1125 | L142: 1125 | M142: 1125 | N142: 1125 | O142: O | P142: 1124 | Q142: X | R142: X | S142: X | T142: X | U142: X | V142: O | W142: O | X142: O | Y142: O | Z142: O | AA142: O | AB142: O | AC142: O | AD142: O | AE142: - | AH142: 타지역 | AI142: 전시장 | AJ142: 1 | AM142: 12월 | AO142: 2100 | AP142: 1 | AQ142: 2100 | AS142: 0.0006341958397 | AT142: 전시회 | AU142: 0.3 | AV142: 2344650 | AW142: 669900 | AX142: 0 | AY142: 0 | AZ142: 0 | BA142: 311490 | BB142: 365900 | BC142: 3483480 | BD142: 3022040 | BE142: 0 | BF142: 3022040 | BG142: 2016-11-25 | BH142: 3483480 | BS142: -461440 | BT142: 완납 | BU142: 구송희 | BV142: 02-540-7633 | BW142: 018-352-8780 | BX142: 02-549-7633 | BY142: kowia@naver.com
A143: 137 | B143: 202 | C143: [연말콘서트] 장윤정 콘서트 | D143: KBC플러스 | E143: 1209~1211 | F143: 12.10~12.11 | G143: O | H143: O | I143: O | J143: O | K143: 0531 | L143: 0531 | M143: 1202 | N143: 1201 | O143: O | P143: 1202 | Q143: O | R143: 1128 | S143: 1202 | T143: X | U143: X | V143: O | W143: O | X143: O | Y143: O | Z143: O | AA143: O | AB143: O | AC143: O | AD143: O | AE143: - | AF143: - | AG143: - | AH143: 지역 | AI143: 다목적홀 | AJ143: 1 | AK143: 1 | AM143: 12월 | AO143: 2955 | AP143: 3 | AQ143: 8865 | AS143: 0.002677212437 | AT143: 이벤트 | AU143: 0 | AV143: 12325890 | AW143: 4622210 | AX143: 3081470 | AY143: 2311100 | AZ143: 2511080 | BA143: 311080 | BB143: 357550 | BC143: =AV143+AW143 -> 16948100 | BD143: 20898170 | BE143: 0 | BF143: 20898170 | BG143: 2016-05-31 | BH143: 9104350 | BI143: 2016-12-29 | BJ143: 11793820 | BS143: 0 | BT143: 완납 | BU143: 엄윤서과장 | BV143: 062-650-3048 | BW143: 010-6669-0003 | BX143: 062-710-3359 | BY143: kbc0003@naver.com
A144: 138 | B144: 90 | C144: 2016핸드메이드선물박람회 | D144: 광주공예협동조합 | E144: 1207~1211 | F144: 12.08~12.11 | G144: O | H144: X | I144: O | J144: O | K144: 0119 | L144: 1007 | M144: 1130 | N144: 1201 | O144: O | P144: 1130 | Q144: X | R144: X | S144: X | T144: X | U144: X | V144: O | W144: O | X144: O | Y144: ` | Z144: O | AA144: O | AB144: O | AC144: O | AD144: O | AF144: - | AG144: - | AH144: 지역 | AI144: 전시장 | AJ144: 1 | AM144: 12월 | AO144: 3024 | AP144: 5 | AQ144: 15120 | AS144: =AQ144/3311280 -> 0.004566210046 | AT144: 전시회 | AU144: 0.3 | AV144: 15717240 | AW144: 4490640 | AX144: 0 | AY144: 2208330 | AZ144: 0 | BA144: 818700 | BB144: 1463610 | BC144: 20207880 | BD144: 20207880 | BE144: 0 | BF144: 20207880 | BG144: 2016-10-07 | BH144: 7144200 | BI144: 2016-12-01 | BJ144: 13063680 | BS144: =BD144-BH144-BJ144-BL144-BN144-BP144-BR144 -> 0 | BT144: 완납 | BU144: 김진 팀장 조정아 대표(대행사) | BV144: 062-223-7040 062-431-9500 | BW144: 010-6275-2919 010-2603-9500 | BX144: 062-223-7041 062-367-8885 | BY144: kohandgj@hanmail.net mizcom5199@hanmail.net
A145: 139 | B145: 91 | C145: 광주 MBC베이비페어 | D145: 광주문화방송 | E145: 1206~1211 | F145: 12.08~12.11 | G145: O | H145: O | I145: O | J145: O | K145: 1129 | L145: 1226 | M145: 1129 | N145: 1226 | O145: O | P145: 1128 | Q145: X | R145: X | S145: X | T145: X | U145: X | V145: O | W145: O | X145: O | Y145: O | Z145: O | AA145: O | AB145: O | AC145: O | AD145: O | AE145: - | AF145: - | AG145: - | AH145: 지역 | AI145: 전시장 | AK145: 1 | AL145: 1 | AM145: 12월 | AO145: 6048 | AP145: 6 | AQ145: 36288 | AS145: 0.01095890411 | AT145: 전시회 | AU145: 0.4 | AV145: 34727610 | AW145: 11575870 | AX145: 0 | AY145: 2893960 | AZ145: 0 | BA145: 1782130 | BB145: 2927230 | BC145: 46303480 | BD145: 42330930 | BE145: 0 | BF145: 42330930 | BG145: 2016-12-26 | BH145: 42330930 | BS145: =BD145-BH145-BJ145-BL145-BN145-BP145-BR145 -> 0 | BT145: 완납 | BU145: 류권형차장 | BV145: 062-360-2624 | BW145: 010-3633-1608 | BX145: 062-360-3476 | BY145: dimple9010@naver.com
A146: 140 | B146: 203 | C146: SG워너비 콘서트 | D146: 장터미디어 | E146: 1216~1218 | F146: 12.17~12.18 | G146: O | H146: O | I146: O | J146: O | K146: 1208 | L146: 1214 | M146: 1208 | N146: 1214 | O146: O | P146: 1208 | Q146: O | R146: 1201 | S146: O | T146: X | U146: X | V146: O | W146: O | X146: O | Y146: O | Z146: O | AA146: O | AB146: O | AC146: O | AD146: O | AE146: 직접오셔서 계약 및 계약서 작성 예정 | AF146: - | AG146: - | AH146: 지역 | AI146: 다목적홀 | AJ146: 1 | AK146: 1 | AM146: 12월 | AO146: 2955 | AP146: 3 | AQ146: 8865 | AS146: 0.002677212437 | AT146: 이벤트 | AU146: 0 | AV146: 17719250 | AW146: 4622210 | AX146: 0 | AY146: 3081470 | AZ146: 2860000 | BA146: 572580 | BB146: 715110 | BC146: 22341460 | BD146: 24948410 | BE146: 0 | BF146: 24948410 | BG146: 2016-06-21 | BH146: 4622210 | BI146: 2016-12-14 | BJ146: 21570310 | BS146: -1244110 | BT146: 완납 | BU146: 국왕훈 차장 | BV146: 062-417-6021 | BW146: 010-8604-7771 | BX146: 062-417-6066 | BY146: kctvevent@hanmail.net
A147: 141 | B147: 104 | C147: M.C The Max 콘서트 | D147: 공연마루 | E147: 1215~1217 | F147: 12.17 | G147: O | H147: O | I147: O | J147: O | K147: 1116 | L147: 1116 | M147: 1209 | N147: 1214 | O147: O | P147: 1206 | Q147: O | R147: 1201 | S147: O | T147: X | U147: X | V147: O | W147: O | X147: O | Y147: O | Z147: O | AA147: O | AB147: O | AC147: O | AD147: O | AH147: 지역 | AI147: 전시장 | AL147: 1 | AM147: 12월 | AO147: 3024 | AP147: 3 | AQ147: 9072 | AS147: 0.002739726027 | AT147: 이벤트 | AU147: 0.3 | AV147: 6752590 | AW147: 0 | AX147: 0 | AY147: 2363400 | AZ147: 0 | BA147: 63750 | BB147: 365900 | BC147: 6752590 | BD147: 9545640 | BE147: 0 | BF147: 9545640 | BG147: 2016-11-16 | BH147: 4726810 | BI147: 2016-12-14 | BJ147: 6656120 | BS147: -1837290 | BT147: 완납 | BU147: 김서우 사원 | BV147: 062-528-7880 | BW147: 010-3820-8575 | BX147: 062-528-7882 | BY147: ticketmaru@hanmail.net
A148: 142 | B148: 96 | C148: 오케스트라음악회 | D148: 조준형 | E148: 1222 | F148: 12.22 | G148: O | H148: O | I148: O | J148: O | K148: 0913 | L148: 0913 | M148: 1215 | N148: 1216 | O148: O | P148: 1215 | Q148: O | R148: 1208 | S148: O | T148: X | U148: X | V148: O | W148: O | X148: O | Y148: O | Z148: O | AA148: O | AB148: O | AC148: O | AD148: O | AE148: - | AF148: - | AG148: - | AH148: 지역 | AI148: 다목적홀 | AJ148: 1 | AK148: 1 | AM148: 12월 | AO148: 2955 | AP148: 1 | AQ148: 2955 | AS148: 0.0008924041458 | AT148: 이벤트 | AU148: 0 | AV148: 7703680 | AW148: 1540730 | AX148: 0 | AY148: 770360 | AZ148: 5225000 | BA148: 198350 | BB148: 357550 | BC148: 9244410 | BD148: 14254940 | BE148: 0 | BF148: 14254940 | BG148: 2016-09-13 | BH148: 4000000 | BI148: 2016-11-21 | BJ148: 1100000 | BK148: 2016-12-16 | BL148: 6564410 | BM148: 2016-12-30 | BN148: 2590530 | BS148: 0 | BT148: 완납 | BU148: 조준형목사 | BV148: - | BW148: 010-6720-1925 | BX148: - | BY148: bjh6720@naver.com
A149: 143 | B149: 204 | C149: [연말콘서트] KBC플러스 연말 콘서트 2차 (12/24 휘성콘서트, 12/25 힙합콘서트) | D149: KBC플러스 | E149: 1223~1225 | F149: 12.24~12.25 | G149: O | H149: O | I149: O | J149: O | K149: 0531 | L149: 0531 | M149: 1216 | O149: O | P149: 1216 | Q149: O | R149: 1208 | S149: O | T149: X | U149: X | V149: O | W149: O | X149: O | AE149: - | AF149: - | AG149: - | AH149: 지역 | AI149: 다목적홀 | AJ149: 1 | AK149: 1 | AM149: 12월 | AO149: 2955 | AP149: 3 | AQ149: 8865 | AS149: 0.002677212437 | AT149: 이벤트 | AU149: 0 | AV149: 20029580 | AW149: 4622200 | AX149: 0 | AY149: 5238490 | AZ149: 2420000 | BA149: 482720 | BB149: 715110 | BC149: 24651780 | BD149: 9104350 | BE149: 0 | BF149: 9104350 | BG149: 2016-05-31 | BH149: 9104350 | BS149: =AV149+AY149+AZ149+BA149+BB149-BD149 -> 19781550 | BT149: 미납 | BU149: 엄윤서과장 | BV149: 062-650-3048 | BW149: 010-6669-0003 | BX149: 062-710-3359 | BY149: kbc0003@naver.com
A150: 144 | B150: 301 | C150: 피카소 展 : 피카소, 그리고 열정(장기이벤트) | D150: 이에스피엔터테인먼트 | E150: 1212~1231 | F150: 12.12~12.31 | G150: O | H150: O | I150: O | J150: O | K150: 0826 | L150: 0929 | M150: 1205 | N150: 0929 | O150: O | P150: O | Q150: X | R150: X | S150: X | T150: X | U150: X | V150: O | W150: O | X150: O | Y150: O | Z150: O | AA150: O | AB150: O | AC150: O | AD150: O | AE150: - | AF150: - | AG150: - | AH150: 타지역 | AI150: 전시장 | AJ150: 1 | AM150: 12월 | AO150: 3024 | AP150: 20 | AQ150: 60480 | AS150: 0.01826484018 | AT150: 이벤트 | AU150: 장기이벤트 | AV150: 39718310 | BC150: 39718310 | BD150: 39718310 | BE150: 0 | BF150: 39718310 | BG150: 2016-08-26 | BH150: 30000000 | BI150: 2016-09-29 | BJ150: 40500000 | BS150: 0 | BT150: 완납 | BU150: 최우석 팀장 | BV150: 02-455-7980 | BW150: 010-8960-8907 | BX150: 02-522-7980 | BY150: espenter@naver.com
A151: 145 | B151: 302 | C151: 실내썰매&무지개물고기&오감만족체험전 | D151: 에이치엠디 | E151: 1212~1231 | F151: 12.12~12.31 | G151: O | H151: O | I151: O | J151: O | K151: 1122 | L151: 1122 | M151: 1205 | N151: 1223 | O151: O | P151: O | Q151: X | R151: X | S151: X | T151: X | U151: X | V151: O | W151: O | X151: O | Y151: O | Z151: O | AA151: O | AB151: O | AC151: O | AD151: O | AE151: - | AF151: - | AG151: - | AH151: 지역 | AI151: 전시장 | AK151: 1 | AM151: 12월 | AO151: 3024 | AP151: 20 | AQ151: 60480 | AS151: 0.01826484018 | AT151: 이벤트 | AU151: 장기이벤트 | AV151: 39000000 | BC151: 39000000 | BD151: 39000000 | BE151: 14 | BF151: 38089300 | BG151: 2016-11-12 | BH151: 25000000 | BI151: 2016-11-22 | BJ151: 45000000 | BK151: 2016-12-12 | BL151: 50000000 | BM151: 2016-12-12 | BN151: 10000000 | BO151: 2016-12-23 | BP151: 10000000 | BS151: 0 | BT151: 완납 | BU151: 이경록 대표 | BV151: 062-366-3242 | BW151: 010-6609-8721 | BX151: 062-366-3247 | BY151: gdkm0104@naver.com
C152: 취소행사(위약금)
B153: 501 | C153: 김정민 콘서트 | D153: ㈜ 실퍼스톤엔터테인먼트 | E153: 0831 | F153: 0831 | G153: O | H153: O | I153: O | J153: O | K153: 0511 | L153: 0511 | M153: 0824 | N153: 행사취소 | P153: 0817 | Q153: O | R153: X | S153: X | Y153: O | Z153: O | AA153: O | AB153: O | AC153: O | AD153: O | AE153: 행사취소 | AF153: - | AG153: - | AH153: 타지역 | AI153: 전시장 | AJ153: 1 | AM153: 8월 | AO153: 3024 | AP153: 1 | AQ153: =AO153*AP153 -> 3024 | AV153: 3143400 | AW153: 898120 | BC153: =AV153+AW153 -> 4041520 | BD153: 1571720 | BE153: 0 | BF153: 1571720 | BG153: 2016-08-26 | BH153: 2857680 | BS153: -1285760 | BT153: 완납 | BU153: 최재원 | BV153: - | BW153: 010-2884-1400 | BX153: - | BY153: wpsaha@hanmail.net
B154: 502 | C154: 조성모콘서트 | D154: (주)애드스퀘어 | E154: 0909~0910 | F154: 0910 | G154: O | H154: O | I154: O | J154: O | K154: 0710 | L154: 0705 | M154: 0902 | N154: 행사취소 | P154: 0903 | Q154: O | R154: X | S154: X | Y154: O | Z154: O | AA154: O | AB154: O | AC154: O | AD154: O | AE154: 행사취소 | AF154: - | AG154: - | AH154: 지역 | AI154: 다목적홀 | AJ154: 1 | AK154: 1 | AM154: 9월 | AO154: 2955 | AP154: 2 | AQ154: =AO154*AP154 -> 5910 | AV154: 12325890 | AW154: 3081470 | BC154: =AV154+AW154 -> 15407360 | BD154: 5608680 | BE154: 1 | BF154: 5481363 | BG154: 2016-07-05 | BH154: 5608680 | BT154: 완납 | BU154: 김지원 이사님 | BV154: - | BW154: 010-3708-0746 | BX154: - | BY154: tnlaxj81@naver.com
B155: 503 | C155: V. I. P HIPHOP CONCERT | D155: 아시아문화기획 | E155: 1016 | F155: 1016 | G155: O | H155: O | I155: O | J155: O | K155: 0822 | L155: 0812 | M155: 1009 | N155: 행사취소 | O155: O | P155: 0930 | Q155: O | R155: 0930 | Y155: O | Z155: O | AE155: - | AF155: - | AG155: - | AH155: 지역 | AI155: 다목적홀 | AJ155: 1 | AK155: 1 | AM155: 10월 | AO155: 2955 | AP155: 1 | AQ155: =AO155*AP155 -> 2955 | AS155: =AQ155/3311280 -> 0.0008924041458 | AX155: 5392570 | BC155: =AV155+AW155 -> 0 | BD155: 5392570 | BE155: 0 | BF155: 5392570 | BG155: 2016-08-12 | BH155: 6471080 | BS155: -1078510 | BT155: 완납 | BU155: 김일원 대표 | BV155: 062-222-3166 | BW155: 010-3625-3166 | BX155: 062-222-3144 | BY155: illwon5020@hanmail.net
C157: 연기행사
B158: 401 | C158: 희망사다리박람회 | D158: 한국여성벤처협회 광주전남지회 | E158: 1026~1028 | F158: 1027~1028 | G158: O | H158: O | I158: O | J158: O | K158: 0722 | L158: 0722 | M158: 1019 | AE158: 행사취소 | AF158: - | AG158: - | AH158: 지역 | AI158: 전시장 | AJ158: 1 | AM158: 10월 | AO158: 3024 | AP158: 3 | AQ158: =AO158*AP158 -> 9072 | BC158: =AV158+AW158 -> 0 | BD158: 6577200 | BE158: 0 | BF158: 6577200 | BG158: 2016-07-22 | BH158: 6577200 | BS158: =BD158-BH158-BJ158-BL158-BN158-BP158-BR158 -> 0 | BU158: 강소영 사무국장 | BV158: 062-945-6671 | BW158: 010-4601-0342 | BX158: 062-945-6674 | BY158: hovwa01@daum.net
B159: 402 | C159: 일리네어레코즈 콘서트 | D159: ㈜ 일리네어레코즈 | E159: 1106~1107 | F159: 1106 | G159: O | H159: O | I159: O | L159: 0531 | AE159: 계약서, 신청서 재작성해야함 | AF159: - | AG159: - | AH159: 타지역 | AI159: 다목적홀 | AJ159: 1 | AM159: 11월 | AO159: 1478 | AP159: 2 | AQ159: =AO159*AP159 -> 2956 | AS159: =AQ159/3311280 -> 0.0008927061438 | AU159: 0 | BC159: =AV159+AW159 -> 0 | BD159: 3110532 | BE159: 0 | BF159: 3110532 | BG159: 2016-05-31 | BH159: 2802280 | BI159: 2016-12-12 | BJ159: 308252 | BS159: =BD159-BH159-BJ159-BL159-BN159-BP159-BR159 -> 0 | BU159: 박상진 실장 | BV159: 070-4124-1110 | BW159: 010-9970-6532 | BX159: 02-324-0101 | BY159: msense01@gmail.com
B160: 403 | C160: [연말콘서트] 컬트크리스말쇼(에이디모션) | D160: ㈜에이디모션 | E160: 1201~1203 | F160: 1203 | G160: O | H160: O | I160: O | J160: O | K160: 0531 | AE160: - | AF160: - | AG160: - | AH160: 지역 | AI160: 다목적홀 | AJ160: 1 | AK160: 1 | AM160: 12월 | AO160: 2955 | AP160: 3 | AQ160: =AO160*AP160 -> 8865 | AS160: =AQ160/3311280 -> 0.002677212437 | AU160: 0 | BC160: =AV160+AW160 -> 0 | BD160: 8551078 | BE160: 0 | BF160: 8551078 | BG160: 2016-05-31 | BH160: 6162948 | BI160: 2016-10-04 | BJ160: 1540730 | BK160: 2016-12-01 | BL160: 847400 | BS160: =BD160-BH160-BJ160-BL160-BN160-BP160-BR160 -> 0 | BU160: 장진성 | BV160: - | BW160: 010-8508-5255 | BX160: - | BY160: -
B161: 404 | C161: [연말콘서트] 광주문화방송 연말 콘서트 | D161: 광주문화방송 | E161: 1229~1231 | F161: 1230~1231 | G161: O | H161: O | I161: O | J161: O | K161: 0531 | L161: 0610 | AE161: - | AF161: - | AG161: - | AH161: 지역 | AI161: 다목적홀 | AJ161: 1 | AK161: 1 | AM161: 12월 | AO161: 2955 | AP161: 3 | AQ161: =AO161*AP161 -> 8865 | AS161: =AQ161/3311280 -> 0.002677212437 | AU161: 0 | BC161: =AV161+AW161 -> 0 | BD161: 9321455 | BE161: 0 | BF161: 9321455 | BG161: 2016-06-10 | BH161: 7703685 | BI161: 2016-12-28 | BJ161: 1617770 | BS161: =BD161-BH161-BJ161-BL161-BN161-BP161-BR161 -> 0 | BU161: 백은지 | BV161: - | BW161: 010-2603-0397 | BX161: - | BY161: jebaek@daum.net
C162: 2017년 선입금
B163: 171 | C163: water korea | D163: 한국상하수도협회 | G163: O | H163: O | I163: O | J163: O | BD163: 42865200 | BE163: 0 | BF163: 42865200 | BG163: 2016-06-29 | BH163: 42865200 | BV163: 062-613-6011 | BW163: - | BX163: -
B164: 172 | C164: GS봄맞이 한마당 | D164: GS 리테일 | G164: O | H164: O | I164: O | J164: O | BD164: 31833640 | BE164: 0 | BF164: 31833640 | BG164: 2016-06-03 | BH164: 31833640
B165: 173 | C165: 케이윌 콘서트 | D165: 아이오아이홀딩스 | G165: O | H165: O | I165: O | J165: O | BD165: 6162945 | BE165: 0 | BF165: 6162945 | BG165: 2016-10-19 | BH165: 6162945
B166: 174 | C166: 2017 환희&거미 콘서트 | D166: 예향미디어 | G166: O | H166: O | I166: O | BD166: 2000000 | BE166: 0 | BF166: 2000000 | BG166: 2016-11-21 | BH166: 2000000
BD167: =SUM(BD6:BD166) -> 2095514945 | BF167: =SUM(BF6:BF166) -> 2092019948

Sheet 2016년 입금현황 (hidden)
D2: 2016년 전시회 및 이벤트 임대료 입금 내역
D3: 입금업체 | F3: 세금계산서 | H3: 납부 | J3: 결제금액 | K3: 과오납/조정결의 | L3: 실제수입 | M3: 비고 | N3: 징수결의서 | O3: 전시/이벤트 | P3: 개최년도
D4: 행사명 | E4: 입금자 | F4: 발행일 | G4: 청구/영수 | H4: 입금날짜 | I4: 카드
B5: 1 | C5: 5 | D5: 발렌타인데이콘서트(윤민수휘성) | E5: 인산컴퍼니 | F5: 2016-01-08 | G5: 영수 | H5: 2016-01-08 | J5: 3501675 | L5: =J5-K5 -> 3501675 | M5: 완납 | N5: ok | O5: 이벤트 | Q5: =J5-L5 -> 0
B6: 2 | C6: 12 | D6: 광주힐스테이브입주박람회 | E6: W창유준우 | F6: 2016-01-20 | G6: 영수 | H6: 2016-01-20 | J6: 8164800 | L6: 8164800 | M6: 완납 | N6: ok | O6: 전시회 | Q6: =J6-L6 -> 0
B7: 3 | C7: 3 | D7: 제23회 KBC웨딩박람회 | E7: KBC플러스 | F7: 2016-01-22 | G7: 영수 | H7: 2016-01-22 | J7: 25147570 | K7: 3273880 | L7: 21873690 | M7: 완납 | N7: ok | O7: 전시회 | Q7: 3273880
B8: 4 | C8: 8 | D8: 굿뉴스코페스티벌 | E8: 국제청소년연 | F8: 2016-01-26 | G8: 영수 | H8: 2016-01-26 | J8: 4476670 | L8: 4476670 | M8: 완납 | N8: ok | O8: 이벤트 | Q8: 0
B9: 5 | C9: 55 | D9: 2016전남광주프랜차이즈창업박람회 | E9: ㈜제일좋은 | F9: 2016-01-29 | G9: 영수 | H9: 2016-01-29 | J9: 10206000 | L9: 10206000 | M9: 완납 | N9: ok | O9: 전시회 | Q9: 0
B10: 6 | C10: 6 | D10: 제17회KBC맘앤베이비페어 | E10: KBC플러스 | F10: 2016-02-05 | G10: 영수 | H10: 2016-02-05 | J10: 25147570 | K10: 3974780 | L10: 21172790 | M10: 완납 | N10: ok | O10: 전시회 | Q10: 3974780
B11: 7 | C11: 4 | D11: 장윤정콘서트 | E11: 김일원 | F11: 2016-02-12 | G11: 영수 | H11: 2016-02-11 | J11: 5602680 | L11: 5602680 | M11: 완납 | N11: ok | O11: 이벤트 | Q11: 0
B12: 8 | C12: 4 | D12: 장윤정콘서트 | E12: 김일원 | F12: 2016-02-12 | G12: 영수 | H12: 2016-02-12 | J12: 9804680 | K12: 1797490 | L12: 8007190 | M12: 완납 | N12: ok | O12: 이벤트 | Q12: 1797490
B13: 9 | C13: 5 | D13: 발렌타인데이콘서트(윤민수휘성) | E13: 인산컴퍼니 | F13: 2016-02-12 | G13: 영수 | H13: 2016-02-12 | J13: 5742740 | L13: 5742740 | M13: 완납 | N13: ok | O13: 이벤트 | Q13: 0
B14: 10 | C14: 7 | D14: BUZZ콘서트 | E14: 장터미디어 | F14: 2016-02-24 | G14: 영수 | H14: 2016-02-15 | J14: 9244410 | L14: 9244410 | M14: 완납 | N14: ok | O14: 이벤트
B15: 11 | C15: 10 | D15: 임창정콘서트 | E15: 장터미디어 | F15: 2016-02-15 | G15: 영수 | H15: 2016-02-15 | J15: 15407360 | K15: 1015480 | L15: 14391880 | M15: 완납 | N15: ok | O15: 이벤트
B16: 12 | C16: 8 | D16: 굿뉴스코페스티벌 | E16: 국제청소년연 | F16: 2016-02-26 | G16: 영수 | H16: 2016-02-17 | J16: 6912740 | L16: 6912740 | M16: 완납 | N16: ok | O16: 이벤트
B17: 13 | C17: 17 | D17: 입주박람회(풀하우스전람) | E17: 풀하우스전람 | F17: 2016-02-18 | G17: 발행 | H17: 2016-02-18 | J17: 2000000 | K17: 744160 | L17: 1255840 | M17: 완납 | N17: ok | O17: 전시회
B18: 14 | C18: 20 | D18: 경기관광박람회 | E18: 경기관광공사 | F18: 2016-02-18 | G18: 청구 | H18: 2016-02-23 | J18: 24494400 | L18: 24494400 | M18: 완납 | N18: ok | O18: 전시회
B19: 15 | C19: 7 | D19: BUZZ콘서트(추가) | E19: 장터미디어 | F19: 2016-02-24 | G19: 영수 | H19: 2016-02-24 | J19: 3651030 | L19: 3651030 | M19: 완납 | N19: ok | O19: 이벤트
B20: 16 | C20: 8 | D20: 굿뉴스코페스티벌 | E20: 국제청소년연 | F20: 2016-02-26 | G20: 영수 | H20: 2016-02-26 | J20: 4271140 | L20: 4271140 | M20: 완납 | N20: ok | O20: 이벤트
B21: 17 | C21: 12 | D21: 광주힐스테이브입주박람회 | E21: 광주입주박람 | F21: 2016-03-09 | G21: 영수 | H21: 2016-02-29 | J21: 13390270 | L21: 13390270 | M21: 완납 | N21: ok | O21: 전시회
B22: 18 | C22: 18 | D22: 2016위너콘서트 | E22: 주식회사 공 | F22: 2016-03-26 | G22: 영수 | H22: 2016-03-02 | J22: 5602680 | L22: 5602680 | M22: 완납 | N22: ok | O22: 이벤트
B23: 19 | C23: 9 | D23: 광주MBC웨딩박람회 | E23: 광주문화방송 | F23: 2016-03-03 | G23: 청구 | H23: 2016-03-08 | J23: 21898590 | L23: 21898590 | M23: 완납 | N23: ok | O23: 전시회
B24: 20 | C24: 12 | D24: 광주힐스테이브입주박람회 | E24: 광주입주박람 | F24: 2016-03-09 | G24: 영수 | H24: 2016-03-09 | J24: 2237970 | L24: 2237970 | M24: 완납 | N24: ok | O24: 전시회
B25: 21 | C25: 13 | D25: 이은미 콘서트 | E25: 미르엔 | F25: 2016-03-09 | G25: 영수 | H25: 2016-03-09 | J25: 15407360 | L25: 15407360 | M25: 완납 | N25: ok | O25: 이벤트
B26: 22 | C26: 17 | D26: 입주박람회(풀하우스전람) | E26: 카드결제 | F26: 카드 | G26: 카드 | H26: 2016-03-15 | I26: 삼성 | J26: 3900000 | L26: 3813030 | M26: 카드결제 | N26: ok | O26: 전시회
B27: 23 | C27: 17 | D27: 입주박람회(풀하우스전람) | E27: 카드결제 | F27: 카드 | G27: 카드 | H27: 2016-03-15 | I27: 현대 | J27: 3000000 | L27: 2926200 | M27: 카드결제 | N27: ok | O27: 전시회
B28: 24 | C28: 17 | D28: 입주박람회(풀하우스전람) | E28: 카드결제 | F28: 카드 | G28: 카드 | H28: 2016-03-21 | I28: 현대 | J28: 3100000 | L28: 3023740 | M28: 카드결제 | N28: ok | O28: 전시회
B29: 25 | C29: 15 | D29: 입주자박람회(청운디앤씨) | E29: 나인플러스 | F29: 2016-03-17 | G29: 영수 | H29: 2016-03-17 | J29: 24651780 | K29: 621740 | L29: =J29-K29 -> 24030040 | M29: 완납 | N29: ok | O29: 전시회
B30: 26 | C30: 17 | D30: 입주박람회(풀하우스전람) | E30: 카드결제 | F30: 카드 | G30: 카드 | H30: 2016-03-20 | I30: 현대 | J30: 3000000 | L30: 2931900 | M30: 카드결제 | N30: ok | O30: 전시회
B31: 27 | C31: 18 | D31: 2016위너콘서트 | E31: 주식회사 공 | F31: 2016-03-26 | G31: 영수 | H31: 2016-03-22 | J31: 15967630 | L31: =J31-K31 -> 15967630 | M31: 완납 | N31: ok | O31: 이벤트
B32: 28 | C32: 43 | D32: 스위트코리아 2016 | E32: ㈜엑스포럼 | F32: 2016-03-25 | G32: 청구 | H32: 2016-03-28 | J32: 12247200 | L32: =J32-K32 -> 12247200 | M32: 완납 | N32: ok | O32: 전시회
B33: 29 | C33: 42 | D33: 매경창업프랜차이즈박람회 | E33: ㈜엑스포럼 | F33: 2016-03-25 | G33: 청구 | H33: 2016-03-28 | J33: 12247200 | L33: =J33-K33 -> 12247200 | M33: 완납 | N33: ok | O33: 전시회
B34: 30 | C34: 28 | D34: 2016빛고을안전체험한마당 | E34: 방호예방과 | F34: 2016-03-22 | G34: 청구 | H34: 2016-03-29 | J34: 39517620 | L34: =J34-K34 -> 39517620 | M34: 완납 | N34: ok | O34: 전시회
B35: 31 | C35: 17 | D35: 입주박람회(풀하우스전람) | E35: 카드결제 | F35: 카드 | G35: 카드 | H35: 2016-03-30 | I35: 삼성 | J35: 1166300 | L35: 1140292 | M35: 카드결제 | N35: ok | O35: 전시회
B36: 32 | C36: 20 | D36: 경기관광박람회 | E36: 경기관광공사 | F36: 2016-04-18 | G36: 영수 | H36: 2016-03-31 | J36: 36317510 | K36: 6335180 | L36: 29982330 | M36: 완납 | N36: ok | O36: 이벤트
B37: 33 | C37: 16 | D37: 광주mbc베이비페어 | E37: 광주문화방송 | F37: 2016-03-30 | G37: 청구 | H37: 2016-04-06 | J37: 49959180 | L37: 49959180 | M37: 완납 | N37: ok | O37: 전시회
B38: 34 | C38: 24 | D38: 평양진달래 예술단 | E38: ㈜조은라이 | F38: 2016-04-24 | G38: 영수 | H38: 2016-04-07 | J38: 2016430 | L38: 2016430 | M38: 완납 | N38: ok | O38: 이벤트
B39: 35 | C39: 18 | D39: 2016위너콘서트 | E39: 주식회사 공 | F39: 2016-03-26 | G39: 영수 | H39: 2016-04-08 | J39: 3018100 | L39: 3018100 | M39: 완납 | N39: ok | O39: 이벤트
B40: 36 | C40: 22 | D40: 현대기아차채용박람회 | E40: ㈜커리어넷 | F40: 2016-04-18 | G40: 영수 | H40: 2016-04-18 | J40: 10777530 | K40: 775890 | L40: =J40-K40 -> 10001640 | M40: 완납 | N40: ok | O40: 전시회
B41: 37 | C41: 24 | D41: 평양진달래 예술단 | E41: ㈜조은라이 | F41: 2016-04-24 | G41: 영수 | H41: 2016-04-19 | J41: 2061430 | L41: 2061430 | M41: 완납 | N41: ok | O41: 이벤트
B42: 38 | C42: 24 | D42: 평양진달래 예술단 | E42: ㈜조은라이 | F42: 2016-04-24 | G42: 영수 | H42: 2016-04-19 | J42: 1182900 | L42: 1182900 | M42: 완납 | N42: ok | O42: 이벤트
B43: 39 | C43: 19 | D43: CHDTEX | E43: (사)대한치과기공사협 | F43: 2016-04-19 | G43: 영수 | H43: 2016-04-19 | J43: 10429640 | L43: 10429640 | M43: 완납 | N43: ok | O43: 전시회
B44: 40 | C44: 23 | D44: 대한비뇨기과학회 학술대회 | E44: 대한비뇨기과 | F44: 2016-04-23 | G44: 영수 | H44: 2016-04-19 | J44: 6123600 | L44: 6123600 | M44: 완납 | N44: ok | O44: 전시회
B45: 41 | C45: 56 | D45: 광주홈리빙페어 | E45: 이앤애드 | F45: 2016-04-20 | G45: 영수 | H45: 2016-04-20 | J45: 8573040 | L45: 8573040 | M45: 완납 | N45: ok | O45: 전시회
B46: 42 | C46: 27 | D46: 평화음악제 | E46: 광주평화방송 | F46: 2016-04-22 | G46: 영수 | H46: 2016-04-22 | J46: 12687410 | K46: 651460 | L46: =J46-K46 -> 12035950 | M46: 완납 | N46: ok | O46: 이벤트
B47: 43 | C47: 44 | D47: 더스테이지 | E47: SBS플러스 | F47: 2016-04-02 | G47: 청구 | H47: 2016-04-26 | J47: 4476670 | L47: 4476670 | M47: 완납 | N47: ok | O47: 이벤트
B48: 44 | C48: 24 | D48: 평양진달래 예술단 | E48: ㈜조은라이 | F48: 2016-04-24 | G48: 영수 | H48: 2016-04-27 | J48: 221400 | L48: 221400 | M48: 완납 | N48: ok | O48: 이벤트
B49: 45 | C49: 26 | D49: 심수봉콘서트 | E49: ㈜아이지컴 | F49: 2016-05-01 | G49: 청구 | H49: 2016-04-28 | J49: 7706270 | L49: 7706270 | M49: 완납 | N49: ok | O49: 이벤트
B50: 46 | C50: 33 | D50: 광주권일자리박람회 | E50: 국제커리어센터 | F50: 2016-04-28 | G50: 영수 | H50: 2016-04-28 | J50: 6123600 | L50: 6123600 | M50: 완납 | N50: ok | O50: 전시회
B51: 47 | C51: 23 | D51: 대한비뇨기과학회 학술대회 | E51: 대한비뇨기과 | F51: 2016-04-23 | G51: 영수 | H51: 2016-04-29 | J51: 8452120 | L51: 8452120 | M51: 완납 | N51: ok | O51: 전시회
B52: 48 | C52: 35 | D52: 태진아 콘서트 | E52: ㈜금강매니 | F52: 2016-05-03 | G52: 영수 | H52: 2016-05-03 | J52: 4623760 | L52: 4623760 | M52: 완납 | N52: ok | O52: 이벤트
B53: 49 | C53: 30 | D53: 광주골프쇼 | E53: ㈜이엑스스 | F53: 2016-05-04 | G53: 영수 | H53: 2016-05-04 | J53: 26943840 | K53: 3109230 | L53: 23834610 | M53: 완납 | N53: ok | O53: 이벤트
B54: 50 | C54: 29 | D54: 광주창업프랜차이즈박람회 | E54: (사)광주전남벤처 | F54: 2016-05-15 | G54: 영수 | H54: 2016-05-11 | J54: 10000000 | L54: 10000000 | M54: 완납 | N54: ok | O54: 전시회
B55: 51 | C55: 29 | D55: 광주창업프랜차이즈박람회 | E55: 좋은공간 | F55: 2016-05-15 | G55: 영수 | H55: 2016-05-11 | J55: 10000000 | L55: 10000000 | M55: 완납 | N55: ok | O55: 전시회
B56: 52 | C56: 501 | D56: 7월 김정민 콘서트 | E56: 에이치정 | F56: 2016-05-11 | G56: 영수 | H56: 2016-05-11 | J56: 2857680 | K56: 1285960 | L56: 1571720 | M56: 완납 | N56: ok | O56: 이벤트
B57: 53 | C57: 33 | D57: 광주권일자리박람회 | E57: 국제커리어센터 | F57: 2016-05-16 | G57: 영수 | H57: 2016-05-16 | J57: 10042700 | L57: 10042700 | M57: 완납 | N57: ok | O57: 전시회
B58: 54 | C58: 31 | D58: 키자비 | E58: 카드결제 | F58: 카드 | G58: 카드 | H58: 2016-05-17 | I58: 광주 | J58: 20165210 | L58: 19707460 | M58: 완납 | N58: ok | O58: 이벤트
B59: 55 | C59: 31 | D59: 키자비 | E59: 카드결제 | F59: 카드 | G59: 카드 | H59: 2016-05-18 | I59: 현대 | J59: 2500000 | L59: 2438500 | M59: 완납 | N59: ok | O59: 이벤트
B60: 56 | C60: 32 | D60: KBC맘앤베이비페어 | E60: KBC플러스 | F60: 2016-05-17 | G60: 영수 | H60: 2016-05-17 | J60: 53887670 | L60: 53887670 | M60: 완납 | N60: ok | O60: 전시회
B61: 57 | C61: 29 | D61: 광주창업프랜차이즈박람회 | E61: 광주전남벤처 | F61: 2016-05-15 | G61: 영수 | H61: 2016-05-17 | J61: 170170 | L61: 170170 | M61: 완납 | N61: ok | O61: 전시회
B62: 58 | C62: 87 | D62: 더주현미쇼 | E62: ㈜더길 | F62: 2016-05-25 | G62: 영수 | H62: 2016-05-19 | J62: 3000000 | L62: 3000000 | M62: 완납 | N62: ok | O62: 이벤트
B63: 59 | C63: 58 | D63: 쇼미더머니 | E63: ㈜하늘이엔 | F63: 2016-05-20 | G63: 영수 | H63: 2016-05-20 | J63: 5602680 | L63: 5602680 | M63: 완납 | N63: ok | O63: 이벤트
B64: 60 | C64: 34 | D64: 국제척추통증학술대회 | E64: ㈜피플엑스 | F64: 2016-05-19 | G64: 청구 | H64: 2016-05-25 | J64: 8865000 | L64: 8865000 | M64: 완납 | N64: ok | O64: 전시회
B65: 61 | C65: 87 | D65: 더주현미쇼 | E65: ㈜더길 | F65: 2016-05-25 | G65: 영수 | H65: 2016-05-25 | J65: 2602680 | L65: 2602680 | M65: 완납 | N65: ok | O65: 이벤트
B66: 62 | C66: 202 | D66: kbc플러스 연말콘서트 2주 | E66: KBC플러스 | F66: 2016-05-31 | G66: 영수 | H66: 2016-05-31 | J66: 9104350 | L66: 9104350 | M66: 완납 | N66: ok | O66: 이벤트
B67: 63 | C67: 204 | D67: kbc플러스 연말콘서트 4주 | E67: KBC플러스 | F67: 2016-05-31 | G67: 영수 | H67: 2016-05-31 | J67: 9104350 | L67: 9104350 | M67: 미납 | N67: ok | O67: 이벤트
B68: 64 | C68: 403 | D68: 에이디모션 콘서트(연말) | E68: ㈜에이디모 | F68: 2016-05-31 | G68: 영수 | H68: 2016-05-31 | J68: 6162948 | L68: 6162948 | M68: 완납 | N68: ok | O68: 이벤트 | P68: 2017년
B69: 65 | C69: 26 | D69: 심수봉콘서트 | E69: ㈜아이지컴 | F69: 2016-05-01 | G69: 청구 | H69: 2016-05-31 | J69: 243460 | L69: 243460 | M69: 완납 | N69: ok | O69: 이벤트
B70: 66 | C70: 402 | D70: 일리네어레코즈 콘서트 | E70: ㈜일리네어 | F70: 2016-05-31 | G70: 영수 | H70: 2016-05-31 | J70: 2802280 | L70: 2802280 | M70: 완납 | N70: ok | O70: 이벤트 | P70: 2017년
B71: 67 | C71: 33 | D71: 광주권일자리박람회 | E71: 국제커리어센터 | F71: 2016-06-02 | G71: 영수 | H71: 2016-06-02 | J71: 229790 | L71: 229790 | M71: 완납 | N71: ok | O71: 전시회
B72: 68 | C72: 46 | D72: 그라시아스합창단 특별공연 | E72: 그라시아스합 | F72: 2016-06-02 | G72: 영수 | H72: 2016-06-02 | J72: 3501675 | L72: 3501675 | M72: 완납 | N72: ok | O72: 이벤트
B73: 69 | C73: 32 | D73: KBC맘앤베이비페어 | E73: KBC플러스 | F73: 2016-06-02 | G73: 청구 | H73: 2016-06-03 | J73: 1896450 | L73: 1896450 | M73: 완납 | N73: ok | O73: 전시회
B74: 70 | D74: GS봄맞이한마당 | E74: GS리테일 | F74: 2016-06-03 | G74: 영수 | H74: 2016-06-03 | J74: 31833640 | L74: 31833640 | M74: 완납 | N74: ok | O74: 전시회 | P74: 2017
B75: 71 | C75: 40 | D75: 광주금형기계전 | E75: 한산마케 | F75: 2016-06-03 | G75: 영수 | H75: 2016-06-03 | J75: 85520680 | K75: 8998830 | L75: 76521850 | M75: 완납 | N75: ok | O75: 전시회
B76: 72 | C76: 404 | D76: 광주MBC연말콘서트 | E76: 광주문화방송 | F76: 2016-06-10 | G76: 영수 | H76: 2016-06-10 | J76: 7703685 | L76: 7703685 | M76: 완납 | N76: ok | O76: 이벤트 | P76: 2017년
B77: 73 | C77: 41 | D77: KBC웨딩박람회 | E77: ㈜KBC플러? | F77: 2016-06-10 | G77: 영수 | H77: 2016-06-10 | J77: 28291020 | K77: 104500 | L77: 28186520 | M77: 완납 | N77: ok | O77: 전시회
B78: 74 | C78: 42 | D78: 매경창업프랜차이즈박람회 | E78: ㈜엑스포럼 | F78: 미발행 | G78: 미발행 | H78: 2016-06-14 | J78: 20085400 | L78: 20085400 | M78: 완납 | N78: ok | O78: 전시회
B79: 75 | C79: 43 | D79: 스위트코리아 2016 | E79: ㈜엑스포럼 | F79: 미발행 | G79: 미발행 | H79: 2016-06-14 | J79: 20085400 | K79: 2911430 | L79: 17173970 | M79: 완납 | N79: ok | O79: 전시회
B80: 76 | C80: 45 | D80: 국카스텐콘서트 | E80: (유)와이투이엔티 | F80: 2016-06-14 | G80: 영수 | H80: 2016-06-14 | J80: 9244410 | L80: 9244410 | M80: 완납 | N80: ok | O80: 이벤트
B81: 77 | C81: 35 | D81: 태진아 콘서트 | E81: ㈜금강매니 | F81: 2016-06-05 | G81: 영수 | H81: 2016-06-14 | J81: 2104840 | L81: 2104840 | M81: 완납 | N81: ok | O81: 이벤트
B82: 78 | C82: 48 | D82: 광주펫쇼 | E82: (유)와이투이엔티 | F82: 2016-06-20 | G82: 영수 | H82: 2016-06-20 | J82: 22902260 | K82: 786250 | L82: 22116010 | M82: 완납 | N82: ok | O82: 이벤트
B83: 79 | C83: 203 | D83: 장터미디어 콘서트 | E83: ㈜장터미디 | F83: 2016-06-21 | G83: 영수 | H83: 2016-06-21 | J83: 4622210 | L83: 4622210 | M83: 완납 | N83: ok | O83: 이벤트
B84: 80 | C84: 53 | D84: 휘성&자이언티 콘서트 | E84: 카드결제 | F84: 미발행 | G84: 미발행 | H84: 2016-06-28 | I84: 현대카드 | J84: 4500000 | L84: 4389300 | M84: 완납 | N84: ok | O84: 이벤트
B85: 81 | C85: 53 | D85: 휘성&자이언티 콘서트 | E85: 카드결제 | F85: 미발행 | G85: 미발행 | H85: 2016-06-27 | I85: IBK비씨 | J85: 500000 | L85: 488650 | M85: 완납 | N85: ok | O85: 이벤트
B86: 82 | C86: 46 | D86: 그라시아스합창단 특별공연 | E86: 그라시아스합 | F86: 2016-06-23 | G86: 영수 | H86: 2016-06-23 | J86: 5742735 | L86: 5742735 | M86: 완납 | N86: OK | O86: 이벤트
B87: 83 | C87: 31 | D87: 키자비 | E87: 에이치엠디㈜대구 | F87: 2016-06-23 | G87: 영수 | H87: 2016-06-23 | J87: 40921550 | L87: 40921550 | M87: 완납 | N87: ok | O87: 이벤트
B88: 84 | C88: 63 | D88: 대한민국전문대학엑스포 | E88: 엠비씨아트 | F88: 2016-06-22 | G88: 청구 | H88: 2016-06-28 | J88: 6123600 | L88: 6123600 | M88: 완납 | N88: ok | O88: 전시회
B89: 85 | C89: 171 | D89: Water korea | E89: 한국상하수도 | F89: 2016-06-23 | G89: 청구 | H89: 2016-06-29 | J89: 42865200 | L89: 42865200 | M89: 미납 | N89: ok | O89: 전시회 | P89: 2017
B90: 86 | C90: 52 | D90: 광주 MBC 웨딩박람회 | E90: 대관료 | F90: 2016-06-17 | G90: 청구 | H90: 2016-06-24 | J90: 7000000 | L90: 7000000 | M90: 완납 | N90: ok | O90: 전시회
B91: 87 | C91: 46 | D91: 그라시아스합창단 특별공연 | E91: 그라시아스합 | F91: 2016-06-29 | G91: 영수 | H91: 2016-06-29 | J91: 3969740 | L91: 3969740 | M91: 완납 | N91: ok | O91: 이벤트
B92: 88 | C92: 47 | D92: 사회적경제박람회(문화페스티벌) | E92: ㈜마이스원 | F92: 2016-06-30 | G92: 영수 | H92: 2016-06-30 | J92: 21291550 | L92: 21291550 | M92: 완납 | N92: ok | O92: 이벤트
B93: 89 | C93: 34 | D93: 국제척추통증학술대회 | E93: ㈜피플엑스 | F93: 2016-06-30 | G93: 영수 | H93: 2016-06-30 | J93: 15232240 | L93: 15232240 | M93: 완납 | N93: ok | O93: 전시회
B94: 90 | C94: 81 | D94: 10월 KBC 베이비페어 | E94: KBC플러스 | F94: 2016-06-30 | G94: 영수 | H94: 2016-06-30 | J94: 19595520 | L94: 19595520 | M94: 완납 | N94: ok | O94: 전시회
B95: 91 | C95: 89 | D95: KBC 건축박람회 | E95: KBC플러스 | F95: 2016-06-30 | G95: 영수 | H95: 2016-06-30 | J95: 22861440 | L95: 22861440 | M95: 완납 | N95: ok | O95: 전시회
B96: 92 | C96: 502 | D96: 조성모콘서트 | E96: 카드결제 | F96: 카드(6/30) | G96: 카드 | H96: 2016-07-05 | I96: 비씨카드 | J96: 5608680 | L96: 5481363 | M96: 미납 | N96: ok | O96: 이벤트
B97: 93 | C97: 45 | D97: 국카스텐콘서트 | E97: (유)와이투이엔티 | F97: 2016-07-04 | G97: 영수 | H97: 2016-07-04 | J97: 4906320 | L97: 4906320 | M97: 완납 | N97: ok | O97: 이벤트
B98: 94 | C98: 50 | D98: 번개맨이 떳다 | E98: 주식회사공 | F98: 2016-07-07 | G98: 영수 | H98: 2016-07-07 | J98: 52976000 | L98: 52976000 | M98: 완납 | N98: ok | O98: 이벤트
B99: 95 | C99: 51 | D99: 동물탐험대 | E99: 카드결제 | F99: 2016-07-18 | G99: 미발행 | I99: 비씨카드 | J99: 6000000 | L99: 5863800 | M99: 완납 | N99: ok | O99: 이벤트
B100: 96 | C100: 75 | D100: 송창식 박인희 콘서트 | E100: ㈜엠플러스 | F100: 2016-07-19 | G100: 영수 | H100: 2016-07-19 | J100: 3501675 | L100: 3501675 | M100: 완납 | N100: ok | O100: 이벤트
B101: 97 | C101: 51 | D101: 동물탐험대 | E101: 에이치엠디㈜대구 | F101: 2016-07-20 | G101: 영수 | H101: 2016-07-20 | J101: 19520000 | L101: 19520000 | M101: 완납 | N101: ok | O101: 이벤트
B102: 98 | C102: 401 | D102: 희망사다리박람회 | E102: (사)광주전남 | F102: 2016-07-22 | G102: 영수 | H102: 2016-07-22 | J102: 6577200 | L102: 6577200 | M102: 미납 | N102: ok | O102: 전시회 | P102: 2017년
B103: 99 | C103: 53 | D103: 휘성&자이언티 콘서트 | E103: 김현진 | F103: 요청 | G103: 요청 | H103: 2016-07-28 | J103: 8000000 | L103: 8000000 | M103: 완납 | N103: ok | O103: 이벤트
B104: 100 | C104: 72 | D104: kb평생사랑콘서트 | E104: ㈜비티엘플랜비 | F104: 7월 29일 | G104: 영수 | H104: 7월 29일 | J104: 6252680 | L104: 6252680 | M104: 미납 | N104: ok | O104: 이벤트
B105: 101 | C105: 52 | D105: 광주 MBC 웨딩박람회 | E105: 광주문화방송 | F105: 2016-07-19 | G105: 청구 | H105: 2016-07-29 | J105: 11068880 | L105: 11068880 | M105: 완납 | N105: ok | O105: 전시회
B106: 102 | C106: 44 | D106: 더스테이지 | E106: SBS플러스 | F106: 2016-06-27 | G106: 청구 | H106: 2016-07-29 | J106: 11647460 | L106: 11647460 | M106: 완납 | N106: ok | O106: 이벤트
B107: 103 | C107: 56 | D107: 광주홈리빙페어 | E107: 이앤애드 | F107: 2016-08-03 | G107: 영수 | H107: 2016-08-03 | J107: 15676400 | K107: 428390 | L107: 15248010 | M107: 완납 | N107: ok | O107: 전시회
B108: 104 | C108: 53 | D108: 휘성&자이언티 콘서트 | E108: 인산컴퍼니 | F108: 2016-08-03 | G108: 카드 | J108: 2000000 | L108: 1955400 | M108: 완납 | N108: ok | O108: 이벤트
B109: 105 | C109: 55 | D109: 2016전남광주프랜차이즈창업박람회 | E109: ㈜제일좋은전람 | F109: 2016-08-10 | G109: 영수 | H109: 2016-08-10 | J109: 10001880 | K109: 1225460 | L109: 8776420 | M109: 완납 | N109: ok | O109: 전시회
B110: 106 | C110: 77 | D110: 한국물리학회 학술대회 | E110: 한국물리학회 | F110: 2016-08-11 | G110: 영수 | H110: 2016-08-11 | J110: 11820000 | L110: 11820000 | M110: 완납 | N110: ok | O110: 전시회
B111: 107 | C111: 503 | D111: 프리미엄 더원 콘서트 | E111: 아시아문화기획 | F111: 2016-08-12 | G111: 영수 | H111: 2016-08-12 | J111: 6471080 | K111: 1078510 | L111: 5392570 | M111: 완납 | N111: ok | O111: 이벤트
B112: 108 | C112: 60 | D112: 빛고을핸드메이드페어 | E112: 광주디자인센터 | F112: 2016-08-10 | G112: 청구 | H112: 2016-08-16 | J112: 22044960 | L112: 22044960 | M112: 완납 | N112: ok | O112: 전시회
B113: 109 | C113: 87 | D113: 더주현미쇼 | E113: ㈜더길 | F113: 2016-08-18 | G113: 영수 | H113: 2016-08-18 | J113: 5000000 | L113: 5000000 | M113: 완납 | N113: ok | O113: 이벤트 | Q113: 주간업무보고 완료
B114: 110 | C114: 95 | D114: 더불어민주당 광주시당 개편대회 | E114: 더불어민주당 | F114: 2016-08-13 | G114: 청구 | H114: 2016-08-18 | J114: 383900 | L114: =J114-K114 -> 383900 | M114: 완납 | N114: ok | O114: 이벤트
B115: 111 | C115: 87 | D115: 더주현미쇼 | E115: ㈜더길 | F115: 2016-08-19 | G115: 영수 | H115: 2016-08-19 | J115: 4804680 | L115: 4804680 | M115: 완납 | N115: ok | O115: 이벤트
B116: 112 | C116: 58 | D116: 쇼미더머니 | E116: ㈜하늘이엔 | F116: 2016-08-19 | G116: 영수 | H116: 2016-08-19 | J116: 9804680 | L116: 9804680 | M116: 완납 | N116: ok | O116: 이벤트
B117: 113 | C117: 60 | D117: 빛고을핸드메이드페어 | E117: 광주디자인센터 | F117: 2016-08-19 | G117: 영수 | H117: 2016-08-23 | J117: 37231480 | K117: 1703130 | L117: 35528350 | M117: 완납 | N117: ok | O117: 전시회
B118: 114 | C118: 71 | D118: 김원중 30주년 기념콘서트 | E118: (주)좋은친구들 | F118: 2016-08-24 | G118: 영수 | H118: 2016-08-24 | J118: 5602680 | L118: =J118-K118 -> 5602680 | M118: 완납 | N118: ok | O118: 이벤트
B119: 115 | C119: 71 | D119: 김원중 30주년 기념콘서트 - 야외 | E119: (주)좋은친구들 | F119: 2016-08-24 | G119: 영수 | H119: 2016-08-24 | J119: 159960 | L119: 159960 | M119: 완납 | N119: ok | O119: 이벤트
B120: 116 | C120: 95 | D120: 심수봉,김수희,녹색지대 사랑의 음악회 | E120: ㈜MNS자산 | F120: 2016-08-25 | G120: 영수 | H120: 2016-08-25 | J120: 5503760 | K120: 33510 | L120: 5470250 | M120: 완납 | N120: ok | O120: 이벤트
B121: 117 | C121: 301 | D121: 피카소 展 : 피카소, 그리고 열정 | E121: 이에스피엔터테이먼트 | F121: 2016-08-26 | G121: 영수 | H121: 2016-08-26 | J121: 30000000 | L121: 30000000 | M121: 미납 | N121: ok | O121: 전시회
B122: 118 | C122: 63 | D122: 대한민국전문대학엑스포 | E122: 엠비씨아트 | F122: 2016-08-24 | G122: 청구 | H122: 2016-08-31 | J122: 10042700 | L122: 10042700 | M122: 완납 | N122: ok | O122: 전시회 | Q122: 주간업무보고완료(160902)
B123: 119 | C123: 59 | D123: 에픽하이&이하이&악동뮤지션 광주콘서트 | E123: 주컴퍼니 | F123: 카드(8/27) | G123: 카드 | H123: 2016-08-30 | I123: 비씨카드 | J123: 5000000 | L123: 4925000 | M123: 완납 | N123: ok | O123: 이벤트
B124: 120 | C124: 58 | D124: 쇼미더머니 | E124: ㈜하늘이엔 | F124: 2016-09-05 | G124: 영수 | H124: 2016-09-05 | J124: 876610 | L124: 876610 | M124: 완납 | N124: ok | O124: 이벤트
B125: 121 | C125: 70 | D125: 가을 광주권일자리박람회 | E125: 사랑방미디어 | F125: 2016-08-31 | G125: 청구 | H125: 2016-09-05 | J125: 6577200 | L125: 6577200 | M125: 미납 | N125: ok | O125: 전시회
B126: 122 | C126: 53 | D126: 휘성&자이언티 콘서트 | E126: 인산컴퍼니 | F126: 2016-09-05 | G126: 카드 | H126: 2016-09-09 | I126: 현대카드 | J126: 8000000 | L126: 7803200 | M126: 완납 | N126: ok | O126: 이벤트
B127: 123 | C127: 66 | D127: 제 11회 광주 옥외광고 대상전 | E127: (사) 광주옥외광고협회 | F127: 2016-09-08 | G127: 카드 | H127: 2016-09-13 | I127: 비씨카드 | J127: 12760000 | L127: 12568600 | M127: 완납 | N127: ok | O127: 전시회
B128: 124 | C128: 68 | D128: 2016 사랑나눔축체 초종교 연합예배 | E128: 세계기독교통일신령협회 | F128: 2016-09-06 | G128: 영수 | H128: 2016-09-06 | J128: 6902680 | L128: 6902680 | M128: 완납 | N128: ok | O128: 이벤트 | Q128: 메일주소안줌
B129: 125 | C129: 57 | D129: 광주 MBC 베이비페어 | E129: 광주문화방송 | F129: 2016-08-28 | G129: 청구 | H129: 2016-09-09 | J129: 44429920 | L129: 44429920 | M129: 완납 | N129: ok | O129: 전시회
B130: 126 | C130: 47 | D130: 사회적경제박람회 | E130: ㈜마이스원 | F130: 2016-07-18 | G130: 청구 | H130: 2016-09-09 | J130: 36738920 | L130: 36738920 | M130: 완납 | N130: ok | O130: 이벤트
B131: 127 | C131: 67 | D131: 2016 대한민국 우수상품 할인전 | E131: ㈜ 동인앤컴 | F131: 2016-09-12 | G131: 영수 | H131: 2016-09-12 | J131: 28939680 | L131: 28939680 | M131: 완납 | N131: ok | O131: 전시회
B132: 128 | C132: 96 | D132: 오케스트라 음악회 | E132: 조준형 | F132: 2016-09-13 | G132: 현금 | H132: 2016-09-13 | J132: 4000000 | L132: 4000000 | M132: 미납 | N132: ok | O132: 이벤트 | Q132: 주간업무보고완료(160923)
B133: 129 | C133: 68 | D133: 2016 사랑나눔축체 초종교 연합예배 | E133: 세계기독교통일신령협회 | F133: 2016-09-23 | G133: 영수 | H133: 2016-09-23 | J133: 11364680 | K133: 1292420 | L133: 10072260 | M133: 완납 | N133: ok | O133: 이벤트
B134: 130 | C134: 78 | D134: 2016 광산업전시회 | E134: 한국광산업진흥회 | F134: 2016-09-23 | G134: 카드 | H134: 2016-09-28 | I134: 광주체크카드 | J134: 10000000 | L134: 9850000 | M134: 미납 | N134: ok | O134: 전시회
B135: 131 | C135: 93 | D135: 김경호콘서트 | E135: 에이치엠디 | F135: 2016-09-26 | G135: 카드 | H135: 2016-09-29 | I135: 광주카드 | J135: 4823280 | L135: 4713792 | M135: 완납 | N135: ok | O135: 이벤트
B136: 132 | C136: 78 | D136: 2016 광산업전시회 | E136: 한국광산업진흥회 | F136: 2016-09-27 | G136: 카드 | H136: 2016-09-30 | I136: 광주체크카드 | J136: 852380 | L136: 839595 | M136: 미납 | N136: ok | O136: 전시회
B137: 133 | C137: 70 | D137: 가을 광주권일자리박람회 | E137: 사랑방미디어 | F137: 2016-09-28 | G137: 영수 | H137: 2016-09-28 | J137: 10786600 | K137: 336110 | L137: 10450490 | M137: 완납 | N137: ok | O137: 전시회
B138: 134 | C138: 301 | D138: 피카소 展 : 피카소, 그리고 열정 | E138: 이에스피엔터테이먼트 | F138: 2016-09-29 | G138: 영수 | H138: 2016-09-29 | J138: 40500000 | L138: 40500000 | M138: 미납 | N138: ok | O138: 전시회 | Q138: 주간업무보고완료(160930)
B139: 135 | C139: 71 | D139: 김원중 30주년 기념콘서트 | E139: (주)좋은친구들 | F139: 2016-10-03 | G139: 영수 | H139: 2016-10-03 | J139: 9804680 | K139: 2129220 | L139: =J139-K139 -> 7675460 | M139: 완납 | N139: ok | O139: 이벤트
B140: 136 | C140: 71 | D140: 김원중 30주년 기념콘서트 - 야외 | E140: (주)좋은친구들 | F140: 2016-10-03 | G140: 영수 | H140: 2016-10-03 | J140: 223940 | L140: 223940 | M140: 완납 | N140: ok | O140: 이벤트
B141: 137 | C141: 403 | D141: 에이디모션 콘서트(연말) | E141: ㈜에이디모 | F141: 2016-07-18 | G141: 청구 | H141: 2016-10-04 | J141: 1540730 | L141: 1540730 | M141: 완납 | N141: ok | O141: 이벤트 | P141: 2017년
B142: 138 | C142: 72 | D142: kb평생사랑콘서트 | E142: ㈜비티엘플랜비 | F142: 2016-10-05 | G142: 영수 | H142: 2016-10-05 | J142: 10584680 | L142: 10584680 | M142: 미납 | N142: ok | O142: 이벤트
B143: 139 | C143: 92 | D143: 불효자는 웁니다 | E143: Y2이앤티 | F143: 2016-10-06 | G143: 영수 | H143: 2016-10-06 | J143: 5009090 | L143: 5009090 | M143: 완납 | N143: ok | O143: 이벤트
B144: 140 | C144: 73 | D144: 광주골프쇼(가을) | E144: 이엑스스포테인먼트 | F144: 2016-10-06 | G144: 영수 | H144: 2016-10-06 | J144: 26943840 | K144: 3029800 | L144: 23914040 | M144: 완납 | N144: ok | O144: 전시회 | Q144: 주간업무보고완료(161007)
B145: 141 | C145: 74 | D145: 한국생물공학회 학술대회 | E145: 한국생물공학회 | F145: 2016-10-07 | G145: 영수 | H145: 2016-10-07 | J145: 8681900 | L145: 8681900 | M145: 완납 | N145: ok | O145: 전시회
B146: 142 | C146: 75 | D146: 송창식 박인희 콘서트 | E146: ㈜엠플러스 | F146: 2016-10-07 | G146: 영수 | H146: 2016-10-07 | J146: 3818365 | L146: 3818365 | M146: 완납 | N146: ok | O146: 이벤트
B147: 143 | C147: 90 | D147: 2016 핸드메이드 선물박람회 | E147: 광주공예협동조합 | F147: 2016-10-07 | G147: 영수 | H147: 2016-10-07 | J147: 7144200 | L147: 7144200 | M147: 완납 | N147: ok | O147: 전시회
B148: 144 | C148: 73 | D148: 광주골프쇼(가을) | E148: 이엑스스포테인먼트 | F148: 2016-10-06 | G148: 영수 | H148: 2016-10-06 | J148: 1995840 | L148: 1995840 | M148: 완납 | N148: ok | O148: 전시회 | Q148: 주간업무보고완료(161013)
B149: 145 | C149: 77 | D149: 한국물리학회 학술대회 | E149: 한국물리학회 | F149: 2016-08-11 | G149: 영수 | H149: 2016-08-11 | J149: 19384800 | K149: 1921090 | L149: 17463710 | M149: 완납 | N149: ok | O149: 전시회
B150: 146 | C150: 100 | D150: 청소년 꿈 캐스팅 | E150: ㈜ 토마스 | F150: 2016-10-14 | G150: 영수 | H150: 2016-10-14 | J150: 749840 | L150: 749840 | M150: 완납 | N150: ok | O150: 이벤트
B151: 147 | C151: 78 | D151: 2016 광산업전시회 | E151: 한국광산업진흥회 | F151: 2016-10-12 | G151: 카드 | H151: 2016-10-17 | I151: 광주체크카드 | J151: 9000000 | L151: 8865000 | M151: 완납 | N151: ok | O151: 전시회 | Q151: 주간업무보고완료(161020)
B152: 148 | C152: 74 | D152: 한국생물공학회 학술대회 | E152: 한국생물공학회 | F152: 2016-10-14 | G152: 영수 | H152: 2016-10-19 | I152: 비씨카드 | J152: 46900 | L152: 45836 | M152: 완납 | N152: ok | O152: 전시회
B153: 149 | C153: 74 | D153: 한국생물공학회 학술대회 | E153: 한국생물공학회 | F153: 2016-10-18 | G153: 영수 | H153: 2016-10-21 | I153: 비씨카드 | J153: 720520 | L153: 704165 | M153: 완납 | N153: ok | O153: 전시회
B154: 150 | C154: 78 | D154: 2016 광산업전시회 | E154: 한국광산업진흥회 | F154: 2016-10-19 | G154: 카드 | H154: 2016-10-24 | I154: 광주체크카드 | J154: 6675660 | K154: 1343740 | L154: 5231786 | M154: 완납 | N154: ok | O154: 전시회
B155: 151 | C155: 75 | D155: 송창식 박인희 콘서트 | E155: ㈜엠플러스 | F155: 2016-10-18 | G155: 영수 | H155: 2016-10-18 | J155: 441460 | L155: 441460 | M155: 완납 | N155: ok | O155: 이벤트
B156: 152 | C156: 81 | D156: 10월 KBC 베이비페어 | E156: KBC플러스 | F156: 2016-10-17 | G156: 청구 | H156: 2016-10-20 | J156: 34292150 | K156: 10110330 | L156: 24181820 | M156: 완납 | N156: ok | O156: 전시회
B157: 153 | C157: 36 | D157: 알리&김연지콘서트 | E157: KBC플러스 | F157: 2016-10-17 | G157: 청구 | H157: 2016-10-20 | J157: 9863000 | L157: 9863000 | M157: 완납 | N157: ok | O157: 전시회
B158: 154 | C158: 173 | D158: 2017 케이윌콘서트 | E158: 아이오아이홀딩스 | F158: 2016-10-19 | G158: 영수 | H158: 2016-10-19 | J158: 6162945 | L158: 6162945 | M158: 미납 | N158: ok | P158: 2017
B159: 155 | C159: 66 | D159: 제 11회 광주 옥외광고 대상전 | E159: (사) 광주옥외광고협회 | F159: 2016-10-24 | G159: 청구 | H159: 2016-10-25 | J159: 184000 | L159: 184000 | M159: 완납 | N159: ok | O159: 전시회 | Q159: 주간업무보고 완료(1028)
B160: 156 | C160: 66 | D160: 제 11회 광주 옥외광고 대상전 | E160: (사) 광주옥외광고협회 | F160: 2016-10-24 | G160: 카드 | H160: 2016-10-27 | I160: 비씨카드 | J160: 240000 | L160: 236400 | M160: 완납 | N160: ok | O160: 전시회
B161: 157 | C161: 63 | D161: 대한민국전문대학엑스포 | E161: 엠비씨아트 | F161: 2016-09-10 | G161: 청구 | H161: 2016-10-31 | J161: 746220 | L161: 746220 | M161: 완납 | N161: ok | O161: 전시회
B162: 158 | C162: 98 | D162: 사랑의 음악회 및 재테크 설명회 | E162: 조은라이프 | F162: 2016-11-03 | G162: 영수 | H162: 2016-11-03 | J162: 2267570 | L162: 2267570 | M162: 완납 | N162: ok | O162: 이벤트
B163: 159 | C163: 53 | D163: 휘성&자이언티 콘서트 | E163: 인산컴퍼니 | F163: 2016-11-01 | G163: 카드 | H163: 2016-11-07 | I163: 현대카드 | J163: 2320740 | L163: 2263650 | M163: 완납 | N163: ok | O163: 이벤트
B164: 160 | C164: 59 | D164: 에픽하이&이하이&악동뮤지션 광주콘서트 | E164: 주컴퍼니 | F164: 2016-11-01 | G164: 카드 | H164: 2016-11-07 | I164: 현대카드 | J164: 2679260 | L164: 2613351 | M164: 완납 | N164: ok | O164: 이벤트
B165: 161 | C165: 92 | D165: 불효자는 웁니다 | E165: Y2이앤티 | F165: 2016-10-06 | G165: 영수 | H165: 2016-10-06 | J165: 7320960 | L165: 7320960 | M165: 완납 | N165: ok | O165: 이벤트
B166: 162 | C166: 101 | D166: 재규어 랜드로버 차량 전시행사 | E166: 런던모터스 | F166: 2016-11-08 | G166: 영수 | H166: 2016-11-08 | J166: 660000 | L166: 660000 | M166: 완납 | N166: ok | O166: 전시회 | Q166: 주간업무보고 완료(1111)
B167: 163 | C167: 93 | D167: 김경호콘서트 | E167: 에이치엠디 | F167: 2016-09-26 | G167: 카드 | H167: 2016-11-08 | I167: 광주카드 | J167: 5000000 | L167: 4886500 | M167: 완납 | N167: ok | O167: 이벤트
B168: 164 | C168: 93 | D168: 김경호콘서트 | E168: 에이치엠디 | F168: 2016-09-26 | G168: 카드 | H168: 2016-11-08 | I168: 광주카드 | J168: 1752590 | K168: 1383440 | L168: 329367 | M168: 완납 | N168: ok | O168: 이벤트
B169: 165 | C169: 302 | D169: 실내썰매&무지개물고기&오감만족체험전 | E169: 에이치엠디 | F169: 2016-11-12 | G169: 카드 | I169: 하나카드 | J169: 10000000 | L169: 9770000 | M169: 완납 | N169: ok | O169: 이벤트 | Q169: 주간업무보고 완료(1117)
B170: 166 | C170: 302 | D170: 실내썰매&무지개물고기&오감만족체험전 | E170: 에이치엠디 | F170: 2016-11-12 | G170: 카드 | I170: 현대카드 | J170: 5000000 | L170: 4877000 | M170: 완납 | N170: ok | O170: 이벤트
B171: 167 | C171: 302 | D171: 실내썰매&무지개물고기&오감만족체험전 | E171: 에이치엠디 | F171: 2016-11-12 | G171: 카드 | I171: 신한카드 | J171: 2500000 | L171: 2441250 | M171: 완납 | N171: ok | O171: 이벤트
B172: 168 | C172: 302 | D172: 실내썰매&무지개물고기&오감만족체험전 | E172: 에이치엠디 | F172: 2016-11-12 | G172: 카드 | I172: 비씨(우리) | J172: 2500000 | L172: 2443250 | M172: 완납 | N172: ok | O172: 이벤트
B173: 169 | C173: 302 | D173: 실내썰매&무지개물고기&오감만족체험전 | E173: 에이치엠디 | F173: 2016-11-12 | G173: 카드 | I173: 국민 | J173: 2500000 | L173: 2437500 | M173: 완납 | N173: ok | O173: 이벤트
B174: 170 | C174: 302 | D174: 실내썰매&무지개물고기&오감만족체험전 | E174: 에이치엠디 | F174: 2016-11-12 | G174: 카드 | I174: 현대 | J174: 1500000 | L174: 1463100 | M174: 완납 | N174: ok | O174: 이벤트
B175: 171 | C175: 302 | D175: 실내썰매&무지개물고기&오감만족체험전 | E175: 에이치엠디 | F175: 2016-11-12 | G175: 카드 | I175: 국민(NH) | J175: 1000000 | L175: 975000 | M175: 완납 | N175: ok | O175: 이벤트
B176: 172 | C176: 92 | D176: 불효자는 웁니다 | E176: Y2이앤티 | F176: 2016-11-15 | G176: 영수 | H176: 2016-11-15 | J176: 78860 | L176: 78860 | M176: 완납 | N176: ok | O176: 이벤트
B177: 173 | C177: 104 | D177: 엠씨더맥스콘서트 | E177: 공연마루 | F177: 2016-11-16 | G177: 영수 | H177: 2016-11-16 | J177: 4726810 | L177: 4726810 | M177: 미납 | N177: ok | O177: 이벤트
B178: 174 | C178: 101 | D178: 재규어 랜드로버 차량 전시행사 | E178: 런던모터스 | F178: 2016-11-17 | G178: 영수 | H178: 2016-11-17 | J178: 924000 | K178: 264000 | L178: 660000 | M178: 미납 | N178: ok | O178: 전시회 | Q178: 주간업무보고 완료(1124)
B179: 175 | C179: 67 | D179: 2016 대한민국 우수상품 할인전 | E179: ㈜ 동인앤컴 | F179: 2016-10-03 | G179: 청구 | H179: 2016-11-21 | J179: 312940 | L179: 312940 | M179: 완납 | N179: ok | O179: 전시회
B180: 176 | C180: 96 | D180: 오케스트라 음악회 | E180: 조준형 | F180: 2016-11-21 | G180: 현금 | H180: 2016-11-21 | J180: 1100000 | L180: 1100000 | M180: 완납 | N180: ok | O180: 이벤트
B181: 177 | C181: 98 | D181: 사랑의 음악회 및 재테크 설명회 | E181: 조은라이프 | F181: 2016-11-21 | G181: 영수 | H181: 2016-11-21 | J181: 3038190 | L181: 3038190 | M181: 완납 | N181: ok | O181: 이벤트
B182: 178 | C182: 174 | D182: 2017 환희&거미 콘서트 | E182: 예향미디어 | F182: 2016-10-03 | G182: 영수 | H182: 2016-11-21 | J182: 2000000 | L182: 2000000 | M182: 미납 | N182: ok | O182: 전시회
B183: 179 | C183: 302 | D183: 실내썰매&무지개물고기&오감만족체험전 | E183: 에이치엠디 | F183: 2016-11-22 | G183: 카드 | I183: 비씨(IBK) | J183: 10000000 | L183: 9773000 | M183: 완납 | N183: ok | O183: 이벤트
B184: 180 | C184: 302 | D184: 실내썰매&무지개물고기&오감만족체험전 | E184: 에이치엠디 | F184: 2016-11-22 | G184: 카드 | I184: 비씨(광주) | J184: 8000000 | L184: 7818400 | M184: 완납 | N184: ok | O184: 이벤트
B185: 181 | C185: 302 | D185: 실내썰매&무지개물고기&오감만족체험전 | E185: 에이치엠디 | F185: 2016-11-22 | G185: 카드 | I185: 비씨(광주) | J185: 8000000 | L185: 7818400 | M185: 완납 | N185: ok | O185: 이벤트
B186: 182 | C186: 302 | D186: 실내썰매&무지개물고기&오감만족체험전 | E186: 에이치엠디 | F186: 2016-11-22 | G186: 카드 | I186: 비씨(광주) | J186: 8000000 | L186: 7818400 | M186: 완납 | N186: ok | O186: 이벤트
B187: 183 | C187: 302 | D187: 실내썰매&무지개물고기&오감만족체험전 | E187: 에이치엠디 | F187: 2016-11-22 | G187: 카드 | I187: 비씨(광주) | J187: 7000000 | L187: 6841100 | M187: 완납 | N187: ok | O187: 이벤트
B188: 184 | C188: 302 | D188: 실내썰매&무지개물고기&오감만족체험전 | E188: 에이치엠디 | F188: 2016-11-22 | G188: 카드 | I188: 비씨(광주) | J188: 4000000 | L188: 3909200 | M188: 완납 | N188: ok | O188: 이벤트
B189: 185 | D189: 제 7회 빛고을 고객센터 한마음 페스티벌 | E189: 조선대학교 산학협력단 | F189: 2016-11-24 | G189: 카드 | I189: 비씨(광주) | J189: 2388940 | K189: 60990 | L189: 2292116 | M189: 완납 | N189: ok | O189: 이벤트
B190: 186 | C190: 99 | D190: 제 39회 대한민국웨딩산업박람회 | E190: 이노웨딩 | F190: 2016-11-25 | G190: 영수 | H190: 2016-11-25 | J190: 3493480 | K190: 461440 | L190: 3022040 | M190: 완납 | N190: ok | O190: 전시회 | Q190: 주간업무보고 완료(1201)
B191: 187 | C191: 103 | D191: 조용필 콘서트 | E191: KCTV 광주방송 | F191: 2016-11-29 | G191: 영수 | H191: 2016-11-29 | J191: 23151740 | K191: 2539180 | L191: 20612560 | M191: 완납 | N191: ok | O191: 이벤트
B192: 188 | C192: 90 | D192: 2016 핸드메이드 선물박람회 | E192: 광주공예협동조합 | F192: 2016-12-01 | G192: 영수 | H192: 2016-12-01 | J192: 13063680 | L192: 13063680 | M192: 완납 | N192: ok | O192: 전시회 | Q192: 주간업무보고 완료(1208)
B193: 189 | C193: 403 | D193: 에이디모션 콘서트(연말) | E193: ㈜에이디모 | F193: 2016-11-29 | G193: 영수 | H193: 2016-12-01 | J193: 847400 | L193: 847400 | M193: 완납 | N193: ok | O193: 이벤트 | P193: 2017년
B194: 190 | C194: 87 | D194: 더주현미쇼 | E194: ㈜더길 | F194: 2016-12-02 | G194: 영수 | H194: 2016-12-02 | J194: 1719430 | L194: 1719430 | M194: 완납 | N194: ok | O194: 이벤트
B195: 191 | C195: 89 | D195: KBC 건축박람회 | E195: KBC플러스 | F195: 2016-11-27 | G195: 영수 | H195: 2016-12-05 | J195: 16818770 | L195: 16818770 | M195: 완납 | N195: ok | O195: 전시회
B196: 192 | C196: 98 | D196: 사랑의 음악회 및 재테크 설명회 | E196: 조은라이프 | F196: 2016-12-08 | G196: 영수 | H196: 2016-12-08 | J196: 99840 | L196: 99840 | M196: 완납 | N196: ok | O196: 이벤트
B197: 193 | C197: 402 | D197: 일리네어레코즈 콘서트 | E197: ㈜일리네어 | F197: 2016-12-12 | G197: 영수 | H197: 2016-12-12 | J197: 308252 | L197: 308252 | M197: 완납 | N197: ok | O197: 이벤트 | P197: 2017년
B198: 194 | C198: 302 | D198: 실내썰매&무지개물고기&오감만족체험전 | E198: 에이치엠디 | F198: 2016-12-12 | G198: 영수 | H198: 2016-12-12 | J198: 50000000 | L198: 50000000 | M198: 완납 | N198: ok | O198: 이벤트
B199: 195 | C199: 302 | D199: 실내썰매&무지개물고기&오감만족체험전 | E199: 에이치엠디 | F199: 2016-12-12 | I199: 신한카드 | J199: 5000000 | L199: 4882500 | M199: 완납 | N199: ok | O199: 이벤트
B200: 196 | C200: 302 | D200: 실내썰매&무지개물고기&오감만족체험전 | E200: 에이치엠디 | F200: 2016-12-12 | I200: 비씨카드 | J200: 4000000 | L200: 3909200 | M200: 완납 | N200: ok | O200: 이벤트
B201: 197 | C201: 302 | D201: 실내썰매&무지개물고기&오감만족체험전 | E201: 에이치엠디 | F201: 2016-12-12 | I201: 비씨(광주) | J201: 1000000 | L201: 977300 | M201: 완납 | N201: ok | O201: 이벤트 | Q201: 주간업무보고 완료(1215)
... 55 more rows

Sheet 2018 (hidden)
B1: 2018년 전시회 및 이벤트 개최 현황
CK3: (단위 : 원)
B4: 구분 | C4: 행사명 | D4: 주최/주관 | E4: 주소 | F4: 임대기간 (설치, 철거일포함) | H4: 임대일수 | I4: 행사기간 | K4: 행사일수 | L4: 개최장소 | M4: 면적 (m²) | N4: 개최월 (행사시작기준) | O4: 홀 구분 (다목적) | Q4: 홀 구분 (전시장) | T4: 사용면적 (임대기간X임대면적) | U4: 전체 가동률(%) (이벤트 포함) | V4: 행사성격 (전시회/이벤트) | W4: 지역구분 (지역/ 타지역) | X4: 참가업체수 | Z4: 관람객수 | AA4: 업무추진 현황 | AV4: 할인율 | AW4: 계약현황 | BG4: 임대료 납부 | BV4: 사용료 정산 | CC4: 미수금 | CD4: 과오납금 | CE4: 입금상태 | CF4: 최종수입 | CG4: 담당자 | CH4: 연락처 | CI4: 핸드폰 | CJ4: 팩스 | CK4: 이메일 | CM4: 2017년 징수 | CN4: 2018년 징수 | CO4: 수입지출외현금 | CP4: 잡수익 | CQ4: 계
AA5: 신청서 | AB5: 견적서 | AC5: 사업자 등록증 | AD5: 계약서 | AF5: 이용 안내서 | AG5: 재해대책신고 | AI5: 행사관련자료 | AK5: 홈페이지 | AN5: 정산 | AU5: 비고 | AW5: 계약날짜 | AX5: 임대료 | BG5: 1차납부 | BI5: 2차납부 | BK5: 3차납부 | BM5: 4차납부 | BO5: 5차납부 | BQ5: 6차납부 | BS5: 7차납부 | BU5: 계
F6: 시작 | G6: 종료 | I6: 시작 | J6: 종료 | O6: 1 | P6: 2 | Q6: 1 | R6: 2 | S6: 3 | X6: 국내 | Y6: 해외 | AA6: 수신 | AB6: 발신 | AC6: 수신 | AD6: 발신 | AE6: 수신 | AF6: 발신 | AG6: 대상 | AH6: 도장 | AI6: 행사개요 | AJ6: vip명단 | AK6: 고객정보 | AL6: 행사개요 | AM6: 포스터 | AN6: 서류 발신 | AO6: 통장사본 | AP6: 과오납 반환 | AQ6: 세금계산서 | AR6: 징수결의 | AS6: 조정(추가징수)결의 | AT6: 완료 | AX6: 계약금 | AZ6: 중도금 | BB6: 잔금 | BD6: 예치금 | BF6: 계 (임대료+예치금) | BG6: 납부일 | BH6: 금액 | BI6: 납부일 | BJ6: 금액 | BK6: 납부일 | BL6: 금액 | BM6: 납부일 | BN6: 금액 | BO6: 납부일 | BP6: 금액 | BQ6: 납부일 | BR6: 금액 | BS6: 납부일 | BT6: 금액 | BV6: 임대료 | BW6: 위약금 | BX6: 시간외사용료 | BY6: 장비사용료 | BZ6: 전기사용료 | CA6: 냉난방사용료 | CB6: 계 | CF6: (징수액)
AX7: 납부기한 | AY7: 금액 | AZ7: 납부기한 | BA7: 금액 | BB7: 납부기한 | BC7: 금액 | BD7: 납부기한 | BE7: 금액
B8: 1 | C8: 다이노월드 in 광주 특별전 | D8: (주)에이치엠디 | F8: 2018-01-01 | G8: 2018-02-19 | H8: =G8-F8+1 -> 50 | I8: 2018-01-01 | J8: 2018-02-18 | K8: =J8-I8+1 -> 49 | L8: 제2전시장 | M8: 3024 | N8: 1 | R8: 1 | T8: =M8*H8 -> 151200 | U8: =T8/(9072*365) -> 0.04566210046 | V8: 장기이벤트 | W8: 지역 | AA8: 2017-12-12 | AB8: 2017-12-12 | AC8: 2017-12-12 | AD8: 2017-12-12 | AE8: 2017-12-12 | AI8: ○ | AK8: ○ | AL8: ○ | AM8: ○ | AQ8: ○ | AR8: ○ | AT8: ○ | AV8: 0.7 | AW8: 2017-12-12 | AX8: 2017-12-17 | AY8: =50000000-21875000 -> 28125000 | BB8: 2018-01-20 | BC8: 50000000 | BF8: =SUM(AY8,BA8,BC8,BE8) -> 78125000 | BG8: 2017-12-20 | BH8: =26000000-21875000 -> 4125000 | BI8: 2017-12-22 | BJ8: 4000000 | BK8: 2018-01-08 | BL8: 10000000 | BM8: 2018-01-25 | BN8: 10000000 | BO8: 2018-02-09 | BP8: 15000000 | BQ8: 2018-02-20 | BR8: =8000000+4000000 -> 12000000 | BS8: 2018-02-21 | BT8: =10000000+10000000+3000000 -> 23000000 | BU8: =SUM(BH8,BJ8,BL8,BN8,BP8,BR8,BT8) -> 78125000 | BV8: =SUM(AY8,BA8,BC8) -> 78125000 | CB8: =SUM(BV8:CA8) -> 78125000 | CC8: =IF(BU8<CB8,ROUNDDOWN(CB8-BU8,-1),0) -> 0 | CD8: =IF(BU8>CB8,ROUNDDOWN(BU8-CB8,-1),0) -> 0 | CE8: =IF(IF(CC8,0="완납",0<"미수"),"완납","미수") -> 완납 | CF8: =CB8 -> 78125000 | CG8: 이경록 대표 | CH8: 062-366-3242 | CI8: 010-6609-8721 | CJ8: 062-366-3247 | CK8: eventhan@hanmail.net | CN8: =CF8-CM8-CO8-CP8 -> 78125000 | CQ8: =SUM(CM8:CP8) -> 78125000
B9: =B8+1 -> 2 | C9: 제2회 GWC광주웨딩박람회 | D9: (유)와이투이엔티 | F9: 2018-01-04 | G9: 2018-01-07 | H9: 4 | I9: 2018-01-06 | J9: 2018-01-07 | K9: 2 | L9: 제3전시장 | M9: 1512 | N9: 1 | Q9: 1 | T9: 6048 | U9: 0.001826484018 | V9: 전시회 | W9: 지역 | AA9: 2017-11-20 | AB9: 2017-11-03 | AC9: 2017-10-31 | AD9: 2017-11-22 | AE9: 2017-11-22 | AF9: ○ | AI9: ○ | AK9: ○ | AL9: ○ | AM9: ○ | AN9: 2018-01-08 | AO9: ○ | AP9: ○ | AQ9: ○ | AR9: ○ | AS9: ○ | AT9: ○ | AV9: 0.16 | AW9: 2017-11-22 | AX9: 2017-11-22 | AY9: 3248220 | BB9: 2017-12-29 | BC9: 3248230 | BD9: 2017-12-29 | BE9: 3093550 | BF9: =SUM(AY9,BA9,BC9,BE9) -> 9590000 | BG9: 2018-01-02 | BH9: 9590000 | BU9: =SUM(BH9,BJ9,BL9,BN9,BP9,BR9,BT9) -> 9590000 | BV9: 6496450 | BX9: 866190 | BZ9: 299750 | CA9: 864860 | CB9: 8527250 | CC9: 0 | CD9: 1062750 | CE9: 완납 | CF9: =CB9 -> 8527250 | CG9: 이재희 과장 | CH9: 1566-6728 | CI9: 010-4138-5619 | CJ9: 062-719-3786 | CK9: y2ent-2@naver.com | CN9: =CF9-CM9-CO9-CP9 -> 8527250 | CQ9: =SUM(CM9:CP9) -> 8527250
B10: =B9+1 -> 3 | C10: 프랑스 목공소 | D10: (주)에이치엠디 | F10: 2018-01-17 | G10: 2018-02-18 | H10: 33 | I10: 2018-01-19 | J10: 2018-02-18 | K10: 31 | L10: 제1전시장 | M10: 3024 | N10: 1 | Q10: 1 | T10: 99792 | U10: 0.0301369863 | V10: 장기이벤트 | W10: 지역 | AA10: 2017-12-15 | AB10: 2017-12-15 | AC10: 2017-12-15 | AD10: 2017-12-18 | AE10: 2017-12-18 | AI10: ○ | AK10: ○ | AL10: ○ | AM10: ○ | AQ10: ○ | AR10: ○ | AT10: ○ | AV10: 0.7 | AW10: 2017-12-18 | AX10: 2018-01-16 | AY10: 25500000 | BB10: 2018-02-07 | BC10: 25500000 | BF10: 51000000 | BG10: 2018-01-25 | BH10: 20000000 | BI10: 2018-01-26 | BJ10: 5500000 | BK10: 2018-02-28 | BL10: 25500000 | BU10: 51000000 | BV10: 51000000 | CB10: 51000000 | CC10: 0 | CD10: 0 | CE10: 완납 | CF10: 51000000 | CG10: 이경록 대표 | CH10: 062-366-3242 | CI10: 010-6609-8721 | CJ10: 062-366-3247 | CK10: eventhan@hanmail.net | CN10: 51000000 | CQ10: =SUM(CM10:CP10) -> 51000000
B11: =B10+1 -> 4 | C11: 코오롱하늘채 입주박람회 | D11: (주)미래전자신창지점 | F11: 2018-01-12 | G11: 2018-01-14 | H11: 3 | I11: 2018-01-13 | J11: 2018-01-14 | K11: 2 | L11: 제3전시장 | M11: 3024 | N11: 1 | S11: 1 | T11: 9072 | U11: 0.002739726027 | V11: 전시회 | W11: 지역 | AA11: 2017-10-27 | AB11: 2017-10-26 | AC11: 2017-10-27 | AD11: 2018-12-19 | AE11: 2018-12-19 | AF11: ○ | AK11: ○ | AL11: ○ | AM11: ○ | AN11: 2018-01-15 | AO11: ○ | AP11: ○ | AQ11: ○ | AR11: ○ | AS11: ○ | AT11: ○ | AV11: 0.3 | AW11: 2017-12-19 | AX11: 2017-12-19 | AY11: 5413710 | BB11: 2018-01-05 | BC11: 5413720 | BD11: =BB11 -> 2018-01-05 | BE11: 3093550 | BF11: =SUM(AY11,BA11,BC11,BE11) -> 13920980 | BG11: 2018-01-02 | BH11: 13920980 | BU11: 13920980 | BV11: 10827430 | BZ11: 218180 | CA11: 864860 | CB11: 11910470 | CC11: 0 | CD11: 2010510 | CE11: 완납 | CF11: 11910470 | CG11: 정언유 지점장 | CH11: 062-529-7016 | CI11: 010-9053-0578 | CJ11: 062-529-7020 | CK11: juy391@nate.com | CN11: 11910470 | CQ11: 11910470
B12: 5 | C12: 2018 광주웨딩페어 | D12: (주)페어스커뮤니케이션즈 | F12: 2018-02-02 | G12: 2018-02-04 | H12: 3 | I12: 2018-02-03 | J12: 2018-02-04 | K12: 2 | L12: 제3전시장 | M12: 1512 | N12: 2 | S12: 1 | T12: 4536 | U12: 0.001369863014 | V12: 전시회 | W12: 타지역 | AA12: 2017-12-19 | AB12: 2018-01-08 | AC12: 2017-12-19 | AD12: 2018-01-08 | AE12: 2018-01-08 | AK12: ○ | AL12: ○ | AM12: ○ | AN12: 2018-02-05 | AO12: ○ | AP12: ○ | AQ12: ○ | AR12: ○ | AS12: ○ | AT12: ○ | AV12: 0.16 | AW12: 2018-01-08 | AX12: 2018-01-08 | AY12: 3248220 | BB12: 2018-01-26 | BC12: 3248230 | BD12: =BB12 -> 2018-01-26 | BE12: 3093550 | BF12: 9590000 | BG12: 2018-01-18 | BH12: 3248220 | BI12: 2018-01-29 | BJ12: 6341780 | BU12: 9590000 | BV12: 6496450 | BX12: 649640 | BZ12: 301980 | CA12: 864860 | CB12: 8312930 | CC12: 0 | CD12: 1277070 | CE12: 완납 | CF12: 8312930 | CG12: 유영호 | CH12: 031-698-2573 | CI12: 010-7114-8401 | CJ12: 062-698-2369 | CK12: jae0124_@naver.com | CN12: 8312930 | CQ12: 8312930
B13: 6 | C13: 광주전북게임전시회(G2 페스타) | D13: (재)광주정보문화산업진흥원 | F13: 2018-02-21 | G13: 2018-02-25 | H13: 5 | I13: 2018-02-23 | J13: 2018-02-25 | K13: 3 | L13: 제2,3전시장 | M13: 6048 | N13: 2 | R13: 1 | S13: 1 | T13: 30240 | U13: 0.009132420091 | V13: 전시회 | W13: 지역 | AA13: 2017-08-02 | AB13: 2017-08-02 | AC13: 2017-06-05 | AD13: 2017-09-14 | AE13: 2017-09-14 | AI13: ○ | AJ13: ○ | AK13: ○ | AL13: ○ | AM13: ○ | AN13: 2018-02-26 | AO13: - | AQ13: ○ | AR13: ○ | AT13: ○ | AV13: 0.3 | AW13: 2017.09.14 | AX13: 2017-06-30 | AY13: =28939680-4823280 -> 24116400 | BB13: 2017-12-14 | BC13: 11975040 | BD13: 2017.06.30 2017.12.14 | BE13: =4823280+5448560 -> 10271840 | BF13: 46363280 | BG13: 2017-06-30 | BH13: 28939680 | BI13: 2017.09.15 | BJ13: 18669420 | BU13: 47609100 | BV13: =SUM(AY13,BA13,BC13) -> 36091440 | BW13: 1205820 | BX13: 5774630 | BZ13: 572180 | CA13: =3459450+505580 -> 3965030 | CB13: 47609100 | CC13: 0 | CD13: 0 | CE13: 완납 | CF13: 18669420 | CG13: 유민수 | CH13: 062-610-2462 | CI13: 010-2007-3210 | CJ13: 062-671-2450 | CK13: pioo@gitct.or.kr | CM13: 28939680 | CN13: -10270260 | CQ13: 18669420
B14: 7 | C14: 청년의 미래를 여는 KOREA Job Tour Festival 2018 | D14: (주)커리어넷 | F14: 2018-02-26 | G14: 2018-02-26 | H14: 1 | I14: 2018-02-26 | J14: 2018-02-26 | K14: 1 | L14: 제2전시장 | M14: 3024 | N14: 2 | R14: 1 | T14: 3024 | U14: 0.0009132420091 | V14: 전시회 | W14: 타지역 | AA14: 2018-02-09 | AB14: 2018-02-12 | AC14: 2018-02-14 | AD14: 2018-02-14 | AE14: 2018-03-05 | AF14: ○ | AK14: ○ | AL14: ○ | AM14: ○ | AN14: 2018-02-27 | AO14: - | AQ14: ○ | AR14: ○ | AS14: ○ | AT14: ○ | AV14: 0.3 | AW14: 2018-02-14 | AX14: =AW14 -> 2018-02-14 | AY14: 3067770 | BB14: 2018-02-19 | BC14: 3067770 | BD14: =BB14 -> 2018-02-19 | BE14: 1031180 | BF14: 7166720 | BG14: 2018-02-14 | BH14: 7166720 | BI14: 2018-03-13 | BJ14: 553610 | BU14: 7720330 | BV14: 3609140 | BX14: 3609140 | BZ14: 69620 | CA14: 432430 | CB14: 7720330 | CC14: 0 | CD14: 0 | CE14: 완납 | CF14: 7720330 | CG14: 조정환 과장 | CH14: 02-2006-6191 | CI14: 010-2169-2758 | CJ14: 02-2006-9594 | CK14: jhcho@career.co.kr | CN14: 7720330 | CQ14: 7720330
B15: 8 | C15: DIY가구전시회 & 인테리어소품전 | D15: 에이치엠디 | F15: 2018-02-27 | G15: 2018-03-04 | H15: 6 | I15: 2018-03-02 | J15: 2018-03-04 | K15: 3 | L15: 제1전시장 | M15: 3024 | N15: 3 | Q15: 1 | T15: 18144 | U15: 0.005479452055 | V15: 전시회 | W15: 지역 | AA15: 2018-01-26 | AB15: 2018-01-26 | AC15: 2018-01-26 | AD15: 2018-01-26 | AE15: 2018-01-26 | AK15: ○ | AL15: ○ | AM15: ○ | AN15: 2018-03-05 | AO15: - | AQ15: ○ | AR15: ○ | AT15: ○ | AU15: 유망전시회 | AV15: 0 | AW15: 2018-01-26 | AX15: 2018-01-26 | AY15: 13920980 | BB15: 2018-02-20 | BC15: 13920980 | BD15: =BB15 -> 2018-02-20 | BE15: 6187100 | BF15: 34029060 | BG15: 2018-02-27 | BH15: 10000000 | BI15: 2018-02-28 | BJ15: 3920980 | BK15: 2018-03-06 | BL15: =6230000+5720000+880000+2500000+158810 -> 15488810 | BU15: 29409790 | BV15: 27841960 | BZ15: 104220 | CA15: 1463610 | CB15: 29409790 | CC15: 0 | CD15: 0 | CE15: 완납 | CF15: 29409790 | CG15: 이경록 대표 | CH15: 062-366-3242 | CI15: 010-6609-8721 | CJ15: 062-366-3247 | CK15: eventhan@hanmail.net | CN15: 29409790 | CQ15: 29409790
B16: 9 | C16: 제4회 광주펫쇼 | D16: (유)와이투이엔티 | F16: 2018-02-28 | G16: 2018-03-04 | H16: 5 | I16: 2018-03-02 | J16: 2018-03-04 | K16: 3 | L16: 제3전시장 | M16: 3024 | N16: 3 | S16: 1 | T16: 15120 | U16: 0.004566210046 | V16: 전시회 | W16: 지역 | AA16: 2017-06-09 | AB16: 2018-01-08 | AC16: 2017-06-09 | AD16: 2018-01-08 | AE16: 2018-01-08 | AF16: ○ | AK16: ○ | AL16: ○ | AM16: ○ | AN16: 2018-03-05 | AO16: ○ | AP16: ○ | AQ16: ○ | AR16: ○ | AS16: ○ | AT16: ○ | AU16: 유망전시회 | AV16: 0 | AW16: 2018-01-08 | AX16: 2018-01-08 | AY16: 12116410 | BB16: 2018-02-21 | BC16: 12116410 | BD16: =BB16 -> 2018-02-21 | BE16: 5155920 | BF16: 29388740 | BG16: 2018-02-09 | BH16: 12116410 | BI16: 2018-02-21 | BJ16: 17272330 | BU16: 29388740 | BV16: =SUM(AY16,BA16,BC16) -> 24232820 | BX16: 1031180 | BZ16: 231320 | CA16: 731800 | CB16: 26227120 | CC16: =IF(BU16<CB16,ROUNDDOWN(CB16-BU16,-1),0) -> 0 | CD16: =IF(BU16>CB16,ROUNDDOWN(BU16-CB16,-1),0) -> 3161620 | CE16: 완납 | CF16: =CB16 -> 26227120 | CG16: 이재희 과장 | CH16: 1566-6728 | CI16: 010-4138-5619 | CJ16: 062-719-3786 | CK16: y2ent-2@naver.com jae0124_@naver.com | CN16: 26227120 | CQ16: 26227120
B17: 10 | C17: SWEET 2018 | D17: 김대중컨벤션센터 | F17: 2018-03-11 | G17: 2018-03-17 | H17: 7 | I17: 2018-03-14 | J17: 2018-03-16 | K17: 3 | L17: 제1,2,3전시장, 다목적홀 | M17: =9072+2955 -> 12027 | N17: 3 | O17: 1 | P17: 1 | Q17: 1 | R17: 1 | S17: 1 | T17: 84189 | U17: 0.02542491121 | V17: 전시회 | W17: 지역 | AK17: ○ | AL17: ○ | AM17: ○ | AT17: ○ | AV17: - | AW17: 주관행사 | AY17: 0 | BA17: 0 | BC17: 0 | BE17: 0 | BF17: 0 | BU17: 0 | BV17: =SUM(AY17,BA17,BC17) -> 0 | CB17: 0 | CC17: =IF(BU17<CB17,ROUNDDOWN(CB17-BU17,-1),0) -> 0 | CD17: =IF(BU17>CB17,ROUNDDOWN(BU17-CB17,-1),0) -> 0 | CE17: 완납 | CF17: =CB17 -> 0 | CG17: 김소연 | CH17: 062-611-2215 | CI17: 010-2980-3111 | CJ17: 062-611-2239 | CK17: sykim7@kdjcenter.or.kr | CN17: 0 | CQ17: 0
B18: 11 | C18: 2018 KBC 맘앤베이비페어 | D18: (주)KBC플러스 | F18: 2018-03-20 | G18: 2018-03-25 | H18: 6 | I18: 2018-03-22 | J18: 2018-03-25 | K18: 4 | L18: 제2,3전시장 | M18: 4536 | N18: 3 | R18: 1 | S18: 1 | T18: 27216 | U18: 0.008219178082 | V18: 전시회 | W18: 지역 | AA18: 2017.06.21 | AB18: 2018-01-15 | AC18: 2018-03-06 | AD18: 2018-03-06 | AE18: 2018-03-06 | AK18: ○ | AL18: ○ | AM18: ○ | AN18: 2018-03-26 | AO18: - | AQ18: ○ | AR18: ○ | AT18: ○ | AU18: 납부유예 | AV18: 0.4 | AW18: 2018-03-06 | AX18: =AW18 -> 2018-03-06 | AY18: 14849040 | BB18: 2017-03-13 | BC18: 14849050 | BD18: =BB18 -> 2017-03-13 | BE18: 12374200 | BF18: 42072290 | BG18: 2018-03-12 | BH18: 14849040 | BI18: 2018-04-02 | BJ18: 21672750 | BU18: 36521790 | BV18: =SUM(AY18,BA18,BC18) -> 29698090 | BW18: 1095630 | BX18: =1856130+1113670 -> 2969800 | BZ18: 562850 | CA18: 2195420 | CB18: 36521790 | CC18: =IF(BU18<CB18,ROUNDDOWN(CB18-BU18,-1),0) -> 0 | CD18: =IF(BU18>CB18,ROUNDDOWN(BU18-CB18,-1),0) -> 0 | CE18: 완납 | CF18: =CB18 -> 36521790 | CG18: 엄윤서 과장 | CH18: 062-650-3048 | CI18: 010-6669-0003 | CJ18: 062-710-3359 | CK18: kbc0003@naver.com | CN18: 36521790 | CQ18: 36521790
B19: 12 | C19: 2018 광주경향하우징페어 | D19: (주)이상네트웍스 | F19: 2018-03-27 | G19: 2018-04-02 | H19: 7 | I19: 2018-03-29 | J19: 2018-04-01 | K19: 4 | L19: 제2전시장 | M19: 3024 | N19: 3 | S19: 1 | T19: 21168 | U19: 0.006392694064 | V19: 전시회 | W19: 타지역 | AA19: 2018-01-22 | AB19: 2018-01-25 | AC19: 2018-01-26 | AD19: 2018.01.25 2018.02.14 | AE19: 2018.01.26 2018.03.09 | AK19: ○ | AL19: ○ | AM19: ○ | AN19: 2018-04-02 | AO19: ○ | AP19: ○ | AQ19: ○ | AR19: ○ | AS19: ○ | AT19: ○ | AV19: 0 | AW19: 2018.01.26 2018.02.13 | AX19: 2018.01.26 2018.02.13 | AY19: 18045720 | BB19: 2017-03-20 | BC19: 18045720 | BD19: =BB19 -> 2017-03-20 | BE19: 7218280 | BF19: 43309720 | BG19: 2018-02-20 | BH19: 18045720 | BI19: 2018-03-20 | BJ19: 25264000 | BU19: 43309720 | BV19: 36091440 | BX19: 1546770 | BZ19: 173660 | CB19: 37811870 | CC19: 0 | CD19: 5497850 | CE19: 완납 | CF19: 37811870 | CG19: 김보라 부장 | CH19: 02-3397-0066 | CI19: 010-8557-2486 | CJ19: 02-3397-0067 | CK19: fair@e-sang.net | CN19: 37811870 | CQ19: 37811870
B20: 13 | C20: 2018 광주리빙앤라이프스타일 | D20: (주)이상네트웍스 | F20: 2018-03-27 | G20: 2018-04-01 | H20: 6 | I20: 2018-03-29 | J20: 2018-04-01 | K20: 4 | L20: 제3전시장 | M20: 3024 | N20: 3 | R20: 1 | T20: 18144 | U20: 0.005479452055 | V20: 전시회 | W20: 타지역 | AA20: 2018-01-22 | AB20: 2018-01-25 | AC20: 2018-01-26 | AD20: 2018.01.25 2018.02.14 | AE20: 2018.01.26 2018.03.09 | AK20: ○ | AL20: ○ | AM20: ○ | AN20: 2018-04-02 | AO20: ○ | AP20: ○ | AQ20: ○ | AR20: ○ | AS20: ○ | AT20: ○ | AV20: 0 | AW20: 2018.01.26 2018.02.13 | AX20: 2018.01.26 2018.02.13 | AY20: 15467760 | BB20: 2017-03-20 | BC20: 15467760 | BD20: =BB20 -> 2017-03-20 | BE20: 6187100 | BF20: 37122620 | BG20: 2018-02-20 | BH20: 15467760 | BI20: 2018-03-15 | BJ20: 21654860 | BU20: =SUM(BH20,BJ20,BL20,BN20,BP20,BR20,BT20) -> 37122620 | BV20: 30935520 | BX20: 1546770 | BZ20: 157440 | CB20: 32639730 | CC20: 0 | CD20: 4482890 | CE20: 완납 | CF20: 32639730 | CG20: 허영롱 차장 | CH20: 02-3397-0077 | CI20: 010-9486-5436 | CJ20: 02-3397-0067 | CK20: heoyr@e-sang.net | CN20: 32639730 | CQ20: 32639730
B21: 14 | C21: 폭스바겐 차량 홍보전 | D21: (주)지이오하우스 | F21: 2018-03-28 | G21: 2018-04-01 | H21: 5 | I21: 2018-03-29 | J21: 2018-04-01 | K21: 4 | L21: 야외전시장 | M21: 50 | N21: 3 | T21: 250 | U21: 7.549950472e-05 | V21: 전시회 | W21: 지역 | AA21: 2018-03-26 | AB21: 2018-03-26 | AC21: 2018-03-26 | AD21: 2018-03-26 | AE21: 2018-03-27 | AN21: - | AO21: - | AQ21: ○ | AR21: ○ | AT21: ○ | AV21: 0 | AW21: 2018-03-27 | AX21: 2018-03-27 | AY21: 60500 | BF21: 60500 | BG21: 2018-03-27 | BH21: 60500 | BU21: =SUM(BH21,BJ21,BL21,BN21,BP21,BR21,BT21) -> 60500 | BV21: 60500 | CB21: 60500 | CC21: 0 | CD21: 0 | CE21: 완납 | CF21: 60500 | CG21: 홍기산 주임 | CH21: 063-213-9500 | CI21: 010-4213-5432 | CJ21: 063-226-9504 | CK21: gisanhong@vwgiohaus.com | CN21: 60500 | CQ21: 60500
B22: 15 | C22: 곳장 | D22: 미스고 | F22: 2018-03-30 | G22: 2018-03-31 | H22: 2 | I22: 2018-03-30 | J22: 2018-03-31 | K22: 2 | L22: 상설전시장 | M22: 1000 | N22: 3 | T22: 2000 | U22: 0.0006039960378 | V22: 전시회 | W22: 타지역 | AA22: 2018-02-28 | AB22: 2018-02-28 | AC22: 2018-02-28 | AD22: 2018-02-28 | AE22: 2018-03-28 | AF22: ○ | AN22: - | AO22: - | AQ22: ○ | AR22: ○ | AT22: ○ | AV22: 0 | AW22: 2018-03-02 | AX22: 2018-03-02 | AY22: 1960750 | BB22: 2018-03-23 | BC22: 1960750 | BF22: 3921500 | BG22: 2018-03-02 | BH22: 1960750 | BI22: 2018-03-25 | BJ22: 1960750 | BU22: 3921500 | BV22: =SUM(AY22,BA22,BC22) -> 3921500 | CB22: 3921500 | CC22: =IF(BU22<CB22,ROUNDDOWN(CB22-BU22,-1),0) -> 0 | CD22: =IF(BU22>CB22,ROUNDDOWN(BU22-CB22,-1),0) -> 0 | CE22: 완납 | CF22: =CB22 -> 3921500 | CG22: 허지연 대표 | CH22: 062-234-0412 | CI22: 010-6622-0412 | CK22: gotjang2018@naver.com | CN22: 3921500 | CQ22: 3921500
B23: 16 | C23: 2018 광주 APT 입주박람회 | D23: (유)와이투이엔티 | F23: 2018-04-06 | G23: 2018-04-08 | H23: 3 | I23: 2018-04-07 | J23: 2018-04-08 | K23: 2 | L23: 제2전시장 | M23: 1512 | N23: 4 | Q23: 1 | T23: 4536 | U23: 0.001369863014 | V23: 전시회 | W23: 지역 | AA23: 2018-03-21 | AB23: 2018-03-21 | AC23: 2018-03-21 | AD23: 2018-03-21 | AE23: 2018-03-21 | AK23: ○ | AL23: ○ | AM23: ○ | AN23: 2018-04-09 | AO23: ○ | AP23: ○ | AQ23: ○ | AR23: ○ | AS23: ○ | AT23: ○ | AV23: -0.2 | AW23: 2018-03-21 | AX23: 2018-03-21 | AY23: 4640320 | BB23: 2018-04-06 | BC23: 4640330 | BD23: =BB23 -> 2018-04-06 | BE23: 3093550 | BF23: 12374200 | BG23: 2018-04-02 | BH23: 12374200 | BU23: =SUM(BH23,BJ23,BL23,BN23,BP23,BR23,BT23) -> 12374200 | BV23: =SUM(AY23,BA23,BC23) -> 9280650 | BX23: 618710 | BZ23: 70960 | CB23: 9970320 | CC23: =IF(BU23<CB23,ROUNDDOWN(CB23-BU23,-1),0) -> 0 | CD23: =IF(BU23>CB23,ROUNDDOWN(BU23-CB23,-1),0) -> 2403880 | CE23: 완납 | CF23: =CB23 -> 9970320 | CG23: 이재희 과장 | CH23: 1566-6728 | CI23: 010-4138-5619 | CJ23: 062-719-3786 | CK23: y2ent-2@naver.com | CN23: 9970320 | CQ23: 9970320
B24: 17 | C24: HODEX 2018 | D24: 전라남도치과의사회/ (주)네오엑스포 | F24: 2018-04-12 | G24: 2018-04-15 | H24: 4 | I24: 2018-04-14 | J24: 2018-04-15 | K24: 2 | L24: 제2,3전시장 | M24: 6048 | N24: 4 | R24: 1 | S24: 1 | T24: =M24*H24-3024 -> 21168 | U24: 0.006392694064 | V24: 전시회 | W24: 지역 | AA24: - | AB24: 2017-08-29 | AC24: 2017-10-13 | AD24: 2017-10-13 | AE24: 2017-10-16 | AF24: 2018-03-19 | AK24: ○ | AL24: ○ | AM24: ○ | AN24: 2018-04-16 | AO24: - | AQ24: ○ | AR24: ○ | AT24: ○ | AU24: 납부유예 일정추가 | AV24: 0 | AW24: 2017.10.13 2018.03.20 | AX24: 2018-03-20 | AY24: 18045720 | BB24: 2018-04-05 | BC24: 18045720 | BD24: 2018-04-05 | BE24: 7218280 | BF24: 43309720 | BG24: 2017-10-16 | BH24: 6187100 | BI24: 2018-04-24 | BJ24: 31225600 | BU24: 37412700 | BV24: 36091440 | BX24: 1031180 | BZ24: 290080 | CB24: 37412700 | CC24: 0 | CD24: 0 | CE24: 완납 | CF24: 37412700 | CG24: 윤현식 총무이사 | CH24: 061-375-7528 | CI24: 010-2023-9413 | CK24: gusipgu@hanmail.net | CN24: 37412700 | CQ24: 37412700
B25: 18 | C25: 2018 광주맘아랑베이비페어 | D25: 광주문화방송(주) | F25: 2018-04-17 | G25: 2018-04-22 | H25: 6 | I25: 2018-04-19 | J25: 2018-04-22 | K25: 4 | L25: 제2,3전시장 | M25: 6048 | N25: 4 | R25: 1 | S25: 1 | T25: =M25*H25 -> 36288 | U25: 0.01095890411 | V25: 전시회 | W25: 지역 | AA25: 2017.06.29 | AB25: 2018-02-28 | AC25: 2018-03-12 | AD25: 2018-03-13 | AE25: 2018-03-27 | AK25: ○ | AL25: ○ | AM25: ○ | AN25: 2018-04-23 | AO25: - | AQ25: ○ | AR25: ○ | AT25: ○ | AU25: 납부유예 | AV25: 0.2 | AW25: 2018-04-01 | AX25: 2018-04-01 | AY25: =9899360+14849050 -> 24748410 | BB25: 2018-04-10 | BC25: 24748420 | BD25: 2018-04-10 | BE25: 12374200 | BF25: 61871030 | BG25: 2018-04-12 | BH25: 24748410 | BI25: 2018-05-03 | BJ25: 29584300 | BU25: 54332710 | BV25: 49496830 | BX25: 4124730 | BZ25: 711150 | CB25: 54332710 | CC25: 0 | CD25: 0 | CE25: 완납 | CF25: 54332710 | CG25: 이원석 차장 | CH25: 062-360-2623 | CI25: 010-7252-9133 | CJ25: 062-360-2476 | CK25: wonseok10@hanmail.net | CN25: 54332710 | CQ25: 54332710
B26: 19 | C26: 2018 더스테이지 빅 플레저 | D26: sbs플러스 | F26: 2018-04-18 | G26: 2018-04-19 | H26: 2 | I26: 2018-04-19 | J26: 2018-04-19 | K26: 1 | L26: 다목적홀 | M26: 2955 | N26: 4 | O26: 1 | P26: 1 | T26: 5910 | U26: 0.001784808292 | V26: 이벤트 | W26: 타지역 | AA26: 2018-02-12 | AB26: 2018-02-12 | AC26: 2018-02-12 | AD26: 2018-03-20 | AE26: 2018-03-19 | AF26: 2018-02-14 | AG26: ○ | AH26: ○ | AN26: 2018-04-20 | AO26: - | AQ26: ○ | AR26: ○ | AS26: ○ | AT26: ○ | AV26: 0 | AW26: 2018-03-19 | AX26: 2018-03-23 | AY26: 8115440 | BB26: 2018-04-11 | BC26: 8115450 | BD26: 2018-04-11 | BE26: 3081470 | BF26: 19312360 | BG26: 2018-03-23 | BH26: 8115440 | BI26: 2018-04-18 | BJ26: 11196920 | BK26: 2018-05-31 | BL26: 1925710 | BU26: 21238070 | BV26: =SUM(AY26,BA26,BC26)-3905000 -> 12325890 | BX26: =924440+3851840 -> 4776280 | BY26: =1540000+220000+2145000 -> 3905000 | BZ26: 230900 | CB26: 21238070 | CC26: =IF(BU26<CB26,ROUNDDOWN(CB26-BU26,-1),0) -> 0 | CD26: =IF(BU26>CB26,ROUNDDOWN(BU26-CB26,-1),0) -> 0 | CE26: 완납 | CF26: =CB26 -> 21238070 | CG26: 최윤영 차장 | CH26: 02-6938-1371 | CI26: 010-3160-5639 | CK26: zzuris@sbs.co.kr | CN26: 21238070 | CQ26: 21238070
B27: 20 | C27: 2018 금산인삼 광주 특별전 | D27: 금산군/(주)인엠디자인 | F27: 2018-04-18 | G27: 2018-04-22 | H27: 5 | I27: 2018-04-19 | J27: 2018-04-22 | K27: 4 | L27: 제1전시장 | M27: 1512 | N27: 4 | Q27: 1 | T27: 7560 | U27: 0.002283105023 | V27: 전시회 | W27: 타지역 | AA27: 2018.03.23 | AB27: 2018.03.23 | AC27: 2018-03-23 | AD27: 2018-03-29 | AE27: 2018-03-27 | AF27: 2018-03-07 | AK27: ○ | AL27: ○ | AM27: ○ | AN27: 2018-04-23 | AO27: ○ | AP27: ○ | AQ27: ○ | AR27: ○ | AS27: ○ | AT27: ○ | AV27: -0.2 | AW27: 2018-03-27 | AX27: 2018-03-27 | AY27: 7733880 | BB27: 2018-04-11 | BC27: 7733880 | BD27: 2018-04-11 | BE27: 5155920 | BF27: 20623680 | BG27: 2018-03-26 | BH27: 20623680 | BU27: 20623680 | BV27: =SUM(AY27,BA27,BC27) -> 15467760 | BX27: 618710 | BZ27: 298400 | CB27: 16384870 | CC27: =IF(BU27<CB27,ROUNDDOWN(CB27-BU27,-1),0) -> 0 | CD27: =IF(BU27>CB27,ROUNDDOWN(BU27-CB27,-1),0) -> 4238810 | CE27: 완납 | CF27: =CB27 -> 16384870 | CG27: 김봉년 본부장 | CH27: 041-750-2643 | CI27: 010-5062-8220 | CJ27: 041-751-6294 | CK27: geumsan2018@naver.com | CN27: 16384870 | CQ27: 16384870
B28: 21 | C28: 벚꽃스캔들 | D28: 엠앤엠 엔터테인먼트 | F28: 2018-04-21 | G28: 2018-04-21 | H28: 1 | I28: 2018-04-21 | J28: 2018-04-21 | K28: 1 | L28: 제1다목적홀 | M28: 1478 | N28: 4 | O28: 1 | T28: 1478 | U28: 0.0004463530719 | V28: 이벤트 | W28: 타지역 | AA28: 2018-01-16 | AB28: 2018-01-19 | AC28: 2018-01-16 | AD28: 2018-04-10 | AE28: 2018-04-09 | AF28: ○ | AN28: 2018-04-23 | AQ28: ○ | AR28: ○ | AT28: ○ | AV28: 0 | AW28: 2018-04-09 | AX28: =AW28 -> 2018-04-09 | AY28: 2504540 | BB28: 2018-04-14 | BC28: 2504540 | BD28: 2018-04-14 | BE28: 770620 | BF28: 5779700 | BG28: 2018-04-15 | BH28: 5779700 | BU28: 5779700 | BV28: =SUM(AY28,BA28,BC28)-1050858*1.1+3.8 -> 3853140 | BX28: =1541250-770630 -> 770620 | BY28: =1716000-661100 -> 1054900 | BZ28: =100620+420 -> 101040 | CB28: 5779700 | CC28: =IF(BU28<CB28,ROUNDDOWN(CB28-BU28,-1),0) -> 0 | CD28: =IF(BU28>CB28,ROUNDDOWN(BU28-CB28,-1),0) -> 0 | CE28: 완납 | CF28: =CB28 -> 5779700 | CG28: 장윤호 대표 | CH28: 053-625-9222 | CI28: 010-5068-9222 | CK28: axl88@hanmail.net | CN28: 5779700 | CQ28: 5779700
B29: 22 | C29: 2018 광주국제뿌리산업전 | D29: 김대중컨벤션센터 | F29: 2018-04-23 | G29: 2018-04-29 | H29: 7 | I29: 2018-04-25 | J29: 2018-04-27 | K29: 3 | L29: 제1,2,3전시장, 다목적홀 | M29: =9072+2955 -> 12027 | N29: 4 | O29: 1 | P29: 1 | Q29: 1 | R29: 1 | S29: 1 | T29: 84189 | U29: 0.02542491121 | V29: 전시회 | W29: 지역 | AK29: ○ | AL29: ○ | AM29: ○ | AT29: ○ | AV29: - | AW29: 주관행사 | AY29: 0 | BA29: 0 | BC29: 0 | BE29: 0 | BF29: 0 | BU29: 0 | BV29: 0 | CB29: 0 | CC29: 0 | CD29: 0 | CE29: 완납 | CF29: 0 | CG29: 박민아 | CH29: 062-611-2216 | CI29: 010-2616-0670 | CJ29: 062-611-2239 | CK29: mapark@kdjcenter.or.kr | CN29: 0 | CQ29: 0
B30: 23 | C30: 퍼펙트&피닉스컵 2차대회 | D30: (주)홍인터내셔날 | F30: 2018-04-29 | G30: 2018-04-29 | H30: 1 | I30: 2018-04-29 | J30: 2018-04-29 | K30: 1 | L30: 다목적홀 | M30: 2955 | N30: 4 | O30: 1 | P30: 1 | T30: 2955 | U30: 0.0008924041458 | V30: 이벤트 | W30: 타지역 | AA30: 2018-04-05 | AB30: 2018-04-05 | AC30: 2018-04-23 | AD30: 2018-04-16 | AE30: 2018-04-23 | AF30: ○ | AK30: ○ | AL30: ○ | AM30: ○ | AN30: 2018-04-23 | AQ30: ○ | AR30: ○ | AS30: ○ | AT30: ○ | AV30: 0 | AW30: 2018-04-23 | AX30: =AW30 -> 2018-04-23 | AY30: 5760700 | BB30: 2018-04-22 | BC30: 5760700 | BD30: =BB30 -> 2018-04-22 | BE30: 1300200 | BF30: 12821600 | BG30: 2018-04-20 | BH30: 12821600 | BI30: 2018-05-04 | BJ30: 954830 | BU30: =SUM(BH30,BJ30,BL30,BN30,BP30,BR30,BT30) -> 13776430 | BV30: 6501000 | BX30: 4550700 | BY30: =770000+110000+1100000+550000 -> 2530000 | BZ30: 194730 | CB30: 13776430 | CC30: =IF(BU30<CB30,ROUNDDOWN(CB30-BU30,-1),0) -> 0 | CD30: =IF(BU30>CB30,ROUNDDOWN(BU30-CB30,-1),0) -> 0 | CE30: 완납 | CF30: =CB30 -> 13776430 | CG30: 박성진 팀장 | CH30: 02-6124-6724 | CI30: 010-9995-7785 | CJ30: 02-6124-6759 | CK30: psj1982@darts.kr | CN30: 13776430 | CQ30: 13776430
B31: 24 | C31: 현대기아자동차 협력사 채용박람회 | D31: (주)커리어넷 | F31: 2018-05-02 | G31: 2018-05-03 | H31: 2 | I31: 2018-05-03 | J31: 2018-05-03 | K31: 1 | L31: 제1전시장 | M31: 3024 | N31: 5 | Q31: 1 | T31: 6048 | U31: 0.001826484018 | V31: 전시회 | W31: 타지역 | AA31: 2018-03-15 | AB31: 2018-03-13 | AC31: 2018-03-15 | AD31: 2018-03-26 | AE31: 2018-04-11 | AF31: 2018-04-26 | AK31: ○ | AL31: ○ | AM31: ○ | AN31: 2018-05-04 | AO31: ○ | AP31: ○ | AQ31: ○ | AR31: ○ | AS31: ○ | AT31: ○ | AV31: 0 | AW31: 2018-03-26 | AX31: =AW31 -> 2018-03-26 | AY31: =2062360+3093560 -> 5155920 | BB31: 2018-04-25 | BC31: 5155920 | BD31: =BB31 -> 2018-04-25 | BE31: 2062360 | BF31: 12374200 | BG31: 2018-03-26 | BH31: 12374200 | BU31: 12374200 | BV31: 10311840 | BX31: 1031180 | BZ31: 47950 | CB31: 11390970 | CC31: 0 | CD31: 983230 | CE31: 완납 | CF31: 11390970 | CG31: 조정환 과장 | CH31: 02-2006-6191 | CI31: 010-2169-2758 | CJ31: 02-2006-9594 | CK31: jhcho@career.co.kr | CN31: 11390970 | CQ31: 11390970
B32: 25 | C32: 제31차 대한당뇨병학회 춘계학술대회 | D32: 대한당뇨병학회 | F32: 2018-05-03 | G32: 2018-05-05 | H32: 3 | I32: 2018-05-04 | J32: 2018-05-05 | K32: 2 | L32: 제3전시장 | M32: 3024 | N32: 5 | S32: 1 | T32: 9072 | U32: 0.002739726027 | V32: 전시회 | W32: 타지역 | AA32: 2018-03-08 | AB32: 2018-03-08 | AC32: 2018-04-19 | AD32: 2018-04-17 | AE32: 2018-04-19 | AF32: 2018-04-26 | AK32: ○ | AL32: ○ | AM32: ○ | AN32: 2018-05-10 | AQ32: ○ | AR32: ○ | AT32: ○ | AU32: 납부유예 | AV32: 0 | AW32: 2018-04-17 | AX32: =AW32 -> 2018-04-17 | AY32: 7733880 | BB32: 2018-04-26 | BC32: 7733880 | BD32: =BB32 -> 2018-04-26 | BE32: 3093550 | BF32: 18561310 | BG32: 2018-05-11 | BH32: 17243080 | BU32: 17243080 | BV32: 15467760 | BX32: 1546770 | BZ32: 228550 | CB32: 17243080 | CC32: 0 | CD32: 0 | CE32: 완납 | CF32: 17243080 | CG32: 이연주 대리 | CH32: 02-714-9071 | CI32: 010-3720-1159 | CK32: diabetes@kams.or.kr | CN32: 17243080 | CQ32: 17243080
B33: 26 | C33: 2018 ACE Festival | D33: 김대중컨벤션센터 | F33: 2018-05-04 | G33: 2018-05-06 | H33: 3 | I33: 2018-05-05 | J33: 2018-05-06 | K33: 2 | L33: 제1,2전시장 | M33: 6048 | N33: 5 | Q33: 1 | R33: 1 | T33: 18144 | U33: 0.005479452055 | V33: 전시회 | W33: 지역 | AK33: ○ | AL33: ○ | AM33: ○ | AT33: ○ | AV33: - | AW33: 주관행사 | AY33: 0 | BA33: 0 | BC33: 0 | BE33: 0 | BF33: 0 | BU33: =SUM(BH33,BJ33,BL33,BN33,BP33,BR33,BT33) -> 0 | BV33: 0 | CB33: 0 | CC33: 0 | CD33: 0 | CE33: 완납 | CF33: =CB33 -> 0 | CG33: 정창욱 | CH33: 062-611-2241 | CI33: 010-6414-5252 | CJ33: 062-611-2245 | CK33: cwjeong@kdjcenter.or.kr | CN33: 0 | CQ33: 0
B34: 27 | C34: 2018 빛고을안전체험한마당 | D34: 광주광역시 소방안전본부 | F34: 2018-05-09 | G34: 2018-05-12 | H34: 4 | I34: 2018-05-10 | J34: 2018-05-12 | K34: 3 | L34: 제1,2전시장 | M34: 4536 | N34: 5 | Q34: 1 | R34: 1 | T34: 18144 | U34: 0.005479452055 | V34: 전시회 | W34: 지역 | AA34: 2018-02-08 | AB34: 2018-02-08 | AC34: 2018-03-13 | AD34: 2018-03-13 | AE34: 2018-03-13 | AF34: 2018-03-13 | AK34: ○ | AL34: ○ | AM34: ○ | AQ34: ○ | AR34: ○ | AT34: ○ | AV34: 0 | AW34: 2018-03-13 | AX34: 2018-05-02 | AY34: 18561310 | BB34: 2018-05-02 | BC34: 18561310 | BD34: =BB34 -> 2018-05-02 | BE34: 8249470 | BF34: 45372090 | BG34: 2018-05-09 | BH34: 45372090 | BU34: 45372090 | BV34: =SUM(AY34,BA34,BC34)-(2343600+1406160)*1.1-4 -> 32997880 | BX34: =6960500+4176300 -> 11136800 | BZ34: 272760 | CA34: 964650 | CB34: 45372090 | CC34: 0 | CD34: 0 | CE34: 완납 | CF34: 45372090 | CG34: 이태형 반장 | CH34: 062-613-8114 | CI34: 010-3605-4406 | CK34: taenga@korea.kr | CN34: 45372090 | CQ34: 45372090
B35: 28 | C35: 2018 APT입주이사박람회 | D35: (유)와이투이엔티 | F35: 2018-05-11 | G35: 2018-05-13 | H35: 3 | I35: 2018-05-12 | J35: 2018-05-13 | K35: 2 | L35: 제3전시장 | M35: 1512 | N35: 5 | Q35: 1 | T35: 4536 | U35: 0.001369863014 | V35: 전시회 | W35: 지역 | AA35: 2018-04-09 | AB35: 2018-04-09 | AC35: 2018-04-09 | AD35: 2018-04-09 | AE35: 2018-04-17 | AK35: ○ | AL35: ○ | AM35: ○ | AN35: 2018-05-14 | AO35: ○ | AP35: ○ | AQ35: ○ | AR35: ○ | AS35: ○ | AT35: ○ | AV35: -0.2 | AW35: 2018-04-10 | AX35: =AW35 -> 2018-04-10 | AY35: 4640320 | BB35: 2018-05-04 | BC35: 4640330 | BD35: =BB35 -> 2018-05-04 | BE35: 3093550 | BF35: 12374200 | BG35: 2018-05-04 | BH35: 12374200 | BU35: 12374200 | BV35: 9280650 | BZ35: 98260 | CB35: 9378910 | CC35: 0 | CD35: 2995290 | CE35: 완납 | CF35: 9378910 | CG35: 이재희 과장 | CH35: 1566-6728 | CI35: 010-4138-5619 | CJ35: 062-719-3786 | CK35: y2ent-2@naver.com | CN35: 9378910 | CQ35: 9378910
B36: 29 | C36: 개그콘서트 쇼 | D36: 주식회사 이루리 | F36: 2018-05-12 | G36: 2018-05-12 | H36: 1 | I36: 2018-05-12 | J36: 2018-05-12 | K36: 1 | L36: 다목적홀 | M36: 2955 | N36: 5 | O36: 1 | P36: 1 | T36: 2955 | U36: 0.0008924041458 | V36: 이벤트 | W36: 지역 | AA36: 2018-03-14 | AB36: 2018-03-14 | AC36: 2018-03-14 | AD36: 2018-03-14 | AE36: 2018-03-14 | AF36: 2018-03-14 | AG36: ○ | AH36: ○ | AK36: ○ | AL36: ○ | AM36: ○ | AN36: 2018-05-14 | AO36: ○ | AP36: ○ | AQ36: ○ | AR36: ○ | AS36: ○ | AT36: ○ | AV36: 0 | AW36: 2018-03-14 | AX36: =AW36 -> 2018-03-14 | AY36: 5392570 | BB36: 2018-05-05 | BC36: 5392580 | BD36: =BB36 -> 2018-05-05 | BE36: 1540730 | BF36: 12325880 | BG36: 2018-03-14 | BH36: 5392570 | BI36: 2018-05-08 | BJ36: 4000000 | BK36: 2018-05-09 | BL36: 4583340 | BU36: 13975910 | BV36: 7703680 | BX36: 1155550 | BY36: 1650000 | BZ36: 84260 | CB36: 10593490 | CC36: 0 | CD36: 3382420 | CE36: 완납 | CF36: 10593490 | CG36: 조경전 | CH36: 1661-6897 | CI36: 010-6618-5310 | CK36: god99272@naver.com | CN36: 10593490 | CQ36: 10593490
B37: 30 | C37: 2018 더레저쇼 | D37: (주)이엑스스포테인먼트 | F37: 2018-05-16 | G37: 2018-05-20 | H37: 5 | I37: 2018-05-17 | J37: 2018-05-20 | K37: 4 | L37: 제2,3전시장 | M37: 6048 | N37: 5 | Q37: 1 | R37: 1 | T37: 30240 | U37: 0.009132420091 | V37: 전시회 | W37: 타지역 | AA37: 2018-01-24 | AB37: 2018-01-24 | AC37: 2018-01-24 | AD37: 2018.01.24 2018.03.20 | AE37: 2018.01.24 2018.04.02 | AF37: 2018-05-02 | AK37: ○ | AL37: ○ | AM37: ○ | AN37: 2018-05-21 | AO37: ○ | AP37: ○ | AQ37: ○ | AR37: ○ | AS37: ○ | AT37: ○ | AU37: 대형브랜드전시회 | AV37: 0 | AW37: 2018.01.24 2018.03.20 | AX37: 2018-03-20 | AY37: 25779600 | BB37: 2018-05-09 | BC37: 25779600 | BD37: =BB37 -> 2018-05-09 | BE37: 10311840 | BF37: 61871040 | BG37: 2018-04-04 | BH37: 25779600 | BI37: 2018-05-08 | BJ37: 36091440 | BU37: 61871040 | BV37: 51559200 | BX37: 1031180 | BZ37: 412190 | CA37: 1929310 | CB37: 54931880 | CC37: 0 | CD37: 6939160 | CE37: 완납 | CF37: 54931880 | CG37: 박계완 | CH37: 02-356-4309 | CI37: 010-9300-0935 | CJ37: 0505-356-4309 | CK37: thegolfshow@naver.com | CN37: 54931880 | CQ37: 54931880
B38: 31 | C38: 나주 빛가람 대방엘리움 입주박람회 | D38: 넥스트 | F38: 2018-05-18 | G38: 2018-05-20 | H38: 3 | I38: 2018-05-19 | J38: 2018-05-20 | K38: 2 | L38: 제1전시장 | M38: 1512 | N38: 5 | Q38: 1 | T38: 4536 | U38: 0.001369863014 | V38: 전시회 | W38: 지역 | AA38: 2018-04-20 | AB38: 2018-04-20 | AC38: 2018-04-20 | AD38: 2018-05-10 | AE38: 2018-05-10 | AF38: ○ | AK38: ○ | AL38: ○ | AM38: ○ | AN38: 2018-05-21 | AO38: ○ | AP38: ○ | AQ38: ○ | AR38: ○ | AS38: ○ | AT38: ○ | AV38: -0.2 | AW38: 2018.04.23 2018.05.10 | AX38: 2018-05-10 | AY38: 4640320 | BB38: 2018-05-11 | BC38: 4640330 | BD38: =BB38 -> 2018-05-11 | BE38: 3093550 | BF38: 12374200 | BG38: 2018-05-10 | BH38: 12374200 | BU38: =SUM(BH38,BJ38,BL38,BN38,BP38,BR38,BT38) -> 12374200 | BV38: =SUM(AY38,BA38,BC38) -> 9280650 | BX38: 309350 | BZ38: 147050 | CB38: 9737050 | CC38: =IF(BU38<CB38,ROUNDDOWN(CB38-BU38,-1),0) -> 0 | CD38: =IF(BU38>CB38,ROUNDDOWN(BU38-CB38,-1),0) -> 2637150 | CE38: 완납 | CF38: =CB38 -> 9737050 | CG38: 정언유 지점장 | CH38: 062-529-7016 | CI38: 010-9053-0578 | CJ38: 062-529-7020 | CK38: juy391@nate.com | CN38: 9737050 | CQ38: 9737050
B39: 32 | C39: 2018 홈&라이프스타일쇼 | D39: 김대중컨벤션센터 | F39: 2018-05-21 | G39: 2018-05-28 | H39: 8 | I39: 2018-05-24 | J39: 2018-05-27 | K39: 4 | L39: 제1,2전시장 | M39: 6048 | N39: 5 | R39: 1 | S39: 1 | T39: 48384 | U39: 0.01461187215 | V39: 전시회 | W39: 지역 | AK39: ○ | AL39: ○ | AM39: ○ | AT39: ○ | AV39: - | AW39: 주관행사 | AY39: 0 | BA39: 0 | BC39: 0 | BE39: 0 | BF39: 0 | BU39: 0 | BV39: 0 | CB39: 0 | CC39: 0 | CD39: 0 | CE39: 완납 | CF39: 0 | CG39: 이정임 | CH39: 062-611-2218 | CI39: 010-8163-0833 | CJ39: 062-611-2239 | CK39: jilee@kdjcenter.or.kr | CN39: 0 | CQ39: 0
B40: 33 | C40: 2018 중소기업위크 | D40: (재)광주광역시 경제고용진흥원 | F40: 2018-05-23 | G40: 2018-05-25 | H40: =G40-F40+1 -> 3 | I40: 2018-05-24 | J40: 2018-05-25 | K40: =J40-I40+1 -> 2 | L40: 상설전시장 | M40: 1000 | N40: 5 | T40: 3000 | U40: =T40/(9072*365) -> 0.0009059940567 | V40: 전시회 | W40: 지역 | AA40: 2018-02-28 | AB40: 2018-02-28 | AC40: 2018-02-28 | AD40: 2018-02-28 | AE40: 2018-03-06 | AK40: ○ | AL40: ○ | AM40: ○ | AQ40: ○ | AR40: ○ | AT40: ○ | AU40: 납부유예 | AV40: 0 | AW40: 2018-03-02 | AX40: =AW40 -> 2018-03-02 | AY40: 2557500 | BB40: 2018-05-16 | BC40: 2557500 | BF40: 5115000 | BG40: 2018-03-08 | BH40: 2557500 | BI40: 2018-05-31 | BJ40: 2557500 | BU40: 5115000 | BV40: 5115000 | CB40: =SUM(BV40:CA40) -> 5115000 | CC40: 0 | CD40: 0 | CE40: =IF(IF(CC40,0="완납",0<"미수"),"완납","미수") -> 완납 | CF40: 5115000 | CG40: 정주리 | CH40: 062-960-2623 | CI40: 010-3908-5530 | CJ40: 062-955-4011 | CK40: jurigepa@naver.com | CN40: 5115000 | CQ40: 5115000
B41: 34 | C41: 2018 창업&프랜차이즈박람회 in 광주·전남 | D41: 좋은공간 | F41: 2018-05-23 | G41: 2018-05-27 | H41: 5 | I41: 2018-05-25 | J41: 2018-05-27 | K41: 3 | L41: 제1전시장 | M41: 3024 | N41: 5 | Q41: 1 | T41: 15120 | U41: 0.004566210046 | V41: 전시회 | W41: 지역 | AA41: 2017-10-20 | AB41: 2018-01-15 | AC41: 2018-01-26 | AD41: 2018-01-15 | AE41: 2018-01-18 | AK41: ○ | AL41: ○ | AM41: ○ | AP41: ○ | AQ41: ○ | AR41: ○ | AS41: ○ | AT41: ○ | AV41: 0 | AW41: 2018-01-15 | AX41: =AW41 -> 2018-01-15 | AY41: 5155920 | AZ41: 2018-02-23 | BA41: 7733880 | BB41: 2018-05-16 | BC41: 12889800 | BD41: =BB41 -> 2018-05-16 | BE41: 5155920 | BF41: 30935520 | BG41: 2018-01-15 | BH41: 2000000 | BI41: 2018-01-25 | BJ41: 3155920 | BK41: 2018-03-30 | BL41: =5000000+2733880 -> 7733880 | BM41: 2018-05-09 | BN41: 18045720 | BU41: 30935520 | BV41: 25779600 | BX41: 2062360 | BZ41: 284130 | CA41: 964650 | CB41: 29090740 | CC41: 0 | CD41: 1844780 | CE41: 완납 | CF41: 29090740 | CG41: 위영수 대표 | CH41: 062-371-3511 | CI41: 010-8962-0021 | CJ41: 065-371-3511 | CK41: good-space@naver.com | CN41: 29090740 | CQ41: 29090740
B42: 35 | C42: 슈퍼루키 : 좋은콘서트#1 - 광주 | D42: 주식회사 이루리 | F42: 2018-05-26 | G42: 2018-05-26 | H42: 1 | I42: 2018-05-26 | J42: 2018-05-26 | K42: 1 | L42: 다목적홀 | M42: 2955 | N42: 5 | O42: 1 | P42: 1 | T42: 2955 | U42: 0.0008924041458 | V42: 이벤트 | W42: 지역 | AA42: 2018-04-20 | AB42: 2018-04-19 | AC42: 2018-04-19 | AD42: 2018-04-20 | AE42: 2018-04-20 | AG42: ○ | AH42: ○ | AK42: ○ | AL42: ○ | AM42: ○ | AN42: 2018-05-28 | AP42: ○ | AQ42: ○ | AR42: ○ | AS42: ○ | AT42: ○ | AV42: 0 | AW42: 2018-04-20 | AX42: =AW42 -> 2018-04-20 | AY42: 5392570 | BB42: 2018-05-19 | BC42: 5392580 | BD42: 2018-05-19 | BE42: 1540730 | BF42: 12325880 | BG42: 2018-04-20 | BH42: 5392570 | BI42: 2018-05-18 | BJ42: 6933310 | BU42: 12325880 | BV42: 7703680 | BX42: 3851840 | BZ42: 100900 | CA42: 471320 | CB42: 12127740 | CC42: 0 | CD42: 198140 | CE42: 완납 | CF42: 12127740 | CG42: 조경전 | CH42: 1661-6897 | CI42: 010-6618-5310 | CK42: god99272@naver.com | CN42: 12127740 | CQ42: 12127740
B43: 36 | C43: 현대인의 소통과 힐링 공연 | D43: 주식회사 판크린바이오 | F43: 2018-05-27 | G43: 2018-05-27 | H43: 1 | I43: 2018-05-27 | J43: 2018-05-27 | K43: 1 | L43: 제1다목적홀 | M43: 1478 | N43: 5 | O43: 1 | T43: 1478 | U43: 0.0004463530719 | V43: 이벤트 | W43: 타지역 | AA43: 2018-05-23 | AB43: 2018-05-23 | AC43: 2018-05-23 | AD43: 2018-05-23 | AE43: 2018-05-27 | AN43: 2018-05-28 | AQ43: ○ | AR43: ○ | AS43: ○ | AT43: ○ | AV43: 0 | AW43: 2018-05-24 | AX43: 2018-05-24 | AY43: 2355570 | BB43: 2018-05-24 | BC43: 2355570 | BD43: 2018-05-24 | BE43: 770620 | BF43: =SUM(AY43,BA43,BC43,BE43) -> 5481760 | BG43: 2018-05-24 | BH43: 5481760 | BI43: 2018-05-28 | BJ43: 367290 | BU43: 5849050 | BV43: 3853140 | BY43: =770000+110000+858000 -> 1738000 | BZ43: 22170 | CA43: 235740 | CB43: 5849050 | CC43: 0 | CD43: 0 | CE43: 완납 | CF43: 5849050 | CG43: 김아름 | CH43: 1588-3467 | CI43: 010-6515-3092 | CJ43: 041-741-3522 | CK43: oooo0269@naver.com | CN43: 5849050 | CQ43: 5849050
B44: 37 | C44: 2018 호남국제관광박람회 | D44: 에스마이스연구원(주) | F44: 2018-05-29 | G44: 2018-06-03 | H44: 6 | I44: 2018-05-31 | J44: 2018-06-03 | K44: 4 | L44: 제2전시장 | M44: 3024 | N44: 5 | R44: 1 | T44: 18144 | U44: 0.005479452055 | V44: 전시회 | W44: 지역 | AA44: 2018-01-26 | AB44: 2018-01-26 | AC44: 2018-01-26 | AD44: 2018-01-26 | AE44: 2018-01-26 | AK44: ○ | AL44: ○ | AM44: ○ | AN44: 2018-06-04 | AO44: 2018-06-05 | AP44: ○ | AQ44: ○ | AR44: ○ | AS44: ○ | AT44: ○ | AU44: 유망전시회 | AV44: 0 | AW44: 2018-01-26 | AX44: =AW44 -> 2018-01-26 | AY44: 6187100 | AZ44: 2018-03-01 | BA44: 9280660 | BB44: 2018-05-22 | BC44: 15467760 | BD44: 2018-05-22 | BE44: 6187100 | BF44: 37122620 | BG44: 2018-03-06 | BH44: 15467760 | BI44: 2018-05-20 | BJ44: 21654860 | BU44: 37122620 | BV44: =SUM(AY44,BA44,BC44) -> 30935520 | BX44: 1546770 | BZ44: =137350+879350 -> 1016700 | CA44: 1446980 | CB44: 34945970 | CC44: =IF(BU44<CB44,ROUNDDOWN(CB44-BU44,-1),0) -> 0 | CD44: =IF(BU44>CB44,ROUNDDOWN(BU44-CB44,-1),0) -> 2176650 | CE44: 완납 | CF44: =CB44 -> 34945970 | CG44: 박형면 | CH44: 062-972-9650 | CI44: 010-3515-1005 | CJ44: 062-972-9651 | CK44: s-mice@hanmail.net | CN44: 34945970 | CQ44: 34945970
B45: 38 | C45: 광주티엑스포 | D45: (사)국제티클럽 | F45: 2018-05-30 | G45: 2018-06-03 | H45: 5 | I45: 2018-05-31 | J45: 2018-06-03 | K45: 4 | L45: 제3전시장 | M45: 3024 | N45: 5 | S45: 1 | T45: 15120 | U45: 0.004566210046 | V45: 전시회 | W45: 타지역 | AA45: 2017.05.23 | AB45: 2018-01-04 | AC45: 2017-05-23 | AD45: 2018-01-05 | AE45: 2018-01-24 | AF45: 2017.05.24 2018.01.16 | AK45: ○ | AL45: ○ | AM45: ○ | AN45: 2018-06-04 | AQ45: ○ | AR45: ○ | AS45: ○ | AT45: ○ | AV45: 0 | AW45: 2018-01-05 | AX45: 2018-01-05 | AY45: 5155920 | AZ45: 2018-03-02 | BA45: 7733880 | BB45: 2018-05-23 | BC45: 12889800 | BD45: 2018-05-23 | BE45: 5155920 | BF45: 30935520 | BG45: 2017-07-12 | BH45: 4124730 | BI45: 2018-01-08 | BJ45: 1031190 | BK45: 2018-03-14 | BL45: 7733880 | BM45: 2018-05-29 | BN45: 18045720 | BO45: 2018-06-18 | BP45: 981450 | BU45: 31916970 | BV45: 25779600 | BX45: 4124730 | BZ45: =60560+505100 -> 565660 | CA45: 1446980 | CB45: 31916970 | CC45: 0 | CD45: 0 | CE45: 완납 | CF45: 31916970 | CG45: 곽재명 사무국장 | CH45: 070-7011-5245 | CI45: 010-8627-3814 | CJ45: 063-451-0046 | CK45: napolee8314@hanmail.net | CN45: 31916970 | CQ45: 31916970
B46: 39 | C46: 2018 광주 심장중재술 심포지엄 | D46: 주식회사 메이트 | F46: 2018-06-07 | G46: 2018-06-09 | H46: 3 | I46: 2018-06-08 | J46: 2018-06-09 | K46: 2 | L46: 다목적2홀 | M46: 1478 | N46: 6 | P46: 2 | T46: 4434 | U46: 0.001339059216 | V46: 전시회 | W46: 타지역 | AB46: 2018-05-30 | AC46: 2018-05-30 | AD46: 2018-05-30 | AE46: 2018-06-08 | AN46: 2018-06-12 | AQ46: ○ | AR46: ○ | AT46: ○ | AU46: 납부유예 | AV46: 0 | AW46: 2018-05-30 | AX46: =AW46 -> 2018-05-30 | AY46: 4877400 | BB46: 2018-05-31 | BC46: 4877400 | BD46: 2018-05-31 | BE46: 1950960 | BF46: 11705760 | BG46: 2018-07-03 | BH46: 10878690 | BU46: 10878690 | BV46: 9754800 | BZ46: 416670 | CA46: 707220 | CB46: 10878690 | CC46: 0 | CD46: 0 | CE46: 완납 | CF46: 10878690 | CG46: 함상협 | CI46: 010-3771-7980 | CK46: ham@cmate.net | CN46: 10878690 | CQ46: 10878690
B47: 40 | C47: 제8회 광주국제 기계·금형·자동화기기전 | D47: (주)한국산업마케팅연구원 | F47: 2018-06-17 | G47: 2018-06-24 | H47: 8 | I47: 2018-06-20 | J47: 2018-06-23 | K47: 4 | L47: 제2,3전시장 | M47: 6048 | N47: 6 | R47: 1 | S47: 1 | T47: 48384 | U47: 0.01461187215 | V47: 전시회 | W47: 타지역 | AA47: 2017.06.13 2018.01.18 | AB47: 2018-01-18 | AC47: 2018-01-23 | AD47: 2018-03-14 | AE47: 2018-01-22 | AK47: ○ | AL47: ○ | AM47: ○ | AN47: 2018-06-25 | AO47: ○ | AP47: ○ | AQ47: ○ | AR47: ○ | AS47: ○ | AT47: ○ | AV47: 0 | AW47: 2018-01-23 | AX47: =AW47 -> 2018-01-23 | AY47: 16498940 | AZ47: 2018-03-17 | BA47: 24748420 | BB47: 2018-06-10 | BC47: 41247360 | BD47: 2018-06-10 | BE47: 16498940 | BF47: 98993660 | BG47: 2018-03-23 | BH47: 41247360 | BI47: 2018-06-15 | BJ47: 57746300 | BU47: 98993660 | BV47: 82494720 | BX47: 1031180 | BZ47: 1153120 | CA47: 1929310 | CB47: 86608330 | CC47: 0 | CD47: 12385330 | CE47: 완납 | CF47: 86608330 | CG47: 박현일 팀장 | CH47: 02-588-2526 | CI47: 010-7209-1977 | CJ47: 02-588-2577 | CK47: hipark@kimikorea.com | CN47: 86608330 | CQ47: =SUM(CM47:CP47) -> 86608330
B48: 41 | C48: 제2회 광주네일엑스포 | D48: 케이엠티홀딩스 | F48: 2018-06-21 | G48: 2018-06-24 | H48: 4 | I48: 2018-06-23 | J48: 2018-06-24 | K48: 2 | L48: 제1전시장 | M48: 3024 | N48: 6 | Q48: 1 | T48: 12096 | U48: 0.003652968037 | V48: 전시회 | W48: 타지역 | AA48: 2017-09-05 | AB48: 2018-04-16 | AC48: 2017-09-05 | AD48: 2018-06-07 | AE48: 2018-06-07 | AF48: 2018-06-11 | AK48: ○ | AL48: ○ | AM48: ○ | AN48: 2018-06-25 | AO48: 2018-06-26 | AP48: ○ | AQ48: ○ | AR48: ○ | AS48: ○ | AT48: ○ | AV48: 0 | AW48: 2018-06-05 | AX48: =AW48 -> 2018-06-05 | AY48: 10311840 | BB48: 2018-06-14 | BC48: 10311840 | BD48: 2018-06-14 | BE48: 4124730 | BF48: 24748410 | BG48: 2018-06-08 | BH48: 10311840 | BI48: 2018-06-20 | BJ48: 14436570 | BU48: 24748410 | BV48: 20623680 | BX48: 1546770 | BZ48: 366210 | CA48: 964650 | CB48: 23501310 | CC48: 0 | CD48: 1247100 | CE48: 완납 | CF48: 23501310 | CG48: 임채현 이사 | CH48: 070-4450-0258 | CI48: 010-7923-7179 | CJ48: 02-542-8111 | CK48: dlacogus@gmail.com | CN48: 23501310 | CQ48: 23501310
B49: 42 | C49: KBC맘앤베이비페어 | D49: (주)KBC플러스 | F49: 2018-06-26 | G49: 2018-07-01 | H49: 6 | I49: 2018-06-28 | J49: 2018-07-01 | K49: 4 | L49: 제2,3전시장 | M49: 6048 | N49: 6 | R49: 1 | S49: 1 | T49: 36288 | U49: 0.01095890411 | V49: 전시회 | W49: 지역 | AB49: 2018-05-03 | AD49: 2018-06-12 | AE49: 2018-06-12 | AK49: ○ | AL49: ○ | AM49: ○ | AN49: 2018-07-02 | AQ49: ○ | AR49: ○ | AS49: ○ | AT49: ○ | AU49: 납부유예 | AV49: 20%(5일) 40%(1일) | AW49: 2018.06.12 2018.06.19 | AX49: 2018-06-19 | AY49: 23717230 | BB49: 2018-06-19 | BC49: 23717230 | BD49: 2018-06-19 | BE49: 12374200 | BF49: 59808660 | BG49: 2018-06-20 | BH49: 20004960 | BI49: 2018-07-05 | BJ49: 34002840 | BU49: 54007800 | BV49: =SUM(AY49,BA49,BC49) -> 47434460 | BX49: 1237420 | BZ49: 1310990 | CA49: =2893960+1130970 -> 4024930 | CB49: 54007800 | CC49: =IF(BU49<CB49,ROUNDDOWN(CB49-BU49,-1),0) -> 0 | CD49: =IF(BU49>CB49,ROUNDDOWN(BU49-CB49,-1),0) -> 0 | CE49: 완납 | CF49: 54007800 | CG49: 엄윤서 과장 | CH49: 062-650-3048 | CI49: 010-6669-0003 | CJ49: 062-710-3359 | CK49: kbc0003@naver.com | CN49: 54007800 | CQ49: 54007800
B50: 43 | C50: 제42회 대한민국웨딩산업박람회 | D50: 이노웨딩 | F50: 2018-06-28 | G50: 2018-06-28 | H50: 1 | I50: 2018-06-28 | J50: 2018-06-28 | K50: 1 | L50: 제1전시장 | M50: 3024 | N50: 6 | Q50: 1 | T50: 3024 | U50: 0.0009132420091 | V50: 전시회 | W50: 타지역 | AA50: 2018-06-09 | AB50: 2018-06-11 | AD50: 2018-06-12 | AE50: 2018-06-22 | AK50: ○ | AL50: ○ | AM50: ○ | AN50: 2018-06-29 | AO50: ○ | AP50: ○ | AQ50: ○ | AR50: ○ | AS50: ○ | AT50: ○ | AV50: 0 | AW50: 2018-06-12 | AY50: 2577960 | BB50: 2018-06-21 | BC50: 2577960 | BD50: 2018-06-21 | BE50: 1031180 | BF50: 6187100 | BG50: 2018-06-14 | BH50: 6187100 | BU50: =SUM(BH50,BJ50,BL50,BN50,BP50,BR50,BT50) -> 6187100 | BV50: =SUM(AY50,BA50,BC50) -> 5155920 | BZ50: 182210 | CA50: 482320 | CB50: 5820450 | CC50: 0 | CD50: 366650 | CE50: 완납 | CF50: =CB50 -> 5820450 | CG50: 구송희 실장 | CH50: 02-540-7633 | CI50: 018-352-8780 | CK50: kowia@naver.com | CN50: 5820450 | CQ50: 5820450
B51: 44 | C51: 제3회 GWC광주웨딩박람회 | D51: (유)와이투이엔티 | F51: 2018-06-29 | G51: 2018-07-01 | H51: 3 | I51: 2018-06-30 | J51: 2018-07-01 | K51: 2 | L51: 제1전시장 | M51: 1512 | N51: 6 | Q51: 1 | T51: 4536 | U51: 0.001369863014 | V51: 전시회 | W51: 지역 | AA51: 2018-04-10 | AB51: 2018-04-11 | AC51: 2018-04-10 | AD51: 2018-04-17 | AE51: 2018-05-24 | AK51: ○ | AL51: ○ | AM51: ○ | AN51: 2018-07-02 | AQ51: ○ | AR51: ○ | AS51: ○ | AT51: ○ | AV51: -0.2 | AW51: 2018-05-24 | AY51: 4176290 | BB51: 2018-06-22 | BC51: 4176300 | BD51: 2018-06-22 | BE51: 3093550 | BF51: 11446140 | BG51: 2018-06-21 | BH51: 11446140 | BU51: =SUM(BH51,BJ51,BL51,BN51,BP51,BR51,BT51) -> 11446140 | BV51: =SUM(AY51,BA51,BC51)-10 -> 8352580 | BX51: 649640 | BZ51: 308600 | CA51: =482320+565480 -> 1047800 | CB51: 10358620 | CC51: 0 | CD51: 1087520 | CE51: 완납 | CF51: 10358620 | CG51: 이재희 과장 | CH51: 1566-6728 | CI51: 010-4138-5619 | CJ51: 062-719-3786 | CK51: y2ent-2@naver.com | CN51: 10358620 | CQ51: 10358620
B52: 45 | C52: 슈퍼루키 끝판왕 | D52: 주식회사 이루리 | F52: 2018-06-30 | G52: 2018-06-30 | H52: 1 | I52: 2018-06-30 | J52: 2018-06-30 | K52: 1 | L52: 다목적홀 | M52: 2955 | N52: 6 | O52: 1 | P52: 1 | T52: 2955 | U52: 0.0008924041458 | V52: 이벤트 | W52: 지역 | AA52: 2018-05-30 | AB52: 2018-05-31 | AD52: 2018-06-20 | AE52: 2018-06-20 | AG52: ○ | AH52: ○ | AN52: 2018-07-02 | AO52: ○ | AP52: ○ | AQ52: ○ | AR52: ○ | AS52: ○ | AT52: ○ | AV52: 0 | AW52: 2018-06-20 | AX52: 2018-06-20 | AY52: 5007390 | BB52: 2018-06-23 | BC52: 5007400 | BD52: 2018-06-23 | BE52: 1540730 | BF52: 11555520 | BG52: 2018-06-20 | BH52: 3000000 | BI52: 2018-06-25 | BJ52: 8000000 | BK52: 2018-06-27 | BL52: 555520 | BU52: =SUM(BH52,BJ52,BL52,BN52,BP52,BR52,BT52) -> 11555520 | BV52: 7703680 | BX52: 3081470 | BZ52: 109860 | CA52: 471320 | CB52: 11366330 | CC52: 0 | CD52: 189190 | CE52: 완납 | CF52: 11366330 | CG52: 조경전 | CH52: 1661-6897 | CI52: 010-6618-5310 | CK52: god99272@naver.com | CN52: 11366330 | CQ52: 11366330
B53: 46 | C53: 2018광주국제IoT·가전·로봇박람회 | D53: 김대중컨벤션센터 | F53: 2018-07-02 | G53: 2018-07-08 | H53: 7 | I53: 2018-07-05 | J53: 2018-07-07 | K53: 3 | L53: 제1,2전시장, 다목적홀 | M53: =9072/2+2955 -> 7491 | N53: 7 | O53: 1 | P53: 1 | Q53: 1 | R53: 1 | T53: 52437 | U53: 0.01583587012 | V53: 전시회 | W53: 지역 | AK53: ○ | AL53: ○ | AM53: ○ | AT53: ○ | AV53: - | AW53: 주관행사 | AY53: 0 | BA53: 0 | BC53: 0 | BE53: 0 | BF53: 0 | BU53: 0 | BV53: =SUM(AY53,BA53,BC53) -> 0 | CB53: 0 | CC53: 0 | CD53: 0 | CE53: 완납 | CF53: 0 | CG53: 유슬기 | CH53: 062-611-2219 | CI53: 010-3069-3789 | CJ53: 062-611-2239 | CK53: sgyoo@kdjcenter.or.kr | CN53: 0 | CQ53: 0
B54: 47 | C54: 제11회 국제그린카전시회 | D54: 김대중컨벤션센터 | F54: 2018-07-02 | G54: 2018-07-08 | H54: 7 | I54: 2018-07-05 | J54: 2018-07-07 | K54: 3 | L54: 제2,3전시장, 다목적홀 | M54: =9072/2 -> 4536 | N54: 7 | R54: 1 | S54: 1 | T54: 31752 | U54: 0.009589041096 | V54: 전시회 | W54: 지역 | AK54: ○ | AL54: ○ | AM54: ○ | AT54: ○ | AV54: - | AW54: 주관행사 | AY54: 0 | BA54: 0 | BC54: 0 | BE54: 0 | BF54: 0 | BU54: 0 | BV54: =SUM(AY54,BA54,BC54) -> 0 | CB54: 0 | CC54: 0 | CD54: 0 | CE54: 완납 | CF54: 0 | CG54: 유연숙 | CH54: 062-611-2211 | CI54: 010-3161-3215 | CJ54: 062-611-2239 | CK54: ysyu@kdjcenter.or.kr | CN54: 0 | CQ54: 0
B55: 48 | C55: 제10회 국제기후환경산업전 | D55: 김대중컨벤션센터 | F55: 2018-07-09 | G55: 2018-07-14 | H55: 6 | I55: 2018-07-11 | J55: 2018-07-13 | K55: 3 | L55: 제1,2전시장 | M55: =6048 -> 6048 | N55: 7 | O55: 1 | P55: 1 | Q55: 1 | R55: 1 | T55: 36288 | U55: 0.01095890411 | V55: 전시회 | W55: 지역 | AK55: ○ | AL55: ○ | AM55: ○ | AT55: ○ | AV55: - | AW55: 주관행사 | AY55: 0 | BA55: 0 | BC55: 0 | BE55: 0 | BF55: 0 | BU55: 0 | BV55: =SUM(AY55,BA55,BC55) -> 0 | CB55: 0 | CC55: 0 | CD55: 0 | CE55: 완납 | CF55: 0 | CG55: 이보슬 | CH55: 062-611-2214 | CI55: 010-2938-8300 | CJ55: 062-611-2239 | CK55: bslee@kdjcenter.or.kr | CN55: 0 | CQ55: 0
B56: 49 | C56: 감성톡톡 상상력 발전소 체험전 | D56: 김대중컨벤션센터, (주)S&LC | F56: 2018-07-16 | G56: 2018-08-20 | H56: 36 | I56: 2018-07-21 | J56: 2018-08-19 | K56: 30 | L56: 제1전시장 | M56: 3024 | N56: 7 | Q56: 1 | T56: 108864 | U56: 0.03287671233 | V56: 장기이벤트 | W56: 타지역 | AC56: 2018-06-26 | AD56: 2018-06-26 | AE56: 2018-07-02 | AI56: ○ | AL56: ○ | AR56: ○ | AU56: 공동주최 매출의15% | AV56: - | AW56: 2018-07-02 | AY56: 0 | BA56: 0 | BC56: 0 | BE56: 0 | BF56: 0 | BU56: =SUM(BH56,BJ56,BL56,BN56,BP56,BR56,BT56) -> 0 | BV56: 5718070 | CB56: 5718070 | CC56: 5718070 | CD56: 0 | CE56: 미수 | CF56: 5718070 | CG56: 조상철 이사 | CH56: 063-252-3527 | CI56: 010-8341-7770 | CJ56: 063-282-3527 | CK56: wowm8770@hanmail.net | CN56: 5718070 | CQ56: 5718070
B57: 50 | C57: 2019학년도 수시대비 대학입시박람회 | D57: 김대중컨벤션센터 | F57: 2018-07-19 | G57: 2018-07-23 | H57: 5 | I57: 2018-07-21 | J57: 2018-07-22 | K57: 2 | L57: 제3전시장, 다목적홀 | M57: =3024+2955 -> 5979 | N57: 7 | O57: 1 | P57: 1 | S57: 1 | T57: 29895 | U57: 0.009028230775 | V57: 전시회 | W57: 지역 | AK57: ○ | AL57: ○ | AM57: ○ | AT57: ○ | AV57: - | AW57: 주관행사 | AY57: 0 | BA57: 0 | BC57: 0 | BE57: 0 | BF57: 0 | BU57: 0 | BV57: =SUM(AY57,BA57,BC57) -> 0 | CB57: 0 | CC57: 0 | CD57: 0 | CE57: 완납 | CF57: 0 | CG57: 이정임 | CH57: 062-611-2218 | CI57: 010-8163-0833 | CJ57: 062-611-2239 | CK57: jilee@kdjcenter.or.kr | CN57: 0 | CQ57: 0
B58: 51 | C58: 필립하모니페스티벌 | D58: 지인커뮤니케이션 | F58: 2018-07-25 | G58: 2018-07-27 | H58: 3 | I58: 2018-07-27 | J58: 2018-07-27 | K58: 1 | L58: 제3전시장, 다목적홀 | M58: =6048+2955 -> 9003 | N58: 7 | O58: 1 | P58: 1 | S58: 1 | T58: 27009 | U58: 0.008156664492 | V58: 이벤트 | W58: 지역 | AB58: 2018-07-11 | AC58: 2018-07-11 | AD58: 2018-07-12 | AE58: 2018-07-12 | AN58: ○ | AQ58: ○ | AR58: ○ | AS58: ○ | AT58: ○ | AV58: - | AW58: 2018-07-12 | AY58: 20731480 | BA58: 0 | BB58: 2018-07-18 | BC58: 20731490 | BD58: =BB58 -> 2018-07-18 | BE58: 10809310 | BF58: 52272280 | BG58: 2018-07-12 | BH58: 52272280 | BU58: =SUM(BH58,BJ58,BL58,BN58,BP58,BR58,BT58) -> 52272280 | BV58: =21654860+5038270+6045930 -> 32739060 | BX58: 3081470 | BY58: 2860000 | BZ58: =183770+372010 -> 555780 | CA58: =1130970+1657750 -> 2788720 | CB58: 42025030 | CC58: 0 | CD58: 10247250 | CE58: 완납 | CF58: 42025030 | CG58: 한기춘 본부장 | CH58: 062-417-2929 | CI58: 010-8781-1039 | CJ58: 062-416-2929 | CK58: horse-92@hanmail.net | CN58: 42025030 | CQ58: 42025030
B59: 52 | C59: CBMC(기독실업인회) 한국대회 | D59: (사)한국기독실업인회 | F59: 2018-08-15 | G59: 2018-08-17 | H59: 3 | I59: 2018-08-15 | J59: 2018-08-17 | K59: 3 | L59: 제2,3전시장,열린홀 | M59: =6048+1000 -> 7048 | N59: 8 | R59: 1 | S59: 1 | T59: =3024*3+1000*3+2644*4 -> 22648 | U59: 0.006839651132 | V59: 이벤트 | W59: 타지역 | AB59: 2018-07-31 | AC59: 2018-07-31 | AD59: 2018-08-02 | AE59: 2018-08-02 | AQ59: ○ | AR59: ○ | AT59: ○ | AW59: 2018-08-02 | AX59: =AW59 -> 2018-08-02 | AY59: 15065840 | BB59: 2018-08-08 | BC59: 15065850 | BD59: 2018-08-08 | BE59: 3897870 | BF59: 34029560 | BG59: 2018-08-08 | BH59: 34029560 | BU59: 34029560 | BV59: 28474860 | BX59: 721820 | BY59: 935000 | BZ59: 504960 | CA59: 3392920 | CB59: 34029560 | CC59: 0 | CD59: 0 | CE59: 완납 | CF59: 34029560 | CG59: 최범철 장로 | CI59: 010-7351-7300 | CN59: 34029560 | CQ59: 34029560
B60: =B59+1 -> 53 | C60: 제3회 광주·전남 프랜차이즈창업박람회 | D60: (주)제일좋은전람 | F60: 2018-08-21 | G60: 2018-08-25 | H60: 5 | I60: 2018-08-23 | J60: 2018-08-25 | K60: 3 | L60: 제1,2전시장 | M60: 6048 | N60: 8 | Q60: 1 | R60: 1 | T60: =M60*H60 -> 30240 | U60: 0.009132420091 | V60: 전시회 | W60: 타지역 | AA60: 2017-09-01 | AB60: 2018-01-23 | AC60: 2018-01-24 | AD60: 2018-01-23 | AE60: 2018-02-06 | AF60: 2018-01-23 | AK60: ○ | AL60: ○ | AM60: ○ | AP60: ○ | AQ60: ○ | AR60: ○ | AS60: ○ | AT60: ○ | AU60: 대형브랜드전시회 | AW60: 2018-01-24 | AX60: =AW60 -> 2018-01-24 | AY60: 7218280 | AZ60: 2018-05-21 | BA60: 10827440 | BB60: 2018-08-14 | BC60: 18045720 | BD60: 2018-08-14 | BE60: 10311840 | BF60: 46403280 | BG60: 2018-01-24 | BH60: 7218280 | BI60: 2018-05-18 | BJ60: 10827440 | BK60: 2018-08-14 | BL60: 28357560 | BU60: 46403280 | BV60: =SUM(AY60,BA60,BC60) -> 36091440 | BX60: 2165480 | BZ60: 797180 | CA60: 3792090 | CB60: 42846190 | CC60: 0 | CD60: 3557090 | CE60: 완납 | CF60: 42846190 | CG60: 남예림 주임 | CH60: 02-856-1402 | CI60: 010-6564-0525 | CJ60: 02-845-1403 | CK60: goodfair01@naver.com | CN60: 42846190 | CQ60: 42846190
B61: 54 | C61: 2018 광주전남웨딩페어 | D61: (주)페어스커뮤니케이션즈 | F61: 2018-08-24 | G61: 2018-08-26 | H61: 3 | I61: 2018-08-25 | J61: 2018-08-26 | K61: 2 | L61: 제3전시장 | M61: 3024 | N61: 8 | S61: 1 | T61: 9072 | U61: 0.002739726027 | V61: 전시회 | W61: 타지역 | AA61: 2018-07-24 | AB61: 2018-07-24 | AC61: 2018-07-24 | AD61: 2018-07-25 | AE61: 2018-07-25 | AP61: ○ | AQ61: ○ | AR61: ○ | AS61: ○ | AT61: ○ | AW61: 2018-07-25 | AX61: =AW61 -> 2018-07-25 | AY61: 3248220 | BB61: 2018-08-17 | BC61: 3248230 | BD61: 2018-08-17 | BE61: 3093550 | BF61: 9590000 | BG61: 2018-08-20 | BH61: 9590000 | BU61: 9590000 | BV61: =SUM(AY61,BA61,BC61) -> 6496450 | BX61: 216540 | BZ61: 150050 | CA61: 1264030 | CB61: 8127070 | CC61: 0 | CD61: 1462930 | CE61: 완납 | CF61: 8127070 | CG61: 유영호 | CH61: 031-698-2573 | CI61: 010-7114-8401 | CJ61: 062-698-2369 | CK61: jae0124_@naver.com | CN61: 8127070 | CQ61: 8127070
B62: 55 | C62: IBK 기업은행과 함께하는 여덟 번째 참좋은음악회 | D62: (주)박스미디어 | F62: 2018-08-28 | G62: 2018-08-29 | H62: 2 | I62: 2018-08-29 | J62: 2018-08-29 | K62: 1 | L62: 다목적홀 | M62: 2955 | N62: 8 | O62: 1 | P62: 1 | T62: 5910 | U62: 0.001784808292 | V62: 이벤트 | W62: 타지역 | AA62: 2018-05-03 | AB62: 2018-05-03 | AC62: 2018-05-03 | AD62: 2018-05-30 | AE62: 2018-05-29 | AF62: 2018-05-03 | AP62: ○ | AQ62: ○ | AR62: ○ | AS62: ○ | AT62: ○ | AV62: 0 | AW62: 2018-05-25 | AX62: 2018-05-25 | AY62: 9244420 | BB62: 2018-08-21 | BC62: 9244420 | BD62: 2018-08-21 | BE62: 3081470 | BF62: 21570310 | BG62: 2018-05-25 | BH62: 9244420 | BI62: 2018-08-17 | BJ62: 12325890 | BU62: =SUM(BH62,BJ62,BL62,BN62,BP62,BR62,BT62) -> 21570310 | BV62: =7703680+4622210 -> 12325890 | BX62: =4622210+1540730 -> 6162940 | BY62: 2196480 | BZ62: 245630 | CA62: 617590 | CB62: 21548530 | CC62: 0 | CD62: 21780 | CE62: 완납 | CF62: =CB62 -> 21548530 | CG62: 김민성 PD | CH62: 02-2124-6000 | CI62: 010-5522-3084 | CJ62: 02-2124-6099 | CK62: slash9508@nate.com | CN62: 21548530 | CQ62: 21548530
B63: 56 | C63: 2018 광주MBC 베이비페어 | D63: 광주문화방송(주) | F63: 2018-08-28 | G63: 2018-09-02 | H63: 6 | I63: 2018-08-30 | J63: 2018-09-02 | K63: 4 | L63: 제2,3전시장 | M63: 6048 | N63: 8 | R63: 1 | S63: 1 | T63: 36288 | U63: 0.01095890411 | V63: 전시회 | W63: 지역 | AB63: 2018-07-12 | AD63: 2018-07-19 | AE63: 2018-07-19 | AQ63: ○ | AR63: ○ | AT63: ○ | AU63: 납부유예 | AV63: 40%(4일) 20%(2일) | AW63: 2018-07-19 | AX63: =AW63 -> 2018-07-19 | AY63: =8249470+12374210 -> 20623680 | BB63: 2018-08-21 | BC63: 20623680 | BD63: 2018-08-21 | BE63: 12374200 | BF63: 53621560 | BG63: 2018-08-22 | BH63: 20623680 | BI63: 2018-09-18 | BJ63: 29340260 | BU63: 49963940 | BV63: =SUM(AY63,BA63,BC63)-10 -> 41247350 | BX63: 3299780 | BZ63: =812810+146630 -> 959440 | CA63: =2528060+1929310 -> 4457370 | CB63: 49963940 | CC63: 0 | CD63: 0 | CE63: 완납 | CF63: 49963940 | CG63: 이원석 차장 | CH63: 062-360-2623 | CI63: 010-7252-9133 | CJ63: 062-360-2476 | CK63: wonseok10@hanmail.net | CN63: 49963940 | CQ63: 49963940
B64: 57 | C64: 2018 박정현 콘서트 "더 원더 라이브"-광주 | D64: 장군엔터테인먼트 | F64: 2018-08-31 | G64: 2018-09-01 | H64: 2 | I64: 2018-09-01 | J64: 2018-09-01 | K64: 1 | L64: 다목적홀 | M64: 2955 | N64: 9 | O64: 1 | P64: 1 | T64: 5910 | U64: 0.001784808292 | V64: 이벤트 | W64: 타지역 | AA64: 2018-06-28 | AB64: 2018-06-28 | AC64: 2018-06-28 | AD64: 2018-07-11 | AE64: 2018-07-13 | AN64: ○ | AQ64: ○ | AR64: ○ | AS64: ○ | AT64: ○ | AW64: 2018-07-09 | AX64: =AW64 -> 2018-07-09 | AY64: 7703680 | BB64: 2018-08-24 | BC64: 7703690 | BD64: 2018-08-24 | BE64: 3081470 | BF64: 18488840 | BG64: 2018-07-09 | BH64: 7703680 | BI64: 2018-08-30 | BJ64: 15774980 | BK64: 2018-09-27 | BL64: 1830360 | BU64: 25309020 | BV64: =7703680+4622210 -> 12325890 | BX64: =4622210+4622210 -> 9244420 | BY64: 2216500 | BZ64: =364420+68880 -> 433300 | CA64: =617590+471320 -> 1088910 | CB64: 25309020 | CC64: 0 | CD64: 0 | CE64: 완납 | CF64: 25309020 | CG64: 유소리 팀장 | CH64: 1588-6956 | CI64: 010-9387-9206 | CJ64: 064-723-6927 | CK64: jg6927@naver.com | CN64: 25309020 | CQ64: 25309020
B65: 58 | C65: 곳장 | D65: 고운매 라이스푸드아카데미 | F65: 2018-09-07 | G65: 2018-09-08 | H65: 2 | I65: 2018-09-07 | J65: 2018-09-08 | K65: 2 | L65: 제2전시장 | M65: 3024 | N65: 9 | R65: 1 | T65: 6048 | U65: 0.001826484018 | V65: 전시회 | W65: 타지역 | AA65: 2018-07-16 | AB65: 2018-07-11 | AC65: 2018-08-27 | AD65: 2018-08-27 | AE65: 2018-09-07 | AP65: ○ | AQ65: ○ | AR65: ○ | AS65: ○ | AT65: ○ | AV65: 0 | AW65: 2018-08-27 | AX65: 2018-08-27 | AY65: 5155920 | BB65: 2018-08-31 | BC65: 5155920 | BD65: 2018-08-31 | BE65: 4124730 | BF65: 14436570 | BG65: 2018-08-30 | BH65: 14436570 | BU65: =SUM(BH65,BJ65,BL65,BN65,BP65,BR65,BT65) -> 14436570 | BV65: =SUM(AY65,BA65,BC65) -> 10311840 | BX65: 1546770 | BZ65: 85240 | CA65: 964650 | CB65: 12908500 | CC65: 0 | CD65: 1528070 | CE65: 완납 | CF65: =CB65 -> 12908500 | CG65: 고유정 이사 | CH65: 062-234-0412 | CI65: 010-8585-2896 | CK65: gotjang2018@naver.com | CN65: 12908500 | CQ65: 12908500
B66: 59 | C66: 2018 광주 ACE Fair | D66: 김대중컨벤션센터 | F66: 2018-09-09 | G66: 2018-09-17 | H66: 9 | I66: 2018-09-14 | J66: 2018-09-16 | K66: 3 | L66: 제1,2,3전시장, 다목적홀 | M66: =9072+2955 -> 12027 | N66: 9 | O66: 1 | P66: 1 | Q66: 1 | R66: 1 | S66: 1 | T66: 108243 | U66: 0.03268917156 | V66: 전시회 | W66: 지역 | AK66: ○ | AL66: ○ | AT66: ○ | AW66: 주관행사 | AY66: 0 | BA66: 0 | BC66: 0 | BE66: 0 | BF66: 0 | BU66: 0 | BV66: 0 | CB66: 0 | CC66: 0 | CD66: 0 | CE66: 완납 | CF66: 0 | CG66: 정창욱 | CH66: 062-611-2241 | CI66: 010-6414-5252 | CJ66: 062-611-2245 | CK66: cwjeong@kdjcenter.or.kr | CN66: 0 | CQ66: 0
B67: 60 | C67: 전남 청년 마을로 프로젝트 청년활동가 2차 합동 채용면접 | D67: 재단법인전남테크노파크 | F67: 2018-09-13 | G67: 2018-09-14 | H67: 2 | I67: 2018-09-13 | J67: 2018-09-14 | K67: 2 | L67: 열린홀 | M67: 1000 | N67: 9 | T67: 2000 | U67: 0.0006039960378 | V67: 이벤트 | W67: 타지역 | AB67: 2018-09-11 | AC67: 2018-09-11 | AD67: 2018-09-11 | AE67: 2018-09-11 | AQ67: ○ | AR67: ○ | AT67: ○ | AW67: 2018-09-11 | AX67: 2018-09-14 | AY67: 3410000 | BF67: 3410000 | BG67: 2018-09-14 | BH67: 3410000 | BU67: 3410000 | BV67: 3410000 | CB67: 3410000 | CC67: 0 | CD67: 0 | CE67: 완납 | CF67: 3410000 | CG67: 서태원 연구원 | CH67: 061-729-2912 | CK67: seotw@jntp.or.kr | CN67: 3410000 | CQ67: 3410000
B68: 61 | C68: 제7회 빛고을핸드메이드페어 | D68: 광주디자인센터 | F68: 2018-09-26 | G68: 2018-09-30 | H68: 5 | I68: 2018-09-28 | J68: 2018-09-30 | K68: 3 | L68: 제2,3전시장 | M68: 6048 | N68: 9 | R68: 1 | S68: 1 | T68: 30240 | U68: 0.009132420091 | V68: 전시회 | W68: 지역 | AB68: 2018-08-13 | AC68: 2018-08-21 | AD68: 2018-08-17 | AE68: 2018-08-17 | AQ68: ○ | AR68: ○ | AT68: ○ | AV68: 0.5 | AW68: 2018-08-17 | AX68: 2018-08-28 | AY68: 25779600 | BD68: 2018-09-19 | BE68: 10311840 | BF68: 36091440 | BG68: 2018-08-28 | BH68: 25779600 | BI68: 2018-09-21 | BJ68: 10311840 | BU68: 36091440 | BV68: 25779600 | BX68: 5155920 | BZ68: 332640 | CA68: 4823280 | CB68: 36091440 | CC68: 0 | CD68: 0 | CE68: 완납 | CF68: =CB68 -> 36091440 | CG68: 최운비 | CH68: 062-611-5034 | CI68: 010-6790-4420 | CK68: ubchoi@gdc.or.kr | CN68: 36091440 | CQ68: 36091440
B69: 62 | C69: 2018 시니어의료산업박람회 | D69: 김대중컨벤션센터 | F69: 2018-10-02 | G69: 2018-10-07 | H69: 6 | I69: 2018-10-05 | J69: 2018-10-07 | K69: 3 | L69: 제1,2,3전시장, 다목적홀 | M69: =9072+2955 -> 12027 | N69: 10 | O69: 1 | P69: 1 | Q69: 1 | R69: 1 | S69: 1 | T69: 72162 | U69: 0.02179278104 | V69: 전시회 | W69: 지역 | AK69: ○ | AL69: ○ | AT69: ○ | AW69: 주관행사 | AY69: 0 | BA69: 0 | BC69: 0 | BE69: 0 | BF69: 0 | BU69: 0 | BV69: 0 | CB69: 0 | CC69: 0 | CD69: 0 | CE69: 완납 | CF69: 0 | CG69: 차상윤 | CH69: 062-611-2217 | CI69: 010-5457-0991 | CJ69: 062-611-2239 | CK69: sycha@kdjcenter.or.kr | CN69: 0 | CQ69: 0
B70: 63 | C70: 현대자동차 H-프리미엄 패밀리 고객초청 콘서트 | D70: (주)투스토리 | F70: 2018-10-02 | G70: 2018-10-03 | H70: 2 | I70: 2018-10-03 | J70: 2018-10-03 | K70: 1 | L70: 다목적홀 | M70: 2955 | N70: 10 | O70: 1 | P70: 1 | T70: 5910 | U70: 0.001784808292 | V70: 이벤트 | W70: 타지역 | AA70: 2018-07-10 | AB70: 2018-07-10 | AC70: 2018-07-13 | AD70: 2018-07-13 | AE70: 2018-07-13 | AP70: ○ | AQ70: ○ | AR70: ○ | AS70: ○ | AT70: ○ | AW70: 2018-07-13 | AX70: =AW70 -> 2018-07-13 | AY70: 6162940 | BB70: 2018-09-25 | BC70: 6162950 | BD70: =BB70 -> 2018-09-25 | BE70: 8474050 | BF70: 20799940 | BG70: 2018-07-13 | BH70: 6162940 | BI70: 2018-09-25 | BJ70: 14637000 | BU70: 20799940 | BV70: 12325890 | BX70: =1848880+3081470 -> 4930350 | BY70: 2359500 | BZ70: 172690 | CA70: 471320 | CB70: 20259750 | CC70: 0 | CD70: 540190 | CE70: 완납 | CF70: 20259750 | CG70: 권승희 | CI70: 010-3860-4393 | CK70: dubu@m-otherc.com | CN70: 20259750 | CQ70: 20259750
B71: 64 | C71: 2018 광주국제식품전 | D71: 김대중컨벤션센터 | F71: 2018-10-08 | G71: 2018-10-14 | H71: 7 | I71: 2018-10-11 | J71: 2018-10-14 | K71: 4 | L71: 제1,2,3전시장 | M71: =9072+2955 -> 12027 | N71: 10 | O71: 1 | P71: 1 | Q71: 1 | R71: 1 | S71: 1 | T71: 84189 | U71: 0.02542491121 | V71: 전시회 | W71: 지역 | AK71: ○ | AL71: ○ | AT71: ○ | AW71: 주관행사 | AY71: 0 | BA71: 0 | BC71: 0 | BE71: 0 | BF71: 0 | BU71: 0 | BV71: 0 | CB71: 0 | CC71: 0 | CD71: 0 | CE71: 완납 | CF71: 0 | CG71: 손준용 | CH71: 062-611-2213 | CI71: 010-3396-5854 | CJ71: 062-611-2239 | CK71: jyson@kdjcenter.or.kr | CN71: 0 | CQ71: 0
B72: 65 | C72: 2018 광주국제차문화전시회 | D72: 김대중컨벤션센터 | F72: 2018-10-15 | G72: 2018-10-22 | H72: =G72-F72+1 -> 8 | I72: 2018-10-18 | J72: 2018-10-21 | K72: =J72-I72+1 -> 4 | L72: 제2,3전시장 | M72: 6048 | N72: 10 | R72: 1 | S72: 1 | T72: 48384 | U72: =T72/(9072*365) -> 0.01461187215 | V72: 전시회 | W72: 지역 | AK72: ○ | AL72: ○ | AM72: ○ | AT72: ○ | AW72: 주관행사 | AY72: 0 | BA72: 0 | BC72: 0 | BE72: 0 | BF72: 0 | BU72: 0 | BV72: 0 | CB72: =SUM(BV72:CA72) -> 0 | CC72: 0 | CD72: 0 | CE72: =IF(IF(CC72,0="완납",0<"미수"),"완납","미수") -> 완납 | CF72: 0 | CG72: 최영지 | CH72: 062-611-2212 | CI72: 010-8625-0066 | CJ72: 062-611-2239 | CK72: yjchoi@kdjcenter.or.kr | CN72: 0 | CQ72: 0
B73: 66 | C73: 여성유망&이색 일자리 직업 체험전 | D73: 주식회사 디자인그램 | F73: 2018-10-16 | G73: 2018-10-16 | H73: 1 | I73: 2018-10-16 | J73: 2018-10-16 | K73: 1 | L73: 열린홀 | M73: 1000 | N73: 10 | T73: 1000 | U73: 0.0003019980189 | V73: 전시회 | W73: 지역 | AB73: 2018-10-05 | AC73: 2018-10-05 | AD73: 2018-10-08 | AE73: 2018-10-08 | AQ73: ○ | AR73: ○ | AT73: ○ | AW73: 2018-10-08 | AX73: 2018-10-08 | AY73: 852500 | BB73: 2018-10-09 | BC73: 852500 | BF73: 1705000 | BG73: 2018-10-15 | BH73: 1705000 | BU73: 1705000 | BV73: 1705000 | CB73: 1705000 | CC73: 0 | CD73: 0 | CE73: 완납 | CF73: 1705000 | CG73: 박기홍 | CI73: 010-5229-0204 | CK73: archi04@uk@gmail.com | CN73: =CF73-CM73-CO73-CP73 -> 1705000 | CQ73: 1705000
B74: 67 | C74: 소프트웨어 축전 | D74: 광주광역시교육정보원 | F74: 2018-10-19 | G74: 2018-10-20 | H74: 2 | I74: 2018-10-20 | J74: 2018-10-20 | K74: 1 | L74: 다목적홀, 열린홀 | M74: 3955 | N74: 10 | O74: 1 | P74: 1 | T74: 7910 | U74: 0.002388804329 | V74: 전시회 | W74: 지역 | AB74: 2018-10-01 | AC74: 2018-10-08 | AD74: 2018-10-08 | AE74: 2018-10-08 | AQ74: ○ | AR74: ○ | AT74: ○ | AU74: 납부유예 | AW74: 2018-10-08 | AX74: 2018-10-08 | AY74: 8206000 | BB74: 2018-10-12 | BC74: 8206000 | BD74: =BB74 -> 2018-10-12 | BE74: 5785890 | BF74: 22197890 | BG74: 2018-11-06 | BH74: 22197890 | BU74: 22197890 | BV74: 16412000 | BX74: 5200800 | BZ74: 113770 | CA74: 471320 | CB74: 22197890 | CC74: 0 | CD74: 0 | CE74: 완납 | CF74: 22197890 | CG74: 노정현 연구사 | CH74: 062-380-4731 | CI74: 010-6460-8111 | CJ74: 062-383-4772 | CK74: gihnoh@korea.kr | CN74: 22197890 | CQ74: =SUM(CM74:CP74) -> 22197890
B75: 68 | C75: 2018 광주수학축전 | D75: 광주광역시교육청 | F75: 2018-10-19 | G75: 2018-10-20 | H75: 2 | I75: 2018-10-20 | J75: 2018-10-20 | K75: 1 | L75: 제1전시장 | M75: 3024 | N75: 10 | Q75: 1 | T75: 6048 | U75: 0.001826484018 | V75: 전시회 | W75: 지역 | AB75: 2018-10-01 | AC75: 2018-10-18 | AD75: 2018-10-18 | AE75: 2018-10-18 | AQ75: ○ | AR75: ○ | AT75: ○ | AU75: 납부유예 | AW75: 2018-10-18 | AX75: 2018-10-31 | AY75: =5671510*2 -> 11343020 | BD75: 2018-10-31 | BE75: 2918910 | BF75: =SUM(AY75,BA75,BC75,BE75) -> 14261930 | BG75: 2018-10-29 | BH75: 14261930 | BU75: 14261930 | BV75: 11343020 | BX75: 2835750 | BZ75: =75600*1.1 -> 83160 | CB75: 14261930 | CC75: 0 | CD75: 0 | CE75: 완납 | CF75: 14261930 | CG75: 지용대 장학사 | CH75: 062-380-4035 | CI75: 010-8609-7749 | CK75: yss0331@korea.kr | CN75: 14261930 | CQ75: 14261930
B76: 69 | C76: 2018광주권일자리박람회 | D76: 국제커리어센터 | F76: 2018-10-22 | G76: 2018-10-23 | H76: 2 | I76: 2018-10-23 | J76: 2018-10-23 | K76: 1 | L76: 제1전시장 | M76: 3024 | N76: 10 | Q76: 1 | T76: 6048 | U76: 0.001826484018 | V76: 전시회 | W76: 지역 | AA76: 2018-09-10 | AB76: 2018-09-10 | AC76: 2018-09-10 | AD76: 2018-10-15 | AE76: 2018-10-15 | AF76: 2018-09-10 | AQ76: ○ | AR76: ○ | AT76: ○ | AU76: 납부유예 | AV76: -0.1 | AW76: 2018-10-15 | AX76: 2018-10-15 | AY76: 5671510 | BB76: 2018-10-15 | BC76: 5671510 | BD76: 2018-10-15 | BE76: 2062360 | BF76: 13405380 | BG76: 2018-11-22 | BH76: 13697690 | BU76: =SUM(BH76,BJ76,BL76,BN76,BP76,BR76,BT76) -> 13697690 | BV76: 11343020 | BX76: 2268600 | BZ76: 86070 | CB76: 13697690 | CC76: 0 | CD76: 0 | CE76: 완납 | CF76: 13697690 | CG76: 조하림 팀장 | CH76: 062-464-5417 | CI76: 010-4993-0708 | CK76: jhrjob@naver.com | CN76: 13697690 | CQ76: 13697690
B77: 70 | C77: 작물보호학회 연합학술대회 전시 | D77: 사단법인한국식물병리학회 | F77: 2018-10-23 | G77: 2018-10-26 | H77: 4 | I77: 2018-10-24 | J77: 2018-10-26 | K77: 3 | L77: 열린홀 | M77: 500 | N77: 10 | Q77: 1 | T77: 2000 | U77: 0.0006039960378 | V77: 전시회 | W77: 지역 | AB77: 2018-10-18 | AC77: 2018-10-19 | AD77: 2018-10-19 | AE77: 2018-10-19 | AQ77: ○ | AR77: ○ | AT77: ○ | AU77: 납부유예 | AW77: 2018-10-19 | AX77: 2018-10-19 | AY77: 1705000 | BB77: 2018-10-16 | BC77: 1705000 | BF77: 3410000 | BG77: 2018-11-15 | BH77: 3410000 | BU77: =SUM(BH77,BJ77,BL77,BN77,BP77,BR77,BT77) -> 3410000 | BV77: 3410000 | CB77: 3410000 | CC77: 0 | CD77: 0 | CE77: 완납 | CF77: 3410000 | CG77: 조가을 팀장 | CH77: 02-557-9360 | CI77: 010-6568-0922 | CJ77: 02-557-9361 | CK77: paper@kspp.org | CN77: 3410000 | CQ77: 3410000
B78: 71 | C78: KBC 맘앤베이비페어 | D78: (주)KBC플러스 | F78: 2018-10-23 | G78: 2018-10-28 | H78: 6 | I78: 2018-10-25 | J78: 2018-10-28 | K78: 4 | L78: 제2,3전시장 | M78: 6048 | N78: 10 | R78: 1 | S78: 1 | T78: 36288 | U78: 0.01095890411 | V78: 전시회 | W78: 지역 | AB78: 2018-06-19 | AD78: 2018-06-29 | AE78: 2018-06-29 | AQ78: ○ | AR78: ○ | AS78: ○ | AT78: ○ | AU78: 납부유예 | AV78: 0.2 | AW78: 2018-06-29 | AX78: =AW78 -> 2018-06-29 | AY78: 24748410 | BB78: 2018-10-16 | BC78: 24748420 | BD78: =BB78 -> 2018-10-16 | BE78: 12374200 | BF78: 61871030 | BG78: 2018-10-19 | BH78: 24748410 | BI78: 2018-11-05 | BJ78: 26998720 | BU78: 51747130 | BV78: 49496830 | BX78: 1649890 | BZ78: 600410 | CB78: 51747130 | CC78: 0 | CD78: 0 | CE78: 완납 | CF78: 51747130 | CG78: 엄윤서 과장 | CH78: 062-650-3048 | CI78: 010-6669-0003 | CJ78: 062-710-3359 | CK78: kbc0003@naver.com | CN78: 51747130 | CQ78: 51747130
B79: 72 | C79: 미리보는 4차산업혁명박람회 | D79: (재)광주4차산업지원센터 | F79: 2018-10-24 | G79: 2018-10-28 | H79: 5 | I79: 2018-10-26 | J79: 2018-10-28 | K79: 3 | L79: 제1전시장 | M79: 3024 | N79: 10 | Q79: 1 | T79: 15120 | U79: 0.004566210046 | V79: 전시회 | W79: 지역 | AA79: 2018-01-25 | AB79: 2018-01-25 | AC79: 2018-01-26 | AD79: 2018.01.25 2018.04.20 | AE79: 2018.01.25 2018.04.20 | AP79: ○ | AQ79: ○ | AR79: ○ | AS79: ○ | AT79: ○ | AU79: 유망전시회 | AW79: 2018.01.25 2018.04.20 | AX79: 2018-04-20 | AY79: 5155920 | AZ79: 2018-07-24 | BA79: 7733880 | BB79: 2018-10-17 | BC79: 12889800 | BD79: =BB79 -> 2018-10-17 | BE79: 5155920 | BF79: 30935520 | BG79: 2018-04-15 | BH79: 1171800 | BI79: 2018-04-20 | BJ79: 5155920 | BK79: 2018-08-20 | BL79: 7733880 | BM79: 2018-10-22 | BN79: 18045720 | BU79: =SUM(BH79,BJ79,BL79,BN79,BP79,BR79,BT79) -> 32107320 | BV79: 25779600 | BW79: 1171800 | BX79: 2062360 | BY79: 175740 | CB79: 29189500 | CC79: 0 | CD79: 2917820 | CE79: 완납 | CF79: =CB79 -> 29189500 | CG79: 조성욱 사무장 | CH79: 062-415-3618 | CI79: 010-7343-4732 | CJ79: 0504-180-4732 | CK79: wook4732@naver.com | CN79: 28017700 | CP79: =BW79 -> 1171800 | CQ79: 29189500
B80: 73 | C80: KB국민은행 평생사랑 콘서트 | D80: 주식회사 비티엘플랜비 | F80: 2018-10-25 | G80: 2018-10-26 | H80: 2 | I80: 2018-10-26 | J80: 2018-10-26 | K80: 1 | L80: 다목적홀 | M80: 2955 | N80: 10 | O80: 1 | P80: 1 | T80: 5910 | U80: 0.001784808292 | V80: 이벤트 | W80: 타지역 | AA80: 2018-06-28 | AB80: 2018-07-06 | AD80: 2018-07-19 | AE80: 2018-07-19 | AF80: 2018-06-29 | AG80: ○ | AH80: ○ | AP80: ○ | AQ80: ○ | AR80: ○ | AS80: ○ | AT80: ○ | AW80: 2018-07-20 | AX80: =AW80 -> 2018-07-20 | AY80: 3807540 | AZ80: 2018-07-25 | BA80: 5711320 | BB80: 2018-10-18 | BC80: 9518870 | BD80: =BB80 -> 2018-10-18 | BE80: 3081470 | BF80: 22119200 | BG80: 2018-07-20 | BH80: 3807540 | BI80: 2018-07-25 | BJ80: 5711320 | BK80: 2018-10-18 | BL80: 12600340 | BU80: 22119200 | BV80: =4622210+7703680 -> 12325890 | BX80: 4622210 | BY80: 1927200 | BZ80: 231600 | CB80: 19106900 | CC80: 0 | CD80: 3012300 | CE80: 완납 | CF80: =CB80 -> 19106900 | CG80: 오성준 차장 | CH80: 02-571-1753 | CI80: 010-5428-5536 | CJ80: 02-571-1755 | CK80: jun@btlplanb.com | CN80: 19106900 | CQ80: 19106900
B81: =B80+1 -> 74 | C81: BIXPO 2018 | D81: 한국전력공사 | F81: 2018-10-28 | G81: 2018-11-03 | H81: 7 | I81: 2018-10-31 | J81: 2018-11-02 | K81: 3 | L81: 제1,2,3전시장, 다목적홀, 열린홀 등 | M81: =9072+1478+1000+1322+1000 -> 13872 | N81: 10 | P81: 1 | Q81: 1 | R81: 1 | S81: 1 | T81: 97104 | U81: 0.02932521563 | V81: 전시회 | W81: 타지역 | AB81: 2018-06-27 | AD81: 2018-06-28 | AE81: 2018-06-28 | AQ81: ○ | AR81: ○ | AT81: ○ | AW81: 2018-06-28 | AX81: 2018-06-28 | AY81: 35103460 | AZ81: 2018-07-29 | BA81: 52655200 | BB81: 2018-10-21 | BC81: 87758660 | BD81: =BB81 -> 2018-10-21 | BE81: 22463230 | BF81: 197980550 | BG81: 2018-12-11 | BH81: 155854030 | BU81: 155854030 | BV81: =88166230+19509600+10230000+1919540 -> 119825370 | BX81: =26449860+3251600+1534500 -> 31235960 | BZ81: =1410520+1061180 -> 2471700 | CA81: =1995840+325160 -> 2321000 | CB81: 155854030 | CC81: =IF(BU81<CB81,ROUNDDOWN(CB81-BU81,-1),0) -> 0 | CD81: =IF(BU81>CB81,ROUNDDOWN(BU81-CB81,-1),0) -> 0 | CE81: 완납 | CF81: 155854030 | CG81: 민경훈 차장 | CH81: 061-345-3732 | CI81: 010-4590-6560 | CJ81: 061-345-3777 | CK81: khmin@kepco.co.kr | CN81: 155854030 | CQ81: 155854030
B82: 75 | C82: 대한민국공예품대전 | D82: 한국공예협동조합연합회 | F82: 2018-11-06 | G82: 2018-11-11 | H82: 6 | I82: 2018-11-08 | J82: 2018-11-11 | K82: 4 | L82: 제2전시장 | M82: 3024 | N82: 11 | R82: 1 | T82: 18144 | U82: 0.005479452055 | V82: 전시회 | W82: 타지역 | AB82: 2018-10-29 | AC82: 2018-10-29 | AD82: 2018-10-29 | AE82: 2018-10-29 | AF82: 2018-10-29 | AQ82: ○ | AR82: ○ | AT82: ○ | AV82: -0.1 | AW82: 2018-10-29 | AX82: 2018-10-30 | AY82: =17014530+17014540 -> 34029070 | BD82: 2018-10-30 | BE82: 6187100 | BF82: 40216170 | BG82: 2018-11-01 | BH82: 40216170 | BU82: 40216170 | BV82: =SUM(AY82,BA82,BC82) -> 34029070 | BX82: 3970050 | BY82: 178200 | BZ82: 375650 | CA82: 1663200 | CB82: 40216170 | CC82: 0 | CD82: 0 | CE82: 완납 | CF82: =CB82 -> 40216170 | CG82: 김종만 회장 | CH82: 062-654-9851 | CI82: 010-4115-9851 | CK82: wj9850@hanmail.net | CN82: 40216170 | CQ82: 40216170
B83: 76 | C83: 제5회 광주펫쇼 | D83: (유)와이투이엔티 | F83: 2018-11-07 | G83: 2018-11-11 | H83: 5 | I83: 2018-11-09 | J83: 2018-11-11 | K83: 3 | L83: 제3전시장 | M83: 3024 | N83: 11 | S83: 1 | T83: 15120 | U83: 0.004566210046 | V83: 전시회 | W83: 지역 | AB83: 2018-09-19 | AD83: 2018-10-18 | AE83: 2018-10-18 | AP83: ○ | AQ83: ○ | AR83: ○ | AS83: ○ | AT83: ○ | AV83: -0.1 | AW83: 2018-10-18 | AX83: 2018-10-18 | AY83: 14178780 | BB83: 2018-10-31 | BC83: 14178780 | BD83: =BB83 -> 2018-10-31 | BE83: 5155920 | BF83: 33513480 | BG83: 2018-11-02 | BH83: 33513480 | BU83: 33513480 | BV83: 28357560 | BX83: 1701450 | BZ83: 272430 | CB83: 30331440 | CC83: 0 | CD83: 3182040 | CE83: 완납 | CF83: 30331440 | CG83: 이재희 과장 | CH83: 1566-6728 | CI83: 010-4138-5619 | CJ83: 062-719-3786 | CK83: y2ent-2@naver.com jae0124_@naver.com | CN83: 30331440 | CQ83: 30331440
B84: 77 | C84: 2018 더골프쇼 | D84: (주)이엑스스포테인먼트 | F84: 2018-11-07 | G84: 2018-11-11 | H84: 5 | I84: 2018-11-08 | J84: 2018-11-11 | K84: 4 | L84: 제1전시장 | M84: 3024 | N84: 11 | Q84: 1 | T84: 15120 | U84: 0.004566210046 | V84: 전시회 | W84: 타지역 | AB84: 2018-09-28 | AD84: 2018-10-18 | AE84: 2018-10-24 | AF84: 2018-10-22 | AP84: ○ | AQ84: ○ | AR84: ○ | AS84: ○ | AT84: ○ | AV84: -0.1 | AW84: 2018-10-19 | AX84: =AW84 -> 2018-10-19 | AY84: 14178780 | BB84: 2018-10-31 | BC84: 14178780 | BD84: =BB84 -> 2018-10-31 | BE84: 5155920 | BF84: 33513480 | BG84: 2018-11-02 | BH84: 33513480 | BU84: =SUM(BH84,BJ84,BL84,BN84,BP84,BR84,BT84) -> 33513480 | BV84: 28357560 | BX84: 1134300 | BZ84: 246110 | CB84: 29737970 | CC84: 0 | CD84: 3775510 | CE84: 완납 | CF84: =CB84 -> 29737970 | CG84: 박계완 | CH84: 02-356-4309 | CI84: 010-9300-0935 | CJ84: 0505-356-4309 | CK84: ex_golfshow@naver.com | CN84: 29737970 | CQ84: 29737970
B85: 78 | C85: 제9회 광주국제아트페어 | D85: (사)한국미술협회 광주광역시지회 | F85: 2018-11-12 | G85: 2018-11-18 | H85: 7 | I85: 2018-11-15 | J85: 2018-11-18 | K85: 4 | L85: 제2,3전시장 | M85: 6048 | N85: 11 | R85: 1 | S85: 1 | T85: 42336 | U85: 0.01278538813 | V85: 전시회 | W85: 지역 | AA85: 2018-05-11 | AB85: 2018-06-27 | AD85: 2018-07-17 | AE85: 2018-07-17 | AF85: 2018-10-24 | AQ85: ○ | AR85: ○ | AT85: ○ | AW85: 2018-06-29 | AX85: =AW85 -> 2018-06-29 | AY85: 14436570 | AZ85: 2018-08-12 | BA85: 21654870 | BB85: 2018-11-05 | BC85: 36091440 | BD85: =BB85 -> 2018-11-05 | BE85: 14436570 | BF85: 86619450 | BG85: 2018-08-22 | BH85: 36091440 | BI85: 2018-11-09 | BJ85: 50528010 | BU85: =SUM(BH85,BJ85,BL85,BN85,BP85,BR85,BT85) -> 86619450 | BV85: 72182880 | BX85: 9280650 | BY85: 106700 | BZ85: 1057540 | CA85: 3991680 | CB85: 86619450 | CC85: 0 | CD85: 0 | CE85: 완납 | CF85: =CB85 -> 86619450 | CG85: 심다이 | CH85: 062-223-1532 | CI85: 010-4676-3263 | CK85: kfaa21@hanmail.net | CN85: 86619450 | CQ85: 86619450
B86: 79 | C86: 광주아트페어 기획전시 | D86: (사)한국미술협회 광주광역시지회 아트광주18 | F86: 2018-11-12 | G86: 2018-11-18 | H86: 7 | I86: 2018-11-15 | J86: 2018-11-18 | K86: 4 | L86: 열린홀 | M86: 1000 | N86: 11 | T86: 7000 | U86: 0.002113986132 | V86: 전시회 | W86: 지역 | AB86: 2018-11-07 | AD86: 2018-11-08 | AE86: 2018-11-07 | AF86: 2018-10-24 | AQ86: ○ | AR86: ○ | AT86: ○ | AU86: 납부유예 | AW86: 2018-11-07 | AX86: =AW86 -> 2018-11-07 | AY86: 5967500 | BB86: 2018-11-05 | BC86: 5967500 | BF86: 11935000 | BG86: 2018-12-07 | BH86: 11935000 | BU86: =SUM(BH86,BJ86,BL86,BN86,BP86,BR86,BT86) -> 11935000 | BV86: 11935000 | CB86: 11935000 | CC86: 0 | CD86: 0 | CE86: 완납 | CF86: =CB86 -> 11935000 | CG86: 심다이 | CH86: 062-223-1532 | CI86: 010-4676-3263 | CK86: kfaa21@hanmail.net | CN86: 11935000 | CQ86: 11935000
B87: 80 | C87: 광주아트페어 아트체험 | D87: (사)한국미술협회 광주광역시지회 아트광주 사무국 | F87: 2018-11-12 | G87: 2018-11-18 | H87: 7 | I87: 2018-11-15 | J87: 2018-11-18 | K87: 4 | L87: 콘코스홀 | M87: 230 | N87: 11 | T87: 1610 | U87: 0.0004862168104 | V87: 전시회 | W87: 지역 | AB87: 2018-11-07 | AD87: 2018-11-08 | AE87: 2018-11-07 | AF87: 2018-10-24 | AQ87: ○ | AR87: ○ | AT87: ○ | AU87: 납부유예 | AW87: 2018-11-07 | AX87: =AW87 -> 2018-11-07 | AY87: 2656500 | BB87: 2018-11-05 | BC87: 2656500 | BF87: 5313000 | BG87: 2018-11-29 | BH87: 5313000 | BU87: =SUM(BH87,BJ87,BL87,BN87,BP87,BR87,BT87) -> 5313000 | BV87: 5313000 | CB87: 5313000 | CC87: 0 | CD87: 0 | CE87: 완납 | CF87: =CB87 -> 5313000 | CG87: 심다이 | CH87: 062-223-1532 | CI87: 010-4676-3263 | CK87: kfaa21@hanmail.net | CN87: 5313000 | CQ87: 5313000
B88: 81 | C88: 2018년 광주호남 소상공인 협동조합 박람회 | D88: 소상공인시장진흥공단 | F88: 2018-11-14 | G88: 2018-11-18 | H88: 5 | I88: 2018-11-15 | J88: 2018-11-18 | K88: 4 | L88: 제1전시장, 콘코스홀 | M88: =3024+100 -> 3124 | N88: 11 | Q88: 1 | T88: 15620 | U88: 0.004717209055 | V88: 전시회 | W88: 지역 | AB88: 2018-07-17 | AD88: 2018-11-12 | AE88: 2018-11-12 | AQ88: ○ | AR88: ○ | AT88: ○ | AU88: 납부유예 | AW88: 2018-11-12 | AX88: =AW88 -> 2018-11-12 | AY88: =6795520+10193280 -> 16988800 | BB88: 2018-11-07 | BC88: 16988810 | BD88: =BB88 -> 2018-11-07 | BE88: 1931990 | BF88: 35909600 | BG88: 2018-12-05 | BH88: 35909600 | BU88: =SUM(BH88,BJ88,BL88,BN88,BP88,BR88,BT88) -> 35909600 | BV88: =28357560+1650000 -> 30007560 | BX88: 3970050 | BZ88: 934070 | CA88: 997920 | CB88: 35909600 | CC88: 0 | CD88: 0 | CE88: 완납 | CF88: =CB88 -> 35909600 | CG88: 조규현 과장 | CH88: 062-369-8757 | CI88: 010-3652-8137 | CJ88: 062-369-8760 | CK88: town-gent@semas.or.kr | CN88: 35909600 | CQ88: 35909600
B89: 82 | C89: 2018광융합산업로드쇼 | D89: 한국광산업진흥회 | F89: 2018-11-19 | G89: 2018-11-22 | H89: 4 | I89: 2018-11-20 | J89: 2018-11-21 | K89: 2 | L89: 제1전시장 | M89: 3024 | N89: 11 | Q89: 1 | T89: 12096 | U89: 0.003652968037 | V89: 전시회 | W89: 지역 | AB89: 2018-08-17 | AD89: 2018-08-30 | AE89: 2018-08-30 | AQ89: ○ | AR89: ○ | AS89: ○ | AT89: ○ | AW89: 2018-09-07 | AX89: 2018-09-07 | AY89: 4124730 | AZ89: =+AX89 -> 2018-09-07 | BA89: 6187110 | BB89: 2018-11-12 | BC89: 10311840 | BD89: =BB89 -> 2018-11-12 | BE89: 4124730 | BF89: 24748410 | BG89: 2018-09-07 | BH89: 10311840 | BI89: 2018-11-19 | BJ89: 14436570 | BK89: 2018-11-27 | BL89: 1974360 | BU89: 26722770 | BV89: =SUM(AY89,BA89,BC89) -> 20623680 | BX89: 5155920 | BZ89: 277890 | CA89: 665280 | CB89: 26722770 | CC89: 0 | CD89: 0 | CE89: 완납 | CF89: 26722770 | CG89: 박상우 연구원 | CH89: 062-605-9646 | CJ89: 062-605-9650 | CK89: swpark@kapid.org | CN89: 26722770 | CQ89: 26722770
B90: 83 | C90: 한국웨딩산업박람회 | D90: 이노웨딩 | F90: 2018-11-19 | G90: 2018-11-19 | H90: 1 | I90: 2018-11-19 | J90: 2018-11-19 | K90: 1 | L90: 제3전시장 | M90: 3024 | N90: 11 | S90: 1 | T90: 3024 | U90: 0.0009132420091 | V90: 전시회 | W90: 타지역 | AA90: 2018-08-13 | AB90: 2018-08-21 | AD90: 2018-11-07 | AE90: 2018-11-07 | AP90: ○ | AQ90: ○ | AR90: ○ | AS90: ○ | AT90: ○ | AV90: -0.1 | AW90: 2018-11-07 | AX90: 2018-11-07 | AY90: 2835750 | BB90: 2018-11-12 | BC90: 2835760 | BD90: =BB90 -> 2018-11-12 | BE90: 1031180 | BF90: 6702690 | BG90: 2018-11-06 | BH90: 2000000 | BI90: 2018-11-13 | BJ90: 4702690 | BU90: 6702690 | BV90: 5671510 | BZ90: 202800 | CA90: 332640 | CB90: 6206950 | CC90: 0 | CD90: 495740 | CE90: 완납 | CF90: 6206950 | CG90: 구송희 실장 | CH90: 02-540-7633 | CI90: 018-352-8780 | CJ90: 02-549-7633 | CK90: kowia@naver.com | CN90: 6206950 | CQ90: 6206950
B91: 84 | C91: 광주은행 50주년 창립기념회 | D91: (주)광주은행/(주)에프엠커뮤니케이션즈 | F91: 2018-11-19 | G91: 2018-11-19 | H91: 1 | I91: 2018-11-19 | J91: 2018-11-19 | K91: 1 | L91: 야외전시장 | M91: 100 | N91: 11 | T91: 100 | U91: 3.019980189e-05 | V91: 이벤트 | W91: 지역 | AB91: 2018-11-19 | AD91: 2018-11-19 | AE91: 2018-11-22 | AQ91: ○ | AR91: ○ | AT91: ○ | AU91: 납부유예 | AW91: 2018-11-19 | AX91: 2018-11-19 | AY91: 24200 | BF91: 24200 | BG91: 2018-11-28 | BH91: 24200 | BU91: =SUM(BH91,BJ91,BL91,BN91,BP91,BR91,BT91) -> 24200 | BV91: 24200 | CB91: 24200 | CC91: 0 | CD91: 0 | CE91: 완납 | CF91: =CB91 -> 24200 | CG91: 김용규 팀장 | CH91: 062-239-5105 | CI91: 010-3788-7014 | CJ91: 0505-082-0606 | CK91: inno365@kjbank.com | CN91: 24200 | CQ91: 24200
B92: 85 | C92: 임창정 콘서트 | D92: 유한회사 예향 | F92: 2018-11-20 | G92: 2018-11-24 | H92: 5 | I92: 2018-11-24 | J92: 2018-11-24 | K92: 1 | L92: 제2,3전시장 | M92: 4536 | N92: 11 | R92: 1 | S92: 1 | T92: =M92*H92/2+3024 -> 14364 | U92: 0.004337899543 | V92: 이벤트 | W92: 지역 | AB92: 2018-11-12 | AC92: 2018-11-12 | AD92: 2018-11-12 | AE92: 2018-11-12 | AG92: ○ | AH92: ○ | AQ92: ○ | AR92: ○ | AT92: ○ | AV92: 3홀 : -10% 2홀 : -32% | AW92: 2018-11-12 | AX92: 2018-11-12 | AY92: 15880230 | BB92: 2018-11-13 | BC92: 15880230 | BD92: =BB92 -> 2018-11-13 | BE92: 6187100 | BF92: 37947560 | BG92: 2018-11-16 | BH92: 10000000 | BI92: 2018-11-19 | BJ92: 8347560 | BK92: 2018-11-20 | BL92: =10000000+3000000 -> 13000000 | BM92: 2018-11-21 | BN92: 2000000 | BO92: 2018-11-21 | BP92: 2600000 | BQ92: 2018-11-23 | BR92: 2000000 | BU92: 37947560 | BV92: 31760460 | BX92: =3970050+1701450 -> 5671500 | BY92: 304700 | BZ92: 210900 | CB92: 37947560 | CC92: 0 | CD92: 0 | CE92: 완납 | CF92: 37947560 | CG92: 김용남 대표 | CH92: 062-419-8631 | CI92: 010-3623-8604 | CJ92: 062-419-8600 | CK92: yehyang2@hanmail.net | CN92: 37947560 | CQ92: 37947560
B93: 86 | C93: 슈퍼스타 : THE ORIGINAL | D93: 주식회사 좋은콘서트 | F93: 2018-11-25 | G93: 2018-11-25 | H93: 1 | I93: 2018-11-25 | J93: 2018-11-25 | K93: 1 | L93: 다목적홀 | M93: 2955 | N93: 11 | O93: 1 | P93: 1 | T93: =M93*H93 -> 2955 | U93: 0.0008924041458 | V93: 이벤트 | W93: 타지역 | AA93: 2018-09-05 | AB93: 2018-09-05 | AC93: 2018-09-05 | AD93: 2018-10-18 | AE93: 2018-10-30 | AF93: 2018-09-05 | AG93: ○ | AH93: ○ | AP93: ○ | AQ93: ○ | AR93: ○ | AS93: ○ | AT93: ○ | AW93: 2018-10-17 | AX93: 2018-10-17 | AY93: 3851840 | BB93: 2018-11-18 | BC93: 3851840 | BD93: 2018-11-18 | BE93: 4622210 | BF93: 12325890 | BG93: 2018-10-17 | BH93: 3851840 | BI93: 2018-11-23 | BJ93: 8474050 | BU93: 12325890 | BV93: 7703680 | BX93: 3081470 | BZ93: 144910 | CB93: 10930060 | CC93: 0 | CD93: 1395830 | CE93: 완납 | CF93: 10930060 | CG93: 김민철 PD | CH93: 1670-7018 | CI93: 010-9247-6154 | CK93: good_concert@naver.com | CN93: 10930060 | CQ93: 10930060
B94: 87 | C94: THE-K 행복나눔콘서트 | D94: (주)엔엠에스미디어 | F94: 2018-11-26 | G94: 2018-11-27 | H94: 2 | I94: 2018-11-27 | J94: 2018-11-27 | K94: 1 | L94: 다목적홀 | M94: 2955 | N94: 11 | O94: 1 | P94: 1 | T94: 5910 | U94: 0.001784808292 | V94: 이벤트 | W94: 타지역 | AA94: 2018.05.24 2018.07.09 | AB94: 2018.05.25 2018.07.10 | AC94: 2018-05-24 | AD94: 2018.06.07 2018.07.11 | AE94: 2018.06.15 2018.07.17 | AF94: 2018-05-25 | AG94: ○ | AH94: ○ | AQ94: ○ | AR94: ○ | AT94: ○ | AU94: 변경계약 | AW94: 2018-06-15 | AX94: 2018-06-15 | AY94: 1540730 | AZ94: 2018-08-27 | BA94: 2311110 | BB94: 2018-11-20 | BC94: 3851840 | BD94: =BB94 -> 2018-11-20 | BE94: 6933310 | BF94: 14636990 | BG94: 2018-06-15 | BH94: 4005910 | BI94: 2018-08-24 | BJ94: 1946930 | BK94: 2018-11-20 | BL94: 7000000 | BM94: 2018-11-26 | BN94: 3785150 | BU94: =SUM(BH94,BJ94,BL94,BN94,BP94,BR94,BT94) -> 16737990 | BV94: 7703680 | BW94: 2101000 | BX94: 3851840 | BY94: 2821390 | BZ94: 260080 | CB94: 16737990 | CC94: 0 | CD94: 0 | CE94: 완납 | CF94: =CB94 -> 16737990 | CG94: 박여주 | CH94: 02-6261-1108 | CI94: 010-8025-9911 | CJ94: 02-6954-1109 | CK94: bb_y2094@naver.com | CN94: 14636990 | CP94: =BW94 -> 2101000 | CQ94: 16737990
B95: 88 | C95: KBC 건축박람회 | D95: (주)KBC플러스 | F95: 2018-11-27 | G95: 2018-12-02 | H95: 6 | I95: 2018-11-29 | J95: 2018-12-02 | K95: 4 | L95: 제2,3전시장 | M95: 4536 | N95: 11 | R95: 1 | S95: 1 | T95: 27216 | U95: 0.008219178082 | V95: 전시회 | W95: 지역 | AB95: 2018-06-19 | AD95: 2018-06-29 | AE95: 2018-06-29 | AQ95: ○ | AR95: ○ | AT95: ○ | AU95: 납부유예 | AV95: 15%(4일) 40%(2일) | AW95: 2018-06-29 | AX95: 2018-06-29 | AY95: 18973780 | BB95: 2018-11-20 | BC95: 18973790 | BD95: 2018-11-20 | BE95: 12374200 | BF95: 50321770 | BG95: 2018-11-20 | BH95: 18973780 | BI95: 2018-12-10 | BJ95: 26454770 | BU95: =SUM(BH95,BJ95,BL95,BN95,BP95,BR95,BT95) -> 45428550 | BV95: =17530120+6187100+10518070+3712260 -> 37947550 | BX95: =876500+1546770+525900+928060 -> 3877230 | BZ95: 809600 | CA95: =1330560+1463610 -> 2794170 | CB95: 45428550 | CC95: 0 | CD95: 0 | CE95: 완납 | CF95: =CB95 -> 45428550 | CG95: 엄윤서 과장 | CH95: 062-650-3048 | CI95: 010-6669-0003 | CJ95: 062-710-3359 | CK95: kbc0003@naver.com | CN95: 45428550 | CQ95: 45428550
B96: 89 | C96: 김연자 조항조 빅쇼 | D96: (주)광주방송 | F96: 2018-11-30 | G96: 2018-12-01 | H96: 2 | I96: 2018-12-01 | J96: 2018-12-01 | K96: 1 | L96: 다목적홀 | M96: 2955 | N96: 11 | O96: 1 | P96: 1 | T96: 5910 | U96: 0.001784808292 | V96: 이벤트 | W96: 지역 | AA96: 2018-11-16 | AB96: 2018-11-19 | AD96: 2018-11-28 | AE96: 2018-11-28 | AQ96: ○ | AR96: ○ | AU96: 납부유예 | AV96: 0 | AW96: 2018-11-28 | AX96: 2018-11-28 | AY96: 6162940 | BB96: 2018-11-23 | BC96: 6162950 | BD96: 2018-11-23 | BE96: 7042940 | BF96: 19368830 | BG96: 2019-12-31 | BH96: 17881850 | BU96: =SUM(BH96,BJ96,BL96,BN96,BP96,BR96,BT96) -> 17881850 | BV96: =SUM(AY96,BA96,BC96) -> 12325890 | BX96: =308140+4622210 -> 4930350 | BZ96: 300560 | CA96: 325050 | CB96: 17881850 | CC96: 0 | CD96: 0 | CE96: 완납 | CF96: =CB96 -> 17881850 | CG96: 강상호 부장 | CI96: 010-8541-2900 | CK96: donga0326@hanmail.net | CN96: 17881850 | CQ96: 17881850
B97: 90 | C97: 2018 광주MBC베이비페어 | D97: 광주문화방송 | F97: 2018-12-04 | G97: 2018-12-09 | H97: 6 | I97: 2018-12-06 | J97: 2018-12-09 | K97: 4 | L97: 제2,3전시장 | M97: 6048 | N97: 12 | R97: 1 | S97: 1 | T97: 36288 | U97: 0.01095890411 | V97: 전시회 | W97: 지역 | AB97: 2018-11-02 | AD97: 2018-11-02 | AE97: 2018-11-09 | AQ97: ○ | AR97: ○ | AU97: 납부유예 | AV97: 0.4 | AW97: 2018-11-05 | AX97: 2018-11-05 | AY97: =7424520+11136790 -> 18561310 | BB97: 2018-11-27 | BC97: 18561310 | BD97: 2018-11-27 | BE97: 12374200 | BF97: 49496820 | BG97: 2018-11-22 | BH97: 18561310 | BU97: 18561310 | BV97: 37122620 | BX97: 2474840 | BZ97: 959570 | CA97: 2927230 | CB97: 43484260 | CC97: 24922950 | CD97: 0 | CE97: 미수 | CF97: 43484260 | CG97: 이원석 차장 | CH97: 062-360-2623 | CI97: 010-7252-9133 | CJ97: 062-360-2476 | CK97: wonseok10@hanmail.net | CN97: 43484260 | CQ97: 43484260
B98: 91 | C98: 조선이공대학교 LINK+사업 성과공유회 | D98: 조선이공대학교 산학협력단 | F98: 2018-12-04 | G98: 2018-12-05 | H98: 2 | I98: 2018-12-05 | J98: 2018-12-05 | K98: 1 | L98: 제1전시장 | M98: 3024 | N98: 12 | Q98: 1 | T98: 6048 | U98: 0.001826484018 | V98: 전시회 | W98: 지역 | AA98: 2018-10-30 | AB98: 2018-11-01 | AD98: 2018-11-27 | AE98: 2018-11-27 | AP98: ○ | AQ98: ○ | AR98: ○ | AS98: ○ | AT98: ○ | AV98: 0.3 | AW98: 2018-11-27 | AX98: 2018-11-27 | AY98: 3609140 | BB98: 2018-11-27 | BC98: 3609140 | BD98: 2018-11-27 | BE98: 3506020 | BF98: 10724300 | BG98: 2018-11-28 | BH98: =3506020+7218280 -> 10724300 | BU98: 10724300 | BV98: 7218280 | BZ98: 70230 | CA98: 332640 | CB98: 7621150 | CC98: 0 | CD98: 3103150 | CE98: 완납 | CF98: =CB98 -> 7621150 | CG98: 김기표 | CH98: 062-230-8018 | CI98: 010-4069-3269 | CJ98: 062-230-8015 | CK98: kkp3269@cst.ac.kr | CN98: 7621150 | CQ98: 7621150
B99: 92 | C99: 2018 쇼미더머니 777 | D99: 주식회사 공연마루 | F99: 2018-12-07 | G99: 2018-12-08 | H99: 2 | I99: 2018-12-08 | J99: 2018-12-08 | K99: 1 | L99: 다목적홀 | M99: 2955 | N99: 12 | O99: 1 | P99: 1 | S99: 1 | T99: 5910 | U99: 0.001784808292 | V99: 이벤트 | W99: 지역 | AA99: 2018-09-14 | AB99: 2018-09-18 | AC99: 2018-09-18 | AD99: 2018-09-19 | AE99: 2018-09-18 | AG99: ○ | AH99: ○ | AP99: ○ | AQ99: ○ | AR99: ○ | AS99: ○ | AT99: ○ | AW99: 2018-09-19 | AX99: 2018-09-19 | AY99: 6162940 | BB99: 2018-11-30 | BC99: 6162950 | BD99: 2018-11-30 | BE99: 7703680 | BF99: 20029570 | BG99: 2018-09-19 | BH99: 6162940 | BI99: 2018-11-29 | BJ99: =13866630 -> 13866630 | BU99: 20029570 | BV99: 12325890 | BX99: =924440+4622210 -> 5546650 | BZ99: 253800 | CA99: 357550 | CB99: 18483890 | CC99: 0 | CD99: 1545680 | CE99: 완납 | CF99: 18483890 | CG99: 정다빈 | CH99: 062-528-7880 | CI99: 010-7124-3654 | CJ99: 062-528-7882 | CK99: ticketmaru@hanmail.net | CN99: 18483890 | CQ99: 18483890
B100: 93 | C100: 2018 중소기업 일자리 인식개선 Expo | D100: 주식회사 오백볼트투 | F100: 2018-12-10 | G100: 2018-12-12 | H100: 3 | I100: 2018-12-11 | J100: 2018-12-12 | K100: 2 | L100: 제3전시장 | M100: 3024 | N100: 12 | S100: 1 | T100: 9072 | U100: 0.002739726027 | V100: 전시회 | W100: 타지역 | AA100: 2018-11-27 | AB100: 2018-11-28 | AC100: 2018-12-04 | AD100: 2018-12-05 | AE100: 2018-12-11 | AF100: 2018-10-29 | AP100: ○ | AQ100: ○ | AR100: ○ | AS100: ○ | AT100: ○ | AV100: 0.3 | AW100: 2018-12-05 | AX100: 2018-12-05 | AY100: 5413710 | BB100: 2018-12-03 | BC100: 5413720 | BD100: 2018-12-03 | BE100: 3093550 | BF100: 13920980 | BG100: 2018-12-05 | BH100: 13920980 | BU100: 13920980 | BV100: 10827430 | BX100: 1804570 | BZ100: 150780 | CA100: 731800 | CB100: 13514580 | CC100: 0 | CD100: 406400 | CE100: 완납 | CF100: =CB100 -> 13514580 | CG100: 정동기 부사장 | CI100: 010-9992-0505 | CJ100: 050-4472-6941 | CK100: midas@coachjob.net | CN100: 13514580 | CQ100: 13514580
B101: 94 | C101: 2018 산학협력 교류의 날 | D101: 호남대학교 산학협력단 | F101: 2018-12-10 | G101: 2018-12-12 | H101: 3 | I101: 2018-12-11 | J101: 2018-12-12 | K101: 2 | L101: 제1전시장 | M101: 3024 | N101: 12 | Q101: 1 | T101: 9072 | U101: 0.002739726027 | V101: 전시회 | W101: 지역 | AA101: 2018-11-21 | AB101: 2018-11-22 | AC101: 2018-11-21 | AD101: 2018-12-06 | AE101: 2018-12-06 | AQ101: ○ | AR101: ○ | AT101: ○ | AU101: 납부유예 | AV101: 0.3 | AW101: 2018-12-06 | AX101: 2018-12-06 | AY101: 5413710 | BB101: 2018-12-03 | BC101: 5413720 | BD101: 2018-12-03 | BE101: 6702690 | BF101: 17530120 | BG101: 2018-12-18 | BH101: 13112780 | BU101: 13112780 | BV101: 10827430 | BX101: 1443650 | BZ101: 109900 | CA101: 731800 | CB101: 13112780 | CC101: 0 | CD101: 0 | CE101: 완납 | CF101: 13112780 | CG101: 김규하 팀장 | CH101: 062-940-5710 | CI101: 010-9686-4050 | CJ101: 062-940-5712 | CK101: kim9659@honam.ac.kr | CN101: 13112780 | CQ101: 13112780
B102: 95 | C102: 2018 거미콘서트 | D102: 주식회사 공연마루 | F102: 2018-12-13 | G102: 2018-12-15 | H102: 3 | I102: 2018-12-15 | J102: 2018-12-15 | K102: 1 | L102: 다목적홀 | M102: 2955 | N102: 12 | O102: 1 | P102: 1 | T102: 8865 | U102: 0.002677212437 | V102: 이벤트 | W102: 지역 | AA102: 2018-09-14 | AB102: 2018-09-18 | AC102: 2018-09-18 | AD102: 2018-09-19 | AE102: 2018-09-18 | AP102: ○ | AQ102: ○ | AR102: ○ | AS102: ○ | AT102: ○ | AU102: 1홀 1일 추가계약 | AW102: 2018.09.19 2019.11.28 | AX102: 2018-09-19 | AY102: 6162940 | AZ102: 2018-11-28 | BA102: 1155940 | BB102: 2018-12-07 | BC102: =6162950+1155940 -> 7318890 | BD102: 2018-12-07 | BE102: =7703680+770620 -> 8474300 | BF102: 23112070 | BG102: 2018-09-19 | BH102: 6162940 | BI102: 2018-11-29 | BJ102: 1155940 | BK102: 2018-12-04 | BL102: 1926560 | BM102: 2018-12-10 | BN102: 13866630 | BU102: 23112070 | BV102: 14637770 | BX102: =462220+5392570 -> 5854790 | BZ102: 391230 | CA102: 357550 | CB102: 21241340 | CC102: 0 | CD102: 1870730 | CE102: 완납 | CF102: 21241340 | CG102: 정다빈 | CH102: 062-528-7880 | CI102: 010-7124-3654 | CJ102: 062-528-7882 | CK102: ticketmaru@hanmail.net | CN102: 21241340 | CQ102: 21241340
B103: 96 | C103: 광주국제블루사운드페스티발 | D103: 컴퍼니에이이엔티 주식회사 | F103: 2018-12-14 | G103: 2018-12-15 | H103: 2 | I103: 2018-12-15 | J103: 2018-12-15 | K103: 1 | L103: 제1,2전시장 | M103: 6048 | N103: 12 | Q103: 1 | R103: 1 | T103: 12096 | U103: 0.003652968037 | V103: 이벤트 | W103: 지역 | AA103: 2018-10-25 | AB103: 2018-10-26 | AC103: 2018-10-29 | AD103: 2018-10-29 | AE103: 2018-10-29 | AG103: ○ | AH103: ○ | AP103: ○ | AQ103: ○ | AR103: ○ | AS103: ○ | AT103: ○ | AV103: 0.3 | AW103: 2018-10-29 | AX103: 2018-10-29 | AY103: 7218280 | BB103: 2018-12-07 | BC103: 7218290 | BD103: 2018-12-07 | BE103: 7012050 | BF103: 21448620 | BG103: 2018-11-15 | BH103: 7218280 | BI103: 2018-12-13 | BJ103: 14230340 | BU103: =SUM(BH103,BJ103,BL103,BN103,BP103,BR103,BT103) -> 21448620 | BV103: 14436570 | BX103: 3609140 | BZ103: 117390 | CA103: 731800 | CB103: 18894900 | CC103: 0 | CD103: 2553720 | CE103: 완납 | CF103: =CB103 -> 18894900 | CG103: 김태식 실장 | CH103: 062-652-6564 | CI103: 010-9111-2133 | CJ103: 062-652-6563 | CK103: sik775@nate.com | CN103: 18894900 | CQ103: 18894900
B104: 97 | C104: 2018 광주APT입주박람회 | D104: (유)와이투이엔티 | F104: 2018-12-21 | G104: 2018-12-23 | H104: =G104-F104+1 -> 3 | I104: 2018-12-22 | J104: 2018-12-23 | K104: =J104-I104+1 -> 2 | L104: 제3전시장 | M104: 1512 | N104: 12 | Q104: 1 | T104: 4536 | U104: =T104/(9072*365) -> 0.001369863014 | V104: 전시회 | W104: 지역 | AA104: 2018-11-23 | AB104: 2018-11-23 | AD104: 2018-12-04 | AE104: 2018-12-04 | AP104: ○ | AQ104: ○ | AR104: ○ | AS104: ○ | AT104: ○ | AV104: 0.16 | AW104: 2018-12-04 | AX104: 2018-12-04 | AY104: 3248220 | BB104: 2018-12-14 | BC104: 3248230 | BD104: 2018-12-14 | BE104: 3093550 | BF104: 9590000 | BG104: 2018-12-17 | BH104: 9590000 | BU104: =SUM(BH104,BJ104,BL104,BN104,BP104,BR104,BT104) -> 9590000 | BV104: 6496450 | BX104: 649640 | BZ104: 525430 | CA104: 731800 | CB104: =SUM(BV104:CA104) -> 8403320 | CC104: 0 | CD104: 1186680 | CE104: =IF(IF(CC104,0="완납",0<"미수"),"완납","미수") -> 완납 | CF104: =CB104 -> 8403320 | CG104: 이재희 과장 | CH104: 1566-6728 | CI104: 010-4138-5619 | CJ104: 062-719-3786 | CK104: y2ent-2@naver.com | CN104: 8403320 | CQ104: 8403320
B105: 98 | C105: 2018 로이킴 LIVE TOUR | D105: (유)와이투이엔티 | F105: 2018-12-23 | G105: 2018-12-24 | H105: 2 | I105: 2018-12-24 | J105: 2018-12-24 | K105: 1 | L105: 다목적홀 | M105: 2955 | N105: 12 | O105: 1 | P105: 1 | T105: 5910 | U105: 0.001784808292 | V105: 이벤트 | W105: 지역 | AA105: 2018-11-05 | AB105: 2018-11-05 | AD105: 2018-11-09 | AE105: 2018-11-09 | AP105: ○ | AQ105: ○ | AR105: ○ | AS105: ○ | AT105: ○ | AW105: 2018-11-09 | AX105: =AW105 -> 2018-11-09 | AY105: 6162940 | BB105: 2018-12-16 | BC105: 6162950 | BD105: 2018-12-16 | BE105: 8342260 | BF105: 20668150 | BG105: 2018-12-17 | BH105: 20668150 | BU105: =SUM(BH105,BJ105,BL105,BN105,BP105,BR105,BT105) -> 20668150 | BV105: 12325890 | BX105: 4622210 | BY105: 2305160 | BZ105: 285180 | CA105: 357550 | CB105: 19895990 | CC105: 0 | CD105: 772160 | CE105: 완납 | CF105: =CB105 -> 19895990 | CG105: 이재희 과장 | CH105: 1566-6728 | CI105: 010-4138-5619 | CJ105: 062-719-3786 | CK105: y2ent-2@naver.com | CN105: 19895990 | CQ105: 19895990
B106: 99 | C106: 2018 Two Muse Concert - 광주 | D106: (주)KBC플러스 | F106: 2018-12-29 | G106: 2018-12-29 | H106: 1 | I106: 2018-12-29 | J106: 2018-12-29 | K106: 1 | L106: 다목적홀 | M106: 2955 | N106: 12 | O106: 1 | P106: 1 | T106: 2955 | U106: 0.0008924041458 | V106: 이벤트 | W106: 지역 | AA106: 2018-10-02 | AB106: 2018-10-02 | AC106: 2018-10-02 | AD106: 2018-10-25 | AE106: 2018-10-25 | AG106: ○ | AH106: ○ | AP106: ○ | AQ106: △ | AR106: △ | AS106: ○ | AV106: 0 | AW106: 2018-10-25 | AX106: 2018-10-25 | AY106: 3851840 | BB106: 2018-12-22 | BC106: 3851840 | BD106: 2018-12-22 | BE106: 7680570 | BF106: 15384250 | BG106: 2018-10-31 | BH106: 3851840 | BI106: 2018-12-28 | BJ106: 11532410 | BU106: 15384250 | BV106: 7703680 | BX106: 2311100 | BY106: =110000+2002000 -> 2112000 | BZ106: 226080 | CA106: 357550 | CB106: 12710410 | CC106: 0 | CD106: 2673840 | CE106: 완납 | CF106: 12710410 | CG106: 한제은 | CH106: 062-650-3049 | CI106: 010-7727-0325 | CJ106: 062-710-3359 | CK106: kbcj0325@naver.com | CN106: 12710410 | CQ106: 12710410
B107: 100 | C107: 2018 광주전남웨딩박람회 winter | D107: (유)와이투이엔티 | F107: 2018-12-28 | G107: 2018-12-30 | H107: 3 | I107: 2018-12-29 | J107: 2018-12-30 | K107: 2 | L107: 제3전시장 | M107: 1512 | N107: 12 | S107: 1 | T107: 4536 | U107: 0.001369863014 | V107: 전시회 | W107: 지역 | AA107: 2018-11-05 | AB107: 2018-11-05 | AC107: 2018-11-05 | AD107: 2018-11-09 | AE107: 2018-11-09 | AP107: ○ | AS107: ○ | AW107: 2018-11-09 | AX107: =AW107 -> 2018-11-09 | AY107: 3248220 | BB107: 2018-12-21 | BC107: 3248230 | BD107: 2018-12-21 | BE107: 3093550 | BF107: =SUM(AY107,BA107,BC107,BE107) -> 9590000 | BG107: 2018-12-26 | BH107: 9590000 | BU107: =SUM(BH107,BJ107,BL107,BN107,BP107,BR107,BT107) -> 9590000 | BV107: 6496450 | BX107: 649640 | BZ107: 270000 | CA107: 731800 | CB107: 8147890 | CC107: 0 | CD107: 1442110 | CE107: 완납 | CF107: =CB107 -> 8147890 | CG107: 이재희 과장 | CH107: 1566-6728 | CI107: 010-4138-5619 | CJ107: 062-719-3786 | CK107: y2ent-2@naver.com | CN107: 8147890 | CQ107: 8147890
B108: 101 | C108: BUZZ 콘서트 | D108: (주)장터미디어 | F108: 2018-12-30 | G108: 2018-12-31 | H108: 2 | I108: 2018-12-31 | J108: 2018-12-31 | K108: 1 | L108: 다목적홀 | M108: 2955 | N108: 12 | O108: 1 | P108: 1 | T108: 5910 | U108: 0.001784808292 | V108: 이벤트 | W108: 지역 | AB108: 2018-11-08 | AC108: 2018-11-08 | AD108: 2018-11-27 | AE108: 2018-11-27 | AR108: ○ | AW108: 2018-11-27 | AX108: 2018-11-27 | AY108: 6162940 | BB108: 2018-12-23 | BC108: 6162950 | BD108: 2018-12-23 | BE108: 6162940 | BF108: 18488830 | BG108: 2018-12-11 | BH108: 18488830 | BU108: 18488830 | BV108: 12325890 | BX108: 4622210 | BY108: 486200 | BZ108: 339420 | CA108: 715110 | CB108: 18488830 | CC108: 0 | CD108: 0 | CE108: 완납 | CF108: =CB108 -> 18488830 | CG108: 신상옥 이사 | CH108: 062-417-6021 | CI108: 010-8604-7771 | CK108: kctvevent@hanmail.net | CN108: 18488830 | CQ108: 18488830
B109: 102 | C109: 어린이 체험 놀이터 | D109: 호 디자인 | F109: 2018-12-17 | G109: 2018-12-31 | H109: 15 | I109: 2018-12-22 | J109: 2018-12-31 | K109: 10 | L109: 제2전시장 | M109: 3024 | N109: 12 | R109: 1 | T109: 45360 | U109: 0.01369863014 | V109: 장기이벤트 | W109: 타지역 | AC109: 2018-10-05 | AD109: 2018-10-10 | AE109: 2018-10-10 | AR109: ○ | AV109: - | AW109: 2018-10-10 | AX109: 2018-10-25 | AY109: 24000000 | AZ109: 2018-11-16 | BA109: =36000000-31875000 -> 4125000 | BB109: 2018-12-16 | BC109: =60000000-60000000 -> 0 | BF109: 28125000 | BG109: 2018-10-20 | BH109: 7000000 | BI109: 2018-10-24 | BJ109: 16500000 | BK109: 2018-11-06 | BL109: 500000 | BM109: 2018-11-15 | BN109: =36000000-31875000 -> 4125000 | BU109: 28125000 | BV109: 28125000 | CB109: 28125000 | CC109: 0 | CD109: 0 | CE109: 완납 | CF109: =CB109 -> 28125000 | CG109: 박호웅 대표 | CH109: 02-385-0206 | CI109: 010-5531-0206 | CJ109: 02-382-0206 | CK109: hodesignin@naver.com | CN109: 28125000 | CQ109: 28125000
B110: 103 | C110: 신비아파트 전시체험전 | D110: (주)렌쥴리에듀테이먼트 | F110: 2018-12-17 | G110: 2018-12-31 | H110: 15 | I110: 2018-12-22 | J110: 2018-12-31 | K110: 10 | L110: 제1전시장 | M110: 3024 | N110: 12 | Q110: 1 | T110: 45360 | U110: 0.01369863014 | V110: 장기이벤트 | W110: 타지역 | AC110: 2018-11-05 | AD110: 2018-11-07 | AE110: 2018-11-07 | AR110: ○ | AV110: - | AW110: 2018-11-07 | AX110: =AW110+15 -> 2018-11-22 | AY110: =ROUNDDOWN(90000000/71*15,-1) -> 19014080 | BB110: 2018-12-16 | BC110: - | BF110: =SUM(AY110,BA110,BC110,BE110) -> 19014080 | BG110: 2018-11-22 | BH110: 19014080 | BU110: 19014080 | BV110: 19014080 | CB110: 19014080 | CC110: 0 | CD110: 0 | CE110: 완납 | CF110: =CB110 -> 19014080 | CG110: 이윤석 이사 | CH110: 1877-5567 | CI110: 010-3459-2110 | CJ110: 02-3144-4799 | CK110: lys2102@hanmail.net | CN110: =CF110-CM110-CO110-CP110 -> 19014080 | CQ110: 19014080
T111: 0 | U111: 0 | BF111: 0 | BU111: 0 | BV111: 0 | CB111: 0 | CC111: 0 | CD111: 0 | CE111: 완납 | CF111: 0 | CN111: 0 | CQ111: 0
T112: 0 | U112: 0 | BF112: 0 | BU112: 0 | BV112: 0 | CB112: 0 | CC112: 0 | CD112: 0 | CE112: 완납 | CF112: 0 | CN112: 0 | CQ112: 0
C113: 계 | T113: =SUM(T8:T112) -> 2283180 | U113: =SUM(U8:U112) -> 0.6895158368 | BF113: =SUM(BF8:BF112) -> 2472186760 | BU113: =SUM(BU8:BU112) -> 2363032790 | BV113: =SUM(BV8:BV112) -> 1908446270 | CB113: =SUM(CB8:CB112) -> 2285414800 | CC113: =SUM(CC8:CC112) -> 30641020 | CD113: =SUM(CD8:CD112) -> 108259010 | CF113: 2285414800 | CM113: =SUM(CM8:CM112) -> 28939680 | CN113: =SUM(CN8:CN112) -> 2224262640 | CO113: =SUM(CO8:CO112) -> 0 | CP113: =SUM(CP8:CP112) -> 3272800 | CQ113: =SUM(CQ8:CQ112) -> 2256475120 | CR113: =CQ113-CM113 -> 2227535440 | CS113: 2253202320 | CT113: =CR113-CS113 -> -25666880
C115: 취소행사
B116: A | C116: 유병재 스탠드업 코미디쇼 <B의 농담> | D116: (주)하늘이엔티 | F116: 2018-06-29 | G116: 2018-07-01 | H116: =G116-F116+1 -> 3 | I116: 2018-06-30 | J116: 2018-07-01 | K116: =J116-I116+1 -> 2 | L116: 다목적홀 | M116: 1478 | N116: 6 | P116: 1 | T116: =M116*H116 -> 4434 | U116: =T116/(9072*365) -> 0.001339059216 | V116: 이벤트 | W116: 지역 | AA116: 2018-04-18 | AB116: 2018-04-19 | AC116: 2018-04-18 | AD116: 2018-04-30 | AE116: 2018-05-04 | AR116: ○ | AU116: 2018.05.23 계약취소 | AV116: 0 | AW116: 2018-04-27 | AX116: =AW116 -> 2018-04-27 | AY116: 6164640 | BB116: 2018-06-22 | BC116: 6164640 | BD116: =BB116 -> 2018-06-22 | BE116: 2311880 | BF116: =SUM(AY116,BA116,BC116,BE116) -> 14641160 | BG116: 2018-04-26 | BH116: 6164640 | BU116: =SUM(BH116,BJ116,BL116,BN116,BP116,BR116,BT116) -> 6164640 | BV116: 0 | BW116: 5464450 | CB116: =SUM(BV116:CA116) -> 5464450 | CC116: =IF(BU116<CB116,ROUNDDOWN(CB116-BU116,-1),0) -> 0 | CD116: =IF(BU116>CB116,ROUNDDOWN(BU116-CB116,-1),0) -> 700190 | CE116: =IF(IF(CC116,0="완납",0<"미수"),"완납","미수") -> 완납 | CF116: =CB116 -> 5464450 | CG116: 김혜수 매니저 | CH116: 02-333-9009 | CI116: 010-4779-6715 | CJ116: 02-332-3030 | CK116: sky_khs2@skyent.me | CP116: =BW116 -> 5464450 | CQ116: =SUM(CM116:CP116) -> 5464450
B117: B | C117: 무아차회 | D117: (사)국제티클럽 | F117: 2018-05-31 | G117: 2018-05-31 | H117: =G117-F117+1 -> 1 | I117: 2018-05-31 | J117: 2018-05-31 | K117: =J117-I117+1 -> 1 | L117: 열린홀 | M117: 500 | N117: 5 | S117: 1 | T117: =M117*H117 -> 500 | U117: =T117/(9072*365) -> 0.0001509990094 | V117: 이벤트 | W117: 타지역 | AA117: 2018-05-09 | AB117: 2018-05-09 | AC117: 2018-05-09 | AD117: 2018-05-10 | AE117: 2018-05-14 | AU117: 2018.05.25 계약취소 | AV117: 0 | AW117: 2018-01-05 | AX117: 2018-05-09 | AY117: 426250 | BB117: 2018-05-09 | BC117: 426250 | BF117: =SUM(AY117,BA117,BC117,BE117) -> 852500 | BG117: 2018-05-16 | BH117: 852500 | BU117: =SUM(BH117,BJ117,BL117,BN117,BP117,BR117,BT117) -> 852500 | BV117: 0 | BW117: 542500 | CB117: =SUM(BV117:CA117) -> 542500 | CC117: =IF(BU117<CB117,ROUNDDOWN(CB117-BU117,-1),0) -> 0 | CD117: =IF(BU117>CB117,ROUNDDOWN(BU117-CB117,-1),0) -> 310000 | CE117: =IF(IF(CC117,0="완납",0<"미수"),"완납","미수") -> 완납 | CF117: =CB117 -> 542500 | CG117: 곽재명 사무국장 | CH117: 070-7011-5245 | CI117: 010-8627-3814 | CJ117: 063-451-0046 | CK117: napolee8314@hanmail.net | CP117: =BW117 -> 542500 | CQ117: =SUM(CM117:CP117) -> 542500
CP118: =BW118 -> 0 | CQ118: =SUM(CM118:CP118) -> 0
C119: 계 | U119: =SUM(U116:U118) -> 0.001490058225 | BF119: =SUM(BF116:BF118) -> 15493660 | BU119: =SUM(BU116:BU118) -> 7017140 | BV119: =SUM(BV116:BV118) -> 0 | CB119: =SUM(CB116:CB118) -> 6006950 | CC119: =SUM(CC116:CC118) -> 0 | CD119: =SUM(CD116:CD118) -> 1010190 | CF119: =SUM(CF116:CF118) -> 6006950 | CM119: =SUM(CM116:CM118) -> 0 | CN119: =SUM(CN116:CN118) -> 0 | CO119: =SUM(CO116:CO118) -> 0 | CP119: =SUM(CP116:CP118) -> 6006950 | CQ119: =SUM(CQ116:CQ118) -> 6006950
C121: 2019년 행사
B122: 가 | C122: 어린이 체험 놀이터 | D122: 호 디자인 | F122: 2019-01-01 | G122: 2019-02-18 | H122: =G122-F122+1 -> 49 | I122: 2019-01-01 | J122: 2019-02-17 | K122: =J122-I122+1 -> 48 | L122: 제2전시장 | M122: 3024 | N122: 1 | R122: 1 | T122: =M122*H122 -> 148176 | U122: =T122/(9072*365) -> 0.04474885845 | V122: 이벤트 | W122: 타지역 | AC122: 2018-10-05 | AD122: 2018-10-10 | AE122: 2018-10-10 | AU122: 수입지출외현금 납부유예 | AV122: - | AW122: 2018-10-10 | AX122: 2018-10-25 | AY122: =24000000-24000000 -> 0 | AZ122: 2018-11-16 | BA122: =36000000-4125000 -> 31875000 | BB122: 2018-12-16 | BC122: 60000000 | BF122: =SUM(AY122,BA122,BC122,BE122) -> 91875000 | BG122: 2018-11-15 | BH122: 31875000 | BI122: 2018-11-21 | BJ122: 2000000 | BK122: 2018-12-10 | BL122: 2000000 | BM122: 2018-12-11 | BN122: 3000000 | BO122: 2019-12-31 | BP122: 3000000 | BU122: =SUM(BH122,BJ122,BL122,BN122,BP122,BR122,BT122) -> 41875000 | BV122: =SUM(AY122,BA122,BC122) -> 91875000 | CB122: =SUM(BV122:CA122) -> 91875000 | CC122: =IF(BU122<CB122,ROUNDDOWN(CB122-BU122,-1),0) -> 50000000 | CD122: =IF(BU122>CB122,ROUNDDOWN(BU122-CB122,-1),0) -> 0 | CE122: =IF(IF(CC122,0="완납",0<"미수"),"완납","미수") -> 미수 | CF122: =BU122 -> 41875000 | CG122: 박호웅 대표 | CH122: 02-385-0206 | CI122: 010-5531-0206 | CJ122: 02-382-0206 | CK122: hodesignin@naver.com | CO122: =BU122 -> 41875000 | CQ122: =SUM(CM122:CP122) -> 41875000
B123: 나 | C123: 신비아파트 전시체험전 | D123: (주)렌쥴리에듀테이먼트 | F123: 2019-01-01 | G123: 2019-02-25 | H123: 56 | I123: 2019-01-01 | J123: 2019-02-24 | K123: 55 | L123: 제1전시장 | M123: 3024 | N123: 1 | Q123: 1 | T123: 169344 | U123: 0.05114155251 | V123: 이벤트 | W123: 타지역 | AC123: 2018-11-05 | AD123: 2018-11-07 | AE123: 2018-11-07 | AU123: 수입지출외현금 | AV123: - | AW123: 2018-11-07 | AX123: =AW123+15 -> 2018-11-22 | AY123: =45000000-19014080 -> 25985920 | BB123: 2018-12-16 | BC123: 45000000 | BF123: 70985920 | BG123: 2018-11-22 | BH123: 25985920 | BI123: 2018-12-17 | BJ123: 45000000 | BU123: 70985920 | BV123: 70985920 | CB123: 70985920 | CC123: 0 | CD123: 0 | CE123: 완납 | CF123: =BU123 -> 70985920 | CG123: 이윤석 이사 | CH123: 1877-5567 | CI123: 010-3459-2110 | CJ123: 02-3144-4799 | CK123: lys2102@hanmail.net | CO123: 70985920 | CQ123: 70985920
B124: 다 | C124: 2018엠씨더맥스 콘서트 | D124: 주식회사 공연마루 | F124: 2019-01-17 | G124: 2019-01-19 | H124: 3 | I124: 2019-01-19 | J124: 2019-01-19 | K124: 1 | L124: 다목적홀 | M124: 2955 | N124: 1 | O124: 1 | P124: 1 | T124: 8865 | U124: 0.002677212437 | V124: 이벤트 | W124: 지역 | AA124: 2018-10-17 | AB124: 2018-10-18 | AC124: 2018-10-17 | AD124: 2018-10-18 | AE124: 2018-11-19 | AU124: 수입지출외현금 | AV124: 0 | AW124: 2018-11-19 | AX124: 2018-11-19 | AY124: 8474050 | BB124: 2018-01-10 | BC124: 8474050 | BD124: =BB124 -> 2018-01-10 | BE124: 11093300 | BF124: 28041400 | BG124: 2018-11-16 | BH124: 8474050 | BU124: 8474050 | BV124: 16948100 | CB124: 16948100 | CC124: 8474050 | CD124: 0 | CE124: 미수 | CF124: 8474050 | CG124: 정다빈 | CH124: 062-528-7880 | CI124: 010-7124-3654 | CJ124: 062-528-7882 | CK124: ticketmaru@hanmail.net | CO124: 8474050 | CQ124: 8474050
B125: 라 | C125: 케이윌 콘서트 - 광주 | D125: 유한회사 디온커뮤니케이션 | F125: 2019-02-08 | G125: 2019-02-09 | H125: 2 | I125: 2019-02-09 | J125: 2019-02-09 | K125: 1 | L125: 다목적홀 | M125: 2955 | N125: 2 | O125: 1 | P125: 1 | T125: 5910 | U125: 0.001784808292 | V125: 이벤트 | W125: 타지역 | AA125: 2018-09-28 | AB125: 2018-10-01 | AC125: 2018-09-28 | AD125: 2018-10-16 | AE125: 2018-11-20 | AF125: 2018-10-01 | AU125: 수입지출외현금 | AV125: 0 | AW125: 2018-10-16 | AX125: 2018-10-16 | AY125: 2465170 | AZ125: 2018-11-08 | BA125: 3697770 | BB125: 2019-02-01 | BC125: 6162950 | BD125: =BB125 -> 2019-02-01 | BE125: 5392570 | BF125: 17718460 | BG125: 2018-10-16 | BH125: 2465170 | BI125: 2018-12-06 | BJ125: 3697770 | BU125: 6162940 | BV125: 12325890 | CB125: 12325890 | CC125: 6162950 | CD125: 0 | CE125: 미수 | CF125: 6162940 | CG125: 김종환 실장 | CH125: 1522-2274 | CI125: 010-3190-4290 | CJ125: 053-719-2997 | CK125: dion2016@daum.net | CO125: 6162940 | CQ125: 6162940
B126: 마 | C126: 2019호남창업&프랜차이즈박람회 in 광주전남 | D126: 좋은공간 | F126: 2019-05-22 | G126: 2019-05-26 | H126: 5 | I126: 2019-05-24 | J126: 2019-05-26 | K126: 3 | L126: 제1전시장 | M126: 3024 | N126: 5 | Q126: 1 | T126: 15120 | U126: 0.004566210046 | V126: 전시회 | W126: 지역 | AA126: 2018-05-18 | AB126: 2018-10-26 | AD126: 2018-10-29 | AE126: 2018-10-29 | AU126: 수입지출외현금 | AV126: 0 | AW126: 2018-10-29 | AX126: 2018-10-29 | AY126: 4640320 | AZ126: 2019-02-22 | BA126: 6960500 | BB126: 2019-05-15 | BC126: 11600820 | BD126: =BB126 -> 2019-05-15 | BE126: 5155920 | BF126: 28357560 | BG126: 2018-10-29 | BH126: 4640320 | BU126: 4640320 | BV126: 23201640 | CB126: 23201640 | CC126: 18561320 | CD126: 0 | CE126: 미수 | CF126: 4640320 | CG126: 위영수 대표 | CH126: 062-371-3511 | CI126: 010-8962-0021 | CJ126: 065-371-3511 | CK126: good-space@naver.com | CO126: 4640320 | CQ126: 4640320
B127: 바 | C127: 설맞이 선물박람회 | D127: 좋은공간 | F127: 2019-05-22 | G127: 2019-05-26 | H127: 5 | I127: 2019-05-24 | J127: 2019-05-26 | K127: 3 | L127: 제1전시장 | M127: 3024 | N127: 5 | Q127: 1 | T127: 15120 | U127: 0.004566210046 | V127: 전시회 | W127: 지역 | AA127: 2018-05-18 | AB127: 2018-10-26 | AD127: 2018-10-29 | AE127: 2018-10-29 | AU127: 수입지출외현금 | AV127: 0 | AW127: 2018-10-29 | AX127: 2018-10-29 | AY127: 4640320 | AZ127: 2019-02-22 | BA127: 6960500 | BB127: 2019-05-15 | BC127: 11600820 | BD127: =BB127 -> 2019-05-15 | BE127: 5155920 | BF127: 28357560 | BG127: 2018-10-29 | BH127: 4640320 | BU127: 4640320 | BV127: 23201640 | CB127: 23201640 | CC127: 18561320 | CD127: 0 | CE127: 미수 | CF127: =BU127 -> 4640320 | CG127: 위영수 대표 | CH127: 062-371-3511 | CI127: 010-8962-0021 | CJ127: 065-371-3511 | CK127: good-space@naver.com | CO127: =BU127 -> 4640320 | CQ127: =SUM(CM127:CP127) -> 4640320
T128: 0 | U128: 0 | BF128: 0 | BU128: 0 | BV128: 0 | CB128: 0 | CC128: 0 | CD128: 0 | CE128: 완납 | CF128: 0 | CO128: 0 | CQ128: 0
C129: 계 | U129: =SUM(U122:U128) -> 0.1094848518 | BF129: =SUM(BF122:BF128) -> 265335900 | BU129: =SUM(BU122:BU128) -> 136778550 | BV129: =SUM(BV122:BV128) -> 238538190 | CB129: =SUM(CB122:CB128) -> 238538190 | CC129: =SUM(CC122:CC128) -> 101759640 | CD129: =SUM(CD122:CD128) -> 0 | CF129: =SUM(CF122:CF128) -> 136778550 | CM129: =SUM(CM122:CM128) -> 0 | CN129: =SUM(CN122:CN128) -> 0 | CO129: =SUM(CO122:CO128) -> 136778550 | CP129: =SUM(CP122:CP128) -> 0 | CQ129: =SUM(CQ122:CQ128) -> 136778550
CE131: 전시회 | CF131: 1663776030 | CM131: =SUM(CM113,CM119,CM129) -> 28939680 | CN131: =SUM(CN113,CN119,CN129) -> 2224262640 | CO131: =SUM(CO113,CO119,CO129) -> 136778550 | CP131: =SUM(CP113,CP119,CP129) -> 9279750 | CQ131: =SUM(CQ113,CQ119,CQ129) -> 2399260620
CE133: 이벤트 | CF133: 627645720 | CN133: KPI 인정 수입 | CQ133: =CN131+CP131 -> 2233542390

Sheet 2022년
A1: 22년 전시장 임대현황
A4: 연번 | B4: 행사명 | C4: 주최/주관 | D4: 행사기간 | F4: 개최장소
D6: 시작 | E6: 종료
A8: 1 | B8: 중흥풍경채입주박람회 | C8: 일공일이컴퍼니 | D8: 2022-01-08 | E8: 2022-01-09 | F8: 전시장 A홀
A9: 2 | B9: 현대자동차 신차 홍보 쇼룸 | C9: 프리모케이앤에스 | D9: 2022-01-01 | E9: 2022-01-12 | F9: 열린홀
A10: 3 | B10: 광주연합입주박람회 | C10: 일공일이컴퍼니 | D10: 2022-01-15 | E10: 2022-01-16 | F10: 전시장 A홀
A11: 4 | B11: 2022 광주 설맞이 선물박람회 | C11: 익스네이션 | D11: 2022-01-27 | E11: 2022-01-31 | F11: 전시장 B홀
A12: 5 | B12: 광주베이비페어(1월) | C12: 세종전람 | D12: 2022-01-20 | E12: 2022-01-23 | F12: 전시장 C홀
A13: 6 | B13: 웨딩21&시크릿웨딩박람회 | C13: 시크릿 | D13: 2022-01-22 | E13: 2022-01-23 | F13: 전시장 A홀
A14: 7 | B14: 남구도시첨단D2블럭 제일풍경채입주박람회 | C14: ㈜해피홈 | D14: 2022-02-19 | E14: 2022-02-20 | F14: 전시장 A홀
A15: 8 | B15: 박헤자 광주교육감 후보 출판기념회 | C15: ㈜좋은피알착한기업 | D15: 2022-02-19 | E15: 2022-02-19 | F15: 열린홀
A16: 9 | B16: 제11회 광주펫쇼 | C16: 소만스탠다드베어러 | D16: 2022-02-25 | E16: 2022-02-27 | F16: 전시장 B홀
A17: 10 | B17: 광주웨딩박람회(2월) | C17: 광주웨딩연합회 | D17: 2022-02-25 | E17: 2022-02-27 | F17: 전시장 A홀
A18: 11 | B18: 광주유아박람회(3월) | C18: 남도일보 | D18: 2022-03-03 | E18: 2022-03-06 | F18: 전시장 A홀
A19: 12 | B19: 장윤정콘서트(3월) | C19: 공연마루 | D19: 2022-03-19 | E19: 2022-03-19 | F19: 다목적1,2홀
A20: 13 | B20: 남해 오네뜨 입주박람회 | C20: ㈜해피홈 | D20: 2022-03-19 | E20: 2022-03-20 | F20: 전시장 A홀
A21: 14 | B21: 내일은 국민가수 콘서트 | C21: ㈜장터미디어 | D21: 2022-03-26 | E21: 2022-03-26 | F21: 전시장 B홀
A22: 15 | B22: 대한민국 웨딩페어(3월) | C22: 광주웨딩스퀘어 | D22: 2022-03-26 | E22: 2022-03-27 | F22: 다목적1홀
A23: 16 | B23: 2022 경향하우징/리빙앤라이프페어 | C23: 메쎄이상 | D23: 2022-03-31 | E23: 2022-04-03 | F23: 전시장 A,B,C홀
A24: 17 | B24: 광주전남내과의사회 | C24: 광주전남내과의사회 | D24: 2022-04-02 | E24: 2022-04-02 | F24: 열린홀
A25: 18 | B25: 하울링콘서트(4월) | C25: 벨나인엔터테이먼트 | D25: 2022-04-10 | E25: 2022-04-10 | F25: 다목적1,2홀
A26: 19 | B26: 대한민국웨딩페어(4월) | C26: 광주웨딩스퀘어 | D26: 2022-04-15 | E26: 2022-04-17 | F26: 전시장 C홀
A27: 20 | B27: 월장(4월) | C27: 가라실영농조합법인 | D27: 2022-04-20 | E27: 2022-04-20 | F27: 열린홀
A28: 21 | B28: 2022더캠핑쇼&더골프쇼in 광주 | C28: 해울디자인 | D28: 2022-04-21 | E28: 2022-04-24 | F28: 전시장 A,B홀
A29: 22 | B29: 예거스 주짓수 대회 | C29: 예거스 주짓수 | D29: 2022-04-23 | E29: 2022-04-23 | F29: 전시장 C홀
A30: 23 | B30: 광주 베이비 키즈페어(4월) | C30: 가온컴퍼니 | D30: 2022-04-28 | E30: 2022-05-01 | F30: 전시장 A,B홀
A31: 24 | B31: 원픽스테이지 콘서트 | C31: ㈜엠플러스 | D31: 2022-04-30 | E31: 2022-04-30 | F31: 다목적1,2홀
A32: 25 | B32: 대한민국 웨딩페어(5월) | C32: 광주웨딩스퀘어 | D32: 2022-05-14 | E32: 2022-05-15 | F32: 전시장 C홀
A33: 26 | B33: HODEX2022 | C33: 전남치과의사회 | D33: 2022-05-14 | E33: 2022-05-15 | F33: 전시장 A,B홀
A34: 27 | B34: 2023JEEP 야외차량 전시 | C34: 신일모터스 | D34: 2022-05-15 | E34: 2022-05-15 | F34: 야외광장
A35: 28 | B35: 광주청년일경험드림 | C35: 전남대학교산학협력단 | D35: 2022-05-16 | E35: 2022-05-16 | F35: 야외광장
A36: 29 | B36: 광주지역가전가구입주박람회 | C36: ㈜해피홈 | D36: 2022-05-21 | E36: 2022-05-22 | F36: 전시장 A홀
A37: 30 | B37: 광주창업&프랜차이즈박람회 | C37: 좋은공간 | D37: 2022-05-27 | E37: 2022-05-29 | F37: 전시장 A홀
A38: 31 | B38: 대한외과학회 2022 춘계학술대회 | C38: 대한외과학회 | D38: 2022-05-27 | E38: 2022-05-28 | F38: 열린홀
A39: 32 | B39: 제8회 전국동시지방선거 북구 개표 | C39: 북구선거관리위원회 | D39: 2022-06-01 | E39: 2022-06-02 | F39: 전시장 B,C홀
A40: 33 | B40: 2022임영웅콘서트 | C40: ㈜공연마루 | D40: 2022-06-10 | E40: 2022-06-12 | F40: 전시장 A,B,C홀
A41: 34 | B41: 2022임영웅콘서트 포토존 | C41: ㈜공연마루 | D41: 2022-06-10 | E41: 2022-06-12 | F41: 열린홀
A42: 35 | B42: 광주입주박람회(6월) | C42: 일공일이컴퍼니 | D42: 2022-06-18 | E42: 2022-06-19 | F42: 전시장 C홀
A43: 36 | B43: 대한민국웨딩페어(6월) | C43: 광주웨딩스퀘어 | D43: 2022-06-17 | E43: 2022-06-19 | F43: 전시장 A홀
A44: 37 | B44: 2022광주소상공인&전통시장살리기 | C44: 익스네이션 | D44: 2022-06-17 | E44: 2022-06-21 | F44: 전시장 B홀
A45: 38 | B45: 2022년 춘계 지질과학기술 공동학술대회 | C45: (사)대한자원환경지질학회 | D45: 2022-06-22 | E45: 2022-06-23 | F45: 열린홀
A46: 39 | B46: 2022국제&티푸드박람회 | C46: ㈜한국전시애드 | D46: 2022-06-23 | E46: 2022-06-26 | F46: 전시장 C홀
A47: 40 | B47: 빛고을핸드메이드페어 | C47: 광주디자인진흥원 | D47: 2022-06-24 | E47: 2022-06-26 | F47: 전시장 A,B홀
A48: 41 | B48: 대한민국웨딩산업박람회 | C48: 이주 | D48: 2022-06-27 | E48: 2022-06-27 | F48: 전시장 B홀
A49: 42 | B49: 광주유아박람회(6월) | C49: 남도일보 | D49: 2022-06-30 | E49: 2022-07-03 | F49: 전시장 A,B홀
A50: 43 | B50: 대한민국웨딩페어(7월) | C50: 광주웨딩스쿼어 | D50: 2022-07-02 | E50: 2022-07-03 | F50: 전시장 C홀
A51: 44 | B51: 아름다운 정리크루 기부물품 판매전 | C51: 김대중컨벤션센터 | D51: 2022-07-01 | E51: 2022-07-01 | F51: 열린홀
A52: 45 | B52: 계림아이파크입주박람회(2차) | C52: 목수와칠쟁이 | D52: 2022-07-02 | E52: 2022-07-03 | F52: 다목적1,2홀
A53: 46 | B53: SWEET 2022 | C53: 김대중컨벤션센터 | D53: 2022-07-06 | E53: 2022-07-08 | F53: 다목적홀1,2홀, 전시장 A,B,C홀, 열린홀
A54: 47 | B54: GPVC 포스터 전시 (열린홀) | C54: SWEET, 한국태양광발전학회 | D54: 2022.07.05 | E54: 2022.07.08 | F54: 다목적1홀
A55: 48 | B55: 광주권역 일학습병행 잡마켓&NCS 취업 진로 토크 콘서트 | C55: 한국산업인력공단광주지역본부 | D55: 2022-07-12 | E55: 2022-07-12 | F55: 다목적1,2홀
A56: 49 | B56: 2023학년도 광주 진로진학박람회 | C56: 김대중컨벤션센터 | D56: 2022-07-16 | E56: 2022-07-17 | F56: 다목적홀1,2홀, 전시장 A,B,C홀, 열린홀
A57: 50 | B57: 2022 국제뿌리산업전 | C57: 김대중컨벤션센터 | D57: 2022-07-21 | E57: 2022-07-23 | F57: 전시장 A,B,C홀, 열린홀,다목적홀1,2
A58: 51 | B58: 2022 IoT가전로봇박람회 | C58: 김대중컨벤션센터 | D58: 2022.07.21 | E58: 2022.07.23 | F58: 전시장 A,B,C홀, 열린홀,다목적홀1,2
A59: 52 | B59: 2022 그린카전시회 | C59: 김대중컨벤션센터 | D59: 2022.07.21 | E59: 2022.07.23 | F59: 전시장 A,B,C홀, 열린홀,다목적홀1,2
A60: 53 | B60: 농기자재&농수산물 박람회 | C60: 나이스전람 | D60: 2022-07-28 | E60: 2022-07-31 | F60: 전시장A,B홀
A61: 54 | B61: 곳장(7월) | C61: ㈜곳장 | D61: 2022-07-29 | E61: 2022-07-30 | F61: 열린홀
A62: 55 | B62: 광산 힐스테이트 공식 입주박람회 | C62: ㈜일공일이컴퍼니 | D62: 2022.07.30 | E62: 2022.07.31 | F62: 전시장 C
A63: 56 | B63: 대한민국웨딩페어(8월) | C63: 광주웨딩스퀘어 | D63: 2022-08-06 | E63: 2022-08-07 | F63: 다목적1홀
A64: 57 | B64: 광주건축박람회-정시 | C64: ㈜kbc씨앤씨 | D64: 2022-08-04 | E64: 2022-08-07 | F64: 전시장A,B홀
A65: 58 | B65: 제24회 광주맘아랑베이비페어-정시 | C65: 가온컴퍼니 | D65: 2022-08-11 | E65: 2022-08-14 | F65: 전시장A,B홀
A66: 59 | B66: 2022 김연자 라이브 콘서트 | C66: ㈜엠플러스 | D66: 2022-08-13 | E66: 2022-08-13 | F66: 다목적1,2홀
A67: 60 | B67: 조달청 혁신제품 권역별 순회전시회 | C67: 제이넷컴 | D67: 2022.08.17 | E67: 2022.08.18 | F67: 전시장 A
A68: 61 | B68: 제12회광주펫쇼-정시 | C68: 소만스탠다드베어러 | D68: 2022-08-19 | E68: 2022-08-21 | F68: 전시장C홀
A69: 62 | B69: 무등산 자이 어울림 입주박람회 | C69: 폴하우스전람 | D69: 2022-08-20 | E69: 2022-08-21 | F69: 전시장B홀
A70: 63 | B70: 2022스마트축산k-Farm 페어 | C70: (사)한국축산환경시설기계협회 | D70: 2022-08-24 | E70: 2022-08-26 | F70: 전시장A,B홀
A71: 64 | B71: Green & Agritech Asia 2022 | C71: 김대중컨벤션센터 | D71: 2022.08.25 | E71: 2022.08.27 | F71: 다목적1홀, 전시장C
A72: 65 | B72: 제 58차 세계조경가대회 조경정원박람회 | C72: 세계조경가협회 조직위원회 | D72: 2022-08-31 | E72: 2022-09-02 | F72: 전시장A,B,C
A73: 66 | B73: Beer Fest in Gwangju | C73: 김대중컨벤션센터 | D73: 2022-08-31 | E73: 2022-09-03 | F73: 야외광장
A74: 67 | B74: 곳장(9월) | C74: ㈜곳장 | D74: 2022.09.02 | E74: 2022.09.03 | F74: 열린홀
A75: 68 | B75: 광주 상생한마당 | C75: 김대중컨벤션센터/광주광역시지체장애인협회 서구지회 | D75: 2022.09.04 | E75: 2022.09.08 | F75: 다목적홀1,2
A76: 69 | B76: SPLASH 2022 | C76: 김대중컨벤션센터 | D76: 2022.09.05 | E76: 2022.09.06 | F76: 전시장C,전시장B,전시장A
A77: 70 | B77: 국제기후환경산업전 | C77: 김대중컨벤션센터 | D77: 2022-09-14 | E77: 2022-09-16 | F77: 전시장 A,B홀
A78: 71 | B78: 제 1회 광주사회적경제박람회 | C78: 김대중컨벤션센터 | D78: 2022-09-14 | E78: 2022-09-16 | F78: 전시장 C홀
A79: 72 | B79: 달빛동서 사회적경제 화합한마당 | C79: 광주사회적기업협의회 | D79: 2022-09-15 | E79: 2022-09-15 | F79: 야외전시장
A80: 73 | B80: 대한민국웨딩페어(9월) | C80: 광주웨딩스퀘어 | D80: 2022-09-17 | E80: 2022-09-18 | F80: 다목적홀1
A81: 74 | B81: ACE FAIR | C81: 김대중컨벤션센터 | D81: 2022-09-22 | E81: 2022-09-25 | F81: 다목적홀1,2홀, 전시장 A,B,C홀, 열린홀, 콘코스홀, 야외전시장
A82: 75 | B82: AI TECH+ 2022 | C82: 김대중컨벤션센터 | D82: 2022.09.28 | E82: 20022.09.30 | F82: 전시장 A,B홀
A83: 76 | B83: AICON 광주 2022 | C83: 인공지능산업융합단 | D83: 2022-09-28 | E83: 2022-09-30 | F83: 전시장 C홀
A84: 77 | B84: 초광역조선소일자리박람회 | C84: ㈜맵시 | D84: 2022.09.27 | E84: 2022.09.27 | F84: 다목적1~2홀
A85: 78 | B85: 2022년 광주광역시와 함께 찾는 내일 박람회 | C85: 한국고용정책연구원 | D85: 2022.09.29 | E85: 2022.09.30 | F85: 다목적1~2홀
A86: 79 | B86: 대한민국웨딩페어(10월) | C86: 광주웨딩스퀘어 | D86: 2022-10-02 | E86: 2022-10-02 | F86: 다목적1홀
A87: 80 | B87: 아트광주 2022 | C87: (사)한국미술협회광주광역시지회 | D87: 2022.10.06 | E87: 2022.10.09 | F87: 전시장 A,B,C
A88: 81 | B88: 광주국제차문화전시회/광주식품대전 | C88: 김대중컨벤션센터 | D88: 2022-10-13 | E88: 2022-10-16 | F88: 전시장 A,B,C홀
A89: 82 | B89: 광주경향하우징페어(10월) | C89: ㈜머쎄이상 | D89: 2022-10-20 | E89: 2022-10-23 | F89: 전시장A,B,C홀
